Workbook

Sheet UTAS
B2: UTAS - Upstream Tariff Simulator (Version: 12/11/2020)
B6: Dataset Information
B7: Country | C7: =VLOOKUP("Country",CONFIGURATION!$A$1:$B$50,2,FALSE) -> Not Set
B8: Year | C8: =VLOOKUP("Year",CONFIGURATION!$A$1:$B$50,2,FALSE) -> Not Set
B9: HS Version | C9: =VLOOKUP("HS Version",CONFIGURATION!$A$1:$B$50,2,FALSE) -> Not Set
B11: Input-Output Table - Sectors' Nomenclature | C11: =VLOOKUP("Sector Type",CONFIGURATION!$A$1:$B$50,2,FALSE) -> Not Set
B12: Number of Tariff Lines | C12: =VLOOKUP("Number of Tariffs Lines",CONFIGURATION!$A$1:$B$50,2,FALSE) -> Not Set
B13: Number of Sectors | C13: =VLOOKUP("Number of Sectors",CONFIGURATION!$A$1:$B$50,2,FALSE) -> Not Set
B15: Status of data imports | E15: Simulator I
B16: Input-Output Matrix | C16: =VLOOKUP("Import Input Output",CONFIGURATION!$A$1:$B$50,2,FALSE) -> Incomplete | E16: Simulation Framework | F16: =IF(SIM_I!E5=0,"Not Set",SIM_I!E5) -> Not Set
B17: Baseline tariffs | C17: =VLOOKUP("Import Base Tariffs",CONFIGURATION!$A$1:$B$50,2,FALSE) -> Incomplete | E17: Sector | F17: =IF(SIM_I!E3=0,"Not Set",SIM_I!E3) -> Not Set
B18: Tariff reform scenarios | C18: =VLOOKUP("Import Scenario",CONFIGURATION!$A$1:$B$50,2,FALSE) -> Incomplete
E19: Simulator II
B20: Output Tariff Calculations | E20: Simulation Framework | F20: =IF(SIM_II!E2=0,"Not Set",SIM_II!E2) -> Not Set
B21: Elasticities
B22: Elasticity of Supply | C22: =OUTPUT_TARIFFS_CALCULATIONS!$G$2 -> 10
B23: Elasticity of Substitution | C23: =OUTPUT_TARIFFS_CALCULATIONS!$H$2 -> 2 | E23: Simulator III
E24: Simulation Framework | F24: =IF(SIM_III_IN!G2=0,"Not Set",SIM_III_IN!G2) -> Not Set
E25: Tariff reform scenario | F25: =IF(SIM_III_IN!P6="","Not Set",SIM_III_IN!P6) -> Not Set | I25: =IF(SIM_III_IN!P7=0,"Not Set",SIM_III_IN!P7) -> Not Set

Sheet README
C3: UPSTREAM TARIFF SIMULATOR (UTAS)
C5: What does UTAS do?
C7: The Upstream Tariff Simulator (UTAS) is an Excel-based tool developed by the World Bank Group to help policy makers assess
C8: the impact of tariff reforms on production costs across a variety of sectors in a flexible and time-efficient manner.
C10: The UTAS Control Panel
C12: The first sheet in UTAS is the control panel that allows users to load the required data to run the various simulation modules
C13: and to modify pre-set modelling parameters.
C15: The minimum data requirements include an Input-Output matrix classified according to GTAP, ISIC or NAICS sector nomenclature and
C16: the country's tariff schedule at either 10, 8, or 6 HS-digits.
C18: Once data has been loaded via the 'Control Panel' interface button, all key features of data will be displayed for future reference.
C19: The interface button also includes a RESET option that allows users to re-set the tool to its original state and erase all data and scenarios.
C21: The UTAS Simulation Modules
C23: UTAS includes four simulation modules assiting policy-makers in the analysis of tariff reforms:
D25: TARIFF RANKING MODULE
E26: 1. Description
F27: Allows users to rank HS 6-digit tariff lines by potential upstream costs incidence on a selected sector.
E28: 2. Sheets
F29: Tariff_Ranking: Establishes sector selection and generates ranking output
E30: 3. Instructions
E31: a) | F31: Open TARIFF_RANKING sheet.
E32: b) | F32: Press 'Run Input-Output Calcluations'. UTAS will then generate ranking matrix for all tariff lines in each
F33: sector in the background. This step only needs to be done once.
E34: c) | F34: Press 'Change Data' button. This opens the sector selection interface. Select the target sector for which
F35: the ranking is to be caculated and then set the number of top-ranked products that are to be included in the output.
E36: d) | F36: A list of top-ranked tariff lines by potential upstream cost incidence is displayed.
D38: SIMULATOR I
E39: 1. Description
F40: Allows users to conduct an in-depth examination of the effect of upstream tariffs in a particular sector and
F41: simulate how changes in protection rates in upstream sectors affect the selected sector's cost structure.
E42: 2. Sheets
F43: SIM_I: Establishes sector selection and modelling framework. Generates simulation output.
E44: 3. Instructions
E45: a) | F45: Open SIM_I sheet.
E46: b) | F46: Select sector and modelling framework by pressing button in cell H3.
E47: c) | F47: Upstream cost indicators and effective protection rates are calculated on the basis the uploaded tariff schedule.
E48: d) | F48: Specify new tariff rates in all or some of the 10 most important input sectors in lines 32-41 of column I.
E49: e) | F49: The costs of the change in upstream tariffs is calculated in column J.
D51: SIMULATOR II
E52: 1. Description
F53: Allows users to simulate a combined change in tariff protection across a range of sectors and how this affects
F54: input costs in all sectors.
E55: 2. Sheets
F56: SIM_II: Established modelling framework and generates simulation output.
E57: 3. Instructions
E58: a) | F58: Open SIM_II sheet.
E59: b) | F59: Select modelling framework by pressing button in cell J3.
E60: c) | F60: Baseline upstream cost indicators and effective protection rates are calculated for all sectors
F61: on the basis the uploaded tariff schedule.
E62: d) | F62: Specify new tariff rates in column J.
E63: e) | F63: A new set of upstream costs and effective protection rates are calculated on the basis of the new tariff rates
F64: specified in column J.
D66: SIMULATOR III
E67: 1. Description
F68: Allows users to consider the impact of a different tariff schedule defined at the tariff line.
F69: This tool only works, if an alternative tariff schedule was loaded beforehand via the data loading interface
F70: of the control panel.
E71: 2. Sheets
F72: SIM_III_IN: Allows users to select the alternative tariff schedule and specify the modelling framework.
F73: SIM_III_OUT: Generates simulation output.
E74: 3. Instructions
E75: a) | F75: Open SIM_III sheet.
E76: b) | F76: Select alternative tariff schedule (scenario) and modelling framework by pressing button in cell M2.
E77: c) | F77: Separate upstream cost indicators and effective protection rates are calculated in each sector acoording to
F78: the baseline tariff schedule and the alternative schedule.
E79: d) | F79: Open SIM_III_OUT to display results.
C81: MODELLING FRAMEWORKS
C82: Product homogeneity framework:
C83: a) | D83: Pass-through from input tariffs to input prices is complete
C84: b) | D84: Indirect effects of a tariff on the input of the input to input prices is zero (hence, weighting of input tariffs based on direct
D85: requirements alone)
C86: Product differentiation framework:
C87: a) | D87: Pass-through from input tariffs to input prices is incomplete and depends on elasticity of substitution between imported variety
D88: and domesticaly produced variety of the same product and the domestic elasticity of supply. These are pre-set to 3 and 1 respectively
D89: but can be modified in control panel. The domestic shares in the total demand for different products also matter for the degree of
D90: pass-through. These are pre-set to 0.5, but can be changed in sheet OUTPUT_TARIFF_CALCULATIONS in column I.
C91: b) | D91: Indirect effects via input-output linkaged are taken into account (hence, weighting of input tariffs based on
D92: direct and indirect requirements).
C93: HIDDEN SHEETS
C95: UTAS relies on several background sheets that are hidden from the user. Users can choose to hide/unhide all sheets used in background
C96: calculations using the folloing buttons.
C104: For questions please contact: | J104: Gonzalo Varela
J105: gvarela@worldbank.org
J106: Andreas Eberhard-Ruiz
J107: aeberhard@worldbank.org

Sheet TARIFF_RANKING (hidden)
A1: Product Inputs by Sector
A3: Sector (Select)
A6: Description | B6: HS6 Code | C6: Position

Sheet SIM_I (hidden)
P2: =CONCATENATE("SIMULATOR I ", "Assumption: ",E5," Sector: ",E3) -> SIMULATOR I Assumption: Sector:
C3: Sector
P4: Product Homogeneity
C5: Modelling Framework | P5: ImProduct Homogeneity
P7: "Product Homogeneity" assumption implies: 1. Pass-through from input tariffs to input prices is complete 2. Pass through from a tariff on the input of the input to input prices is zero (hence, weighting of input tariffs based on direct requirements, rather than direct and indirect) Example A car producer uses 10% steel and 20% engines to make the car, while the engine producer uses 80% steel to make the engine. What is the impact of a 10% tariff rise on steel on the car marker's upstream tariff? Under this assumption the rise in the upstream tariff is going to be 1%: 10% applied to 10% of the cost structure. The tariff on steel does not get passed to engine prices since engines are assumed homogeneous, and if the engine producer were to rise the price, the car producer would use imported engines.
P8: "ImProduct Homogeneity" assumption implies: 1. Pass-through from input tariffs to input prices is complete 2. Pass through from a tariff on the input of the input to input prices is non-zero (extent of pass-through depends on S&D elasticities). In this case we assume an extreme case of a perfectly inelastic demand on the input. Example A car producer uses 10% steel and 20% engines to make the car, while the engine producer uses 80% steel to make the engine. What is the impact of a 10% tariff rise on steel on the car marker's upstream tariff? Under this assumption the rise in the upstream tariff is going to be 2.6%: 10% applied to 10% of the cost structure (direct steel) + 10% applied to the 16% (80% of 20%: contribution of steel through the engine). The tariff on steel gets passed fully to engine prices since the demand for engines is assumed to be fully inelastic.
C9: Gross output composition: Intermediate consumption (goods and services as inputs) and Value Added
D11: Goods (inputs) | E11: =HLOOKUP($E$3,UPTARIFFS_PERFECT!$C$3:$BP$83,ROW(UPTARIFFS_PERFECT!$A$65)-ROW(UPTARIFFS_PERFECT!$A$2),0) -> 
D12: Services (inputs) | E12: =HLOOKUP($E$3,UPTARIFFS_PERFECT!$C$3:$BP$83,ROW(UPTARIFFS_PERFECT!$A$66)-ROW(UPTARIFFS_PERFECT!$A$2),0) -> 
D13: Value Added | E13: =HLOOKUP($E$3,UPTARIFFS_PERFECT!$C$3:$BP$83,ROW(UPTARIFFS_PERFECT!$A$63)-ROW(UPTARIFFS_PERFECT!$A$2),0) -> 
C16: Upstream and output tariffs
E17: BASELINE SCENARIO | H17: SIMULATED SCENARIO | J17: CHANGE IN P.P.
D19: Upstream tariff as % of gross output | E19: =IF(E5=P4,HLOOKUP($E$3,UPTARIFFS_PERFECT!$C$3:$BP$75,ROW(UPTARIFFS_PERFECT!$A$73)-ROW(UPTARIFFS_PERFECT!$A$2),0), HLOOKUP($E$3,UPTARIFFS_IMPERFECT!$C$3:$BP$75,ROW(UPTARIFFS_IMPERFECT!$A$73)-ROW(UPTARIFFS_IMPERFECT!$A$2),0)) ->  | H19: =IF(E5=P4,HLOOKUP(E3,UPTARIFFS_PERFECT!$C$3:$BP$83,ROW(UPTARIFFS_PERFECT!$A$81)-ROW(UPTARIFFS_PERFECT!$A$2),0), HLOOKUP(E3,UPTARIFFS_IMPERFECT!$C$3:$BP$83,ROW(UPTARIFFS_IMPERFECT!$A$81)-ROW(UPTARIFFS_IMPERFECT!$A$2),0)) ->  | J19: =H19-E19 -> 
D21: Upstream tariff as % of total inputs cost | E21: =IF(E5=P4,HLOOKUP($E$3,UPTARIFFS_PERFECT!$C$3:$BP$75,ROW(UPTARIFFS_PERFECT!$A$72)-ROW(UPTARIFFS_PERFECT!$A$2),0), HLOOKUP($E$3,UPTARIFFS_IMPERFECT!$C$3:$BP$75,ROW(UPTARIFFS_IMPERFECT!$A$72)-ROW(UPTARIFFS_IMPERFECT!$A$2),0)) ->  | H21: =IF(E5=P4,HLOOKUP(E3,UPTARIFFS_PERFECT!$C$3:$BP$83,ROW(UPTARIFFS_PERFECT!$A$80)-ROW(UPTARIFFS_PERFECT!$A$2),0), HLOOKUP(E3,UPTARIFFS_IMPERFECT!$C$3:$BP$83,ROW(UPTARIFFS_IMPERFECT!$A$80)-ROW(UPTARIFFS_IMPERFECT!$A$2),0)) ->  | J21: =H21-E21 -> 
D23: Upstream tariff as % of total goods inputs cost | E23: =IF(E5=P4,HLOOKUP($E$3,UPTARIFFS_PERFECT!$C$3:$BP$75,ROW(UPTARIFFS_PERFECT!$A$71)-ROW(UPTARIFFS_PERFECT!$A$2),0), HLOOKUP($E$3,UPTARIFFS_IMPERFECT!$C$3:$BP$75,ROW(UPTARIFFS_IMPERFECT!$A$71)-ROW(UPTARIFFS_IMPERFECT!$A$2),0)) ->  | H23: =IF(E5=P4,HLOOKUP(E3,UPTARIFFS_PERFECT!$C$3:$BP$83,ROW(UPTARIFFS_PERFECT!$A$79)-ROW(UPTARIFFS_PERFECT!$A$2),0), HLOOKUP(E3,UPTARIFFS_IMPERFECT!$C$3:$BP$83,ROW(UPTARIFFS_IMPERFECT!$A$79)-ROW(UPTARIFFS_IMPERFECT!$A$2),0)) ->  | J23: =H23-E23 -> 
D26: =CONCATENATE("Output tariff (average tariff on ",E3,")") -> Output tariff (average tariff on ) | E26: =HLOOKUP($E$3,UPTARIFFS_PERFECT!$C$3:$BP$75,ROW(UPTARIFFS_PERFECT!$A$75)-ROW(UPTARIFFS_PERFECT!$A$2),0) ->  | H26: =HLOOKUP(E3,UPTARIFFS_PERFECT!$C$3:$BP$83,ROW(UPTARIFFS_PERFECT!$A$83)-ROW(UPTARIFFS_PERFECT!$A$2),0) ->  | J26: =H26-E26 -> 
D27: Rate of Effective Protection | E27: =(E26-E19)/ IF($E$5=$P$4, HLOOKUP($E$3,UPTARIFFS_PERFECT!$C$3:$BP$63,ROW(UPTARIFFS_PERFECT!$A$63)-ROW(UPTARIFFS_PERFECT!$A$2),0), HLOOKUP($E$3,UPTARIFFS_IMPERFECT!$C$3:$BP$63,ROW(UPTARIFFS_IMPERFECT!$A$63)-ROW(UPTARIFFS_IMPERFECT!$A$2),0)) ->  | H27: =(H26-H19)/IF($E$5=$P$4,HLOOKUP($E$3,UPTARIFFS_PERFECT!$C$3:$BP$63,ROW(UPTARIFFS_PERFECT!$A$63)-ROW(UPTARIFFS_PERFECT!$A$2),0),HLOOKUP($E$3,UPTARIFFS_IMPERFECT!$C$3:$BP$63,ROW(UPTARIFFS_IMPERFECT!$A$63)-ROW(UPTARIFFS_IMPERFECT!$A$2),0)) ->  | J27: =H27-E27 -> 
C29: Composition of upstream tariff by largest contributing sectors
C31: # | D31: Sector | E31: Baseline contribution to upstream tariff | F31: Baseline Tariff | G31: Share in input cost structure | I31: Simulated Tariff | J31: Change in p.p.
C32: 1 | D32: =IF($E$5="Product Homogeneity", VLOOKUP(C32,PROC_PERFECT!M:Q,2,0), VLOOKUP(C32,PROC_IMPERFECT!M:Q,2,0)) ->  | E32: =IF($E$5="Product Homogeneity", VLOOKUP(C32,PROC_PERFECT!M:Q,5,0),VLOOKUP(C32,PROC_IMPERFECT!M:Q,5,0)) ->  | F32: =VLOOKUP(D32,PROC_PERFECT!N:P,3,0) ->  | G32: =IF($E$5="Product Homogeneity",VLOOKUP(C32,PROC_PERFECT!M:Q,3,0),VLOOKUP(C32,PROC_IMPERFECT!M:Q,3,0)) ->  | I32: 0.1197984213 | J32: =I32-F32 -> 
C33: 2 | D33: =IF($E$5="Product Homogeneity", VLOOKUP(C33,PROC_PERFECT!M:Q,2,0), VLOOKUP(C33,PROC_IMPERFECT!M:Q,2,0)) ->  | E33: =IF($E$5="Product Homogeneity", VLOOKUP(C33,PROC_PERFECT!M:Q,5,0),VLOOKUP(C33,PROC_IMPERFECT!M:Q,5,0)) ->  | F33: =VLOOKUP(D33,PROC_PERFECT!N:P,3,0) ->  | G33: =IF($E$5="Product Homogeneity",VLOOKUP(C33,PROC_PERFECT!M:Q,3,0),VLOOKUP(C33,PROC_IMPERFECT!M:Q,3,0)) ->  | I33: 0.4530029586 | J33: =I33-F33 -> 
C34: 3 | D34: =IF($E$5="Product Homogeneity", VLOOKUP(C34,PROC_PERFECT!M:Q,2,0), VLOOKUP(C34,PROC_IMPERFECT!M:Q,2,0)) ->  | E34: =IF($E$5="Product Homogeneity", VLOOKUP(C34,PROC_PERFECT!M:Q,5,0),VLOOKUP(C34,PROC_IMPERFECT!M:Q,5,0)) ->  | F34: =VLOOKUP(D34,PROC_PERFECT!N:P,3,0) ->  | G34: =IF($E$5="Product Homogeneity",VLOOKUP(C34,PROC_PERFECT!M:Q,3,0),VLOOKUP(C34,PROC_IMPERFECT!M:Q,3,0)) ->  | I34: 0.1033393142 | J34: =I34-F34 -> 
C35: 4 | D35: =IF($E$5="Product Homogeneity", VLOOKUP(C35,PROC_PERFECT!M:Q,2,0), VLOOKUP(C35,PROC_IMPERFECT!M:Q,2,0)) ->  | E35: =IF($E$5="Product Homogeneity", VLOOKUP(C35,PROC_PERFECT!M:Q,5,0),VLOOKUP(C35,PROC_IMPERFECT!M:Q,5,0)) ->  | F35: =VLOOKUP(D35,PROC_PERFECT!N:P,3,0) ->  | G35: =IF($E$5="Product Homogeneity",VLOOKUP(C35,PROC_PERFECT!M:Q,3,0),VLOOKUP(C35,PROC_IMPERFECT!M:Q,3,0)) ->  | I35: 0.07558922559 | J35: =I35-F35 -> 
C36: 5 | D36: =IF($E$5="Product Homogeneity", VLOOKUP(C36,PROC_PERFECT!M:Q,2,0), VLOOKUP(C36,PROC_IMPERFECT!M:Q,2,0)) ->  | E36: =IF($E$5="Product Homogeneity", VLOOKUP(C36,PROC_PERFECT!M:Q,5,0),VLOOKUP(C36,PROC_IMPERFECT!M:Q,5,0)) ->  | F36: =VLOOKUP(D36,PROC_PERFECT!N:P,3,0) ->  | G36: =IF($E$5="Product Homogeneity",VLOOKUP(C36,PROC_PERFECT!M:Q,3,0),VLOOKUP(C36,PROC_IMPERFECT!M:Q,3,0)) ->  | I36: 0.2292837372 | J36: =I36-F36 -> 
C37: 6 | D37: =IF($E$5="Product Homogeneity", VLOOKUP(C37,PROC_PERFECT!M:Q,2,0), VLOOKUP(C37,PROC_IMPERFECT!M:Q,2,0)) ->  | E37: =IF($E$5="Product Homogeneity", VLOOKUP(C37,PROC_PERFECT!M:Q,5,0),VLOOKUP(C37,PROC_IMPERFECT!M:Q,5,0)) ->  | F37: =VLOOKUP(D37,PROC_PERFECT!N:P,3,0) ->  | G37: =IF($E$5="Product Homogeneity",VLOOKUP(C37,PROC_PERFECT!M:Q,3,0),VLOOKUP(C37,PROC_IMPERFECT!M:Q,3,0)) ->  | I37: 0.05
C38: 7 | D38: =IF($E$5="Product Homogeneity", VLOOKUP(C38,PROC_PERFECT!M:Q,2,0), VLOOKUP(C38,PROC_IMPERFECT!M:Q,2,0)) ->  | E38: =IF($E$5="Product Homogeneity", VLOOKUP(C38,PROC_PERFECT!M:Q,5,0),VLOOKUP(C38,PROC_IMPERFECT!M:Q,5,0)) ->  | F38: =VLOOKUP(D38,PROC_PERFECT!N:P,3,0) ->  | G38: =IF($E$5="Product Homogeneity",VLOOKUP(C38,PROC_PERFECT!M:Q,3,0),VLOOKUP(C38,PROC_IMPERFECT!M:Q,3,0)) ->  | I38: 0.05
C39: 8 | D39: =IF($E$5="Product Homogeneity", VLOOKUP(C39,PROC_PERFECT!M:Q,2,0), VLOOKUP(C39,PROC_IMPERFECT!M:Q,2,0)) ->  | E39: =IF($E$5="Product Homogeneity", VLOOKUP(C39,PROC_PERFECT!M:Q,5,0),VLOOKUP(C39,PROC_IMPERFECT!M:Q,5,0)) ->  | F39: =VLOOKUP(D39,PROC_PERFECT!N:P,3,0) ->  | G39: =IF($E$5="Product Homogeneity",VLOOKUP(C39,PROC_PERFECT!M:Q,3,0),VLOOKUP(C39,PROC_IMPERFECT!M:Q,3,0)) ->  | I39: 0.3608333333 | J39: =I39-F39 -> 
C40: 9 | D40: =IF($E$5="Product Homogeneity", VLOOKUP(C40,PROC_PERFECT!M:Q,2,0), VLOOKUP(C40,PROC_IMPERFECT!M:Q,2,0)) ->  | E40: =IF($E$5="Product Homogeneity", VLOOKUP(C40,PROC_PERFECT!M:Q,5,0),VLOOKUP(C40,PROC_IMPERFECT!M:Q,5,0)) ->  | F40: =VLOOKUP(D40,PROC_PERFECT!N:P,3,0) ->  | G40: =IF($E$5="Product Homogeneity",VLOOKUP(C40,PROC_PERFECT!M:Q,3,0),VLOOKUP(C40,PROC_IMPERFECT!M:Q,3,0)) ->  | I40: 0.1192948213
C41: 10 | D41: =IF($E$5="Product Homogeneity", VLOOKUP(C41,PROC_PERFECT!M:Q,2,0), VLOOKUP(C41,PROC_IMPERFECT!M:Q,2,0)) ->  | E41: =IF($E$5="Product Homogeneity", VLOOKUP(C41,PROC_PERFECT!M:Q,5,0),VLOOKUP(C41,PROC_IMPERFECT!M:Q,5,0)) ->  | F41: =VLOOKUP(D41,PROC_PERFECT!N:P,3,0) ->  | G41: =IF($E$5="Product Homogeneity",VLOOKUP(C41,PROC_PERFECT!M:Q,3,0),VLOOKUP(C41,PROC_IMPERFECT!M:Q,3,0)) ->  | I41: 0.2108234823
D42: Rest | E42: =1-SUM(E32:E41) ->  | F42: =AVERAGE(F46:F92) ->  | G42: =1-SUM(G32:G41) -> 
D45: Rest of the sectors
C46: 11 | D46: =IF($E$5="Product Homogeneity", VLOOKUP(C46,PROC_PERFECT!M:Q,2,0), VLOOKUP(C46,PROC_IMPERFECT!M:Q,2,0)) ->  | E46: =IF($E$5="Product Homogeneity", VLOOKUP(C46,PROC_PERFECT!M:Q,5,0),VLOOKUP(C46,PROC_IMPERFECT!M:Q,5,0)) ->  | F46: =VLOOKUP(D46,PROC_PERFECT!N:P,3,0) ->  | G46: =IF($E$5="Product Homogeneity",VLOOKUP(C46,PROC_PERFECT!M:Q,3,0),VLOOKUP(C46,PROC_IMPERFECT!M:Q,3,0)) ->  | I46: 0.2352372361 | J46: =I46-F46 -> 
C47: =OFFSET(C47,-1,0)+1 -> 12 | D47: =IF($E$5="Product Homogeneity", VLOOKUP(C47,PROC_PERFECT!M:Q,2,0), VLOOKUP(C47,PROC_IMPERFECT!M:Q,2,0)) ->  | E47: =IF($E$5="Product Homogeneity", VLOOKUP(C47,PROC_PERFECT!M:Q,5,0),VLOOKUP(C47,PROC_IMPERFECT!M:Q,5,0)) ->  | F47: =VLOOKUP(D47,PROC_PERFECT!N:P,3,0) ->  | G47: =IF($E$5="Product Homogeneity",VLOOKUP(C47,PROC_PERFECT!M:Q,3,0),VLOOKUP(C47,PROC_IMPERFECT!M:Q,3,0)) ->  | I47: 0.2480909633 | J47: =I47-F47 -> 
C48: 13 | D48: =IF($E$5="Product Homogeneity", VLOOKUP(C48,PROC_PERFECT!M:Q,2,0), VLOOKUP(C48,PROC_IMPERFECT!M:Q,2,0)) ->  | E48: =IF($E$5="Product Homogeneity", VLOOKUP(C48,PROC_PERFECT!M:Q,5,0),VLOOKUP(C48,PROC_IMPERFECT!M:Q,5,0)) ->  | F48: =VLOOKUP(D48,PROC_PERFECT!N:P,3,0) ->  | G48: =IF($E$5="Product Homogeneity",VLOOKUP(C48,PROC_PERFECT!M:Q,3,0),VLOOKUP(C48,PROC_IMPERFECT!M:Q,3,0)) ->  | I48: 0.2922607774 | J48: =I48-F48 -> 
C49: 14 | D49: =IF($E$5="Product Homogeneity", VLOOKUP(C49,PROC_PERFECT!M:Q,2,0), VLOOKUP(C49,PROC_IMPERFECT!M:Q,2,0)) ->  | E49: =IF($E$5="Product Homogeneity", VLOOKUP(C49,PROC_PERFECT!M:Q,5,0),VLOOKUP(C49,PROC_IMPERFECT!M:Q,5,0)) ->  | F49: =VLOOKUP(D49,PROC_PERFECT!N:P,3,0) ->  | G49: =IF($E$5="Product Homogeneity",VLOOKUP(C49,PROC_PERFECT!M:Q,3,0),VLOOKUP(C49,PROC_IMPERFECT!M:Q,3,0)) ->  | I49: 0.1343377121 | J49: =I49-F49 -> 
C50: 15 | D50: =IF($E$5="Product Homogeneity", VLOOKUP(C50,PROC_PERFECT!M:Q,2,0), VLOOKUP(C50,PROC_IMPERFECT!M:Q,2,0)) ->  | E50: =IF($E$5="Product Homogeneity", VLOOKUP(C50,PROC_PERFECT!M:Q,5,0),VLOOKUP(C50,PROC_IMPERFECT!M:Q,5,0)) ->  | F50: =VLOOKUP(D50,PROC_PERFECT!N:P,3,0) ->  | G50: =IF($E$5="Product Homogeneity",VLOOKUP(C50,PROC_PERFECT!M:Q,3,0),VLOOKUP(C50,PROC_IMPERFECT!M:Q,3,0)) ->  | I50: 0.6867741935 | J50: =I50-F50 -> 
C51: 16 | D51: =IF($E$5="Product Homogeneity", VLOOKUP(C51,PROC_PERFECT!M:Q,2,0), VLOOKUP(C51,PROC_IMPERFECT!M:Q,2,0)) ->  | E51: =IF($E$5="Product Homogeneity", VLOOKUP(C51,PROC_PERFECT!M:Q,5,0),VLOOKUP(C51,PROC_IMPERFECT!M:Q,5,0)) ->  | F51: =VLOOKUP(D51,PROC_PERFECT!N:P,3,0) ->  | G51: =IF($E$5="Product Homogeneity",VLOOKUP(C51,PROC_PERFECT!M:Q,3,0),VLOOKUP(C51,PROC_IMPERFECT!M:Q,3,0)) ->  | I51: 0.2494454175
C52: 17 | D52: =IF($E$5="Product Homogeneity", VLOOKUP(C52,PROC_PERFECT!M:Q,2,0), VLOOKUP(C52,PROC_IMPERFECT!M:Q,2,0)) ->  | E52: =IF($E$5="Product Homogeneity", VLOOKUP(C52,PROC_PERFECT!M:Q,5,0),VLOOKUP(C52,PROC_IMPERFECT!M:Q,5,0)) ->  | F52: =VLOOKUP(D52,PROC_PERFECT!N:P,3,0) ->  | G52: =IF($E$5="Product Homogeneity",VLOOKUP(C52,PROC_PERFECT!M:Q,3,0),VLOOKUP(C52,PROC_IMPERFECT!M:Q,3,0)) ->  | I52: 0.05
C53: 18 | D53: =IF($E$5="Product Homogeneity", VLOOKUP(C53,PROC_PERFECT!M:Q,2,0), VLOOKUP(C53,PROC_IMPERFECT!M:Q,2,0)) ->  | E53: =IF($E$5="Product Homogeneity", VLOOKUP(C53,PROC_PERFECT!M:Q,5,0),VLOOKUP(C53,PROC_IMPERFECT!M:Q,5,0)) ->  | F53: =VLOOKUP(D53,PROC_PERFECT!N:P,3,0) ->  | G53: =IF($E$5="Product Homogeneity",VLOOKUP(C53,PROC_PERFECT!M:Q,3,0),VLOOKUP(C53,PROC_IMPERFECT!M:Q,3,0)) ->  | I53: 0.43
C54: 19 | D54: =IF($E$5="Product Homogeneity", VLOOKUP(C54,PROC_PERFECT!M:Q,2,0), VLOOKUP(C54,PROC_IMPERFECT!M:Q,2,0)) ->  | E54: =IF($E$5="Product Homogeneity", VLOOKUP(C54,PROC_PERFECT!M:Q,5,0),VLOOKUP(C54,PROC_IMPERFECT!M:Q,5,0)) ->  | F54: =VLOOKUP(D54,PROC_PERFECT!N:P,3,0) ->  | G54: =IF($E$5="Product Homogeneity",VLOOKUP(C54,PROC_PERFECT!M:Q,3,0),VLOOKUP(C54,PROC_IMPERFECT!M:Q,3,0)) ->  | I54: 0.4988506173
C55: 20 | D55: =IF($E$5="Product Homogeneity", VLOOKUP(C55,PROC_PERFECT!M:Q,2,0), VLOOKUP(C55,PROC_IMPERFECT!M:Q,2,0)) ->  | E55: =IF($E$5="Product Homogeneity", VLOOKUP(C55,PROC_PERFECT!M:Q,5,0),VLOOKUP(C55,PROC_IMPERFECT!M:Q,5,0)) ->  | F55: =VLOOKUP(D55,PROC_PERFECT!N:P,3,0) ->  | G55: =IF($E$5="Product Homogeneity",VLOOKUP(C55,PROC_PERFECT!M:Q,3,0),VLOOKUP(C55,PROC_IMPERFECT!M:Q,3,0)) ->  | I55: 0.2820338983
C56: 21 | D56: =IF($E$5="Product Homogeneity", VLOOKUP(C56,PROC_PERFECT!M:Q,2,0), VLOOKUP(C56,PROC_IMPERFECT!M:Q,2,0)) ->  | E56: =IF($E$5="Product Homogeneity", VLOOKUP(C56,PROC_PERFECT!M:Q,5,0),VLOOKUP(C56,PROC_IMPERFECT!M:Q,5,0)) ->  | F56: =VLOOKUP(D56,PROC_PERFECT!N:P,3,0) ->  | G56: =IF($E$5="Product Homogeneity",VLOOKUP(C56,PROC_PERFECT!M:Q,3,0),VLOOKUP(C56,PROC_IMPERFECT!M:Q,3,0)) ->  | I56: 0.09304673721
C57: 22 | D57: =IF($E$5="Product Homogeneity", VLOOKUP(C57,PROC_PERFECT!M:Q,2,0), VLOOKUP(C57,PROC_IMPERFECT!M:Q,2,0)) ->  | E57: =IF($E$5="Product Homogeneity", VLOOKUP(C57,PROC_PERFECT!M:Q,5,0),VLOOKUP(C57,PROC_IMPERFECT!M:Q,5,0)) ->  | F57: =VLOOKUP(D57,PROC_PERFECT!N:P,3,0) ->  | G57: =IF($E$5="Product Homogeneity",VLOOKUP(C57,PROC_PERFECT!M:Q,3,0),VLOOKUP(C57,PROC_IMPERFECT!M:Q,3,0)) ->  | I57: 0.2746628571
C58: 23 | D58: =IF($E$5="Product Homogeneity", VLOOKUP(C58,PROC_PERFECT!M:Q,2,0), VLOOKUP(C58,PROC_IMPERFECT!M:Q,2,0)) ->  | E58: =IF($E$5="Product Homogeneity", VLOOKUP(C58,PROC_PERFECT!M:Q,5,0),VLOOKUP(C58,PROC_IMPERFECT!M:Q,5,0)) ->  | F58: =VLOOKUP(D58,PROC_PERFECT!N:P,3,0) ->  | G58: =IF($E$5="Product Homogeneity",VLOOKUP(C58,PROC_PERFECT!M:Q,3,0),VLOOKUP(C58,PROC_IMPERFECT!M:Q,3,0)) ->  | I58: 0.09811320755
C59: 24 | D59: =IF($E$5="Product Homogeneity", VLOOKUP(C59,PROC_PERFECT!M:Q,2,0), VLOOKUP(C59,PROC_IMPERFECT!M:Q,2,0)) ->  | E59: =IF($E$5="Product Homogeneity", VLOOKUP(C59,PROC_PERFECT!M:Q,5,0),VLOOKUP(C59,PROC_IMPERFECT!M:Q,5,0)) ->  | F59: =VLOOKUP(D59,PROC_PERFECT!N:P,3,0) ->  | G59: =IF($E$5="Product Homogeneity",VLOOKUP(C59,PROC_PERFECT!M:Q,3,0),VLOOKUP(C59,PROC_IMPERFECT!M:Q,3,0)) ->  | I59: 0.2715498282
C60: 25 | D60: =IF($E$5="Product Homogeneity", VLOOKUP(C60,PROC_PERFECT!M:Q,2,0), VLOOKUP(C60,PROC_IMPERFECT!M:Q,2,0)) ->  | E60: =IF($E$5="Product Homogeneity", VLOOKUP(C60,PROC_PERFECT!M:Q,5,0),VLOOKUP(C60,PROC_IMPERFECT!M:Q,5,0)) ->  | F60: =VLOOKUP(D60,PROC_PERFECT!N:P,3,0) ->  | G60: =IF($E$5="Product Homogeneity",VLOOKUP(C60,PROC_PERFECT!M:Q,3,0),VLOOKUP(C60,PROC_IMPERFECT!M:Q,3,0)) ->  | I60: 0.3979821527
C61: 26 | D61: =IF($E$5="Product Homogeneity", VLOOKUP(C61,PROC_PERFECT!M:Q,2,0), VLOOKUP(C61,PROC_IMPERFECT!M:Q,2,0)) ->  | E61: =IF($E$5="Product Homogeneity", VLOOKUP(C61,PROC_PERFECT!M:Q,5,0),VLOOKUP(C61,PROC_IMPERFECT!M:Q,5,0)) ->  | F61: =VLOOKUP(D61,PROC_PERFECT!N:P,3,0) ->  | G61: =IF($E$5="Product Homogeneity",VLOOKUP(C61,PROC_PERFECT!M:Q,3,0),VLOOKUP(C61,PROC_IMPERFECT!M:Q,3,0)) ->  | I61: 0.08555555556
C62: 27 | D62: =IF($E$5="Product Homogeneity", VLOOKUP(C62,PROC_PERFECT!M:Q,2,0), VLOOKUP(C62,PROC_IMPERFECT!M:Q,2,0)) ->  | E62: =IF($E$5="Product Homogeneity", VLOOKUP(C62,PROC_PERFECT!M:Q,5,0),VLOOKUP(C62,PROC_IMPERFECT!M:Q,5,0)) ->  | F62: =VLOOKUP(D62,PROC_PERFECT!N:P,3,0) ->  | G62: =IF($E$5="Product Homogeneity",VLOOKUP(C62,PROC_PERFECT!M:Q,3,0),VLOOKUP(C62,PROC_IMPERFECT!M:Q,3,0)) ->  | I62: 0.1046236559
C63: 28 | D63: =IF($E$5="Product Homogeneity", VLOOKUP(C63,PROC_PERFECT!M:Q,2,0), VLOOKUP(C63,PROC_IMPERFECT!M:Q,2,0)) ->  | E63: =IF($E$5="Product Homogeneity", VLOOKUP(C63,PROC_PERFECT!M:Q,5,0),VLOOKUP(C63,PROC_IMPERFECT!M:Q,5,0)) ->  | F63: =VLOOKUP(D63,PROC_PERFECT!N:P,3,0) ->  | G63: =IF($E$5="Product Homogeneity",VLOOKUP(C63,PROC_PERFECT!M:Q,3,0),VLOOKUP(C63,PROC_IMPERFECT!M:Q,3,0)) ->  | I63: 0.1204037315
C64: 29 | D64: =IF($E$5="Product Homogeneity", VLOOKUP(C64,PROC_PERFECT!M:Q,2,0), VLOOKUP(C64,PROC_IMPERFECT!M:Q,2,0)) ->  | E64: =IF($E$5="Product Homogeneity", VLOOKUP(C64,PROC_PERFECT!M:Q,5,0),VLOOKUP(C64,PROC_IMPERFECT!M:Q,5,0)) ->  | F64: =VLOOKUP(D64,PROC_PERFECT!N:P,3,0) ->  | G64: =IF($E$5="Product Homogeneity",VLOOKUP(C64,PROC_PERFECT!M:Q,3,0),VLOOKUP(C64,PROC_IMPERFECT!M:Q,3,0)) ->  | I64: 0.093
C65: 30 | D65: =IF($E$5="Product Homogeneity", VLOOKUP(C65,PROC_PERFECT!M:Q,2,0), VLOOKUP(C65,PROC_IMPERFECT!M:Q,2,0)) ->  | E65: =IF($E$5="Product Homogeneity", VLOOKUP(C65,PROC_PERFECT!M:Q,5,0),VLOOKUP(C65,PROC_IMPERFECT!M:Q,5,0)) ->  | F65: =VLOOKUP(D65,PROC_PERFECT!N:P,3,0) ->  | G65: =IF($E$5="Product Homogeneity",VLOOKUP(C65,PROC_PERFECT!M:Q,3,0),VLOOKUP(C65,PROC_IMPERFECT!M:Q,3,0)) ->  | I65: 0.1020733802
C66: 31 | D66: =IF($E$5="Product Homogeneity", VLOOKUP(C66,PROC_PERFECT!M:Q,2,0), VLOOKUP(C66,PROC_IMPERFECT!M:Q,2,0)) ->  | E66: =IF($E$5="Product Homogeneity", VLOOKUP(C66,PROC_PERFECT!M:Q,5,0),VLOOKUP(C66,PROC_IMPERFECT!M:Q,5,0)) ->  | F66: =VLOOKUP(D66,PROC_PERFECT!N:P,3,0) ->  | G66: =IF($E$5="Product Homogeneity",VLOOKUP(C66,PROC_PERFECT!M:Q,3,0),VLOOKUP(C66,PROC_IMPERFECT!M:Q,3,0)) ->  | I66: 0.2792857143
C67: 32 | D67: =IF($E$5="Product Homogeneity", VLOOKUP(C67,PROC_PERFECT!M:Q,2,0), VLOOKUP(C67,PROC_IMPERFECT!M:Q,2,0)) ->  | E67: =IF($E$5="Product Homogeneity", VLOOKUP(C67,PROC_PERFECT!M:Q,5,0),VLOOKUP(C67,PROC_IMPERFECT!M:Q,5,0)) ->  | F67: =VLOOKUP(D67,PROC_PERFECT!N:P,3,0) ->  | G67: =IF($E$5="Product Homogeneity",VLOOKUP(C67,PROC_PERFECT!M:Q,3,0),VLOOKUP(C67,PROC_IMPERFECT!M:Q,3,0)) ->  | I67: 0.13
C68: 33 | D68: =IF($E$5="Product Homogeneity", VLOOKUP(C68,PROC_PERFECT!M:Q,2,0), VLOOKUP(C68,PROC_IMPERFECT!M:Q,2,0)) ->  | E68: =IF($E$5="Product Homogeneity", VLOOKUP(C68,PROC_PERFECT!M:Q,5,0),VLOOKUP(C68,PROC_IMPERFECT!M:Q,5,0)) ->  | F68: =VLOOKUP(D68,PROC_PERFECT!N:P,3,0) ->  | G68: =IF($E$5="Product Homogeneity",VLOOKUP(C68,PROC_PERFECT!M:Q,3,0),VLOOKUP(C68,PROC_IMPERFECT!M:Q,3,0)) ->  | I68: 0.055
C69: 34 | D69: =IF($E$5="Product Homogeneity", VLOOKUP(C69,PROC_PERFECT!M:Q,2,0), VLOOKUP(C69,PROC_IMPERFECT!M:Q,2,0)) ->  | E69: =IF($E$5="Product Homogeneity", VLOOKUP(C69,PROC_PERFECT!M:Q,5,0),VLOOKUP(C69,PROC_IMPERFECT!M:Q,5,0)) ->  | F69: =VLOOKUP(D69,PROC_PERFECT!N:P,3,0) ->  | G69: =IF($E$5="Product Homogeneity",VLOOKUP(C69,PROC_PERFECT!M:Q,3,0),VLOOKUP(C69,PROC_IMPERFECT!M:Q,3,0)) ->  | I69: 0.1028277311
C70: 35 | D70: =IF($E$5="Product Homogeneity", VLOOKUP(C70,PROC_PERFECT!M:Q,2,0), VLOOKUP(C70,PROC_IMPERFECT!M:Q,2,0)) ->  | E70: =IF($E$5="Product Homogeneity", VLOOKUP(C70,PROC_PERFECT!M:Q,5,0),VLOOKUP(C70,PROC_IMPERFECT!M:Q,5,0)) ->  | F70: =VLOOKUP(D70,PROC_PERFECT!N:P,3,0) ->  | G70: =IF($E$5="Product Homogeneity",VLOOKUP(C70,PROC_PERFECT!M:Q,3,0),VLOOKUP(C70,PROC_IMPERFECT!M:Q,3,0)) ->  | I70: 0.02
C71: 36 | D71: =IF($E$5="Product Homogeneity", VLOOKUP(C71,PROC_PERFECT!M:Q,2,0), VLOOKUP(C71,PROC_IMPERFECT!M:Q,2,0)) ->  | E71: =IF($E$5="Product Homogeneity", VLOOKUP(C71,PROC_PERFECT!M:Q,5,0),VLOOKUP(C71,PROC_IMPERFECT!M:Q,5,0)) ->  | F71: =VLOOKUP(D71,PROC_PERFECT!N:P,3,0) ->  | G71: =IF($E$5="Product Homogeneity",VLOOKUP(C71,PROC_PERFECT!M:Q,3,0),VLOOKUP(C71,PROC_IMPERFECT!M:Q,3,0)) ->  | I71: 0.105
C72: 37 | D72: =IF($E$5="Product Homogeneity", VLOOKUP(C72,PROC_PERFECT!M:Q,2,0), VLOOKUP(C72,PROC_IMPERFECT!M:Q,2,0)) ->  | E72: =IF($E$5="Product Homogeneity", VLOOKUP(C72,PROC_PERFECT!M:Q,5,0),VLOOKUP(C72,PROC_IMPERFECT!M:Q,5,0)) ->  | F72: =VLOOKUP(D72,PROC_PERFECT!N:P,3,0) ->  | G72: =IF($E$5="Product Homogeneity",VLOOKUP(C72,PROC_PERFECT!M:Q,3,0),VLOOKUP(C72,PROC_IMPERFECT!M:Q,3,0)) ->  | I72: 0.05315464165
C73: 38 | D73: =IF($E$5="Product Homogeneity", VLOOKUP(C73,PROC_PERFECT!M:Q,2,0), VLOOKUP(C73,PROC_IMPERFECT!M:Q,2,0)) ->  | E73: =IF($E$5="Product Homogeneity", VLOOKUP(C73,PROC_PERFECT!M:Q,5,0),VLOOKUP(C73,PROC_IMPERFECT!M:Q,5,0)) ->  | F73: =VLOOKUP(D73,PROC_PERFECT!N:P,3,0) ->  | G73: =IF($E$5="Product Homogeneity",VLOOKUP(C73,PROC_PERFECT!M:Q,3,0),VLOOKUP(C73,PROC_IMPERFECT!M:Q,3,0)) ->  | I73: 0.02571428571
C74: 39 | D74: =IF($E$5="Product Homogeneity", VLOOKUP(C74,PROC_PERFECT!M:Q,2,0), VLOOKUP(C74,PROC_IMPERFECT!M:Q,2,0)) ->  | E74: =IF($E$5="Product Homogeneity", VLOOKUP(C74,PROC_PERFECT!M:Q,5,0),VLOOKUP(C74,PROC_IMPERFECT!M:Q,5,0)) ->  | F74: =VLOOKUP(D74,PROC_PERFECT!N:P,3,0) ->  | G74: =IF($E$5="Product Homogeneity",VLOOKUP(C74,PROC_PERFECT!M:Q,3,0),VLOOKUP(C74,PROC_IMPERFECT!M:Q,3,0)) ->  | I74: 0.05
C75: 40 | D75: =IF($E$5="Product Homogeneity", VLOOKUP(C75,PROC_PERFECT!M:Q,2,0), VLOOKUP(C75,PROC_IMPERFECT!M:Q,2,0)) ->  | E75: =IF($E$5="Product Homogeneity", VLOOKUP(C75,PROC_PERFECT!M:Q,5,0),VLOOKUP(C75,PROC_IMPERFECT!M:Q,5,0)) ->  | F75: =VLOOKUP(D75,PROC_PERFECT!N:P,3,0) ->  | G75: =IF($E$5="Product Homogeneity",VLOOKUP(C75,PROC_PERFECT!M:Q,3,0),VLOOKUP(C75,PROC_IMPERFECT!M:Q,3,0)) ->  | I75: 0.2609694487
C76: 41 | D76: =IF($E$5="Product Homogeneity", VLOOKUP(C76,PROC_PERFECT!M:Q,2,0), VLOOKUP(C76,PROC_IMPERFECT!M:Q,2,0)) ->  | E76: =IF($E$5="Product Homogeneity", VLOOKUP(C76,PROC_PERFECT!M:Q,5,0),VLOOKUP(C76,PROC_IMPERFECT!M:Q,5,0)) ->  | F76: =VLOOKUP(D76,PROC_PERFECT!N:P,3,0) ->  | G76: =IF($E$5="Product Homogeneity",VLOOKUP(C76,PROC_PERFECT!M:Q,3,0),VLOOKUP(C76,PROC_IMPERFECT!M:Q,3,0)) ->  | I76: 0.05
C77: 42 | D77: =IF($E$5="Product Homogeneity", VLOOKUP(C77,PROC_PERFECT!M:Q,2,0), VLOOKUP(C77,PROC_IMPERFECT!M:Q,2,0)) ->  | E77: =IF($E$5="Product Homogeneity", VLOOKUP(C77,PROC_PERFECT!M:Q,5,0),VLOOKUP(C77,PROC_IMPERFECT!M:Q,5,0)) ->  | F77: =VLOOKUP(D77,PROC_PERFECT!N:P,3,0) ->  | G77: =IF($E$5="Product Homogeneity",VLOOKUP(C77,PROC_PERFECT!M:Q,3,0),VLOOKUP(C77,PROC_IMPERFECT!M:Q,3,0)) ->  | I77: 0.05
C78: 43 | D78: =IF($E$5="Product Homogeneity", VLOOKUP(C78,PROC_PERFECT!M:Q,2,0), VLOOKUP(C78,PROC_IMPERFECT!M:Q,2,0)) ->  | E78: =IF($E$5="Product Homogeneity", VLOOKUP(C78,PROC_PERFECT!M:Q,5,0),VLOOKUP(C78,PROC_IMPERFECT!M:Q,5,0)) ->  | F78: =VLOOKUP(D78,PROC_PERFECT!N:P,3,0) ->  | G78: =IF($E$5="Product Homogeneity",VLOOKUP(C78,PROC_PERFECT!M:Q,3,0),VLOOKUP(C78,PROC_IMPERFECT!M:Q,3,0)) ->  | I78: 0.2006976744
C79: 44 | D79: =IF($E$5="Product Homogeneity", VLOOKUP(C79,PROC_PERFECT!M:Q,2,0), VLOOKUP(C79,PROC_IMPERFECT!M:Q,2,0)) ->  | E79: =IF($E$5="Product Homogeneity", VLOOKUP(C79,PROC_PERFECT!M:Q,5,0),VLOOKUP(C79,PROC_IMPERFECT!M:Q,5,0)) ->  | F79: =VLOOKUP(D79,PROC_PERFECT!N:P,3,0) ->  | G79: =IF($E$5="Product Homogeneity",VLOOKUP(C79,PROC_PERFECT!M:Q,3,0),VLOOKUP(C79,PROC_IMPERFECT!M:Q,3,0)) ->  | I79: 0
C80: 45 | D80: =IF($E$5="Product Homogeneity", VLOOKUP(C80,PROC_PERFECT!M:Q,2,0), VLOOKUP(C80,PROC_IMPERFECT!M:Q,2,0)) ->  | E80: =IF($E$5="Product Homogeneity", VLOOKUP(C80,PROC_PERFECT!M:Q,5,0),VLOOKUP(C80,PROC_IMPERFECT!M:Q,5,0)) ->  | F80: =VLOOKUP(D80,PROC_PERFECT!N:P,3,0) ->  | G80: =IF($E$5="Product Homogeneity",VLOOKUP(C80,PROC_PERFECT!M:Q,3,0),VLOOKUP(C80,PROC_IMPERFECT!M:Q,3,0)) ->  | I80: 0
C81: 46 | D81: =IF($E$5="Product Homogeneity", VLOOKUP(C81,PROC_PERFECT!M:Q,2,0), VLOOKUP(C81,PROC_IMPERFECT!M:Q,2,0)) ->  | E81: =IF($E$5="Product Homogeneity", VLOOKUP(C81,PROC_PERFECT!M:Q,5,0),VLOOKUP(C81,PROC_IMPERFECT!M:Q,5,0)) ->  | F81: =VLOOKUP(D81,PROC_PERFECT!N:P,3,0) ->  | G81: =IF($E$5="Product Homogeneity",VLOOKUP(C81,PROC_PERFECT!M:Q,3,0),VLOOKUP(C81,PROC_IMPERFECT!M:Q,3,0)) ->  | I81: 0
C82: 47 | D82: =IF($E$5="Product Homogeneity", VLOOKUP(C82,PROC_PERFECT!M:Q,2,0), VLOOKUP(C82,PROC_IMPERFECT!M:Q,2,0)) ->  | E82: =IF($E$5="Product Homogeneity", VLOOKUP(C82,PROC_PERFECT!M:Q,5,0),VLOOKUP(C82,PROC_IMPERFECT!M:Q,5,0)) ->  | F82: =VLOOKUP(D82,PROC_PERFECT!N:P,3,0) ->  | G82: =IF($E$5="Product Homogeneity",VLOOKUP(C82,PROC_PERFECT!M:Q,3,0),VLOOKUP(C82,PROC_IMPERFECT!M:Q,3,0)) ->  | I82: 0
C83: 48 | D83: =IF($E$5="Product Homogeneity", VLOOKUP(C83,PROC_PERFECT!M:Q,2,0), VLOOKUP(C83,PROC_IMPERFECT!M:Q,2,0)) ->  | E83: =IF($E$5="Product Homogeneity", VLOOKUP(C83,PROC_PERFECT!M:Q,5,0),VLOOKUP(C83,PROC_IMPERFECT!M:Q,5,0)) ->  | F83: =VLOOKUP(D83,PROC_PERFECT!N:P,3,0) ->  | G83: =IF($E$5="Product Homogeneity",VLOOKUP(C83,PROC_PERFECT!M:Q,3,0),VLOOKUP(C83,PROC_IMPERFECT!M:Q,3,0)) ->  | I83: 0
C84: 49 | D84: =IF($E$5="Product Homogeneity", VLOOKUP(C84,PROC_PERFECT!M:Q,2,0), VLOOKUP(C84,PROC_IMPERFECT!M:Q,2,0)) ->  | E84: =IF($E$5="Product Homogeneity", VLOOKUP(C84,PROC_PERFECT!M:Q,5,0),VLOOKUP(C84,PROC_IMPERFECT!M:Q,5,0)) ->  | F84: =VLOOKUP(D84,PROC_PERFECT!N:P,3,0) ->  | G84: =IF($E$5="Product Homogeneity",VLOOKUP(C84,PROC_PERFECT!M:Q,3,0),VLOOKUP(C84,PROC_IMPERFECT!M:Q,3,0)) ->  | I84: 0
C85: 50 | D85: =IF($E$5="Product Homogeneity", VLOOKUP(C85,PROC_PERFECT!M:Q,2,0), VLOOKUP(C85,PROC_IMPERFECT!M:Q,2,0)) ->  | E85: =IF($E$5="Product Homogeneity", VLOOKUP(C85,PROC_PERFECT!M:Q,5,0),VLOOKUP(C85,PROC_IMPERFECT!M:Q,5,0)) ->  | F85: =VLOOKUP(D85,PROC_PERFECT!N:P,3,0) ->  | G85: =IF($E$5="Product Homogeneity",VLOOKUP(C85,PROC_PERFECT!M:Q,3,0),VLOOKUP(C85,PROC_IMPERFECT!M:Q,3,0)) ->  | I85: 0
C86: 51 | D86: =IF($E$5="Product Homogeneity", VLOOKUP(C86,PROC_PERFECT!M:Q,2,0), VLOOKUP(C86,PROC_IMPERFECT!M:Q,2,0)) ->  | E86: =IF($E$5="Product Homogeneity", VLOOKUP(C86,PROC_PERFECT!M:Q,5,0),VLOOKUP(C86,PROC_IMPERFECT!M:Q,5,0)) ->  | F86: =VLOOKUP(D86,PROC_PERFECT!N:P,3,0) ->  | G86: =IF($E$5="Product Homogeneity",VLOOKUP(C86,PROC_PERFECT!M:Q,3,0),VLOOKUP(C86,PROC_IMPERFECT!M:Q,3,0)) ->  | I86: 0 | J86: =I86-F86 -> 
C87: 52 | D87: =IF($E$5="Product Homogeneity", VLOOKUP(C87,PROC_PERFECT!M:Q,2,0), VLOOKUP(C87,PROC_IMPERFECT!M:Q,2,0)) ->  | E87: =IF($E$5="Product Homogeneity", VLOOKUP(C87,PROC_PERFECT!M:Q,5,0),VLOOKUP(C87,PROC_IMPERFECT!M:Q,5,0)) ->  | F87: =VLOOKUP(D87,PROC_PERFECT!N:P,3,0) ->  | G87: =IF($E$5="Product Homogeneity",VLOOKUP(C87,PROC_PERFECT!M:Q,3,0),VLOOKUP(C87,PROC_IMPERFECT!M:Q,3,0)) ->  | I87: 0
C88: 53 | D88: =IF($E$5="Product Homogeneity", VLOOKUP(C88,PROC_PERFECT!M:Q,2,0), VLOOKUP(C88,PROC_IMPERFECT!M:Q,2,0)) ->  | E88: =IF($E$5="Product Homogeneity", VLOOKUP(C88,PROC_PERFECT!M:Q,5,0),VLOOKUP(C88,PROC_IMPERFECT!M:Q,5,0)) ->  | F88: =VLOOKUP(D88,PROC_PERFECT!N:P,3,0) ->  | G88: =IF($E$5="Product Homogeneity",VLOOKUP(C88,PROC_PERFECT!M:Q,3,0),VLOOKUP(C88,PROC_IMPERFECT!M:Q,3,0)) ->  | I88: 0 | J88: =I88-F88 -> 
C89: 54 | D89: =IF($E$5="Product Homogeneity", VLOOKUP(C89,PROC_PERFECT!M:Q,2,0), VLOOKUP(C89,PROC_IMPERFECT!M:Q,2,0)) ->  | E89: =IF($E$5="Product Homogeneity", VLOOKUP(C89,PROC_PERFECT!M:Q,5,0),VLOOKUP(C89,PROC_IMPERFECT!M:Q,5,0)) ->  | F89: =VLOOKUP(D89,PROC_PERFECT!N:P,3,0) ->  | G89: =IF($E$5="Product Homogeneity",VLOOKUP(C89,PROC_PERFECT!M:Q,3,0),VLOOKUP(C89,PROC_IMPERFECT!M:Q,3,0)) ->  | I89: 0
C90: 55 | D90: =IF($E$5="Product Homogeneity", VLOOKUP(C90,PROC_PERFECT!M:Q,2,0), VLOOKUP(C90,PROC_IMPERFECT!M:Q,2,0)) ->  | E90: =IF($E$5="Product Homogeneity", VLOOKUP(C90,PROC_PERFECT!M:Q,5,0),VLOOKUP(C90,PROC_IMPERFECT!M:Q,5,0)) ->  | F90: =VLOOKUP(D90,PROC_PERFECT!N:P,3,0) ->  | G90: =IF($E$5="Product Homogeneity",VLOOKUP(C90,PROC_PERFECT!M:Q,3,0),VLOOKUP(C90,PROC_IMPERFECT!M:Q,3,0)) ->  | I90: 0
C91: 56 | D91: =IF($E$5="Product Homogeneity", VLOOKUP(C91,PROC_PERFECT!M:Q,2,0), VLOOKUP(C91,PROC_IMPERFECT!M:Q,2,0)) ->  | E91: =IF($E$5="Product Homogeneity", VLOOKUP(C91,PROC_PERFECT!M:Q,5,0),VLOOKUP(C91,PROC_IMPERFECT!M:Q,5,0)) ->  | F91: =VLOOKUP(D91,PROC_PERFECT!N:P,3,0) ->  | G91: =IF($E$5="Product Homogeneity",VLOOKUP(C91,PROC_PERFECT!M:Q,3,0),VLOOKUP(C91,PROC_IMPERFECT!M:Q,3,0)) ->  | I91: 0 | J91: =I91-F91 -> 
C92: 57 | D92: =IF($E$5="Product Homogeneity", VLOOKUP(C92,PROC_PERFECT!M:Q,2,0), VLOOKUP(C92,PROC_IMPERFECT!M:Q,2,0)) ->  | E92: =IF($E$5="Product Homogeneity", VLOOKUP(C92,PROC_PERFECT!M:Q,5,0),VLOOKUP(C92,PROC_IMPERFECT!M:Q,5,0)) ->  | F92: =VLOOKUP(D92,PROC_PERFECT!N:P,3,0) ->  | G92: =IF($E$5="Product Homogeneity",VLOOKUP(C92,PROC_PERFECT!M:Q,3,0),VLOOKUP(C92,PROC_IMPERFECT!M:Q,3,0)) ->  | I92: 0 | J92: =I92-F92 -> 

Sheet SIM_II (hidden)
C2: Modelling Framework
B7: BASELINE SCENARIO | M7: =ROW(UPTARIFFS_PERFECT!$A$89)-ROW(UPTARIFFS_PERFECT!$A$2) -> 87 | V7: SIMULATION OUTPUT | AR7: =MAX(AN11:AN50) -> 
V9: ON GOODS PRODUCING SECTORS | AB9: ON SERVICE PRODUCING SECTORS
B10: # | C10: Sector | D10: Output Tariff | E10: Upstream Tariff (% gross output) | F10: Upstream Tariff (% total input cost) | G10: Upstream Tariff (% input goods cost) | H10: Rate of Effective Protection | J10: Simulated Tariff | K10: Change in p.p. | M10: Upstream Tariff (% gross output) | N10: Change in p.p. | O10: Upstream Tariff (% total input cost) | P10: Change in p.p. | Q10: Upstream Tariff (% goods cost) | R10: Change in p.p. | S10: Rate of Effective Protection | T10: Change in p.p. | V10: # | W10: Goods Sectors ranked by largest reduction in upstream tariff (as % total input cost) | X10: Baseline Upstream (% input costs) | Y10: Simulated Upstream (% input costs) | Z10: Change in p.p. | AB10: # | AC10: Service Sectors ranked by largest reduction in upstream tariff (as % total input cost) | AD10: Baseline Upstream (as % total input cost) | AE10: Simulated Upstream (as % total input cost) | AF10: Change in p.p. | AL10: =CONCATENATE("SIMULATOR II 43 goods producing sectors with largest reductions in upstream tariff (as % total input cost) Assumption: ",E2) -> SIMULATOR II 43 goods producing sectors with largest reductions in upstream tariff (as % total input cost) Assumption: | AU10: =CONCATENATE("SIMULATOR II 14 service producing sectors with largest reductions in upstream tariff (as % total input cost) Assumption: ", E2) -> SIMULATOR II 14 service producing sectors with largest reductions in upstream tariff (as % total input cost) Assumption:
B11: 1 | C11: =IF($E$2="Product Homogeneity",VLOOKUP(B11,UPTARIFFS_PERFECT!$BQ:$BR,2,0),VLOOKUP(B11,UPTARIFFS_IMPERFECT!$BQ:$BR,2,0)) -> PDR - Paddy rice | D11: =IF($E$2="Product Homogeneity",VLOOKUP($C11,UPTARIFFS_PERFECT!$A:$BU,COLUMN(UPTARIFFS_PERFECT!$BJ$9),0), IF($E$2="Product Differentiation",(VLOOKUP($C11,UPTARIFFS_IMPERFECT!$A:$BU,COLUMN(UPTARIFFS_IMPERFECT!$BI$9),0)),"N/A")) -> N/A | E11: =IF($E$2="Product Homogeneity",HLOOKUP($C11,UPTARIFFS_PERFECT!$C$3:$BP$76,ROW(UPTARIFFS_PERFECT!$A$73)-2,0), IF($E$2="Product Differentiation",HLOOKUP($C11,UPTARIFFS_IMPERFECT!$C$3:$BP$76,ROW(UPTARIFFS_IMPERFECT!$A$73)-2,0), "N/A")) -> N/A | F11: =IF($E$2="Product Homogeneity",HLOOKUP($C11,UPTARIFFS_PERFECT!$C$3:$BP$76,ROW(UPTARIFFS_PERFECT!$A$72)-2,0), IF($E$2="Product Differentiation",HLOOKUP($C11,UPTARIFFS_IMPERFECT!$C$3:$BP$76,ROW(UPTARIFFS_IMPERFECT!$A$72)-2,0),"N/A")) -> N/A | G11: =IF($E$2="Product Homogeneity",HLOOKUP($C11,UPTARIFFS_PERFECT!$C$3:$BP$76,ROW(UPTARIFFS_PERFECT!$A$71)-2,0), IF($E$2="Product Differentiation",HLOOKUP($C11,UPTARIFFS_IMPERFECT!$C$3:$BP$76,ROW(UPTARIFFS_IMPERFECT!$A$71)-2,0),"N/A")) -> N/A | H11: =(D11-E11)/ HLOOKUP($C11,UPTARIFFS_PERFECT!$C$3:$BP$63,ROW(UPTARIFFS_PERFECT!$A$63)-ROW(UPTARIFFS_PERFECT!$A$2),0) ->  | J11: N/A | K11: =J11-D11 ->  | M11: =IF($E$2="Product Homogeneity",HLOOKUP($C11,UPTARIFFS_PERFECT!$C$3:$BP$91,ROW(UPTARIFFS_PERFECT!$A$89)-ROW(UPTARIFFS_PERFECT!$A$2),0), IF($E$2="Product Differentiation",HLOOKUP($C11,UPTARIFFS_IMPERFECT!$C$3:$BP$91,ROW(UPTARIFFS_IMPERFECT!$A$89)-ROW(UPTARIFFS_IMPERFECT!$A$2),0),"N/A")) -> N/A | N11: =M11-E11 ->  | O11: =IF($E$2="Product Homogeneity",HLOOKUP($C11,UPTARIFFS_PERFECT!$C$3:$BP$91,ROW(UPTARIFFS_PERFECT!$A$88)-ROW(UPTARIFFS_PERFECT!$A$2),0), IF($E$2="Product Differentiation",HLOOKUP($C11,UPTARIFFS_IMPERFECT!$C$3:$BP$91,ROW(UPTARIFFS_IMPERFECT!$A$88)-ROW(UPTARIFFS_IMPERFECT!$A$2),0),"N/A")) -> N/A | P11: =O11-F11 ->  | Q11: =IF($E$2="Product Homogeneity",HLOOKUP($C11,UPTARIFFS_PERFECT!$C$3:$BP$91,ROW(UPTARIFFS_PERFECT!$A$87)-ROW(UPTARIFFS_PERFECT!$A$2),0), IF($E$2="Product Differentiation", HLOOKUP($C11,UPTARIFFS_IMPERFECT!$C$3:$BP$91,ROW(UPTARIFFS_IMPERFECT!$A$87)-ROW(UPTARIFFS_IMPERFECT!$A$2),0),"N/A")) -> N/A | R11: =Q11-G11 ->  | S11: =(J11-M11)/IF($E$2="Product Homogeneity",HLOOKUP($C11,UPTARIFFS_PERFECT!$C$3:$BP$63,ROW(UPTARIFFS_PERFECT!$A$63)-ROW(UPTARIFFS_PERFECT!$A$2),0),HLOOKUP($C11,UPTARIFFS_IMPERFECT!$C$3:$BP$63,ROW(UPTARIFFS_IMPERFECT!$A$63)-ROW(UPTARIFFS_IMPERFECT!$A$2),0)) ->  | T11: =S11-H11 ->  | V11: 1 | W11: =VLOOKUP(B11,AN:AO,2,0) ->  | X11: =VLOOKUP(W11,C:R,4,0) ->  | Y11: =VLOOKUP(W11,C:R,13,0) ->  | Z11: =Y11-X11 ->  | AB11: =AV11 -> 1 | AC11: =IFERROR(VLOOKUP(AB11,AU:AY,3,0),"") ->  | AD11: =IFERROR(VLOOKUP(AB11,AU:AY,4,0),"") ->  | AE11: =IFERROR(VLOOKUP(AB11,AU:AY,5,0),"") ->  | AF11: =IFERROR(AE11-AD11,"") ->  | AL11: =RANK($P11,$P$11:$P$54,1) ->  | AM11: =COUNTIF($AL$10:AL11,AL11)-1 -> 0 | AN11: =AL11+AM11 ->  | AO11: =C11 -> PDR - Paddy rice | AU11: =IFERROR(BB11+BA11,"") ->  | AV11: 1 | AW11: =IFERROR(IF($E$2="Product Homogeneity",VLOOKUP(AV11,UPTARIFFS_PERFECT!$BS:$BT,2,0), VLOOKUP(AV11,UPTARIFFS_IMPERFECT!$BS:$BT,2,0)),"") -> WTR - Water: collection, purification and distribution | AX11: =IFERROR(IF($E$2="Product Homogeneity",HLOOKUP($AW11,UPTARIFFS_PERFECT!$C$3:$BP$75,ROW(UPTARIFFS_PERFECT!$A$72)-2,0), HLOOKUP($AW11,UPTARIFFS_IMPERFECT!$C$3:$BP$75,ROW(UPTARIFFS_IMPERFECT!$A$72)-2,0)),"") -> 0 | AY11: =IFERROR(IF($E$2="Product Homogeneity",HLOOKUP($AW11,UPTARIFFS_PERFECT!$C$3:$BP$91,ROW(UPTARIFFS_PERFECT!$A$88)-ROW(UPTARIFFS_PERFECT!$A$2),0), HLOOKUP($AW11,UPTARIFFS_IMPERFECT!$C$3:$BP$91,ROW(UPTARIFFS_IMPERFECT!$A$88)-ROW(UPTARIFFS_IMPERFECT!$A$2),0)),"") ->  | AZ11: =IFERROR(AY11-AX11,"") ->  | BA11: =IFERROR(RANK(AZ11,$AZ$11:$AZ$54,1),"") ->  | BB11: =COUNTIF($BA$10:BA11,BA11)-1 -> 1
B12: =OFFSET(B12,-1,0)+1 -> 2 | C12: =IF($E$2="Product Homogeneity",VLOOKUP(B12,UPTARIFFS_PERFECT!$BQ:$BR,2,0),VLOOKUP(B12,UPTARIFFS_IMPERFECT!$BQ:$BR,2,0)) -> WHT - Wheat | D12: =IF($E$2="Product Homogeneity",VLOOKUP($C12,UPTARIFFS_PERFECT!$A:$BU,COLUMN(UPTARIFFS_PERFECT!$BJ$9),0), IF($E$2="Product Differentiation",(VLOOKUP($C12,UPTARIFFS_IMPERFECT!$A:$BU,COLUMN(UPTARIFFS_IMPERFECT!$BI$9),0)),"N/A")) -> N/A | E12: =IF($E$2="Product Homogeneity",HLOOKUP($C12,UPTARIFFS_PERFECT!$C$3:$BP$76,ROW(UPTARIFFS_PERFECT!$A$73)-2,0), IF($E$2="Product Differentiation",HLOOKUP($C12,UPTARIFFS_IMPERFECT!$C$3:$BP$76,ROW(UPTARIFFS_IMPERFECT!$A$73)-2,0), "N/A")) -> N/A | F12: =IF($E$2="Product Homogeneity",HLOOKUP($C12,UPTARIFFS_PERFECT!$C$3:$BP$76,ROW(UPTARIFFS_PERFECT!$A$72)-2,0), IF($E$2="Product Differentiation",HLOOKUP($C12,UPTARIFFS_IMPERFECT!$C$3:$BP$76,ROW(UPTARIFFS_IMPERFECT!$A$72)-2,0),"N/A")) -> N/A | G12: =IF($E$2="Product Homogeneity",HLOOKUP($C12,UPTARIFFS_PERFECT!$C$3:$BP$76,ROW(UPTARIFFS_PERFECT!$A$71)-2,0), IF($E$2="Product Differentiation",HLOOKUP($C12,UPTARIFFS_IMPERFECT!$C$3:$BP$76,ROW(UPTARIFFS_IMPERFECT!$A$71)-2,0),"N/A")) -> N/A | H12: =(D12-E12)/ HLOOKUP($C12,UPTARIFFS_PERFECT!$C$3:$BP$63,ROW(UPTARIFFS_PERFECT!$A$63)-ROW(UPTARIFFS_PERFECT!$A$2),0) ->  | J12: N/A | K12: =J12-D12 ->  | M12: =IF($E$2="Product Homogeneity",HLOOKUP($C12,UPTARIFFS_PERFECT!$C$3:$BP$91,ROW(UPTARIFFS_PERFECT!$A$89)-ROW(UPTARIFFS_PERFECT!$A$2),0), IF($E$2="Product Differentiation",HLOOKUP($C12,UPTARIFFS_IMPERFECT!$C$3:$BP$91,ROW(UPTARIFFS_IMPERFECT!$A$89)-ROW(UPTARIFFS_IMPERFECT!$A$2),0),"N/A")) -> N/A | N12: =M12-E12 ->  | O12: =IF($E$2="Product Homogeneity",HLOOKUP($C12,UPTARIFFS_PERFECT!$C$3:$BP$91,ROW(UPTARIFFS_PERFECT!$A$88)-ROW(UPTARIFFS_PERFECT!$A$2),0), IF($E$2="Product Differentiation",HLOOKUP($C12,UPTARIFFS_IMPERFECT!$C$3:$BP$91,ROW(UPTARIFFS_IMPERFECT!$A$88)-ROW(UPTARIFFS_IMPERFECT!$A$2),0),"N/A")) -> N/A | P12: =O12-F12 ->  | Q12: =IF($E$2="Product Homogeneity",HLOOKUP($C12,UPTARIFFS_PERFECT!$C$3:$BP$91,ROW(UPTARIFFS_PERFECT!$A$87)-ROW(UPTARIFFS_PERFECT!$A$2),0), IF($E$2="Product Differentiation", HLOOKUP($C12,UPTARIFFS_IMPERFECT!$C$3:$BP$91,ROW(UPTARIFFS_IMPERFECT!$A$87)-ROW(UPTARIFFS_IMPERFECT!$A$2),0),"N/A")) -> N/A | R12: =Q12-G12 ->  | S12: =(J12-M12)/IF($E$2="Product Homogeneity",HLOOKUP($C12,UPTARIFFS_PERFECT!$C$3:$BP$63,ROW(UPTARIFFS_PERFECT!$A$63)-ROW(UPTARIFFS_PERFECT!$A$2),0),HLOOKUP($C12,UPTARIFFS_IMPERFECT!$C$3:$BP$63,ROW(UPTARIFFS_IMPERFECT!$A$63)-ROW(UPTARIFFS_IMPERFECT!$A$2),0)) ->  | T12: =S12-H12 ->  | V12: =OFFSET(V12,-1,0)+1 -> 2 | Z12: =Y12-X12 ->  | AB12: =OFFSET(AB12,-1,0)+1 -> 2 | AF12: =IFERROR(AE12-AD12,"") ->  | AM12: =COUNTIF($AL$10:AL12,AL12)-1 -> 1 | AN12: =AL12+AM12 ->  | AO12: =C12 -> WHT - Wheat | AU12: =IFERROR(BB12+BA12,"") ->  | AV12: =OFFSET(AV12,-1,0)+1 -> 2 | AW12: =IFERROR(IF($E$2="Product Homogeneity",VLOOKUP(AV12,UPTARIFFS_PERFECT!$BS:$BT,2,0), VLOOKUP(AV12,UPTARIFFS_IMPERFECT!$BS:$BT,2,0)),"") -> CNS - Construction: building houses factories offices and roads | AX12: =IFERROR(IF($E$2="Product Homogeneity",HLOOKUP($AW12,UPTARIFFS_PERFECT!$C$3:$BP$75,ROW(UPTARIFFS_PERFECT!$A$72)-2,0), HLOOKUP($AW12,UPTARIFFS_IMPERFECT!$C$3:$BP$75,ROW(UPTARIFFS_IMPERFECT!$A$72)-2,0)),"") -> 0 | AY12: =IFERROR(IF($E$2="Product Homogeneity",HLOOKUP($AW12,UPTARIFFS_PERFECT!$C$3:$BP$91,ROW(UPTARIFFS_PERFECT!$A$88)-ROW(UPTARIFFS_PERFECT!$A$2),0), HLOOKUP($AW12,UPTARIFFS_IMPERFECT!$C$3:$BP$91,ROW(UPTARIFFS_IMPERFECT!$A$88)-ROW(UPTARIFFS_IMPERFECT!$A$2),0)),"") ->  | AZ12: =IFERROR(AY12-AX12,"") ->  | BB12: =COUNTIF($BA$10:BA12,BA12)-1 -> 2
B13: =OFFSET(B13,-1,0)+1 -> 3 | C13: =IF($E$2="Product Homogeneity",VLOOKUP(B13,UPTARIFFS_PERFECT!$BQ:$BR,2,0),VLOOKUP(B13,UPTARIFFS_IMPERFECT!$BQ:$BR,2,0)) -> GRO - Cereal grains n.e.c. | D13: =IF($E$2="Product Homogeneity",VLOOKUP($C13,UPTARIFFS_PERFECT!$A:$BU,COLUMN(UPTARIFFS_PERFECT!$BJ$9),0), IF($E$2="Product Differentiation",(VLOOKUP($C13,UPTARIFFS_IMPERFECT!$A:$BU,COLUMN(UPTARIFFS_IMPERFECT!$BI$9),0)),"N/A")) -> N/A | E13: =IF($E$2="Product Homogeneity",HLOOKUP($C13,UPTARIFFS_PERFECT!$C$3:$BP$76,ROW(UPTARIFFS_PERFECT!$A$73)-2,0), IF($E$2="Product Differentiation",HLOOKUP($C13,UPTARIFFS_IMPERFECT!$C$3:$BP$76,ROW(UPTARIFFS_IMPERFECT!$A$73)-2,0), "N/A")) -> N/A | F13: =IF($E$2="Product Homogeneity",HLOOKUP($C13,UPTARIFFS_PERFECT!$C$3:$BP$76,ROW(UPTARIFFS_PERFECT!$A$72)-2,0), IF($E$2="Product Differentiation",HLOOKUP($C13,UPTARIFFS_IMPERFECT!$C$3:$BP$76,ROW(UPTARIFFS_IMPERFECT!$A$72)-2,0),"N/A")) -> N/A | G13: =IF($E$2="Product Homogeneity",HLOOKUP($C13,UPTARIFFS_PERFECT!$C$3:$BP$76,ROW(UPTARIFFS_PERFECT!$A$71)-2,0), IF($E$2="Product Differentiation",HLOOKUP($C13,UPTARIFFS_IMPERFECT!$C$3:$BP$76,ROW(UPTARIFFS_IMPERFECT!$A$71)-2,0),"N/A")) -> N/A | H13: =(D13-E13)/ HLOOKUP($C13,UPTARIFFS_PERFECT!$C$3:$BP$63,ROW(UPTARIFFS_PERFECT!$A$63)-ROW(UPTARIFFS_PERFECT!$A$2),0) ->  | J13: N/A | K13: =J13-D13 ->  | M13: =IF($E$2="Product Homogeneity",HLOOKUP($C13,UPTARIFFS_PERFECT!$C$3:$BP$91,ROW(UPTARIFFS_PERFECT!$A$89)-ROW(UPTARIFFS_PERFECT!$A$2),0), IF($E$2="Product Differentiation",HLOOKUP($C13,UPTARIFFS_IMPERFECT!$C$3:$BP$91,ROW(UPTARIFFS_IMPERFECT!$A$89)-ROW(UPTARIFFS_IMPERFECT!$A$2),0),"N/A")) -> N/A | N13: =M13-E13 ->  | O13: =IF($E$2="Product Homogeneity",HLOOKUP($C13,UPTARIFFS_PERFECT!$C$3:$BP$91,ROW(UPTARIFFS_PERFECT!$A$88)-ROW(UPTARIFFS_PERFECT!$A$2),0), IF($E$2="Product Differentiation",HLOOKUP($C13,UPTARIFFS_IMPERFECT!$C$3:$BP$91,ROW(UPTARIFFS_IMPERFECT!$A$88)-ROW(UPTARIFFS_IMPERFECT!$A$2),0),"N/A")) -> N/A | P13: =O13-F13 ->  | Q13: =IF($E$2="Product Homogeneity",HLOOKUP($C13,UPTARIFFS_PERFECT!$C$3:$BP$91,ROW(UPTARIFFS_PERFECT!$A$87)-ROW(UPTARIFFS_PERFECT!$A$2),0), IF($E$2="Product Differentiation", HLOOKUP($C13,UPTARIFFS_IMPERFECT!$C$3:$BP$91,ROW(UPTARIFFS_IMPERFECT!$A$87)-ROW(UPTARIFFS_IMPERFECT!$A$2),0),"N/A")) -> N/A | R13: =Q13-G13 ->  | S13: =(J13-M13)/IF($E$2="Product Homogeneity",HLOOKUP($C13,UPTARIFFS_PERFECT!$C$3:$BP$63,ROW(UPTARIFFS_PERFECT!$A$63)-ROW(UPTARIFFS_PERFECT!$A$2),0),HLOOKUP($C13,UPTARIFFS_IMPERFECT!$C$3:$BP$63,ROW(UPTARIFFS_IMPERFECT!$A$63)-ROW(UPTARIFFS_IMPERFECT!$A$2),0)) ->  | V13: =OFFSET(V13,-1,0)+1 -> 3 | Z13: =Y13-X13 ->  | AB13: =OFFSET(AB13,-1,0)+1 -> 3 | AF13: =IFERROR(AE13-AD13,"") ->  | AM13: =COUNTIF($AL$10:AL13,AL13)-1 -> 2 | AN13: =AL13+AM13 ->  | AO13: =C13 -> GRO - Cereal grains n.e.c. | AU13: =IFERROR(BB13+BA13,"") ->  | AV13: =OFFSET(AV13,-1,0)+1 -> 3 | AW13: =IFERROR(IF($E$2="Product Homogeneity",VLOOKUP(AV13,UPTARIFFS_PERFECT!$BS:$BT,2,0), VLOOKUP(AV13,UPTARIFFS_IMPERFECT!$BS:$BT,2,0)),"") -> TRD - Trade | AX13: =IFERROR(IF($E$2="Product Homogeneity",HLOOKUP($AW13,UPTARIFFS_PERFECT!$C$3:$BP$75,ROW(UPTARIFFS_PERFECT!$A$72)-2,0), HLOOKUP($AW13,UPTARIFFS_IMPERFECT!$C$3:$BP$75,ROW(UPTARIFFS_IMPERFECT!$A$72)-2,0)),"") -> 0 | AY13: =IFERROR(IF($E$2="Product Homogeneity",HLOOKUP($AW13,UPTARIFFS_PERFECT!$C$3:$BP$91,ROW(UPTARIFFS_PERFECT!$A$88)-ROW(UPTARIFFS_PERFECT!$A$2),0), HLOOKUP($AW13,UPTARIFFS_IMPERFECT!$C$3:$BP$91,ROW(UPTARIFFS_IMPERFECT!$A$88)-ROW(UPTARIFFS_IMPERFECT!$A$2),0)),"") ->  | AZ13: =IFERROR(AY13-AX13,"") ->  | BB13: =COUNTIF($BA$10:BA13,BA13)-1 -> 3
B14: =OFFSET(B14,-1,0)+1 -> 4 | C14: =IF($E$2="Product Homogeneity",VLOOKUP(B14,UPTARIFFS_PERFECT!$BQ:$BR,2,0),VLOOKUP(B14,UPTARIFFS_IMPERFECT!$BQ:$BR,2,0)) -> V_F - Vegetables, fruit, nuts | D14: =IF($E$2="Product Homogeneity",VLOOKUP($C14,UPTARIFFS_PERFECT!$A:$BU,COLUMN(UPTARIFFS_PERFECT!$BJ$9),0), IF($E$2="Product Differentiation",(VLOOKUP($C14,UPTARIFFS_IMPERFECT!$A:$BU,COLUMN(UPTARIFFS_IMPERFECT!$BI$9),0)),"N/A")) -> N/A | E14: =IF($E$2="Product Homogeneity",HLOOKUP($C14,UPTARIFFS_PERFECT!$C$3:$BP$76,ROW(UPTARIFFS_PERFECT!$A$73)-2,0), IF($E$2="Product Differentiation",HLOOKUP($C14,UPTARIFFS_IMPERFECT!$C$3:$BP$76,ROW(UPTARIFFS_IMPERFECT!$A$73)-2,0), "N/A")) -> N/A | F14: =IF($E$2="Product Homogeneity",HLOOKUP($C14,UPTARIFFS_PERFECT!$C$3:$BP$76,ROW(UPTARIFFS_PERFECT!$A$72)-2,0), IF($E$2="Product Differentiation",HLOOKUP($C14,UPTARIFFS_IMPERFECT!$C$3:$BP$76,ROW(UPTARIFFS_IMPERFECT!$A$72)-2,0),"N/A")) -> N/A | G14: =IF($E$2="Product Homogeneity",HLOOKUP($C14,UPTARIFFS_PERFECT!$C$3:$BP$76,ROW(UPTARIFFS_PERFECT!$A$71)-2,0), IF($E$2="Product Differentiation",HLOOKUP($C14,UPTARIFFS_IMPERFECT!$C$3:$BP$76,ROW(UPTARIFFS_IMPERFECT!$A$71)-2,0),"N/A")) -> N/A | H14: =(D14-E14)/ HLOOKUP($C14,UPTARIFFS_PERFECT!$C$3:$BP$63,ROW(UPTARIFFS_PERFECT!$A$63)-ROW(UPTARIFFS_PERFECT!$A$2),0) ->  | J14: N/A | K14: =J14-D14 ->  | M14: =IF($E$2="Product Homogeneity",HLOOKUP($C14,UPTARIFFS_PERFECT!$C$3:$BP$91,ROW(UPTARIFFS_PERFECT!$A$89)-ROW(UPTARIFFS_PERFECT!$A$2),0), IF($E$2="Product Differentiation",HLOOKUP($C14,UPTARIFFS_IMPERFECT!$C$3:$BP$91,ROW(UPTARIFFS_IMPERFECT!$A$89)-ROW(UPTARIFFS_IMPERFECT!$A$2),0),"N/A")) -> N/A | N14: =M14-E14 ->  | O14: =IF($E$2="Product Homogeneity",HLOOKUP($C14,UPTARIFFS_PERFECT!$C$3:$BP$91,ROW(UPTARIFFS_PERFECT!$A$88)-ROW(UPTARIFFS_PERFECT!$A$2),0), IF($E$2="Product Differentiation",HLOOKUP($C14,UPTARIFFS_IMPERFECT!$C$3:$BP$91,ROW(UPTARIFFS_IMPERFECT!$A$88)-ROW(UPTARIFFS_IMPERFECT!$A$2),0),"N/A")) -> N/A | P14: =O14-F14 ->  | Q14: =IF($E$2="Product Homogeneity",HLOOKUP($C14,UPTARIFFS_PERFECT!$C$3:$BP$91,ROW(UPTARIFFS_PERFECT!$A$87)-ROW(UPTARIFFS_PERFECT!$A$2),0), IF($E$2="Product Differentiation", HLOOKUP($C14,UPTARIFFS_IMPERFECT!$C$3:$BP$91,ROW(UPTARIFFS_IMPERFECT!$A$87)-ROW(UPTARIFFS_IMPERFECT!$A$2),0),"N/A")) -> N/A | R14: =Q14-G14 ->  | S14: =(J14-M14)/IF($E$2="Product Homogeneity",HLOOKUP($C14,UPTARIFFS_PERFECT!$C$3:$BP$63,ROW(UPTARIFFS_PERFECT!$A$63)-ROW(UPTARIFFS_PERFECT!$A$2),0),HLOOKUP($C14,UPTARIFFS_IMPERFECT!$C$3:$BP$63,ROW(UPTARIFFS_IMPERFECT!$A$63)-ROW(UPTARIFFS_IMPERFECT!$A$2),0)) ->  | V14: =OFFSET(V14,-1,0)+1 -> 4 | Z14: =Y14-X14 ->  | AB14: =OFFSET(AB14,-1,0)+1 -> 4 | AF14: =IFERROR(AE14-AD14,"") ->  | AM14: =COUNTIF($AL$10:AL14,AL14)-1 -> 3 | AN14: =AL14+AM14 ->  | AO14: =C14 -> V_F - Vegetables, fruit, nuts | AU14: =IFERROR(BB14+BA14,"") ->  | AV14: =OFFSET(AV14,-1,0)+1 -> 4 | AW14: =IFERROR(IF($E$2="Product Homogeneity",VLOOKUP(AV14,UPTARIFFS_PERFECT!$BS:$BT,2,0), VLOOKUP(AV14,UPTARIFFS_IMPERFECT!$BS:$BT,2,0)),"") -> OTP - Other Transport | AX14: =IFERROR(IF($E$2="Product Homogeneity",HLOOKUP($AW14,UPTARIFFS_PERFECT!$C$3:$BP$75,ROW(UPTARIFFS_PERFECT!$A$72)-2,0), HLOOKUP($AW14,UPTARIFFS_IMPERFECT!$C$3:$BP$75,ROW(UPTARIFFS_IMPERFECT!$A$72)-2,0)),"") -> 0 | AY14: =IFERROR(IF($E$2="Product Homogeneity",HLOOKUP($AW14,UPTARIFFS_PERFECT!$C$3:$BP$91,ROW(UPTARIFFS_PERFECT!$A$88)-ROW(UPTARIFFS_PERFECT!$A$2),0), HLOOKUP($AW14,UPTARIFFS_IMPERFECT!$C$3:$BP$91,ROW(UPTARIFFS_IMPERFECT!$A$88)-ROW(UPTARIFFS_IMPERFECT!$A$2),0)),"") ->  | AZ14: =IFERROR(AY14-AX14,"") ->  | BB14: =COUNTIF($BA$10:BA14,BA14)-1 -> 4
B15: =OFFSET(B15,-1,0)+1 -> 5 | C15: =IF($E$2="Product Homogeneity",VLOOKUP(B15,UPTARIFFS_PERFECT!$BQ:$BR,2,0),VLOOKUP(B15,UPTARIFFS_IMPERFECT!$BQ:$BR,2,0)) -> OSD - Oil seeds | D15: =IF($E$2="Product Homogeneity",VLOOKUP($C15,UPTARIFFS_PERFECT!$A:$BU,COLUMN(UPTARIFFS_PERFECT!$BJ$9),0), IF($E$2="Product Differentiation",(VLOOKUP($C15,UPTARIFFS_IMPERFECT!$A:$BU,COLUMN(UPTARIFFS_IMPERFECT!$BI$9),0)),"N/A")) -> N/A | E15: =IF($E$2="Product Homogeneity",HLOOKUP($C15,UPTARIFFS_PERFECT!$C$3:$BP$76,ROW(UPTARIFFS_PERFECT!$A$73)-2,0), IF($E$2="Product Differentiation",HLOOKUP($C15,UPTARIFFS_IMPERFECT!$C$3:$BP$76,ROW(UPTARIFFS_IMPERFECT!$A$73)-2,0), "N/A")) -> N/A | F15: =IF($E$2="Product Homogeneity",HLOOKUP($C15,UPTARIFFS_PERFECT!$C$3:$BP$76,ROW(UPTARIFFS_PERFECT!$A$72)-2,0), IF($E$2="Product Differentiation",HLOOKUP($C15,UPTARIFFS_IMPERFECT!$C$3:$BP$76,ROW(UPTARIFFS_IMPERFECT!$A$72)-2,0),"N/A")) -> N/A | G15: =IF($E$2="Product Homogeneity",HLOOKUP($C15,UPTARIFFS_PERFECT!$C$3:$BP$76,ROW(UPTARIFFS_PERFECT!$A$71)-2,0), IF($E$2="Product Differentiation",HLOOKUP($C15,UPTARIFFS_IMPERFECT!$C$3:$BP$76,ROW(UPTARIFFS_IMPERFECT!$A$71)-2,0),"N/A")) -> N/A | H15: =(D15-E15)/ HLOOKUP($C15,UPTARIFFS_PERFECT!$C$3:$BP$63,ROW(UPTARIFFS_PERFECT!$A$63)-ROW(UPTARIFFS_PERFECT!$A$2),0) ->  | J15: N/A | K15: =J15-D15 ->  | M15: =IF($E$2="Product Homogeneity",HLOOKUP($C15,UPTARIFFS_PERFECT!$C$3:$BP$91,ROW(UPTARIFFS_PERFECT!$A$89)-ROW(UPTARIFFS_PERFECT!$A$2),0), IF($E$2="Product Differentiation",HLOOKUP($C15,UPTARIFFS_IMPERFECT!$C$3:$BP$91,ROW(UPTARIFFS_IMPERFECT!$A$89)-ROW(UPTARIFFS_IMPERFECT!$A$2),0),"N/A")) -> N/A | N15: =M15-E15 ->  | O15: =IF($E$2="Product Homogeneity",HLOOKUP($C15,UPTARIFFS_PERFECT!$C$3:$BP$91,ROW(UPTARIFFS_PERFECT!$A$88)-ROW(UPTARIFFS_PERFECT!$A$2),0), IF($E$2="Product Differentiation",HLOOKUP($C15,UPTARIFFS_IMPERFECT!$C$3:$BP$91,ROW(UPTARIFFS_IMPERFECT!$A$88)-ROW(UPTARIFFS_IMPERFECT!$A$2),0),"N/A")) -> N/A | P15: =O15-F15 ->  | Q15: =IF($E$2="Product Homogeneity",HLOOKUP($C15,UPTARIFFS_PERFECT!$C$3:$BP$91,ROW(UPTARIFFS_PERFECT!$A$87)-ROW(UPTARIFFS_PERFECT!$A$2),0), IF($E$2="Product Differentiation", HLOOKUP($C15,UPTARIFFS_IMPERFECT!$C$3:$BP$91,ROW(UPTARIFFS_IMPERFECT!$A$87)-ROW(UPTARIFFS_IMPERFECT!$A$2),0),"N/A")) -> N/A | R15: =Q15-G15 ->  | S15: =(J15-M15)/IF($E$2="Product Homogeneity",HLOOKUP($C15,UPTARIFFS_PERFECT!$C$3:$BP$63,ROW(UPTARIFFS_PERFECT!$A$63)-ROW(UPTARIFFS_PERFECT!$A$2),0),HLOOKUP($C15,UPTARIFFS_IMPERFECT!$C$3:$BP$63,ROW(UPTARIFFS_IMPERFECT!$A$63)-ROW(UPTARIFFS_IMPERFECT!$A$2),0)) ->  | V15: =OFFSET(V15,-1,0)+1 -> 5 | Z15: =Y15-X15 ->  | AB15: =OFFSET(AB15,-1,0)+1 -> 5 | AF15: =IFERROR(AE15-AD15,"") ->  | AM15: =COUNTIF($AL$10:AL15,AL15)-1 -> 4 | AN15: =AL15+AM15 ->  | AO15: =C15 -> OSD - Oil seeds | AU15: =IFERROR(BB15+BA15,"") ->  | AV15: =OFFSET(AV15,-1,0)+1 -> 5 | AW15: =IFERROR(IF($E$2="Product Homogeneity",VLOOKUP(AV15,UPTARIFFS_PERFECT!$BS:$BT,2,0), VLOOKUP(AV15,UPTARIFFS_IMPERFECT!$BS:$BT,2,0)),"") -> WTP - Water transport | AX15: =IFERROR(IF($E$2="Product Homogeneity",HLOOKUP($AW15,UPTARIFFS_PERFECT!$C$3:$BP$75,ROW(UPTARIFFS_PERFECT!$A$72)-2,0), HLOOKUP($AW15,UPTARIFFS_IMPERFECT!$C$3:$BP$75,ROW(UPTARIFFS_IMPERFECT!$A$72)-2,0)),"") -> 0 | AY15: =IFERROR(IF($E$2="Product Homogeneity",HLOOKUP($AW15,UPTARIFFS_PERFECT!$C$3:$BP$91,ROW(UPTARIFFS_PERFECT!$A$88)-ROW(UPTARIFFS_PERFECT!$A$2),0), HLOOKUP($AW15,UPTARIFFS_IMPERFECT!$C$3:$BP$91,ROW(UPTARIFFS_IMPERFECT!$A$88)-ROW(UPTARIFFS_IMPERFECT!$A$2),0)),"") ->  | AZ15: =IFERROR(AY15-AX15,"") ->  | BB15: =COUNTIF($BA$10:BA15,BA15)-1 -> 5
B16: =OFFSET(B16,-1,0)+1 -> 6 | C16: =IF($E$2="Product Homogeneity",VLOOKUP(B16,UPTARIFFS_PERFECT!$BQ:$BR,2,0),VLOOKUP(B16,UPTARIFFS_IMPERFECT!$BQ:$BR,2,0)) -> C_B - Sugar cane, sugar beet | D16: =IF($E$2="Product Homogeneity",VLOOKUP($C16,UPTARIFFS_PERFECT!$A:$BU,COLUMN(UPTARIFFS_PERFECT!$BJ$9),0), IF($E$2="Product Differentiation",(VLOOKUP($C16,UPTARIFFS_IMPERFECT!$A:$BU,COLUMN(UPTARIFFS_IMPERFECT!$BI$9),0)),"N/A")) -> N/A | E16: =IF($E$2="Product Homogeneity",HLOOKUP($C16,UPTARIFFS_PERFECT!$C$3:$BP$76,ROW(UPTARIFFS_PERFECT!$A$73)-2,0), IF($E$2="Product Differentiation",HLOOKUP($C16,UPTARIFFS_IMPERFECT!$C$3:$BP$76,ROW(UPTARIFFS_IMPERFECT!$A$73)-2,0), "N/A")) -> N/A | F16: =IF($E$2="Product Homogeneity",HLOOKUP($C16,UPTARIFFS_PERFECT!$C$3:$BP$76,ROW(UPTARIFFS_PERFECT!$A$72)-2,0), IF($E$2="Product Differentiation",HLOOKUP($C16,UPTARIFFS_IMPERFECT!$C$3:$BP$76,ROW(UPTARIFFS_IMPERFECT!$A$72)-2,0),"N/A")) -> N/A | G16: =IF($E$2="Product Homogeneity",HLOOKUP($C16,UPTARIFFS_PERFECT!$C$3:$BP$76,ROW(UPTARIFFS_PERFECT!$A$71)-2,0), IF($E$2="Product Differentiation",HLOOKUP($C16,UPTARIFFS_IMPERFECT!$C$3:$BP$76,ROW(UPTARIFFS_IMPERFECT!$A$71)-2,0),"N/A")) -> N/A | H16: =(D16-E16)/ HLOOKUP($C16,UPTARIFFS_PERFECT!$C$3:$BP$63,ROW(UPTARIFFS_PERFECT!$A$63)-ROW(UPTARIFFS_PERFECT!$A$2),0) ->  | J16: N/A | K16: =J16-D16 ->  | M16: =IF($E$2="Product Homogeneity",HLOOKUP($C16,UPTARIFFS_PERFECT!$C$3:$BP$91,ROW(UPTARIFFS_PERFECT!$A$89)-ROW(UPTARIFFS_PERFECT!$A$2),0), IF($E$2="Product Differentiation",HLOOKUP($C16,UPTARIFFS_IMPERFECT!$C$3:$BP$91,ROW(UPTARIFFS_IMPERFECT!$A$89)-ROW(UPTARIFFS_IMPERFECT!$A$2),0),"N/A")) -> N/A | N16: =M16-E16 ->  | O16: =IF($E$2="Product Homogeneity",HLOOKUP($C16,UPTARIFFS_PERFECT!$C$3:$BP$91,ROW(UPTARIFFS_PERFECT!$A$88)-ROW(UPTARIFFS_PERFECT!$A$2),0), IF($E$2="Product Differentiation",HLOOKUP($C16,UPTARIFFS_IMPERFECT!$C$3:$BP$91,ROW(UPTARIFFS_IMPERFECT!$A$88)-ROW(UPTARIFFS_IMPERFECT!$A$2),0),"N/A")) -> N/A | P16: =O16-F16 ->  | Q16: =IF($E$2="Product Homogeneity",HLOOKUP($C16,UPTARIFFS_PERFECT!$C$3:$BP$91,ROW(UPTARIFFS_PERFECT!$A$87)-ROW(UPTARIFFS_PERFECT!$A$2),0), IF($E$2="Product Differentiation", HLOOKUP($C16,UPTARIFFS_IMPERFECT!$C$3:$BP$91,ROW(UPTARIFFS_IMPERFECT!$A$87)-ROW(UPTARIFFS_IMPERFECT!$A$2),0),"N/A")) -> N/A | R16: =Q16-G16 ->  | S16: =(J16-M16)/IF($E$2="Product Homogeneity",HLOOKUP($C16,UPTARIFFS_PERFECT!$C$3:$BP$63,ROW(UPTARIFFS_PERFECT!$A$63)-ROW(UPTARIFFS_PERFECT!$A$2),0),HLOOKUP($C16,UPTARIFFS_IMPERFECT!$C$3:$BP$63,ROW(UPTARIFFS_IMPERFECT!$A$63)-ROW(UPTARIFFS_IMPERFECT!$A$2),0)) ->  | V16: =OFFSET(V16,-1,0)+1 -> 6 | Z16: =Y16-X16 ->  | AB16: =OFFSET(AB16,-1,0)+1 -> 6 | AM16: =COUNTIF($AL$10:AL16,AL16)-1 -> 5 | AN16: =AL16+AM16 ->  | AO16: =C16 -> C_B - Sugar cane, sugar beet | AU16: =IFERROR(BB16+BA16,"") ->  | AV16: =OFFSET(AV16,-1,0)+1 -> 6 | AW16: =IFERROR(IF($E$2="Product Homogeneity",VLOOKUP(AV16,UPTARIFFS_PERFECT!$BS:$BT,2,0), VLOOKUP(AV16,UPTARIFFS_IMPERFECT!$BS:$BT,2,0)),"") -> ATP - Air transport | AX16: =IFERROR(IF($E$2="Product Homogeneity",HLOOKUP($AW16,UPTARIFFS_PERFECT!$C$3:$BP$75,ROW(UPTARIFFS_PERFECT!$A$72)-2,0), HLOOKUP($AW16,UPTARIFFS_IMPERFECT!$C$3:$BP$75,ROW(UPTARIFFS_IMPERFECT!$A$72)-2,0)),"") -> 0 | AY16: =IFERROR(IF($E$2="Product Homogeneity",HLOOKUP($AW16,UPTARIFFS_PERFECT!$C$3:$BP$91,ROW(UPTARIFFS_PERFECT!$A$88)-ROW(UPTARIFFS_PERFECT!$A$2),0), HLOOKUP($AW16,UPTARIFFS_IMPERFECT!$C$3:$BP$91,ROW(UPTARIFFS_IMPERFECT!$A$88)-ROW(UPTARIFFS_IMPERFECT!$A$2),0)),"") ->  | AZ16: =IFERROR(AY16-AX16,"") ->  | BB16: =COUNTIF($BA$10:BA16,BA16)-1 -> 6
B17: 7 | C17: =IF($E$2="Product Homogeneity",VLOOKUP(B17,UPTARIFFS_PERFECT!$BQ:$BR,2,0),VLOOKUP(B17,UPTARIFFS_IMPERFECT!$BQ:$BR,2,0)) -> PFB - Plant-based fibers | D17: =IF($E$2="Product Homogeneity",VLOOKUP($C17,UPTARIFFS_PERFECT!$A:$BU,COLUMN(UPTARIFFS_PERFECT!$BJ$9),0), IF($E$2="Product Differentiation",(VLOOKUP($C17,UPTARIFFS_IMPERFECT!$A:$BU,COLUMN(UPTARIFFS_IMPERFECT!$BI$9),0)),"N/A")) -> N/A | E17: =IF($E$2="Product Homogeneity",HLOOKUP($C17,UPTARIFFS_PERFECT!$C$3:$BP$76,ROW(UPTARIFFS_PERFECT!$A$73)-2,0), IF($E$2="Product Differentiation",HLOOKUP($C17,UPTARIFFS_IMPERFECT!$C$3:$BP$76,ROW(UPTARIFFS_IMPERFECT!$A$73)-2,0), "N/A")) -> N/A | F17: =IF($E$2="Product Homogeneity",HLOOKUP($C17,UPTARIFFS_PERFECT!$C$3:$BP$76,ROW(UPTARIFFS_PERFECT!$A$72)-2,0), IF($E$2="Product Differentiation",HLOOKUP($C17,UPTARIFFS_IMPERFECT!$C$3:$BP$76,ROW(UPTARIFFS_IMPERFECT!$A$72)-2,0),"N/A")) -> N/A | G17: =IF($E$2="Product Homogeneity",HLOOKUP($C17,UPTARIFFS_PERFECT!$C$3:$BP$76,ROW(UPTARIFFS_PERFECT!$A$71)-2,0), IF($E$2="Product Differentiation",HLOOKUP($C17,UPTARIFFS_IMPERFECT!$C$3:$BP$76,ROW(UPTARIFFS_IMPERFECT!$A$71)-2,0),"N/A")) -> N/A | H17: =(D17-E17)/ HLOOKUP($C17,UPTARIFFS_PERFECT!$C$3:$BP$63,ROW(UPTARIFFS_PERFECT!$A$63)-ROW(UPTARIFFS_PERFECT!$A$2),0) ->  | J17: N/A | M17: =IF($E$2="Product Homogeneity",HLOOKUP($C17,UPTARIFFS_PERFECT!$C$3:$BP$91,ROW(UPTARIFFS_PERFECT!$A$89)-ROW(UPTARIFFS_PERFECT!$A$2),0), IF($E$2="Product Differentiation",HLOOKUP($C17,UPTARIFFS_IMPERFECT!$C$3:$BP$91,ROW(UPTARIFFS_IMPERFECT!$A$89)-ROW(UPTARIFFS_IMPERFECT!$A$2),0),"N/A")) -> N/A | N17: =M17-E17 ->  | O17: =IF($E$2="Product Homogeneity",HLOOKUP($C17,UPTARIFFS_PERFECT!$C$3:$BP$91,ROW(UPTARIFFS_PERFECT!$A$88)-ROW(UPTARIFFS_PERFECT!$A$2),0), IF($E$2="Product Differentiation",HLOOKUP($C17,UPTARIFFS_IMPERFECT!$C$3:$BP$91,ROW(UPTARIFFS_IMPERFECT!$A$88)-ROW(UPTARIFFS_IMPERFECT!$A$2),0),"N/A")) -> N/A | Q17: =IF($E$2="Product Homogeneity",HLOOKUP($C17,UPTARIFFS_PERFECT!$C$3:$BP$91,ROW(UPTARIFFS_PERFECT!$A$87)-ROW(UPTARIFFS_PERFECT!$A$2),0), IF($E$2="Product Differentiation", HLOOKUP($C17,UPTARIFFS_IMPERFECT!$C$3:$BP$91,ROW(UPTARIFFS_IMPERFECT!$A$87)-ROW(UPTARIFFS_IMPERFECT!$A$2),0),"N/A")) -> N/A | S17: =(J17-M17)/IF($E$2="Product Homogeneity",HLOOKUP($C17,UPTARIFFS_PERFECT!$C$3:$BP$63,ROW(UPTARIFFS_PERFECT!$A$63)-ROW(UPTARIFFS_PERFECT!$A$2),0),HLOOKUP($C17,UPTARIFFS_IMPERFECT!$C$3:$BP$63,ROW(UPTARIFFS_IMPERFECT!$A$63)-ROW(UPTARIFFS_IMPERFECT!$A$2),0)) ->  | V17: 7 | Z17: =Y17-X17 ->  | AB17: 7 | AM17: =COUNTIF($AL$10:AL17,AL17)-1 -> 6 | AN17: =AL17+AM17 ->  | AO17: PFB - Plant-based fibers | AV17: 7 | AW17: =IFERROR(IF($E$2="Product Homogeneity",VLOOKUP(AV17,UPTARIFFS_PERFECT!$BS:$BT,2,0), VLOOKUP(AV17,UPTARIFFS_IMPERFECT!$BS:$BT,2,0)),"") -> CMN - Communications | AX17: =IFERROR(IF($E$2="Product Homogeneity",HLOOKUP($AW17,UPTARIFFS_PERFECT!$C$3:$BP$75,ROW(UPTARIFFS_PERFECT!$A$72)-2,0), HLOOKUP($AW17,UPTARIFFS_IMPERFECT!$C$3:$BP$75,ROW(UPTARIFFS_IMPERFECT!$A$72)-2,0)),"") -> 0 | AY17: =IFERROR(IF($E$2="Product Homogeneity",HLOOKUP($AW17,UPTARIFFS_PERFECT!$C$3:$BP$91,ROW(UPTARIFFS_PERFECT!$A$88)-ROW(UPTARIFFS_PERFECT!$A$2),0), HLOOKUP($AW17,UPTARIFFS_IMPERFECT!$C$3:$BP$91,ROW(UPTARIFFS_IMPERFECT!$A$88)-ROW(UPTARIFFS_IMPERFECT!$A$2),0)),"") ->  | BB17: =COUNTIF($BA$10:BA17,BA17)-1 -> 7
B18: 8 | C18: =IF($E$2="Product Homogeneity",VLOOKUP(B18,UPTARIFFS_PERFECT!$BQ:$BR,2,0),VLOOKUP(B18,UPTARIFFS_IMPERFECT!$BQ:$BR,2,0)) -> OCR - Crops n.e.c. | D18: =IF($E$2="Product Homogeneity",VLOOKUP($C18,UPTARIFFS_PERFECT!$A:$BU,COLUMN(UPTARIFFS_PERFECT!$BJ$9),0), IF($E$2="Product Differentiation",(VLOOKUP($C18,UPTARIFFS_IMPERFECT!$A:$BU,COLUMN(UPTARIFFS_IMPERFECT!$BI$9),0)),"N/A")) -> N/A | E18: =IF($E$2="Product Homogeneity",HLOOKUP($C18,UPTARIFFS_PERFECT!$C$3:$BP$76,ROW(UPTARIFFS_PERFECT!$A$73)-2,0), IF($E$2="Product Differentiation",HLOOKUP($C18,UPTARIFFS_IMPERFECT!$C$3:$BP$76,ROW(UPTARIFFS_IMPERFECT!$A$73)-2,0), "N/A")) -> N/A | F18: =IF($E$2="Product Homogeneity",HLOOKUP($C18,UPTARIFFS_PERFECT!$C$3:$BP$76,ROW(UPTARIFFS_PERFECT!$A$72)-2,0), IF($E$2="Product Differentiation",HLOOKUP($C18,UPTARIFFS_IMPERFECT!$C$3:$BP$76,ROW(UPTARIFFS_IMPERFECT!$A$72)-2,0),"N/A")) -> N/A | G18: =IF($E$2="Product Homogeneity",HLOOKUP($C18,UPTARIFFS_PERFECT!$C$3:$BP$76,ROW(UPTARIFFS_PERFECT!$A$71)-2,0), IF($E$2="Product Differentiation",HLOOKUP($C18,UPTARIFFS_IMPERFECT!$C$3:$BP$76,ROW(UPTARIFFS_IMPERFECT!$A$71)-2,0),"N/A")) -> N/A | H18: =(D18-E18)/ HLOOKUP($C18,UPTARIFFS_PERFECT!$C$3:$BP$63,ROW(UPTARIFFS_PERFECT!$A$63)-ROW(UPTARIFFS_PERFECT!$A$2),0) ->  | J18: N/A | M18: =IF($E$2="Product Homogeneity",HLOOKUP($C18,UPTARIFFS_PERFECT!$C$3:$BP$91,ROW(UPTARIFFS_PERFECT!$A$89)-ROW(UPTARIFFS_PERFECT!$A$2),0), IF($E$2="Product Differentiation",HLOOKUP($C18,UPTARIFFS_IMPERFECT!$C$3:$BP$91,ROW(UPTARIFFS_IMPERFECT!$A$89)-ROW(UPTARIFFS_IMPERFECT!$A$2),0),"N/A")) -> N/A | O18: =IF($E$2="Product Homogeneity",HLOOKUP($C18,UPTARIFFS_PERFECT!$C$3:$BP$91,ROW(UPTARIFFS_PERFECT!$A$88)-ROW(UPTARIFFS_PERFECT!$A$2),0), IF($E$2="Product Differentiation",HLOOKUP($C18,UPTARIFFS_IMPERFECT!$C$3:$BP$91,ROW(UPTARIFFS_IMPERFECT!$A$88)-ROW(UPTARIFFS_IMPERFECT!$A$2),0),"N/A")) -> N/A | Q18: =IF($E$2="Product Homogeneity",HLOOKUP($C18,UPTARIFFS_PERFECT!$C$3:$BP$91,ROW(UPTARIFFS_PERFECT!$A$87)-ROW(UPTARIFFS_PERFECT!$A$2),0), IF($E$2="Product Differentiation", HLOOKUP($C18,UPTARIFFS_IMPERFECT!$C$3:$BP$91,ROW(UPTARIFFS_IMPERFECT!$A$87)-ROW(UPTARIFFS_IMPERFECT!$A$2),0),"N/A")) -> N/A | S18: =(J18-M18)/IF($E$2="Product Homogeneity",HLOOKUP($C18,UPTARIFFS_PERFECT!$C$3:$BP$63,ROW(UPTARIFFS_PERFECT!$A$63)-ROW(UPTARIFFS_PERFECT!$A$2),0),HLOOKUP($C18,UPTARIFFS_IMPERFECT!$C$3:$BP$63,ROW(UPTARIFFS_IMPERFECT!$A$63)-ROW(UPTARIFFS_IMPERFECT!$A$2),0)) ->  | V18: 8 | AB18: 8 | AM18: =COUNTIF($AL$10:AL18,AL18)-1 -> 7 | AO18: OCR - Crops n.e.c. | AV18: 8 | AW18: =IFERROR(IF($E$2="Product Homogeneity",VLOOKUP(AV18,UPTARIFFS_PERFECT!$BS:$BT,2,0), VLOOKUP(AV18,UPTARIFFS_IMPERFECT!$BS:$BT,2,0)),"") -> OFI - Other financial intermediation | AX18: =IFERROR(IF($E$2="Product Homogeneity",HLOOKUP($AW18,UPTARIFFS_PERFECT!$C$3:$BP$75,ROW(UPTARIFFS_PERFECT!$A$72)-2,0), HLOOKUP($AW18,UPTARIFFS_IMPERFECT!$C$3:$BP$75,ROW(UPTARIFFS_IMPERFECT!$A$72)-2,0)),"") -> 0 | AY18: =IFERROR(IF($E$2="Product Homogeneity",HLOOKUP($AW18,UPTARIFFS_PERFECT!$C$3:$BP$91,ROW(UPTARIFFS_PERFECT!$A$88)-ROW(UPTARIFFS_PERFECT!$A$2),0), HLOOKUP($AW18,UPTARIFFS_IMPERFECT!$C$3:$BP$91,ROW(UPTARIFFS_IMPERFECT!$A$88)-ROW(UPTARIFFS_IMPERFECT!$A$2),0)),"") ->  | BB18: =COUNTIF($BA$10:BA18,BA18)-1 -> 8
B19: 9 | C19: =IF($E$2="Product Homogeneity",VLOOKUP(B19,UPTARIFFS_PERFECT!$BQ:$BR,2,0),VLOOKUP(B19,UPTARIFFS_IMPERFECT!$BQ:$BR,2,0)) -> CTL - Bovine cattle, sheep and goats, horses | D19: =IF($E$2="Product Homogeneity",VLOOKUP($C19,UPTARIFFS_PERFECT!$A:$BU,COLUMN(UPTARIFFS_PERFECT!$BJ$9),0), IF($E$2="Product Differentiation",(VLOOKUP($C19,UPTARIFFS_IMPERFECT!$A:$BU,COLUMN(UPTARIFFS_IMPERFECT!$BI$9),0)),"N/A")) -> N/A | E19: =IF($E$2="Product Homogeneity",HLOOKUP($C19,UPTARIFFS_PERFECT!$C$3:$BP$76,ROW(UPTARIFFS_PERFECT!$A$73)-2,0), IF($E$2="Product Differentiation",HLOOKUP($C19,UPTARIFFS_IMPERFECT!$C$3:$BP$76,ROW(UPTARIFFS_IMPERFECT!$A$73)-2,0), "N/A")) -> N/A | F19: =IF($E$2="Product Homogeneity",HLOOKUP($C19,UPTARIFFS_PERFECT!$C$3:$BP$76,ROW(UPTARIFFS_PERFECT!$A$72)-2,0), IF($E$2="Product Differentiation",HLOOKUP($C19,UPTARIFFS_IMPERFECT!$C$3:$BP$76,ROW(UPTARIFFS_IMPERFECT!$A$72)-2,0),"N/A")) -> N/A | G19: =IF($E$2="Product Homogeneity",HLOOKUP($C19,UPTARIFFS_PERFECT!$C$3:$BP$76,ROW(UPTARIFFS_PERFECT!$A$71)-2,0), IF($E$2="Product Differentiation",HLOOKUP($C19,UPTARIFFS_IMPERFECT!$C$3:$BP$76,ROW(UPTARIFFS_IMPERFECT!$A$71)-2,0),"N/A")) -> N/A | H19: =(D19-E19)/ HLOOKUP($C19,UPTARIFFS_PERFECT!$C$3:$BP$63,ROW(UPTARIFFS_PERFECT!$A$63)-ROW(UPTARIFFS_PERFECT!$A$2),0) ->  | J19: N/A | M19: =IF($E$2="Product Homogeneity",HLOOKUP($C19,UPTARIFFS_PERFECT!$C$3:$BP$91,ROW(UPTARIFFS_PERFECT!$A$89)-ROW(UPTARIFFS_PERFECT!$A$2),0), IF($E$2="Product Differentiation",HLOOKUP($C19,UPTARIFFS_IMPERFECT!$C$3:$BP$91,ROW(UPTARIFFS_IMPERFECT!$A$89)-ROW(UPTARIFFS_IMPERFECT!$A$2),0),"N/A")) -> N/A | O19: =IF($E$2="Product Homogeneity",HLOOKUP($C19,UPTARIFFS_PERFECT!$C$3:$BP$91,ROW(UPTARIFFS_PERFECT!$A$88)-ROW(UPTARIFFS_PERFECT!$A$2),0), IF($E$2="Product Differentiation",HLOOKUP($C19,UPTARIFFS_IMPERFECT!$C$3:$BP$91,ROW(UPTARIFFS_IMPERFECT!$A$88)-ROW(UPTARIFFS_IMPERFECT!$A$2),0),"N/A")) -> N/A | Q19: =IF($E$2="Product Homogeneity",HLOOKUP($C19,UPTARIFFS_PERFECT!$C$3:$BP$91,ROW(UPTARIFFS_PERFECT!$A$87)-ROW(UPTARIFFS_PERFECT!$A$2),0), IF($E$2="Product Differentiation", HLOOKUP($C19,UPTARIFFS_IMPERFECT!$C$3:$BP$91,ROW(UPTARIFFS_IMPERFECT!$A$87)-ROW(UPTARIFFS_IMPERFECT!$A$2),0),"N/A")) -> N/A | S19: =(J19-M19)/IF($E$2="Product Homogeneity",HLOOKUP($C19,UPTARIFFS_PERFECT!$C$3:$BP$63,ROW(UPTARIFFS_PERFECT!$A$63)-ROW(UPTARIFFS_PERFECT!$A$2),0),HLOOKUP($C19,UPTARIFFS_IMPERFECT!$C$3:$BP$63,ROW(UPTARIFFS_IMPERFECT!$A$63)-ROW(UPTARIFFS_IMPERFECT!$A$2),0)) ->  | V19: 9 | AB19: 9 | AM19: =COUNTIF($AL$10:AL19,AL19)-1 -> 8 | AO19: CTL - Bovine cattle, sheep and goats, horses | AV19: 9 | AW19: =IFERROR(IF($E$2="Product Homogeneity",VLOOKUP(AV19,UPTARIFFS_PERFECT!$BS:$BT,2,0), VLOOKUP(AV19,UPTARIFFS_IMPERFECT!$BS:$BT,2,0)),"") -> ISR - Insurance | AX19: =IFERROR(IF($E$2="Product Homogeneity",HLOOKUP($AW19,UPTARIFFS_PERFECT!$C$3:$BP$75,ROW(UPTARIFFS_PERFECT!$A$72)-2,0), HLOOKUP($AW19,UPTARIFFS_IMPERFECT!$C$3:$BP$75,ROW(UPTARIFFS_IMPERFECT!$A$72)-2,0)),"") -> 0 | AY19: =IFERROR(IF($E$2="Product Homogeneity",HLOOKUP($AW19,UPTARIFFS_PERFECT!$C$3:$BP$91,ROW(UPTARIFFS_PERFECT!$A$88)-ROW(UPTARIFFS_PERFECT!$A$2),0), HLOOKUP($AW19,UPTARIFFS_IMPERFECT!$C$3:$BP$91,ROW(UPTARIFFS_IMPERFECT!$A$88)-ROW(UPTARIFFS_IMPERFECT!$A$2),0)),"") ->  | BB19: =COUNTIF($BA$10:BA19,BA19)-1 -> 9
B20: 10 | C20: =IF($E$2="Product Homogeneity",VLOOKUP(B20,UPTARIFFS_PERFECT!$BQ:$BR,2,0),VLOOKUP(B20,UPTARIFFS_IMPERFECT!$BQ:$BR,2,0)) -> OAP - Animal products n.e.c. | D20: =IF($E$2="Product Homogeneity",VLOOKUP($C20,UPTARIFFS_PERFECT!$A:$BU,COLUMN(UPTARIFFS_PERFECT!$BJ$9),0), IF($E$2="Product Differentiation",(VLOOKUP($C20,UPTARIFFS_IMPERFECT!$A:$BU,COLUMN(UPTARIFFS_IMPERFECT!$BI$9),0)),"N/A")) -> N/A | E20: =IF($E$2="Product Homogeneity",HLOOKUP($C20,UPTARIFFS_PERFECT!$C$3:$BP$76,ROW(UPTARIFFS_PERFECT!$A$73)-2,0), IF($E$2="Product Differentiation",HLOOKUP($C20,UPTARIFFS_IMPERFECT!$C$3:$BP$76,ROW(UPTARIFFS_IMPERFECT!$A$73)-2,0), "N/A")) -> N/A | F20: =IF($E$2="Product Homogeneity",HLOOKUP($C20,UPTARIFFS_PERFECT!$C$3:$BP$76,ROW(UPTARIFFS_PERFECT!$A$72)-2,0), IF($E$2="Product Differentiation",HLOOKUP($C20,UPTARIFFS_IMPERFECT!$C$3:$BP$76,ROW(UPTARIFFS_IMPERFECT!$A$72)-2,0),"N/A")) -> N/A | G20: =IF($E$2="Product Homogeneity",HLOOKUP($C20,UPTARIFFS_PERFECT!$C$3:$BP$76,ROW(UPTARIFFS_PERFECT!$A$71)-2,0), IF($E$2="Product Differentiation",HLOOKUP($C20,UPTARIFFS_IMPERFECT!$C$3:$BP$76,ROW(UPTARIFFS_IMPERFECT!$A$71)-2,0),"N/A")) -> N/A | H20: =(D20-E20)/ HLOOKUP($C20,UPTARIFFS_PERFECT!$C$3:$BP$63,ROW(UPTARIFFS_PERFECT!$A$63)-ROW(UPTARIFFS_PERFECT!$A$2),0) ->  | J20: N/A | M20: =IF($E$2="Product Homogeneity",HLOOKUP($C20,UPTARIFFS_PERFECT!$C$3:$BP$91,ROW(UPTARIFFS_PERFECT!$A$89)-ROW(UPTARIFFS_PERFECT!$A$2),0), IF($E$2="Product Differentiation",HLOOKUP($C20,UPTARIFFS_IMPERFECT!$C$3:$BP$91,ROW(UPTARIFFS_IMPERFECT!$A$89)-ROW(UPTARIFFS_IMPERFECT!$A$2),0),"N/A")) -> N/A | O20: =IF($E$2="Product Homogeneity",HLOOKUP($C20,UPTARIFFS_PERFECT!$C$3:$BP$91,ROW(UPTARIFFS_PERFECT!$A$88)-ROW(UPTARIFFS_PERFECT!$A$2),0), IF($E$2="Product Differentiation",HLOOKUP($C20,UPTARIFFS_IMPERFECT!$C$3:$BP$91,ROW(UPTARIFFS_IMPERFECT!$A$88)-ROW(UPTARIFFS_IMPERFECT!$A$2),0),"N/A")) -> N/A | Q20: =IF($E$2="Product Homogeneity",HLOOKUP($C20,UPTARIFFS_PERFECT!$C$3:$BP$91,ROW(UPTARIFFS_PERFECT!$A$87)-ROW(UPTARIFFS_PERFECT!$A$2),0), IF($E$2="Product Differentiation", HLOOKUP($C20,UPTARIFFS_IMPERFECT!$C$3:$BP$91,ROW(UPTARIFFS_IMPERFECT!$A$87)-ROW(UPTARIFFS_IMPERFECT!$A$2),0),"N/A")) -> N/A | S20: =(J20-M20)/IF($E$2="Product Homogeneity",HLOOKUP($C20,UPTARIFFS_PERFECT!$C$3:$BP$63,ROW(UPTARIFFS_PERFECT!$A$63)-ROW(UPTARIFFS_PERFECT!$A$2),0),HLOOKUP($C20,UPTARIFFS_IMPERFECT!$C$3:$BP$63,ROW(UPTARIFFS_IMPERFECT!$A$63)-ROW(UPTARIFFS_IMPERFECT!$A$2),0)) ->  | V20: 10 | AB20: 10 | AM20: =COUNTIF($AL$10:AL20,AL20)-1 -> 9 | AO20: OAP - Animal products n.e.c. | AV20: 10 | AW20: =IFERROR(IF($E$2="Product Homogeneity",VLOOKUP(AV20,UPTARIFFS_PERFECT!$BS:$BT,2,0), VLOOKUP(AV20,UPTARIFFS_IMPERFECT!$BS:$BT,2,0)),"") -> OBS: Other business services | AX20: =IFERROR(IF($E$2="Product Homogeneity",HLOOKUP($AW20,UPTARIFFS_PERFECT!$C$3:$BP$75,ROW(UPTARIFFS_PERFECT!$A$72)-2,0), HLOOKUP($AW20,UPTARIFFS_IMPERFECT!$C$3:$BP$75,ROW(UPTARIFFS_IMPERFECT!$A$72)-2,0)),"") -> 0 | AY20: =IFERROR(IF($E$2="Product Homogeneity",HLOOKUP($AW20,UPTARIFFS_PERFECT!$C$3:$BP$91,ROW(UPTARIFFS_PERFECT!$A$88)-ROW(UPTARIFFS_PERFECT!$A$2),0), HLOOKUP($AW20,UPTARIFFS_IMPERFECT!$C$3:$BP$91,ROW(UPTARIFFS_IMPERFECT!$A$88)-ROW(UPTARIFFS_IMPERFECT!$A$2),0)),"") ->  | BB20: =COUNTIF($BA$10:BA20,BA20)-1 -> 10
B21: 11 | C21: =IF($E$2="Product Homogeneity",VLOOKUP(B21,UPTARIFFS_PERFECT!$BQ:$BR,2,0),VLOOKUP(B21,UPTARIFFS_IMPERFECT!$BQ:$BR,2,0)) -> RMK - Raw Milk | D21: =IF($E$2="Product Homogeneity",VLOOKUP($C21,UPTARIFFS_PERFECT!$A:$BU,COLUMN(UPTARIFFS_PERFECT!$BJ$9),0), IF($E$2="Product Differentiation",(VLOOKUP($C21,UPTARIFFS_IMPERFECT!$A:$BU,COLUMN(UPTARIFFS_IMPERFECT!$BI$9),0)),"N/A")) -> N/A | E21: =IF($E$2="Product Homogeneity",HLOOKUP($C21,UPTARIFFS_PERFECT!$C$3:$BP$76,ROW(UPTARIFFS_PERFECT!$A$73)-2,0), IF($E$2="Product Differentiation",HLOOKUP($C21,UPTARIFFS_IMPERFECT!$C$3:$BP$76,ROW(UPTARIFFS_IMPERFECT!$A$73)-2,0), "N/A")) -> N/A | F21: =IF($E$2="Product Homogeneity",HLOOKUP($C21,UPTARIFFS_PERFECT!$C$3:$BP$76,ROW(UPTARIFFS_PERFECT!$A$72)-2,0), IF($E$2="Product Differentiation",HLOOKUP($C21,UPTARIFFS_IMPERFECT!$C$3:$BP$76,ROW(UPTARIFFS_IMPERFECT!$A$72)-2,0),"N/A")) -> N/A | G21: =IF($E$2="Product Homogeneity",HLOOKUP($C21,UPTARIFFS_PERFECT!$C$3:$BP$76,ROW(UPTARIFFS_PERFECT!$A$71)-2,0), IF($E$2="Product Differentiation",HLOOKUP($C21,UPTARIFFS_IMPERFECT!$C$3:$BP$76,ROW(UPTARIFFS_IMPERFECT!$A$71)-2,0),"N/A")) -> N/A | H21: =(D21-E21)/ HLOOKUP($C21,UPTARIFFS_PERFECT!$C$3:$BP$63,ROW(UPTARIFFS_PERFECT!$A$63)-ROW(UPTARIFFS_PERFECT!$A$2),0) ->  | J21: N/A | K21: =J21-D21 ->  | M21: =IF($E$2="Product Homogeneity",HLOOKUP($C21,UPTARIFFS_PERFECT!$C$3:$BP$91,ROW(UPTARIFFS_PERFECT!$A$89)-ROW(UPTARIFFS_PERFECT!$A$2),0), IF($E$2="Product Differentiation",HLOOKUP($C21,UPTARIFFS_IMPERFECT!$C$3:$BP$91,ROW(UPTARIFFS_IMPERFECT!$A$89)-ROW(UPTARIFFS_IMPERFECT!$A$2),0),"N/A")) -> N/A | O21: =IF($E$2="Product Homogeneity",HLOOKUP($C21,UPTARIFFS_PERFECT!$C$3:$BP$91,ROW(UPTARIFFS_PERFECT!$A$88)-ROW(UPTARIFFS_PERFECT!$A$2),0), IF($E$2="Product Differentiation",HLOOKUP($C21,UPTARIFFS_IMPERFECT!$C$3:$BP$91,ROW(UPTARIFFS_IMPERFECT!$A$88)-ROW(UPTARIFFS_IMPERFECT!$A$2),0),"N/A")) -> N/A | Q21: =IF($E$2="Product Homogeneity",HLOOKUP($C21,UPTARIFFS_PERFECT!$C$3:$BP$91,ROW(UPTARIFFS_PERFECT!$A$87)-ROW(UPTARIFFS_PERFECT!$A$2),0), IF($E$2="Product Differentiation", HLOOKUP($C21,UPTARIFFS_IMPERFECT!$C$3:$BP$91,ROW(UPTARIFFS_IMPERFECT!$A$87)-ROW(UPTARIFFS_IMPERFECT!$A$2),0),"N/A")) -> N/A | S21: =(J21-M21)/IF($E$2="Product Homogeneity",HLOOKUP($C21,UPTARIFFS_PERFECT!$C$3:$BP$63,ROW(UPTARIFFS_PERFECT!$A$63)-ROW(UPTARIFFS_PERFECT!$A$2),0),HLOOKUP($C21,UPTARIFFS_IMPERFECT!$C$3:$BP$63,ROW(UPTARIFFS_IMPERFECT!$A$63)-ROW(UPTARIFFS_IMPERFECT!$A$2),0)) ->  | V21: 11 | AB21: 11 | AM21: =COUNTIF($AL$10:AL21,AL21)-1 -> 10 | AO21: RMK - Raw Milk | AV21: 11 | AW21: =IFERROR(IF($E$2="Product Homogeneity",VLOOKUP(AV21,UPTARIFFS_PERFECT!$BS:$BT,2,0), VLOOKUP(AV21,UPTARIFFS_IMPERFECT!$BS:$BT,2,0)),"") -> ROS - Recreation & Other Services | AX21: =IFERROR(IF($E$2="Product Homogeneity",HLOOKUP($AW21,UPTARIFFS_PERFECT!$C$3:$BP$75,ROW(UPTARIFFS_PERFECT!$A$72)-2,0), HLOOKUP($AW21,UPTARIFFS_IMPERFECT!$C$3:$BP$75,ROW(UPTARIFFS_IMPERFECT!$A$72)-2,0)),"") -> 0 | AY21: =IFERROR(IF($E$2="Product Homogeneity",HLOOKUP($AW21,UPTARIFFS_PERFECT!$C$3:$BP$91,ROW(UPTARIFFS_PERFECT!$A$88)-ROW(UPTARIFFS_PERFECT!$A$2),0), HLOOKUP($AW21,UPTARIFFS_IMPERFECT!$C$3:$BP$91,ROW(UPTARIFFS_IMPERFECT!$A$88)-ROW(UPTARIFFS_IMPERFECT!$A$2),0)),"") ->  | BB21: =COUNTIF($BA$10:BA21,BA21)-1 -> 11
B22: 12 | C22: =IF($E$2="Product Homogeneity",VLOOKUP(B22,UPTARIFFS_PERFECT!$BQ:$BR,2,0),VLOOKUP(B22,UPTARIFFS_IMPERFECT!$BQ:$BR,2,0)) -> WOL - Wool, silk-worm cocoons | D22: =IF($E$2="Product Homogeneity",VLOOKUP($C22,UPTARIFFS_PERFECT!$A:$BU,COLUMN(UPTARIFFS_PERFECT!$BJ$9),0), IF($E$2="Product Differentiation",(VLOOKUP($C22,UPTARIFFS_IMPERFECT!$A:$BU,COLUMN(UPTARIFFS_IMPERFECT!$BI$9),0)),"N/A")) -> N/A | E22: =IF($E$2="Product Homogeneity",HLOOKUP($C22,UPTARIFFS_PERFECT!$C$3:$BP$76,ROW(UPTARIFFS_PERFECT!$A$73)-2,0), IF($E$2="Product Differentiation",HLOOKUP($C22,UPTARIFFS_IMPERFECT!$C$3:$BP$76,ROW(UPTARIFFS_IMPERFECT!$A$73)-2,0), "N/A")) -> N/A | F22: =IF($E$2="Product Homogeneity",HLOOKUP($C22,UPTARIFFS_PERFECT!$C$3:$BP$76,ROW(UPTARIFFS_PERFECT!$A$72)-2,0), IF($E$2="Product Differentiation",HLOOKUP($C22,UPTARIFFS_IMPERFECT!$C$3:$BP$76,ROW(UPTARIFFS_IMPERFECT!$A$72)-2,0),"N/A")) -> N/A | G22: =IF($E$2="Product Homogeneity",HLOOKUP($C22,UPTARIFFS_PERFECT!$C$3:$BP$76,ROW(UPTARIFFS_PERFECT!$A$71)-2,0), IF($E$2="Product Differentiation",HLOOKUP($C22,UPTARIFFS_IMPERFECT!$C$3:$BP$76,ROW(UPTARIFFS_IMPERFECT!$A$71)-2,0),"N/A")) -> N/A | H22: =(D22-E22)/ HLOOKUP($C22,UPTARIFFS_PERFECT!$C$3:$BP$63,ROW(UPTARIFFS_PERFECT!$A$63)-ROW(UPTARIFFS_PERFECT!$A$2),0) ->  | J22: N/A | M22: =IF($E$2="Product Homogeneity",HLOOKUP($C22,UPTARIFFS_PERFECT!$C$3:$BP$91,ROW(UPTARIFFS_PERFECT!$A$89)-ROW(UPTARIFFS_PERFECT!$A$2),0), IF($E$2="Product Differentiation",HLOOKUP($C22,UPTARIFFS_IMPERFECT!$C$3:$BP$91,ROW(UPTARIFFS_IMPERFECT!$A$89)-ROW(UPTARIFFS_IMPERFECT!$A$2),0),"N/A")) -> N/A | O22: =IF($E$2="Product Homogeneity",HLOOKUP($C22,UPTARIFFS_PERFECT!$C$3:$BP$91,ROW(UPTARIFFS_PERFECT!$A$88)-ROW(UPTARIFFS_PERFECT!$A$2),0), IF($E$2="Product Differentiation",HLOOKUP($C22,UPTARIFFS_IMPERFECT!$C$3:$BP$91,ROW(UPTARIFFS_IMPERFECT!$A$88)-ROW(UPTARIFFS_IMPERFECT!$A$2),0),"N/A")) -> N/A | Q22: =IF($E$2="Product Homogeneity",HLOOKUP($C22,UPTARIFFS_PERFECT!$C$3:$BP$91,ROW(UPTARIFFS_PERFECT!$A$87)-ROW(UPTARIFFS_PERFECT!$A$2),0), IF($E$2="Product Differentiation", HLOOKUP($C22,UPTARIFFS_IMPERFECT!$C$3:$BP$91,ROW(UPTARIFFS_IMPERFECT!$A$87)-ROW(UPTARIFFS_IMPERFECT!$A$2),0),"N/A")) -> N/A | S22: =(J22-M22)/IF($E$2="Product Homogeneity",HLOOKUP($C22,UPTARIFFS_PERFECT!$C$3:$BP$63,ROW(UPTARIFFS_PERFECT!$A$63)-ROW(UPTARIFFS_PERFECT!$A$2),0),HLOOKUP($C22,UPTARIFFS_IMPERFECT!$C$3:$BP$63,ROW(UPTARIFFS_IMPERFECT!$A$63)-ROW(UPTARIFFS_IMPERFECT!$A$2),0)) ->  | V22: 12 | AB22: 12 | AM22: =COUNTIF($AL$10:AL22,AL22)-1 -> 11 | AO22: WOL - Wool, silk-worm cocoons | AV22: 12 | AW22: =IFERROR(IF($E$2="Product Homogeneity",VLOOKUP(AV22,UPTARIFFS_PERFECT!$BS:$BT,2,0), VLOOKUP(AV22,UPTARIFFS_IMPERFECT!$BS:$BT,2,0)),"") -> OSG - Other Services (Government) | AX22: =IFERROR(IF($E$2="Product Homogeneity",HLOOKUP($AW22,UPTARIFFS_PERFECT!$C$3:$BP$75,ROW(UPTARIFFS_PERFECT!$A$72)-2,0), HLOOKUP($AW22,UPTARIFFS_IMPERFECT!$C$3:$BP$75,ROW(UPTARIFFS_IMPERFECT!$A$72)-2,0)),"") -> 0 | AY22: =IFERROR(IF($E$2="Product Homogeneity",HLOOKUP($AW22,UPTARIFFS_PERFECT!$C$3:$BP$91,ROW(UPTARIFFS_PERFECT!$A$88)-ROW(UPTARIFFS_PERFECT!$A$2),0), HLOOKUP($AW22,UPTARIFFS_IMPERFECT!$C$3:$BP$91,ROW(UPTARIFFS_IMPERFECT!$A$88)-ROW(UPTARIFFS_IMPERFECT!$A$2),0)),"") ->  | BB22: =COUNTIF($BA$10:BA22,BA22)-1 -> 12
B23: 13 | C23: =IF($E$2="Product Homogeneity",VLOOKUP(B23,UPTARIFFS_PERFECT!$BQ:$BR,2,0),VLOOKUP(B23,UPTARIFFS_IMPERFECT!$BQ:$BR,2,0)) -> FRS - Forestry | D23: =IF($E$2="Product Homogeneity",VLOOKUP($C23,UPTARIFFS_PERFECT!$A:$BU,COLUMN(UPTARIFFS_PERFECT!$BJ$9),0), IF($E$2="Product Differentiation",(VLOOKUP($C23,UPTARIFFS_IMPERFECT!$A:$BU,COLUMN(UPTARIFFS_IMPERFECT!$BI$9),0)),"N/A")) -> N/A | E23: =IF($E$2="Product Homogeneity",HLOOKUP($C23,UPTARIFFS_PERFECT!$C$3:$BP$76,ROW(UPTARIFFS_PERFECT!$A$73)-2,0), IF($E$2="Product Differentiation",HLOOKUP($C23,UPTARIFFS_IMPERFECT!$C$3:$BP$76,ROW(UPTARIFFS_IMPERFECT!$A$73)-2,0), "N/A")) -> N/A | F23: =IF($E$2="Product Homogeneity",HLOOKUP($C23,UPTARIFFS_PERFECT!$C$3:$BP$76,ROW(UPTARIFFS_PERFECT!$A$72)-2,0), IF($E$2="Product Differentiation",HLOOKUP($C23,UPTARIFFS_IMPERFECT!$C$3:$BP$76,ROW(UPTARIFFS_IMPERFECT!$A$72)-2,0),"N/A")) -> N/A | G23: =IF($E$2="Product Homogeneity",HLOOKUP($C23,UPTARIFFS_PERFECT!$C$3:$BP$76,ROW(UPTARIFFS_PERFECT!$A$71)-2,0), IF($E$2="Product Differentiation",HLOOKUP($C23,UPTARIFFS_IMPERFECT!$C$3:$BP$76,ROW(UPTARIFFS_IMPERFECT!$A$71)-2,0),"N/A")) -> N/A | H23: =(D23-E23)/ HLOOKUP($C23,UPTARIFFS_PERFECT!$C$3:$BP$63,ROW(UPTARIFFS_PERFECT!$A$63)-ROW(UPTARIFFS_PERFECT!$A$2),0) ->  | J23: N/A | M23: =IF($E$2="Product Homogeneity",HLOOKUP($C23,UPTARIFFS_PERFECT!$C$3:$BP$91,ROW(UPTARIFFS_PERFECT!$A$89)-ROW(UPTARIFFS_PERFECT!$A$2),0), IF($E$2="Product Differentiation",HLOOKUP($C23,UPTARIFFS_IMPERFECT!$C$3:$BP$91,ROW(UPTARIFFS_IMPERFECT!$A$89)-ROW(UPTARIFFS_IMPERFECT!$A$2),0),"N/A")) -> N/A | O23: =IF($E$2="Product Homogeneity",HLOOKUP($C23,UPTARIFFS_PERFECT!$C$3:$BP$91,ROW(UPTARIFFS_PERFECT!$A$88)-ROW(UPTARIFFS_PERFECT!$A$2),0), IF($E$2="Product Differentiation",HLOOKUP($C23,UPTARIFFS_IMPERFECT!$C$3:$BP$91,ROW(UPTARIFFS_IMPERFECT!$A$88)-ROW(UPTARIFFS_IMPERFECT!$A$2),0),"N/A")) -> N/A | Q23: =IF($E$2="Product Homogeneity",HLOOKUP($C23,UPTARIFFS_PERFECT!$C$3:$BP$91,ROW(UPTARIFFS_PERFECT!$A$87)-ROW(UPTARIFFS_PERFECT!$A$2),0), IF($E$2="Product Differentiation", HLOOKUP($C23,UPTARIFFS_IMPERFECT!$C$3:$BP$91,ROW(UPTARIFFS_IMPERFECT!$A$87)-ROW(UPTARIFFS_IMPERFECT!$A$2),0),"N/A")) -> N/A | S23: =(J23-M23)/IF($E$2="Product Homogeneity",HLOOKUP($C23,UPTARIFFS_PERFECT!$C$3:$BP$63,ROW(UPTARIFFS_PERFECT!$A$63)-ROW(UPTARIFFS_PERFECT!$A$2),0),HLOOKUP($C23,UPTARIFFS_IMPERFECT!$C$3:$BP$63,ROW(UPTARIFFS_IMPERFECT!$A$63)-ROW(UPTARIFFS_IMPERFECT!$A$2),0)) ->  | V23: 13 | AB23: 13 | AM23: =COUNTIF($AL$10:AL23,AL23)-1 -> 12 | AO23: FRS - Forestry | AV23: 13 | AW23: =IFERROR(IF($E$2="Product Homogeneity",VLOOKUP(AV23,UPTARIFFS_PERFECT!$BS:$BT,2,0), VLOOKUP(AV23,UPTARIFFS_IMPERFECT!$BS:$BT,2,0)),"") -> DWE - Dwellings | AX23: =IFERROR(IF($E$2="Product Homogeneity",HLOOKUP($AW23,UPTARIFFS_PERFECT!$C$3:$BP$75,ROW(UPTARIFFS_PERFECT!$A$72)-2,0), HLOOKUP($AW23,UPTARIFFS_IMPERFECT!$C$3:$BP$75,ROW(UPTARIFFS_IMPERFECT!$A$72)-2,0)),"") -> 0 | AY23: =IFERROR(IF($E$2="Product Homogeneity",HLOOKUP($AW23,UPTARIFFS_PERFECT!$C$3:$BP$91,ROW(UPTARIFFS_PERFECT!$A$88)-ROW(UPTARIFFS_PERFECT!$A$2),0), HLOOKUP($AW23,UPTARIFFS_IMPERFECT!$C$3:$BP$91,ROW(UPTARIFFS_IMPERFECT!$A$88)-ROW(UPTARIFFS_IMPERFECT!$A$2),0)),"") ->  | BB23: =COUNTIF($BA$10:BA23,BA23)-1 -> 13
B24: 14 | C24: =IF($E$2="Product Homogeneity",VLOOKUP(B24,UPTARIFFS_PERFECT!$BQ:$BR,2,0),VLOOKUP(B24,UPTARIFFS_IMPERFECT!$BQ:$BR,2,0)) -> FSH - Fishing | D24: =IF($E$2="Product Homogeneity",VLOOKUP($C24,UPTARIFFS_PERFECT!$A:$BU,COLUMN(UPTARIFFS_PERFECT!$BJ$9),0), IF($E$2="Product Differentiation",(VLOOKUP($C24,UPTARIFFS_IMPERFECT!$A:$BU,COLUMN(UPTARIFFS_IMPERFECT!$BI$9),0)),"N/A")) -> N/A | E24: =IF($E$2="Product Homogeneity",HLOOKUP($C24,UPTARIFFS_PERFECT!$C$3:$BP$76,ROW(UPTARIFFS_PERFECT!$A$73)-2,0), IF($E$2="Product Differentiation",HLOOKUP($C24,UPTARIFFS_IMPERFECT!$C$3:$BP$76,ROW(UPTARIFFS_IMPERFECT!$A$73)-2,0), "N/A")) -> N/A | F24: =IF($E$2="Product Homogeneity",HLOOKUP($C24,UPTARIFFS_PERFECT!$C$3:$BP$76,ROW(UPTARIFFS_PERFECT!$A$72)-2,0), IF($E$2="Product Differentiation",HLOOKUP($C24,UPTARIFFS_IMPERFECT!$C$3:$BP$76,ROW(UPTARIFFS_IMPERFECT!$A$72)-2,0),"N/A")) -> N/A | G24: =IF($E$2="Product Homogeneity",HLOOKUP($C24,UPTARIFFS_PERFECT!$C$3:$BP$76,ROW(UPTARIFFS_PERFECT!$A$71)-2,0), IF($E$2="Product Differentiation",HLOOKUP($C24,UPTARIFFS_IMPERFECT!$C$3:$BP$76,ROW(UPTARIFFS_IMPERFECT!$A$71)-2,0),"N/A")) -> N/A | H24: =(D24-E24)/ HLOOKUP($C24,UPTARIFFS_PERFECT!$C$3:$BP$63,ROW(UPTARIFFS_PERFECT!$A$63)-ROW(UPTARIFFS_PERFECT!$A$2),0) ->  | J24: N/A | M24: =IF($E$2="Product Homogeneity",HLOOKUP($C24,UPTARIFFS_PERFECT!$C$3:$BP$91,ROW(UPTARIFFS_PERFECT!$A$89)-ROW(UPTARIFFS_PERFECT!$A$2),0), IF($E$2="Product Differentiation",HLOOKUP($C24,UPTARIFFS_IMPERFECT!$C$3:$BP$91,ROW(UPTARIFFS_IMPERFECT!$A$89)-ROW(UPTARIFFS_IMPERFECT!$A$2),0),"N/A")) -> N/A | O24: =IF($E$2="Product Homogeneity",HLOOKUP($C24,UPTARIFFS_PERFECT!$C$3:$BP$91,ROW(UPTARIFFS_PERFECT!$A$88)-ROW(UPTARIFFS_PERFECT!$A$2),0), IF($E$2="Product Differentiation",HLOOKUP($C24,UPTARIFFS_IMPERFECT!$C$3:$BP$91,ROW(UPTARIFFS_IMPERFECT!$A$88)-ROW(UPTARIFFS_IMPERFECT!$A$2),0),"N/A")) -> N/A | Q24: =IF($E$2="Product Homogeneity",HLOOKUP($C24,UPTARIFFS_PERFECT!$C$3:$BP$91,ROW(UPTARIFFS_PERFECT!$A$87)-ROW(UPTARIFFS_PERFECT!$A$2),0), IF($E$2="Product Differentiation", HLOOKUP($C24,UPTARIFFS_IMPERFECT!$C$3:$BP$91,ROW(UPTARIFFS_IMPERFECT!$A$87)-ROW(UPTARIFFS_IMPERFECT!$A$2),0),"N/A")) -> N/A | S24: =(J24-M24)/IF($E$2="Product Homogeneity",HLOOKUP($C24,UPTARIFFS_PERFECT!$C$3:$BP$63,ROW(UPTARIFFS_PERFECT!$A$63)-ROW(UPTARIFFS_PERFECT!$A$2),0),HLOOKUP($C24,UPTARIFFS_IMPERFECT!$C$3:$BP$63,ROW(UPTARIFFS_IMPERFECT!$A$63)-ROW(UPTARIFFS_IMPERFECT!$A$2),0)) ->  | V24: 14 | AB24: 14 | AM24: =COUNTIF($AL$10:AL24,AL24)-1 -> 13 | AO24: FSH - Fishing | AV24: 14 | AW24: =IFERROR(IF($E$2="Product Homogeneity",VLOOKUP(AV24,UPTARIFFS_PERFECT!$BS:$BT,2,0), VLOOKUP(AV24,UPTARIFFS_IMPERFECT!$BS:$BT,2,0)),"") ->  | AX24: =IFERROR(IF($E$2="Product Homogeneity",HLOOKUP($AW24,UPTARIFFS_PERFECT!$C$3:$BP$75,ROW(UPTARIFFS_PERFECT!$A$72)-2,0), HLOOKUP($AW24,UPTARIFFS_IMPERFECT!$C$3:$BP$75,ROW(UPTARIFFS_IMPERFECT!$A$72)-2,0)),"") ->  | AY24: =IFERROR(IF($E$2="Product Homogeneity",HLOOKUP($AW24,UPTARIFFS_PERFECT!$C$3:$BP$91,ROW(UPTARIFFS_PERFECT!$A$88)-ROW(UPTARIFFS_PERFECT!$A$2),0), HLOOKUP($AW24,UPTARIFFS_IMPERFECT!$C$3:$BP$91,ROW(UPTARIFFS_IMPERFECT!$A$88)-ROW(UPTARIFFS_IMPERFECT!$A$2),0)),"") ->  | BB24: =COUNTIF($BA$10:BA24,BA24)-1 -> 14
B25: 15 | C25: =IF($E$2="Product Homogeneity",VLOOKUP(B25,UPTARIFFS_PERFECT!$BQ:$BR,2,0),VLOOKUP(B25,UPTARIFFS_IMPERFECT!$BQ:$BR,2,0)) -> COA - Coal | D25: =IF($E$2="Product Homogeneity",VLOOKUP($C25,UPTARIFFS_PERFECT!$A:$BU,COLUMN(UPTARIFFS_PERFECT!$BJ$9),0), IF($E$2="Product Differentiation",(VLOOKUP($C25,UPTARIFFS_IMPERFECT!$A:$BU,COLUMN(UPTARIFFS_IMPERFECT!$BI$9),0)),"N/A")) -> N/A | E25: =IF($E$2="Product Homogeneity",HLOOKUP($C25,UPTARIFFS_PERFECT!$C$3:$BP$76,ROW(UPTARIFFS_PERFECT!$A$73)-2,0), IF($E$2="Product Differentiation",HLOOKUP($C25,UPTARIFFS_IMPERFECT!$C$3:$BP$76,ROW(UPTARIFFS_IMPERFECT!$A$73)-2,0), "N/A")) -> N/A | F25: =IF($E$2="Product Homogeneity",HLOOKUP($C25,UPTARIFFS_PERFECT!$C$3:$BP$76,ROW(UPTARIFFS_PERFECT!$A$72)-2,0), IF($E$2="Product Differentiation",HLOOKUP($C25,UPTARIFFS_IMPERFECT!$C$3:$BP$76,ROW(UPTARIFFS_IMPERFECT!$A$72)-2,0),"N/A")) -> N/A | G25: =IF($E$2="Product Homogeneity",HLOOKUP($C25,UPTARIFFS_PERFECT!$C$3:$BP$76,ROW(UPTARIFFS_PERFECT!$A$71)-2,0), IF($E$2="Product Differentiation",HLOOKUP($C25,UPTARIFFS_IMPERFECT!$C$3:$BP$76,ROW(UPTARIFFS_IMPERFECT!$A$71)-2,0),"N/A")) -> N/A | H25: =(D25-E25)/ HLOOKUP($C25,UPTARIFFS_PERFECT!$C$3:$BP$63,ROW(UPTARIFFS_PERFECT!$A$63)-ROW(UPTARIFFS_PERFECT!$A$2),0) ->  | J25: N/A | M25: =IF($E$2="Product Homogeneity",HLOOKUP($C25,UPTARIFFS_PERFECT!$C$3:$BP$91,ROW(UPTARIFFS_PERFECT!$A$89)-ROW(UPTARIFFS_PERFECT!$A$2),0), IF($E$2="Product Differentiation",HLOOKUP($C25,UPTARIFFS_IMPERFECT!$C$3:$BP$91,ROW(UPTARIFFS_IMPERFECT!$A$89)-ROW(UPTARIFFS_IMPERFECT!$A$2),0),"N/A")) -> N/A | O25: =IF($E$2="Product Homogeneity",HLOOKUP($C25,UPTARIFFS_PERFECT!$C$3:$BP$91,ROW(UPTARIFFS_PERFECT!$A$88)-ROW(UPTARIFFS_PERFECT!$A$2),0), IF($E$2="Product Differentiation",HLOOKUP($C25,UPTARIFFS_IMPERFECT!$C$3:$BP$91,ROW(UPTARIFFS_IMPERFECT!$A$88)-ROW(UPTARIFFS_IMPERFECT!$A$2),0),"N/A")) -> N/A | Q25: =IF($E$2="Product Homogeneity",HLOOKUP($C25,UPTARIFFS_PERFECT!$C$3:$BP$91,ROW(UPTARIFFS_PERFECT!$A$87)-ROW(UPTARIFFS_PERFECT!$A$2),0), IF($E$2="Product Differentiation", HLOOKUP($C25,UPTARIFFS_IMPERFECT!$C$3:$BP$91,ROW(UPTARIFFS_IMPERFECT!$A$87)-ROW(UPTARIFFS_IMPERFECT!$A$2),0),"N/A")) -> N/A | S25: =(J25-M25)/IF($E$2="Product Homogeneity",HLOOKUP($C25,UPTARIFFS_PERFECT!$C$3:$BP$63,ROW(UPTARIFFS_PERFECT!$A$63)-ROW(UPTARIFFS_PERFECT!$A$2),0),HLOOKUP($C25,UPTARIFFS_IMPERFECT!$C$3:$BP$63,ROW(UPTARIFFS_IMPERFECT!$A$63)-ROW(UPTARIFFS_IMPERFECT!$A$2),0)) ->  | V25: 15 | AB25: 15 | AM25: =COUNTIF($AL$10:AL25,AL25)-1 -> 14 | AO25: COA - Coal | AV25: 15 | AW25: =IFERROR(IF($E$2="Product Homogeneity",VLOOKUP(AV25,UPTARIFFS_PERFECT!$BS:$BT,2,0), VLOOKUP(AV25,UPTARIFFS_IMPERFECT!$BS:$BT,2,0)),"") ->  | AX25: =IFERROR(IF($E$2="Product Homogeneity",HLOOKUP($AW25,UPTARIFFS_PERFECT!$C$3:$BP$75,ROW(UPTARIFFS_PERFECT!$A$72)-2,0), HLOOKUP($AW25,UPTARIFFS_IMPERFECT!$C$3:$BP$75,ROW(UPTARIFFS_IMPERFECT!$A$72)-2,0)),"") ->  | AY25: =IFERROR(IF($E$2="Product Homogeneity",HLOOKUP($AW25,UPTARIFFS_PERFECT!$C$3:$BP$91,ROW(UPTARIFFS_PERFECT!$A$88)-ROW(UPTARIFFS_PERFECT!$A$2),0), HLOOKUP($AW25,UPTARIFFS_IMPERFECT!$C$3:$BP$91,ROW(UPTARIFFS_IMPERFECT!$A$88)-ROW(UPTARIFFS_IMPERFECT!$A$2),0)),"") ->  | BB25: =COUNTIF($BA$10:BA25,BA25)-1 -> 15
B26: 16 | C26: =IF($E$2="Product Homogeneity",VLOOKUP(B26,UPTARIFFS_PERFECT!$BQ:$BR,2,0),VLOOKUP(B26,UPTARIFFS_IMPERFECT!$BQ:$BR,2,0)) -> OIL - Oil | D26: =IF($E$2="Product Homogeneity",VLOOKUP($C26,UPTARIFFS_PERFECT!$A:$BU,COLUMN(UPTARIFFS_PERFECT!$BJ$9),0), IF($E$2="Product Differentiation",(VLOOKUP($C26,UPTARIFFS_IMPERFECT!$A:$BU,COLUMN(UPTARIFFS_IMPERFECT!$BI$9),0)),"N/A")) -> N/A | E26: =IF($E$2="Product Homogeneity",HLOOKUP($C26,UPTARIFFS_PERFECT!$C$3:$BP$76,ROW(UPTARIFFS_PERFECT!$A$73)-2,0), IF($E$2="Product Differentiation",HLOOKUP($C26,UPTARIFFS_IMPERFECT!$C$3:$BP$76,ROW(UPTARIFFS_IMPERFECT!$A$73)-2,0), "N/A")) -> N/A | F26: =IF($E$2="Product Homogeneity",HLOOKUP($C26,UPTARIFFS_PERFECT!$C$3:$BP$76,ROW(UPTARIFFS_PERFECT!$A$72)-2,0), IF($E$2="Product Differentiation",HLOOKUP($C26,UPTARIFFS_IMPERFECT!$C$3:$BP$76,ROW(UPTARIFFS_IMPERFECT!$A$72)-2,0),"N/A")) -> N/A | G26: =IF($E$2="Product Homogeneity",HLOOKUP($C26,UPTARIFFS_PERFECT!$C$3:$BP$76,ROW(UPTARIFFS_PERFECT!$A$71)-2,0), IF($E$2="Product Differentiation",HLOOKUP($C26,UPTARIFFS_IMPERFECT!$C$3:$BP$76,ROW(UPTARIFFS_IMPERFECT!$A$71)-2,0),"N/A")) -> N/A | H26: =(D26-E26)/ HLOOKUP($C26,UPTARIFFS_PERFECT!$C$3:$BP$63,ROW(UPTARIFFS_PERFECT!$A$63)-ROW(UPTARIFFS_PERFECT!$A$2),0) ->  | J26: N/A | M26: =IF($E$2="Product Homogeneity",HLOOKUP($C26,UPTARIFFS_PERFECT!$C$3:$BP$91,ROW(UPTARIFFS_PERFECT!$A$89)-ROW(UPTARIFFS_PERFECT!$A$2),0), IF($E$2="Product Differentiation",HLOOKUP($C26,UPTARIFFS_IMPERFECT!$C$3:$BP$91,ROW(UPTARIFFS_IMPERFECT!$A$89)-ROW(UPTARIFFS_IMPERFECT!$A$2),0),"N/A")) -> N/A | O26: =IF($E$2="Product Homogeneity",HLOOKUP($C26,UPTARIFFS_PERFECT!$C$3:$BP$91,ROW(UPTARIFFS_PERFECT!$A$88)-ROW(UPTARIFFS_PERFECT!$A$2),0), IF($E$2="Product Differentiation",HLOOKUP($C26,UPTARIFFS_IMPERFECT!$C$3:$BP$91,ROW(UPTARIFFS_IMPERFECT!$A$88)-ROW(UPTARIFFS_IMPERFECT!$A$2),0),"N/A")) -> N/A | Q26: =IF($E$2="Product Homogeneity",HLOOKUP($C26,UPTARIFFS_PERFECT!$C$3:$BP$91,ROW(UPTARIFFS_PERFECT!$A$87)-ROW(UPTARIFFS_PERFECT!$A$2),0), IF($E$2="Product Differentiation", HLOOKUP($C26,UPTARIFFS_IMPERFECT!$C$3:$BP$91,ROW(UPTARIFFS_IMPERFECT!$A$87)-ROW(UPTARIFFS_IMPERFECT!$A$2),0),"N/A")) -> N/A | S26: =(J26-M26)/IF($E$2="Product Homogeneity",HLOOKUP($C26,UPTARIFFS_PERFECT!$C$3:$BP$63,ROW(UPTARIFFS_PERFECT!$A$63)-ROW(UPTARIFFS_PERFECT!$A$2),0),HLOOKUP($C26,UPTARIFFS_IMPERFECT!$C$3:$BP$63,ROW(UPTARIFFS_IMPERFECT!$A$63)-ROW(UPTARIFFS_IMPERFECT!$A$2),0)) ->  | V26: 16 | AB26: 16 | AF26: =IFERROR(AE26-AD26,"") ->  | AM26: =COUNTIF($AL$10:AL26,AL26)-1 -> 15 | AO26: OIL - Oil | AV26: 16 | AW26: =IFERROR(IF($E$2="Product Homogeneity",VLOOKUP(AV26,UPTARIFFS_PERFECT!$BS:$BT,2,0), VLOOKUP(AV26,UPTARIFFS_IMPERFECT!$BS:$BT,2,0)),"") ->  | AX26: =IFERROR(IF($E$2="Product Homogeneity",HLOOKUP($AW26,UPTARIFFS_PERFECT!$C$3:$BP$75,ROW(UPTARIFFS_PERFECT!$A$72)-2,0), HLOOKUP($AW26,UPTARIFFS_IMPERFECT!$C$3:$BP$75,ROW(UPTARIFFS_IMPERFECT!$A$72)-2,0)),"") ->  | AY26: =IFERROR(IF($E$2="Product Homogeneity",HLOOKUP($AW26,UPTARIFFS_PERFECT!$C$3:$BP$91,ROW(UPTARIFFS_PERFECT!$A$88)-ROW(UPTARIFFS_PERFECT!$A$2),0), HLOOKUP($AW26,UPTARIFFS_IMPERFECT!$C$3:$BP$91,ROW(UPTARIFFS_IMPERFECT!$A$88)-ROW(UPTARIFFS_IMPERFECT!$A$2),0)),"") ->  | BB26: =COUNTIF($BA$10:BA26,BA26)-1 -> 16
B27: 17 | C27: =IF($E$2="Product Homogeneity",VLOOKUP(B27,UPTARIFFS_PERFECT!$BQ:$BR,2,0),VLOOKUP(B27,UPTARIFFS_IMPERFECT!$BQ:$BR,2,0)) -> GAS - Gas | D27: =IF($E$2="Product Homogeneity",VLOOKUP($C27,UPTARIFFS_PERFECT!$A:$BU,COLUMN(UPTARIFFS_PERFECT!$BJ$9),0), IF($E$2="Product Differentiation",(VLOOKUP($C27,UPTARIFFS_IMPERFECT!$A:$BU,COLUMN(UPTARIFFS_IMPERFECT!$BI$9),0)),"N/A")) -> N/A | E27: =IF($E$2="Product Homogeneity",HLOOKUP($C27,UPTARIFFS_PERFECT!$C$3:$BP$76,ROW(UPTARIFFS_PERFECT!$A$73)-2,0), IF($E$2="Product Differentiation",HLOOKUP($C27,UPTARIFFS_IMPERFECT!$C$3:$BP$76,ROW(UPTARIFFS_IMPERFECT!$A$73)-2,0), "N/A")) -> N/A | F27: =IF($E$2="Product Homogeneity",HLOOKUP($C27,UPTARIFFS_PERFECT!$C$3:$BP$76,ROW(UPTARIFFS_PERFECT!$A$72)-2,0), IF($E$2="Product Differentiation",HLOOKUP($C27,UPTARIFFS_IMPERFECT!$C$3:$BP$76,ROW(UPTARIFFS_IMPERFECT!$A$72)-2,0),"N/A")) -> N/A | G27: =IF($E$2="Product Homogeneity",HLOOKUP($C27,UPTARIFFS_PERFECT!$C$3:$BP$76,ROW(UPTARIFFS_PERFECT!$A$71)-2,0), IF($E$2="Product Differentiation",HLOOKUP($C27,UPTARIFFS_IMPERFECT!$C$3:$BP$76,ROW(UPTARIFFS_IMPERFECT!$A$71)-2,0),"N/A")) -> N/A | H27: =(D27-E27)/ HLOOKUP($C27,UPTARIFFS_PERFECT!$C$3:$BP$63,ROW(UPTARIFFS_PERFECT!$A$63)-ROW(UPTARIFFS_PERFECT!$A$2),0) ->  | J27: N/A | M27: =IF($E$2="Product Homogeneity",HLOOKUP($C27,UPTARIFFS_PERFECT!$C$3:$BP$91,ROW(UPTARIFFS_PERFECT!$A$89)-ROW(UPTARIFFS_PERFECT!$A$2),0), IF($E$2="Product Differentiation",HLOOKUP($C27,UPTARIFFS_IMPERFECT!$C$3:$BP$91,ROW(UPTARIFFS_IMPERFECT!$A$89)-ROW(UPTARIFFS_IMPERFECT!$A$2),0),"N/A")) -> N/A | O27: =IF($E$2="Product Homogeneity",HLOOKUP($C27,UPTARIFFS_PERFECT!$C$3:$BP$91,ROW(UPTARIFFS_PERFECT!$A$88)-ROW(UPTARIFFS_PERFECT!$A$2),0), IF($E$2="Product Differentiation",HLOOKUP($C27,UPTARIFFS_IMPERFECT!$C$3:$BP$91,ROW(UPTARIFFS_IMPERFECT!$A$88)-ROW(UPTARIFFS_IMPERFECT!$A$2),0),"N/A")) -> N/A | Q27: =IF($E$2="Product Homogeneity",HLOOKUP($C27,UPTARIFFS_PERFECT!$C$3:$BP$91,ROW(UPTARIFFS_PERFECT!$A$87)-ROW(UPTARIFFS_PERFECT!$A$2),0), IF($E$2="Product Differentiation", HLOOKUP($C27,UPTARIFFS_IMPERFECT!$C$3:$BP$91,ROW(UPTARIFFS_IMPERFECT!$A$87)-ROW(UPTARIFFS_IMPERFECT!$A$2),0),"N/A")) -> N/A | S27: =(J27-M27)/IF($E$2="Product Homogeneity",HLOOKUP($C27,UPTARIFFS_PERFECT!$C$3:$BP$63,ROW(UPTARIFFS_PERFECT!$A$63)-ROW(UPTARIFFS_PERFECT!$A$2),0),HLOOKUP($C27,UPTARIFFS_IMPERFECT!$C$3:$BP$63,ROW(UPTARIFFS_IMPERFECT!$A$63)-ROW(UPTARIFFS_IMPERFECT!$A$2),0)) ->  | V27: 17 | AB27: 17 | AF27: =IFERROR(AE27-AD27,"") ->  | AM27: =COUNTIF($AL$10:AL27,AL27)-1 -> 16 | AO27: GAS - Gas | AV27: 17 | AW27: =IFERROR(IF($E$2="Product Homogeneity",VLOOKUP(AV27,UPTARIFFS_PERFECT!$BS:$BT,2,0), VLOOKUP(AV27,UPTARIFFS_IMPERFECT!$BS:$BT,2,0)),"") ->  | AX27: =IFERROR(IF($E$2="Product Homogeneity",HLOOKUP($AW27,UPTARIFFS_PERFECT!$C$3:$BP$75,ROW(UPTARIFFS_PERFECT!$A$72)-2,0), HLOOKUP($AW27,UPTARIFFS_IMPERFECT!$C$3:$BP$75,ROW(UPTARIFFS_IMPERFECT!$A$72)-2,0)),"") ->  | AY27: =IFERROR(IF($E$2="Product Homogeneity",HLOOKUP($AW27,UPTARIFFS_PERFECT!$C$3:$BP$91,ROW(UPTARIFFS_PERFECT!$A$88)-ROW(UPTARIFFS_PERFECT!$A$2),0), HLOOKUP($AW27,UPTARIFFS_IMPERFECT!$C$3:$BP$91,ROW(UPTARIFFS_IMPERFECT!$A$88)-ROW(UPTARIFFS_IMPERFECT!$A$2),0)),"") ->  | BB27: =COUNTIF($BA$10:BA27,BA27)-1 -> 17
B28: 18 | C28: =IF($E$2="Product Homogeneity",VLOOKUP(B28,UPTARIFFS_PERFECT!$BQ:$BR,2,0),VLOOKUP(B28,UPTARIFFS_IMPERFECT!$BQ:$BR,2,0)) -> OMN - Minerals n.e.c. | D28: =IF($E$2="Product Homogeneity",VLOOKUP($C28,UPTARIFFS_PERFECT!$A:$BU,COLUMN(UPTARIFFS_PERFECT!$BJ$9),0), IF($E$2="Product Differentiation",(VLOOKUP($C28,UPTARIFFS_IMPERFECT!$A:$BU,COLUMN(UPTARIFFS_IMPERFECT!$BI$9),0)),"N/A")) -> N/A | E28: =IF($E$2="Product Homogeneity",HLOOKUP($C28,UPTARIFFS_PERFECT!$C$3:$BP$76,ROW(UPTARIFFS_PERFECT!$A$73)-2,0), IF($E$2="Product Differentiation",HLOOKUP($C28,UPTARIFFS_IMPERFECT!$C$3:$BP$76,ROW(UPTARIFFS_IMPERFECT!$A$73)-2,0), "N/A")) -> N/A | F28: =IF($E$2="Product Homogeneity",HLOOKUP($C28,UPTARIFFS_PERFECT!$C$3:$BP$76,ROW(UPTARIFFS_PERFECT!$A$72)-2,0), IF($E$2="Product Differentiation",HLOOKUP($C28,UPTARIFFS_IMPERFECT!$C$3:$BP$76,ROW(UPTARIFFS_IMPERFECT!$A$72)-2,0),"N/A")) -> N/A | G28: =IF($E$2="Product Homogeneity",HLOOKUP($C28,UPTARIFFS_PERFECT!$C$3:$BP$76,ROW(UPTARIFFS_PERFECT!$A$71)-2,0), IF($E$2="Product Differentiation",HLOOKUP($C28,UPTARIFFS_IMPERFECT!$C$3:$BP$76,ROW(UPTARIFFS_IMPERFECT!$A$71)-2,0),"N/A")) -> N/A | H28: =(D28-E28)/ HLOOKUP($C28,UPTARIFFS_PERFECT!$C$3:$BP$63,ROW(UPTARIFFS_PERFECT!$A$63)-ROW(UPTARIFFS_PERFECT!$A$2),0) ->  | J28: N/A | M28: =IF($E$2="Product Homogeneity",HLOOKUP($C28,UPTARIFFS_PERFECT!$C$3:$BP$91,ROW(UPTARIFFS_PERFECT!$A$89)-ROW(UPTARIFFS_PERFECT!$A$2),0), IF($E$2="Product Differentiation",HLOOKUP($C28,UPTARIFFS_IMPERFECT!$C$3:$BP$91,ROW(UPTARIFFS_IMPERFECT!$A$89)-ROW(UPTARIFFS_IMPERFECT!$A$2),0),"N/A")) -> N/A | O28: =IF($E$2="Product Homogeneity",HLOOKUP($C28,UPTARIFFS_PERFECT!$C$3:$BP$91,ROW(UPTARIFFS_PERFECT!$A$88)-ROW(UPTARIFFS_PERFECT!$A$2),0), IF($E$2="Product Differentiation",HLOOKUP($C28,UPTARIFFS_IMPERFECT!$C$3:$BP$91,ROW(UPTARIFFS_IMPERFECT!$A$88)-ROW(UPTARIFFS_IMPERFECT!$A$2),0),"N/A")) -> N/A | Q28: =IF($E$2="Product Homogeneity",HLOOKUP($C28,UPTARIFFS_PERFECT!$C$3:$BP$91,ROW(UPTARIFFS_PERFECT!$A$87)-ROW(UPTARIFFS_PERFECT!$A$2),0), IF($E$2="Product Differentiation", HLOOKUP($C28,UPTARIFFS_IMPERFECT!$C$3:$BP$91,ROW(UPTARIFFS_IMPERFECT!$A$87)-ROW(UPTARIFFS_IMPERFECT!$A$2),0),"N/A")) -> N/A | S28: =(J28-M28)/IF($E$2="Product Homogeneity",HLOOKUP($C28,UPTARIFFS_PERFECT!$C$3:$BP$63,ROW(UPTARIFFS_PERFECT!$A$63)-ROW(UPTARIFFS_PERFECT!$A$2),0),HLOOKUP($C28,UPTARIFFS_IMPERFECT!$C$3:$BP$63,ROW(UPTARIFFS_IMPERFECT!$A$63)-ROW(UPTARIFFS_IMPERFECT!$A$2),0)) ->  | V28: 18 | AB28: 18 | AM28: =COUNTIF($AL$10:AL28,AL28)-1 -> 17 | AO28: OMN - Minerals n.e.c. | AV28: 18 | AW28: =IFERROR(IF($E$2="Product Homogeneity",VLOOKUP(AV28,UPTARIFFS_PERFECT!$BS:$BT,2,0), VLOOKUP(AV28,UPTARIFFS_IMPERFECT!$BS:$BT,2,0)),"") ->  | AX28: =IFERROR(IF($E$2="Product Homogeneity",HLOOKUP($AW28,UPTARIFFS_PERFECT!$C$3:$BP$75,ROW(UPTARIFFS_PERFECT!$A$72)-2,0), HLOOKUP($AW28,UPTARIFFS_IMPERFECT!$C$3:$BP$75,ROW(UPTARIFFS_IMPERFECT!$A$72)-2,0)),"") ->  | AY28: =IFERROR(IF($E$2="Product Homogeneity",HLOOKUP($AW28,UPTARIFFS_PERFECT!$C$3:$BP$91,ROW(UPTARIFFS_PERFECT!$A$88)-ROW(UPTARIFFS_PERFECT!$A$2),0), HLOOKUP($AW28,UPTARIFFS_IMPERFECT!$C$3:$BP$91,ROW(UPTARIFFS_IMPERFECT!$A$88)-ROW(UPTARIFFS_IMPERFECT!$A$2),0)),"") ->  | BB28: =COUNTIF($BA$10:BA28,BA28)-1 -> 18
B29: 19 | C29: =IF($E$2="Product Homogeneity",VLOOKUP(B29,UPTARIFFS_PERFECT!$BQ:$BR,2,0),VLOOKUP(B29,UPTARIFFS_IMPERFECT!$BQ:$BR,2,0)) -> CMT - Bovine meat prods | D29: =IF($E$2="Product Homogeneity",VLOOKUP($C29,UPTARIFFS_PERFECT!$A:$BU,COLUMN(UPTARIFFS_PERFECT!$BJ$9),0), IF($E$2="Product Differentiation",(VLOOKUP($C29,UPTARIFFS_IMPERFECT!$A:$BU,COLUMN(UPTARIFFS_IMPERFECT!$BI$9),0)),"N/A")) -> N/A | E29: =IF($E$2="Product Homogeneity",HLOOKUP($C29,UPTARIFFS_PERFECT!$C$3:$BP$76,ROW(UPTARIFFS_PERFECT!$A$73)-2,0), IF($E$2="Product Differentiation",HLOOKUP($C29,UPTARIFFS_IMPERFECT!$C$3:$BP$76,ROW(UPTARIFFS_IMPERFECT!$A$73)-2,0), "N/A")) -> N/A | F29: =IF($E$2="Product Homogeneity",HLOOKUP($C29,UPTARIFFS_PERFECT!$C$3:$BP$76,ROW(UPTARIFFS_PERFECT!$A$72)-2,0), IF($E$2="Product Differentiation",HLOOKUP($C29,UPTARIFFS_IMPERFECT!$C$3:$BP$76,ROW(UPTARIFFS_IMPERFECT!$A$72)-2,0),"N/A")) -> N/A | G29: =IF($E$2="Product Homogeneity",HLOOKUP($C29,UPTARIFFS_PERFECT!$C$3:$BP$76,ROW(UPTARIFFS_PERFECT!$A$71)-2,0), IF($E$2="Product Differentiation",HLOOKUP($C29,UPTARIFFS_IMPERFECT!$C$3:$BP$76,ROW(UPTARIFFS_IMPERFECT!$A$71)-2,0),"N/A")) -> N/A | H29: =(D29-E29)/ HLOOKUP($C29,UPTARIFFS_PERFECT!$C$3:$BP$63,ROW(UPTARIFFS_PERFECT!$A$63)-ROW(UPTARIFFS_PERFECT!$A$2),0) ->  | J29: N/A | M29: =IF($E$2="Product Homogeneity",HLOOKUP($C29,UPTARIFFS_PERFECT!$C$3:$BP$91,ROW(UPTARIFFS_PERFECT!$A$89)-ROW(UPTARIFFS_PERFECT!$A$2),0), IF($E$2="Product Differentiation",HLOOKUP($C29,UPTARIFFS_IMPERFECT!$C$3:$BP$91,ROW(UPTARIFFS_IMPERFECT!$A$89)-ROW(UPTARIFFS_IMPERFECT!$A$2),0),"N/A")) -> N/A | O29: =IF($E$2="Product Homogeneity",HLOOKUP($C29,UPTARIFFS_PERFECT!$C$3:$BP$91,ROW(UPTARIFFS_PERFECT!$A$88)-ROW(UPTARIFFS_PERFECT!$A$2),0), IF($E$2="Product Differentiation",HLOOKUP($C29,UPTARIFFS_IMPERFECT!$C$3:$BP$91,ROW(UPTARIFFS_IMPERFECT!$A$88)-ROW(UPTARIFFS_IMPERFECT!$A$2),0),"N/A")) -> N/A | Q29: =IF($E$2="Product Homogeneity",HLOOKUP($C29,UPTARIFFS_PERFECT!$C$3:$BP$91,ROW(UPTARIFFS_PERFECT!$A$87)-ROW(UPTARIFFS_PERFECT!$A$2),0), IF($E$2="Product Differentiation", HLOOKUP($C29,UPTARIFFS_IMPERFECT!$C$3:$BP$91,ROW(UPTARIFFS_IMPERFECT!$A$87)-ROW(UPTARIFFS_IMPERFECT!$A$2),0),"N/A")) -> N/A | S29: =(J29-M29)/IF($E$2="Product Homogeneity",HLOOKUP($C29,UPTARIFFS_PERFECT!$C$3:$BP$63,ROW(UPTARIFFS_PERFECT!$A$63)-ROW(UPTARIFFS_PERFECT!$A$2),0),HLOOKUP($C29,UPTARIFFS_IMPERFECT!$C$3:$BP$63,ROW(UPTARIFFS_IMPERFECT!$A$63)-ROW(UPTARIFFS_IMPERFECT!$A$2),0)) ->  | V29: 19 | AB29: 19 | AM29: =COUNTIF($AL$10:AL29,AL29)-1 -> 18 | AO29: CMT - Bovine meat prods | AV29: 19 | AW29: =IFERROR(IF($E$2="Product Homogeneity",VLOOKUP(AV29,UPTARIFFS_PERFECT!$BS:$BT,2,0), VLOOKUP(AV29,UPTARIFFS_IMPERFECT!$BS:$BT,2,0)),"") ->  | AX29: =IFERROR(IF($E$2="Product Homogeneity",HLOOKUP($AW29,UPTARIFFS_PERFECT!$C$3:$BP$75,ROW(UPTARIFFS_PERFECT!$A$72)-2,0), HLOOKUP($AW29,UPTARIFFS_IMPERFECT!$C$3:$BP$75,ROW(UPTARIFFS_IMPERFECT!$A$72)-2,0)),"") ->  | AY29: =IFERROR(IF($E$2="Product Homogeneity",HLOOKUP($AW29,UPTARIFFS_PERFECT!$C$3:$BP$91,ROW(UPTARIFFS_PERFECT!$A$88)-ROW(UPTARIFFS_PERFECT!$A$2),0), HLOOKUP($AW29,UPTARIFFS_IMPERFECT!$C$3:$BP$91,ROW(UPTARIFFS_IMPERFECT!$A$88)-ROW(UPTARIFFS_IMPERFECT!$A$2),0)),"") ->  | BB29: =COUNTIF($BA$10:BA29,BA29)-1 -> 19
B30: 20 | C30: =IF($E$2="Product Homogeneity",VLOOKUP(B30,UPTARIFFS_PERFECT!$BQ:$BR,2,0),VLOOKUP(B30,UPTARIFFS_IMPERFECT!$BQ:$BR,2,0)) -> OMT - Meat products n.e.c. | D30: =IF($E$2="Product Homogeneity",VLOOKUP($C30,UPTARIFFS_PERFECT!$A:$BU,COLUMN(UPTARIFFS_PERFECT!$BJ$9),0), IF($E$2="Product Differentiation",(VLOOKUP($C30,UPTARIFFS_IMPERFECT!$A:$BU,COLUMN(UPTARIFFS_IMPERFECT!$BI$9),0)),"N/A")) -> N/A | E30: =IF($E$2="Product Homogeneity",HLOOKUP($C30,UPTARIFFS_PERFECT!$C$3:$BP$76,ROW(UPTARIFFS_PERFECT!$A$73)-2,0), IF($E$2="Product Differentiation",HLOOKUP($C30,UPTARIFFS_IMPERFECT!$C$3:$BP$76,ROW(UPTARIFFS_IMPERFECT!$A$73)-2,0), "N/A")) -> N/A | F30: =IF($E$2="Product Homogeneity",HLOOKUP($C30,UPTARIFFS_PERFECT!$C$3:$BP$76,ROW(UPTARIFFS_PERFECT!$A$72)-2,0), IF($E$2="Product Differentiation",HLOOKUP($C30,UPTARIFFS_IMPERFECT!$C$3:$BP$76,ROW(UPTARIFFS_IMPERFECT!$A$72)-2,0),"N/A")) -> N/A | G30: =IF($E$2="Product Homogeneity",HLOOKUP($C30,UPTARIFFS_PERFECT!$C$3:$BP$76,ROW(UPTARIFFS_PERFECT!$A$71)-2,0), IF($E$2="Product Differentiation",HLOOKUP($C30,UPTARIFFS_IMPERFECT!$C$3:$BP$76,ROW(UPTARIFFS_IMPERFECT!$A$71)-2,0),"N/A")) -> N/A | H30: =(D30-E30)/ HLOOKUP($C30,UPTARIFFS_PERFECT!$C$3:$BP$63,ROW(UPTARIFFS_PERFECT!$A$63)-ROW(UPTARIFFS_PERFECT!$A$2),0) ->  | J30: N/A | M30: =IF($E$2="Product Homogeneity",HLOOKUP($C30,UPTARIFFS_PERFECT!$C$3:$BP$91,ROW(UPTARIFFS_PERFECT!$A$89)-ROW(UPTARIFFS_PERFECT!$A$2),0), IF($E$2="Product Differentiation",HLOOKUP($C30,UPTARIFFS_IMPERFECT!$C$3:$BP$91,ROW(UPTARIFFS_IMPERFECT!$A$89)-ROW(UPTARIFFS_IMPERFECT!$A$2),0),"N/A")) -> N/A | O30: =IF($E$2="Product Homogeneity",HLOOKUP($C30,UPTARIFFS_PERFECT!$C$3:$BP$91,ROW(UPTARIFFS_PERFECT!$A$88)-ROW(UPTARIFFS_PERFECT!$A$2),0), IF($E$2="Product Differentiation",HLOOKUP($C30,UPTARIFFS_IMPERFECT!$C$3:$BP$91,ROW(UPTARIFFS_IMPERFECT!$A$88)-ROW(UPTARIFFS_IMPERFECT!$A$2),0),"N/A")) -> N/A | Q30: =IF($E$2="Product Homogeneity",HLOOKUP($C30,UPTARIFFS_PERFECT!$C$3:$BP$91,ROW(UPTARIFFS_PERFECT!$A$87)-ROW(UPTARIFFS_PERFECT!$A$2),0), IF($E$2="Product Differentiation", HLOOKUP($C30,UPTARIFFS_IMPERFECT!$C$3:$BP$91,ROW(UPTARIFFS_IMPERFECT!$A$87)-ROW(UPTARIFFS_IMPERFECT!$A$2),0),"N/A")) -> N/A | S30: =(J30-M30)/IF($E$2="Product Homogeneity",HLOOKUP($C30,UPTARIFFS_PERFECT!$C$3:$BP$63,ROW(UPTARIFFS_PERFECT!$A$63)-ROW(UPTARIFFS_PERFECT!$A$2),0),HLOOKUP($C30,UPTARIFFS_IMPERFECT!$C$3:$BP$63,ROW(UPTARIFFS_IMPERFECT!$A$63)-ROW(UPTARIFFS_IMPERFECT!$A$2),0)) ->  | V30: 20 | AB30: 20 | AM30: =COUNTIF($AL$10:AL30,AL30)-1 -> 19 | AO30: OMT - Meat products n.e.c. | AV30: 20 | AW30: =IFERROR(IF($E$2="Product Homogeneity",VLOOKUP(AV30,UPTARIFFS_PERFECT!$BS:$BT,2,0), VLOOKUP(AV30,UPTARIFFS_IMPERFECT!$BS:$BT,2,0)),"") ->  | AX30: =IFERROR(IF($E$2="Product Homogeneity",HLOOKUP($AW30,UPTARIFFS_PERFECT!$C$3:$BP$75,ROW(UPTARIFFS_PERFECT!$A$72)-2,0), HLOOKUP($AW30,UPTARIFFS_IMPERFECT!$C$3:$BP$75,ROW(UPTARIFFS_IMPERFECT!$A$72)-2,0)),"") ->  | AY30: =IFERROR(IF($E$2="Product Homogeneity",HLOOKUP($AW30,UPTARIFFS_PERFECT!$C$3:$BP$91,ROW(UPTARIFFS_PERFECT!$A$88)-ROW(UPTARIFFS_PERFECT!$A$2),0), HLOOKUP($AW30,UPTARIFFS_IMPERFECT!$C$3:$BP$91,ROW(UPTARIFFS_IMPERFECT!$A$88)-ROW(UPTARIFFS_IMPERFECT!$A$2),0)),"") ->  | BB30: =COUNTIF($BA$10:BA30,BA30)-1 -> 20
B31: 21 | C31: =IF($E$2="Product Homogeneity",VLOOKUP(B31,UPTARIFFS_PERFECT!$BQ:$BR,2,0),VLOOKUP(B31,UPTARIFFS_IMPERFECT!$BQ:$BR,2,0)) -> VOL - Vegetable oils and fats | D31: =IF($E$2="Product Homogeneity",VLOOKUP($C31,UPTARIFFS_PERFECT!$A:$BU,COLUMN(UPTARIFFS_PERFECT!$BJ$9),0), IF($E$2="Product Differentiation",(VLOOKUP($C31,UPTARIFFS_IMPERFECT!$A:$BU,COLUMN(UPTARIFFS_IMPERFECT!$BI$9),0)),"N/A")) -> N/A | E31: =IF($E$2="Product Homogeneity",HLOOKUP($C31,UPTARIFFS_PERFECT!$C$3:$BP$76,ROW(UPTARIFFS_PERFECT!$A$73)-2,0), IF($E$2="Product Differentiation",HLOOKUP($C31,UPTARIFFS_IMPERFECT!$C$3:$BP$76,ROW(UPTARIFFS_IMPERFECT!$A$73)-2,0), "N/A")) -> N/A | F31: =IF($E$2="Product Homogeneity",HLOOKUP($C31,UPTARIFFS_PERFECT!$C$3:$BP$76,ROW(UPTARIFFS_PERFECT!$A$72)-2,0), IF($E$2="Product Differentiation",HLOOKUP($C31,UPTARIFFS_IMPERFECT!$C$3:$BP$76,ROW(UPTARIFFS_IMPERFECT!$A$72)-2,0),"N/A")) -> N/A | G31: =IF($E$2="Product Homogeneity",HLOOKUP($C31,UPTARIFFS_PERFECT!$C$3:$BP$76,ROW(UPTARIFFS_PERFECT!$A$71)-2,0), IF($E$2="Product Differentiation",HLOOKUP($C31,UPTARIFFS_IMPERFECT!$C$3:$BP$76,ROW(UPTARIFFS_IMPERFECT!$A$71)-2,0),"N/A")) -> N/A | H31: =(D31-E31)/ HLOOKUP($C31,UPTARIFFS_PERFECT!$C$3:$BP$63,ROW(UPTARIFFS_PERFECT!$A$63)-ROW(UPTARIFFS_PERFECT!$A$2),0) ->  | J31: N/A | M31: =IF($E$2="Product Homogeneity",HLOOKUP($C31,UPTARIFFS_PERFECT!$C$3:$BP$91,ROW(UPTARIFFS_PERFECT!$A$89)-ROW(UPTARIFFS_PERFECT!$A$2),0), IF($E$2="Product Differentiation",HLOOKUP($C31,UPTARIFFS_IMPERFECT!$C$3:$BP$91,ROW(UPTARIFFS_IMPERFECT!$A$89)-ROW(UPTARIFFS_IMPERFECT!$A$2),0),"N/A")) -> N/A | O31: =IF($E$2="Product Homogeneity",HLOOKUP($C31,UPTARIFFS_PERFECT!$C$3:$BP$91,ROW(UPTARIFFS_PERFECT!$A$88)-ROW(UPTARIFFS_PERFECT!$A$2),0), IF($E$2="Product Differentiation",HLOOKUP($C31,UPTARIFFS_IMPERFECT!$C$3:$BP$91,ROW(UPTARIFFS_IMPERFECT!$A$88)-ROW(UPTARIFFS_IMPERFECT!$A$2),0),"N/A")) -> N/A | Q31: =IF($E$2="Product Homogeneity",HLOOKUP($C31,UPTARIFFS_PERFECT!$C$3:$BP$91,ROW(UPTARIFFS_PERFECT!$A$87)-ROW(UPTARIFFS_PERFECT!$A$2),0), IF($E$2="Product Differentiation", HLOOKUP($C31,UPTARIFFS_IMPERFECT!$C$3:$BP$91,ROW(UPTARIFFS_IMPERFECT!$A$87)-ROW(UPTARIFFS_IMPERFECT!$A$2),0),"N/A")) -> N/A | S31: =(J31-M31)/IF($E$2="Product Homogeneity",HLOOKUP($C31,UPTARIFFS_PERFECT!$C$3:$BP$63,ROW(UPTARIFFS_PERFECT!$A$63)-ROW(UPTARIFFS_PERFECT!$A$2),0),HLOOKUP($C31,UPTARIFFS_IMPERFECT!$C$3:$BP$63,ROW(UPTARIFFS_IMPERFECT!$A$63)-ROW(UPTARIFFS_IMPERFECT!$A$2),0)) ->  | V31: 21 | AB31: 21 | AM31: =COUNTIF($AL$10:AL31,AL31)-1 -> 20 | AO31: VOL - Vegetable oils and fats | AV31: 21 | AW31: =IFERROR(IF($E$2="Product Homogeneity",VLOOKUP(AV31,UPTARIFFS_PERFECT!$BS:$BT,2,0), VLOOKUP(AV31,UPTARIFFS_IMPERFECT!$BS:$BT,2,0)),"") ->  | AX31: =IFERROR(IF($E$2="Product Homogeneity",HLOOKUP($AW31,UPTARIFFS_PERFECT!$C$3:$BP$75,ROW(UPTARIFFS_PERFECT!$A$72)-2,0), HLOOKUP($AW31,UPTARIFFS_IMPERFECT!$C$3:$BP$75,ROW(UPTARIFFS_IMPERFECT!$A$72)-2,0)),"") ->  | AY31: =IFERROR(IF($E$2="Product Homogeneity",HLOOKUP($AW31,UPTARIFFS_PERFECT!$C$3:$BP$91,ROW(UPTARIFFS_PERFECT!$A$88)-ROW(UPTARIFFS_PERFECT!$A$2),0), HLOOKUP($AW31,UPTARIFFS_IMPERFECT!$C$3:$BP$91,ROW(UPTARIFFS_IMPERFECT!$A$88)-ROW(UPTARIFFS_IMPERFECT!$A$2),0)),"") ->  | BB31: =COUNTIF($BA$10:BA31,BA31)-1 -> 21
B32: 22 | C32: =IF($E$2="Product Homogeneity",VLOOKUP(B32,UPTARIFFS_PERFECT!$BQ:$BR,2,0),VLOOKUP(B32,UPTARIFFS_IMPERFECT!$BQ:$BR,2,0)) -> MIL - Dairy products | D32: =IF($E$2="Product Homogeneity",VLOOKUP($C32,UPTARIFFS_PERFECT!$A:$BU,COLUMN(UPTARIFFS_PERFECT!$BJ$9),0), IF($E$2="Product Differentiation",(VLOOKUP($C32,UPTARIFFS_IMPERFECT!$A:$BU,COLUMN(UPTARIFFS_IMPERFECT!$BI$9),0)),"N/A")) -> N/A | E32: =IF($E$2="Product Homogeneity",HLOOKUP($C32,UPTARIFFS_PERFECT!$C$3:$BP$76,ROW(UPTARIFFS_PERFECT!$A$73)-2,0), IF($E$2="Product Differentiation",HLOOKUP($C32,UPTARIFFS_IMPERFECT!$C$3:$BP$76,ROW(UPTARIFFS_IMPERFECT!$A$73)-2,0), "N/A")) -> N/A | F32: =IF($E$2="Product Homogeneity",HLOOKUP($C32,UPTARIFFS_PERFECT!$C$3:$BP$76,ROW(UPTARIFFS_PERFECT!$A$72)-2,0), IF($E$2="Product Differentiation",HLOOKUP($C32,UPTARIFFS_IMPERFECT!$C$3:$BP$76,ROW(UPTARIFFS_IMPERFECT!$A$72)-2,0),"N/A")) -> N/A | G32: =IF($E$2="Product Homogeneity",HLOOKUP($C32,UPTARIFFS_PERFECT!$C$3:$BP$76,ROW(UPTARIFFS_PERFECT!$A$71)-2,0), IF($E$2="Product Differentiation",HLOOKUP($C32,UPTARIFFS_IMPERFECT!$C$3:$BP$76,ROW(UPTARIFFS_IMPERFECT!$A$71)-2,0),"N/A")) -> N/A | H32: =(D32-E32)/ HLOOKUP($C32,UPTARIFFS_PERFECT!$C$3:$BP$63,ROW(UPTARIFFS_PERFECT!$A$63)-ROW(UPTARIFFS_PERFECT!$A$2),0) ->  | J32: N/A | M32: =IF($E$2="Product Homogeneity",HLOOKUP($C32,UPTARIFFS_PERFECT!$C$3:$BP$91,ROW(UPTARIFFS_PERFECT!$A$89)-ROW(UPTARIFFS_PERFECT!$A$2),0), IF($E$2="Product Differentiation",HLOOKUP($C32,UPTARIFFS_IMPERFECT!$C$3:$BP$91,ROW(UPTARIFFS_IMPERFECT!$A$89)-ROW(UPTARIFFS_IMPERFECT!$A$2),0),"N/A")) -> N/A | O32: =IF($E$2="Product Homogeneity",HLOOKUP($C32,UPTARIFFS_PERFECT!$C$3:$BP$91,ROW(UPTARIFFS_PERFECT!$A$88)-ROW(UPTARIFFS_PERFECT!$A$2),0), IF($E$2="Product Differentiation",HLOOKUP($C32,UPTARIFFS_IMPERFECT!$C$3:$BP$91,ROW(UPTARIFFS_IMPERFECT!$A$88)-ROW(UPTARIFFS_IMPERFECT!$A$2),0),"N/A")) -> N/A | Q32: =IF($E$2="Product Homogeneity",HLOOKUP($C32,UPTARIFFS_PERFECT!$C$3:$BP$91,ROW(UPTARIFFS_PERFECT!$A$87)-ROW(UPTARIFFS_PERFECT!$A$2),0), IF($E$2="Product Differentiation", HLOOKUP($C32,UPTARIFFS_IMPERFECT!$C$3:$BP$91,ROW(UPTARIFFS_IMPERFECT!$A$87)-ROW(UPTARIFFS_IMPERFECT!$A$2),0),"N/A")) -> N/A | S32: =(J32-M32)/IF($E$2="Product Homogeneity",HLOOKUP($C32,UPTARIFFS_PERFECT!$C$3:$BP$63,ROW(UPTARIFFS_PERFECT!$A$63)-ROW(UPTARIFFS_PERFECT!$A$2),0),HLOOKUP($C32,UPTARIFFS_IMPERFECT!$C$3:$BP$63,ROW(UPTARIFFS_IMPERFECT!$A$63)-ROW(UPTARIFFS_IMPERFECT!$A$2),0)) ->  | V32: 22 | AB32: 22 | AM32: =COUNTIF($AL$10:AL32,AL32)-1 -> 21 | AO32: MIL - Dairy products | AV32: 22 | AW32: =IFERROR(IF($E$2="Product Homogeneity",VLOOKUP(AV32,UPTARIFFS_PERFECT!$BS:$BT,2,0), VLOOKUP(AV32,UPTARIFFS_IMPERFECT!$BS:$BT,2,0)),"") ->  | AX32: =IFERROR(IF($E$2="Product Homogeneity",HLOOKUP($AW32,UPTARIFFS_PERFECT!$C$3:$BP$75,ROW(UPTARIFFS_PERFECT!$A$72)-2,0), HLOOKUP($AW32,UPTARIFFS_IMPERFECT!$C$3:$BP$75,ROW(UPTARIFFS_IMPERFECT!$A$72)-2,0)),"") ->  | AY32: =IFERROR(IF($E$2="Product Homogeneity",HLOOKUP($AW32,UPTARIFFS_PERFECT!$C$3:$BP$91,ROW(UPTARIFFS_PERFECT!$A$88)-ROW(UPTARIFFS_PERFECT!$A$2),0), HLOOKUP($AW32,UPTARIFFS_IMPERFECT!$C$3:$BP$91,ROW(UPTARIFFS_IMPERFECT!$A$88)-ROW(UPTARIFFS_IMPERFECT!$A$2),0)),"") ->  | BB32: =COUNTIF($BA$10:BA32,BA32)-1 -> 22
B33: 23 | C33: =IF($E$2="Product Homogeneity",VLOOKUP(B33,UPTARIFFS_PERFECT!$BQ:$BR,2,0),VLOOKUP(B33,UPTARIFFS_IMPERFECT!$BQ:$BR,2,0)) -> PCR - Processed rice | D33: =IF($E$2="Product Homogeneity",VLOOKUP($C33,UPTARIFFS_PERFECT!$A:$BU,COLUMN(UPTARIFFS_PERFECT!$BJ$9),0), IF($E$2="Product Differentiation",(VLOOKUP($C33,UPTARIFFS_IMPERFECT!$A:$BU,COLUMN(UPTARIFFS_IMPERFECT!$BI$9),0)),"N/A")) -> N/A | E33: =IF($E$2="Product Homogeneity",HLOOKUP($C33,UPTARIFFS_PERFECT!$C$3:$BP$76,ROW(UPTARIFFS_PERFECT!$A$73)-2,0), IF($E$2="Product Differentiation",HLOOKUP($C33,UPTARIFFS_IMPERFECT!$C$3:$BP$76,ROW(UPTARIFFS_IMPERFECT!$A$73)-2,0), "N/A")) -> N/A | F33: =IF($E$2="Product Homogeneity",HLOOKUP($C33,UPTARIFFS_PERFECT!$C$3:$BP$76,ROW(UPTARIFFS_PERFECT!$A$72)-2,0), IF($E$2="Product Differentiation",HLOOKUP($C33,UPTARIFFS_IMPERFECT!$C$3:$BP$76,ROW(UPTARIFFS_IMPERFECT!$A$72)-2,0),"N/A")) -> N/A | G33: =IF($E$2="Product Homogeneity",HLOOKUP($C33,UPTARIFFS_PERFECT!$C$3:$BP$76,ROW(UPTARIFFS_PERFECT!$A$71)-2,0), IF($E$2="Product Differentiation",HLOOKUP($C33,UPTARIFFS_IMPERFECT!$C$3:$BP$76,ROW(UPTARIFFS_IMPERFECT!$A$71)-2,0),"N/A")) -> N/A | H33: =(D33-E33)/ HLOOKUP($C33,UPTARIFFS_PERFECT!$C$3:$BP$63,ROW(UPTARIFFS_PERFECT!$A$63)-ROW(UPTARIFFS_PERFECT!$A$2),0) ->  | J33: N/A | M33: =IF($E$2="Product Homogeneity",HLOOKUP($C33,UPTARIFFS_PERFECT!$C$3:$BP$91,ROW(UPTARIFFS_PERFECT!$A$89)-ROW(UPTARIFFS_PERFECT!$A$2),0), IF($E$2="Product Differentiation",HLOOKUP($C33,UPTARIFFS_IMPERFECT!$C$3:$BP$91,ROW(UPTARIFFS_IMPERFECT!$A$89)-ROW(UPTARIFFS_IMPERFECT!$A$2),0),"N/A")) -> N/A | O33: =IF($E$2="Product Homogeneity",HLOOKUP($C33,UPTARIFFS_PERFECT!$C$3:$BP$91,ROW(UPTARIFFS_PERFECT!$A$88)-ROW(UPTARIFFS_PERFECT!$A$2),0), IF($E$2="Product Differentiation",HLOOKUP($C33,UPTARIFFS_IMPERFECT!$C$3:$BP$91,ROW(UPTARIFFS_IMPERFECT!$A$88)-ROW(UPTARIFFS_IMPERFECT!$A$2),0),"N/A")) -> N/A | Q33: =IF($E$2="Product Homogeneity",HLOOKUP($C33,UPTARIFFS_PERFECT!$C$3:$BP$91,ROW(UPTARIFFS_PERFECT!$A$87)-ROW(UPTARIFFS_PERFECT!$A$2),0), IF($E$2="Product Differentiation", HLOOKUP($C33,UPTARIFFS_IMPERFECT!$C$3:$BP$91,ROW(UPTARIFFS_IMPERFECT!$A$87)-ROW(UPTARIFFS_IMPERFECT!$A$2),0),"N/A")) -> N/A | S33: =(J33-M33)/IF($E$2="Product Homogeneity",HLOOKUP($C33,UPTARIFFS_PERFECT!$C$3:$BP$63,ROW(UPTARIFFS_PERFECT!$A$63)-ROW(UPTARIFFS_PERFECT!$A$2),0),HLOOKUP($C33,UPTARIFFS_IMPERFECT!$C$3:$BP$63,ROW(UPTARIFFS_IMPERFECT!$A$63)-ROW(UPTARIFFS_IMPERFECT!$A$2),0)) ->  | V33: 23 | AB33: 23 | AM33: =COUNTIF($AL$10:AL33,AL33)-1 -> 22 | AO33: PCR - Processed rice | AV33: 23 | AW33: =IFERROR(IF($E$2="Product Homogeneity",VLOOKUP(AV33,UPTARIFFS_PERFECT!$BS:$BT,2,0), VLOOKUP(AV33,UPTARIFFS_IMPERFECT!$BS:$BT,2,0)),"") ->  | AX33: =IFERROR(IF($E$2="Product Homogeneity",HLOOKUP($AW33,UPTARIFFS_PERFECT!$C$3:$BP$75,ROW(UPTARIFFS_PERFECT!$A$72)-2,0), HLOOKUP($AW33,UPTARIFFS_IMPERFECT!$C$3:$BP$75,ROW(UPTARIFFS_IMPERFECT!$A$72)-2,0)),"") ->  | AY33: =IFERROR(IF($E$2="Product Homogeneity",HLOOKUP($AW33,UPTARIFFS_PERFECT!$C$3:$BP$91,ROW(UPTARIFFS_PERFECT!$A$88)-ROW(UPTARIFFS_PERFECT!$A$2),0), HLOOKUP($AW33,UPTARIFFS_IMPERFECT!$C$3:$BP$91,ROW(UPTARIFFS_IMPERFECT!$A$88)-ROW(UPTARIFFS_IMPERFECT!$A$2),0)),"") ->  | BB33: =COUNTIF($BA$10:BA33,BA33)-1 -> 23
B34: 24 | C34: =IF($E$2="Product Homogeneity",VLOOKUP(B34,UPTARIFFS_PERFECT!$BQ:$BR,2,0),VLOOKUP(B34,UPTARIFFS_IMPERFECT!$BQ:$BR,2,0)) -> SGR - Sugar | D34: =IF($E$2="Product Homogeneity",VLOOKUP($C34,UPTARIFFS_PERFECT!$A:$BU,COLUMN(UPTARIFFS_PERFECT!$BJ$9),0), IF($E$2="Product Differentiation",(VLOOKUP($C34,UPTARIFFS_IMPERFECT!$A:$BU,COLUMN(UPTARIFFS_IMPERFECT!$BI$9),0)),"N/A")) -> N/A | E34: =IF($E$2="Product Homogeneity",HLOOKUP($C34,UPTARIFFS_PERFECT!$C$3:$BP$76,ROW(UPTARIFFS_PERFECT!$A$73)-2,0), IF($E$2="Product Differentiation",HLOOKUP($C34,UPTARIFFS_IMPERFECT!$C$3:$BP$76,ROW(UPTARIFFS_IMPERFECT!$A$73)-2,0), "N/A")) -> N/A | F34: =IF($E$2="Product Homogeneity",HLOOKUP($C34,UPTARIFFS_PERFECT!$C$3:$BP$76,ROW(UPTARIFFS_PERFECT!$A$72)-2,0), IF($E$2="Product Differentiation",HLOOKUP($C34,UPTARIFFS_IMPERFECT!$C$3:$BP$76,ROW(UPTARIFFS_IMPERFECT!$A$72)-2,0),"N/A")) -> N/A | G34: =IF($E$2="Product Homogeneity",HLOOKUP($C34,UPTARIFFS_PERFECT!$C$3:$BP$76,ROW(UPTARIFFS_PERFECT!$A$71)-2,0), IF($E$2="Product Differentiation",HLOOKUP($C34,UPTARIFFS_IMPERFECT!$C$3:$BP$76,ROW(UPTARIFFS_IMPERFECT!$A$71)-2,0),"N/A")) -> N/A | H34: =(D34-E34)/ HLOOKUP($C34,UPTARIFFS_PERFECT!$C$3:$BP$63,ROW(UPTARIFFS_PERFECT!$A$63)-ROW(UPTARIFFS_PERFECT!$A$2),0) ->  | J34: N/A | M34: =IF($E$2="Product Homogeneity",HLOOKUP($C34,UPTARIFFS_PERFECT!$C$3:$BP$91,ROW(UPTARIFFS_PERFECT!$A$89)-ROW(UPTARIFFS_PERFECT!$A$2),0), IF($E$2="Product Differentiation",HLOOKUP($C34,UPTARIFFS_IMPERFECT!$C$3:$BP$91,ROW(UPTARIFFS_IMPERFECT!$A$89)-ROW(UPTARIFFS_IMPERFECT!$A$2),0),"N/A")) -> N/A | O34: =IF($E$2="Product Homogeneity",HLOOKUP($C34,UPTARIFFS_PERFECT!$C$3:$BP$91,ROW(UPTARIFFS_PERFECT!$A$88)-ROW(UPTARIFFS_PERFECT!$A$2),0), IF($E$2="Product Differentiation",HLOOKUP($C34,UPTARIFFS_IMPERFECT!$C$3:$BP$91,ROW(UPTARIFFS_IMPERFECT!$A$88)-ROW(UPTARIFFS_IMPERFECT!$A$2),0),"N/A")) -> N/A | Q34: =IF($E$2="Product Homogeneity",HLOOKUP($C34,UPTARIFFS_PERFECT!$C$3:$BP$91,ROW(UPTARIFFS_PERFECT!$A$87)-ROW(UPTARIFFS_PERFECT!$A$2),0), IF($E$2="Product Differentiation", HLOOKUP($C34,UPTARIFFS_IMPERFECT!$C$3:$BP$91,ROW(UPTARIFFS_IMPERFECT!$A$87)-ROW(UPTARIFFS_IMPERFECT!$A$2),0),"N/A")) -> N/A | S34: =(J34-M34)/IF($E$2="Product Homogeneity",HLOOKUP($C34,UPTARIFFS_PERFECT!$C$3:$BP$63,ROW(UPTARIFFS_PERFECT!$A$63)-ROW(UPTARIFFS_PERFECT!$A$2),0),HLOOKUP($C34,UPTARIFFS_IMPERFECT!$C$3:$BP$63,ROW(UPTARIFFS_IMPERFECT!$A$63)-ROW(UPTARIFFS_IMPERFECT!$A$2),0)) ->  | V34: 24 | AB34: 24 | AM34: =COUNTIF($AL$10:AL34,AL34)-1 -> 23 | AO34: SGR - Sugar | AV34: 24 | AW34: =IFERROR(IF($E$2="Product Homogeneity",VLOOKUP(AV34,UPTARIFFS_PERFECT!$BS:$BT,2,0), VLOOKUP(AV34,UPTARIFFS_IMPERFECT!$BS:$BT,2,0)),"") ->  | AX34: =IFERROR(IF($E$2="Product Homogeneity",HLOOKUP($AW34,UPTARIFFS_PERFECT!$C$3:$BP$75,ROW(UPTARIFFS_PERFECT!$A$72)-2,0), HLOOKUP($AW34,UPTARIFFS_IMPERFECT!$C$3:$BP$75,ROW(UPTARIFFS_IMPERFECT!$A$72)-2,0)),"") ->  | AY34: =IFERROR(IF($E$2="Product Homogeneity",HLOOKUP($AW34,UPTARIFFS_PERFECT!$C$3:$BP$91,ROW(UPTARIFFS_PERFECT!$A$88)-ROW(UPTARIFFS_PERFECT!$A$2),0), HLOOKUP($AW34,UPTARIFFS_IMPERFECT!$C$3:$BP$91,ROW(UPTARIFFS_IMPERFECT!$A$88)-ROW(UPTARIFFS_IMPERFECT!$A$2),0)),"") ->  | BB34: =COUNTIF($BA$10:BA34,BA34)-1 -> 24
B35: 25 | C35: =IF($E$2="Product Homogeneity",VLOOKUP(B35,UPTARIFFS_PERFECT!$BQ:$BR,2,0),VLOOKUP(B35,UPTARIFFS_IMPERFECT!$BQ:$BR,2,0)) -> OFD - Food products n.e.c. | D35: =IF($E$2="Product Homogeneity",VLOOKUP($C35,UPTARIFFS_PERFECT!$A:$BU,COLUMN(UPTARIFFS_PERFECT!$BJ$9),0), IF($E$2="Product Differentiation",(VLOOKUP($C35,UPTARIFFS_IMPERFECT!$A:$BU,COLUMN(UPTARIFFS_IMPERFECT!$BI$9),0)),"N/A")) -> N/A | E35: =IF($E$2="Product Homogeneity",HLOOKUP($C35,UPTARIFFS_PERFECT!$C$3:$BP$76,ROW(UPTARIFFS_PERFECT!$A$73)-2,0), IF($E$2="Product Differentiation",HLOOKUP($C35,UPTARIFFS_IMPERFECT!$C$3:$BP$76,ROW(UPTARIFFS_IMPERFECT!$A$73)-2,0), "N/A")) -> N/A | F35: =IF($E$2="Product Homogeneity",HLOOKUP($C35,UPTARIFFS_PERFECT!$C$3:$BP$76,ROW(UPTARIFFS_PERFECT!$A$72)-2,0), IF($E$2="Product Differentiation",HLOOKUP($C35,UPTARIFFS_IMPERFECT!$C$3:$BP$76,ROW(UPTARIFFS_IMPERFECT!$A$72)-2,0),"N/A")) -> N/A | G35: =IF($E$2="Product Homogeneity",HLOOKUP($C35,UPTARIFFS_PERFECT!$C$3:$BP$76,ROW(UPTARIFFS_PERFECT!$A$71)-2,0), IF($E$2="Product Differentiation",HLOOKUP($C35,UPTARIFFS_IMPERFECT!$C$3:$BP$76,ROW(UPTARIFFS_IMPERFECT!$A$71)-2,0),"N/A")) -> N/A | H35: =(D35-E35)/ HLOOKUP($C35,UPTARIFFS_PERFECT!$C$3:$BP$63,ROW(UPTARIFFS_PERFECT!$A$63)-ROW(UPTARIFFS_PERFECT!$A$2),0) ->  | J35: N/A | M35: =IF($E$2="Product Homogeneity",HLOOKUP($C35,UPTARIFFS_PERFECT!$C$3:$BP$91,ROW(UPTARIFFS_PERFECT!$A$89)-ROW(UPTARIFFS_PERFECT!$A$2),0), IF($E$2="Product Differentiation",HLOOKUP($C35,UPTARIFFS_IMPERFECT!$C$3:$BP$91,ROW(UPTARIFFS_IMPERFECT!$A$89)-ROW(UPTARIFFS_IMPERFECT!$A$2),0),"N/A")) -> N/A | O35: =IF($E$2="Product Homogeneity",HLOOKUP($C35,UPTARIFFS_PERFECT!$C$3:$BP$91,ROW(UPTARIFFS_PERFECT!$A$88)-ROW(UPTARIFFS_PERFECT!$A$2),0), IF($E$2="Product Differentiation",HLOOKUP($C35,UPTARIFFS_IMPERFECT!$C$3:$BP$91,ROW(UPTARIFFS_IMPERFECT!$A$88)-ROW(UPTARIFFS_IMPERFECT!$A$2),0),"N/A")) -> N/A | Q35: =IF($E$2="Product Homogeneity",HLOOKUP($C35,UPTARIFFS_PERFECT!$C$3:$BP$91,ROW(UPTARIFFS_PERFECT!$A$87)-ROW(UPTARIFFS_PERFECT!$A$2),0), IF($E$2="Product Differentiation", HLOOKUP($C35,UPTARIFFS_IMPERFECT!$C$3:$BP$91,ROW(UPTARIFFS_IMPERFECT!$A$87)-ROW(UPTARIFFS_IMPERFECT!$A$2),0),"N/A")) -> N/A | S35: =(J35-M35)/IF($E$2="Product Homogeneity",HLOOKUP($C35,UPTARIFFS_PERFECT!$C$3:$BP$63,ROW(UPTARIFFS_PERFECT!$A$63)-ROW(UPTARIFFS_PERFECT!$A$2),0),HLOOKUP($C35,UPTARIFFS_IMPERFECT!$C$3:$BP$63,ROW(UPTARIFFS_IMPERFECT!$A$63)-ROW(UPTARIFFS_IMPERFECT!$A$2),0)) ->  | V35: 25 | AB35: 25 | AM35: =COUNTIF($AL$10:AL35,AL35)-1 -> 24 | AO35: OFD - Food products n.e.c. | AV35: 25 | AW35: =IFERROR(IF($E$2="Product Homogeneity",VLOOKUP(AV35,UPTARIFFS_PERFECT!$BS:$BT,2,0), VLOOKUP(AV35,UPTARIFFS_IMPERFECT!$BS:$BT,2,0)),"") ->  | AX35: =IFERROR(IF($E$2="Product Homogeneity",HLOOKUP($AW35,UPTARIFFS_PERFECT!$C$3:$BP$75,ROW(UPTARIFFS_PERFECT!$A$72)-2,0), HLOOKUP($AW35,UPTARIFFS_IMPERFECT!$C$3:$BP$75,ROW(UPTARIFFS_IMPERFECT!$A$72)-2,0)),"") ->  | AY35: =IFERROR(IF($E$2="Product Homogeneity",HLOOKUP($AW35,UPTARIFFS_PERFECT!$C$3:$BP$91,ROW(UPTARIFFS_PERFECT!$A$88)-ROW(UPTARIFFS_PERFECT!$A$2),0), HLOOKUP($AW35,UPTARIFFS_IMPERFECT!$C$3:$BP$91,ROW(UPTARIFFS_IMPERFECT!$A$88)-ROW(UPTARIFFS_IMPERFECT!$A$2),0)),"") ->  | BB35: =COUNTIF($BA$10:BA35,BA35)-1 -> 25
B36: 26 | C36: =IF($E$2="Product Homogeneity",VLOOKUP(B36,UPTARIFFS_PERFECT!$BQ:$BR,2,0),VLOOKUP(B36,UPTARIFFS_IMPERFECT!$BQ:$BR,2,0)) -> B_T - Beverages and tobacco products | D36: =IF($E$2="Product Homogeneity",VLOOKUP($C36,UPTARIFFS_PERFECT!$A:$BU,COLUMN(UPTARIFFS_PERFECT!$BJ$9),0), IF($E$2="Product Differentiation",(VLOOKUP($C36,UPTARIFFS_IMPERFECT!$A:$BU,COLUMN(UPTARIFFS_IMPERFECT!$BI$9),0)),"N/A")) -> N/A | E36: =IF($E$2="Product Homogeneity",HLOOKUP($C36,UPTARIFFS_PERFECT!$C$3:$BP$76,ROW(UPTARIFFS_PERFECT!$A$73)-2,0), IF($E$2="Product Differentiation",HLOOKUP($C36,UPTARIFFS_IMPERFECT!$C$3:$BP$76,ROW(UPTARIFFS_IMPERFECT!$A$73)-2,0), "N/A")) -> N/A | F36: =IF($E$2="Product Homogeneity",HLOOKUP($C36,UPTARIFFS_PERFECT!$C$3:$BP$76,ROW(UPTARIFFS_PERFECT!$A$72)-2,0), IF($E$2="Product Differentiation",HLOOKUP($C36,UPTARIFFS_IMPERFECT!$C$3:$BP$76,ROW(UPTARIFFS_IMPERFECT!$A$72)-2,0),"N/A")) -> N/A | G36: =IF($E$2="Product Homogeneity",HLOOKUP($C36,UPTARIFFS_PERFECT!$C$3:$BP$76,ROW(UPTARIFFS_PERFECT!$A$71)-2,0), IF($E$2="Product Differentiation",HLOOKUP($C36,UPTARIFFS_IMPERFECT!$C$3:$BP$76,ROW(UPTARIFFS_IMPERFECT!$A$71)-2,0),"N/A")) -> N/A | H36: =(D36-E36)/ HLOOKUP($C36,UPTARIFFS_PERFECT!$C$3:$BP$63,ROW(UPTARIFFS_PERFECT!$A$63)-ROW(UPTARIFFS_PERFECT!$A$2),0) ->  | J36: N/A | M36: =IF($E$2="Product Homogeneity",HLOOKUP($C36,UPTARIFFS_PERFECT!$C$3:$BP$91,ROW(UPTARIFFS_PERFECT!$A$89)-ROW(UPTARIFFS_PERFECT!$A$2),0), IF($E$2="Product Differentiation",HLOOKUP($C36,UPTARIFFS_IMPERFECT!$C$3:$BP$91,ROW(UPTARIFFS_IMPERFECT!$A$89)-ROW(UPTARIFFS_IMPERFECT!$A$2),0),"N/A")) -> N/A | O36: =IF($E$2="Product Homogeneity",HLOOKUP($C36,UPTARIFFS_PERFECT!$C$3:$BP$91,ROW(UPTARIFFS_PERFECT!$A$88)-ROW(UPTARIFFS_PERFECT!$A$2),0), IF($E$2="Product Differentiation",HLOOKUP($C36,UPTARIFFS_IMPERFECT!$C$3:$BP$91,ROW(UPTARIFFS_IMPERFECT!$A$88)-ROW(UPTARIFFS_IMPERFECT!$A$2),0),"N/A")) -> N/A | Q36: =IF($E$2="Product Homogeneity",HLOOKUP($C36,UPTARIFFS_PERFECT!$C$3:$BP$91,ROW(UPTARIFFS_PERFECT!$A$87)-ROW(UPTARIFFS_PERFECT!$A$2),0), IF($E$2="Product Differentiation", HLOOKUP($C36,UPTARIFFS_IMPERFECT!$C$3:$BP$91,ROW(UPTARIFFS_IMPERFECT!$A$87)-ROW(UPTARIFFS_IMPERFECT!$A$2),0),"N/A")) -> N/A | S36: =(J36-M36)/IF($E$2="Product Homogeneity",HLOOKUP($C36,UPTARIFFS_PERFECT!$C$3:$BP$63,ROW(UPTARIFFS_PERFECT!$A$63)-ROW(UPTARIFFS_PERFECT!$A$2),0),HLOOKUP($C36,UPTARIFFS_IMPERFECT!$C$3:$BP$63,ROW(UPTARIFFS_IMPERFECT!$A$63)-ROW(UPTARIFFS_IMPERFECT!$A$2),0)) ->  | V36: 26 | AB36: 26 | AM36: =COUNTIF($AL$10:AL36,AL36)-1 -> 25 | AO36: B_T - Beverages and tobacco products | AV36: 26 | AW36: =IFERROR(IF($E$2="Product Homogeneity",VLOOKUP(AV36,UPTARIFFS_PERFECT!$BS:$BT,2,0), VLOOKUP(AV36,UPTARIFFS_IMPERFECT!$BS:$BT,2,0)),"") ->  | AX36: =IFERROR(IF($E$2="Product Homogeneity",HLOOKUP($AW36,UPTARIFFS_PERFECT!$C$3:$BP$75,ROW(UPTARIFFS_PERFECT!$A$72)-2,0), HLOOKUP($AW36,UPTARIFFS_IMPERFECT!$C$3:$BP$75,ROW(UPTARIFFS_IMPERFECT!$A$72)-2,0)),"") ->  | AY36: =IFERROR(IF($E$2="Product Homogeneity",HLOOKUP($AW36,UPTARIFFS_PERFECT!$C$3:$BP$91,ROW(UPTARIFFS_PERFECT!$A$88)-ROW(UPTARIFFS_PERFECT!$A$2),0), HLOOKUP($AW36,UPTARIFFS_IMPERFECT!$C$3:$BP$91,ROW(UPTARIFFS_IMPERFECT!$A$88)-ROW(UPTARIFFS_IMPERFECT!$A$2),0)),"") ->  | BB36: =COUNTIF($BA$10:BA36,BA36)-1 -> 26
B37: 27 | C37: =IF($E$2="Product Homogeneity",VLOOKUP(B37,UPTARIFFS_PERFECT!$BQ:$BR,2,0),VLOOKUP(B37,UPTARIFFS_IMPERFECT!$BQ:$BR,2,0)) -> TEX - Textiles | D37: =IF($E$2="Product Homogeneity",VLOOKUP($C37,UPTARIFFS_PERFECT!$A:$BU,COLUMN(UPTARIFFS_PERFECT!$BJ$9),0), IF($E$2="Product Differentiation",(VLOOKUP($C37,UPTARIFFS_IMPERFECT!$A:$BU,COLUMN(UPTARIFFS_IMPERFECT!$BI$9),0)),"N/A")) -> N/A | E37: =IF($E$2="Product Homogeneity",HLOOKUP($C37,UPTARIFFS_PERFECT!$C$3:$BP$76,ROW(UPTARIFFS_PERFECT!$A$73)-2,0), IF($E$2="Product Differentiation",HLOOKUP($C37,UPTARIFFS_IMPERFECT!$C$3:$BP$76,ROW(UPTARIFFS_IMPERFECT!$A$73)-2,0), "N/A")) -> N/A | F37: =IF($E$2="Product Homogeneity",HLOOKUP($C37,UPTARIFFS_PERFECT!$C$3:$BP$76,ROW(UPTARIFFS_PERFECT!$A$72)-2,0), IF($E$2="Product Differentiation",HLOOKUP($C37,UPTARIFFS_IMPERFECT!$C$3:$BP$76,ROW(UPTARIFFS_IMPERFECT!$A$72)-2,0),"N/A")) -> N/A | G37: =IF($E$2="Product Homogeneity",HLOOKUP($C37,UPTARIFFS_PERFECT!$C$3:$BP$76,ROW(UPTARIFFS_PERFECT!$A$71)-2,0), IF($E$2="Product Differentiation",HLOOKUP($C37,UPTARIFFS_IMPERFECT!$C$3:$BP$76,ROW(UPTARIFFS_IMPERFECT!$A$71)-2,0),"N/A")) -> N/A | H37: =(D37-E37)/ HLOOKUP($C37,UPTARIFFS_PERFECT!$C$3:$BP$63,ROW(UPTARIFFS_PERFECT!$A$63)-ROW(UPTARIFFS_PERFECT!$A$2),0) ->  | J37: N/A | M37: =IF($E$2="Product Homogeneity",HLOOKUP($C37,UPTARIFFS_PERFECT!$C$3:$BP$91,ROW(UPTARIFFS_PERFECT!$A$89)-ROW(UPTARIFFS_PERFECT!$A$2),0), IF($E$2="Product Differentiation",HLOOKUP($C37,UPTARIFFS_IMPERFECT!$C$3:$BP$91,ROW(UPTARIFFS_IMPERFECT!$A$89)-ROW(UPTARIFFS_IMPERFECT!$A$2),0),"N/A")) -> N/A | O37: =IF($E$2="Product Homogeneity",HLOOKUP($C37,UPTARIFFS_PERFECT!$C$3:$BP$91,ROW(UPTARIFFS_PERFECT!$A$88)-ROW(UPTARIFFS_PERFECT!$A$2),0), IF($E$2="Product Differentiation",HLOOKUP($C37,UPTARIFFS_IMPERFECT!$C$3:$BP$91,ROW(UPTARIFFS_IMPERFECT!$A$88)-ROW(UPTARIFFS_IMPERFECT!$A$2),0),"N/A")) -> N/A | Q37: =IF($E$2="Product Homogeneity",HLOOKUP($C37,UPTARIFFS_PERFECT!$C$3:$BP$91,ROW(UPTARIFFS_PERFECT!$A$87)-ROW(UPTARIFFS_PERFECT!$A$2),0), IF($E$2="Product Differentiation", HLOOKUP($C37,UPTARIFFS_IMPERFECT!$C$3:$BP$91,ROW(UPTARIFFS_IMPERFECT!$A$87)-ROW(UPTARIFFS_IMPERFECT!$A$2),0),"N/A")) -> N/A | S37: =(J37-M37)/IF($E$2="Product Homogeneity",HLOOKUP($C37,UPTARIFFS_PERFECT!$C$3:$BP$63,ROW(UPTARIFFS_PERFECT!$A$63)-ROW(UPTARIFFS_PERFECT!$A$2),0),HLOOKUP($C37,UPTARIFFS_IMPERFECT!$C$3:$BP$63,ROW(UPTARIFFS_IMPERFECT!$A$63)-ROW(UPTARIFFS_IMPERFECT!$A$2),0)) ->  | V37: 27 | AB37: 27 | AM37: =COUNTIF($AL$10:AL37,AL37)-1 -> 26 | AO37: TEX - Textiles | AV37: 27 | AW37: =IFERROR(IF($E$2="Product Homogeneity",VLOOKUP(AV37,UPTARIFFS_PERFECT!$BS:$BT,2,0), VLOOKUP(AV37,UPTARIFFS_IMPERFECT!$BS:$BT,2,0)),"") ->  | AX37: =IFERROR(IF($E$2="Product Homogeneity",HLOOKUP($AW37,UPTARIFFS_PERFECT!$C$3:$BP$75,ROW(UPTARIFFS_PERFECT!$A$72)-2,0), HLOOKUP($AW37,UPTARIFFS_IMPERFECT!$C$3:$BP$75,ROW(UPTARIFFS_IMPERFECT!$A$72)-2,0)),"") ->  | AY37: =IFERROR(IF($E$2="Product Homogeneity",HLOOKUP($AW37,UPTARIFFS_PERFECT!$C$3:$BP$91,ROW(UPTARIFFS_PERFECT!$A$88)-ROW(UPTARIFFS_PERFECT!$A$2),0), HLOOKUP($AW37,UPTARIFFS_IMPERFECT!$C$3:$BP$91,ROW(UPTARIFFS_IMPERFECT!$A$88)-ROW(UPTARIFFS_IMPERFECT!$A$2),0)),"") ->  | BB37: =COUNTIF($BA$10:BA37,BA37)-1 -> 27
B38: 28 | C38: =IF($E$2="Product Homogeneity",VLOOKUP(B38,UPTARIFFS_PERFECT!$BQ:$BR,2,0),VLOOKUP(B38,UPTARIFFS_IMPERFECT!$BQ:$BR,2,0)) -> WAP - Wearing apparel | D38: =IF($E$2="Product Homogeneity",VLOOKUP($C38,UPTARIFFS_PERFECT!$A:$BU,COLUMN(UPTARIFFS_PERFECT!$BJ$9),0), IF($E$2="Product Differentiation",(VLOOKUP($C38,UPTARIFFS_IMPERFECT!$A:$BU,COLUMN(UPTARIFFS_IMPERFECT!$BI$9),0)),"N/A")) -> N/A | E38: =IF($E$2="Product Homogeneity",HLOOKUP($C38,UPTARIFFS_PERFECT!$C$3:$BP$76,ROW(UPTARIFFS_PERFECT!$A$73)-2,0), IF($E$2="Product Differentiation",HLOOKUP($C38,UPTARIFFS_IMPERFECT!$C$3:$BP$76,ROW(UPTARIFFS_IMPERFECT!$A$73)-2,0), "N/A")) -> N/A | F38: =IF($E$2="Product Homogeneity",HLOOKUP($C38,UPTARIFFS_PERFECT!$C$3:$BP$76,ROW(UPTARIFFS_PERFECT!$A$72)-2,0), IF($E$2="Product Differentiation",HLOOKUP($C38,UPTARIFFS_IMPERFECT!$C$3:$BP$76,ROW(UPTARIFFS_IMPERFECT!$A$72)-2,0),"N/A")) -> N/A | G38: =IF($E$2="Product Homogeneity",HLOOKUP($C38,UPTARIFFS_PERFECT!$C$3:$BP$76,ROW(UPTARIFFS_PERFECT!$A$71)-2,0), IF($E$2="Product Differentiation",HLOOKUP($C38,UPTARIFFS_IMPERFECT!$C$3:$BP$76,ROW(UPTARIFFS_IMPERFECT!$A$71)-2,0),"N/A")) -> N/A | H38: =(D38-E38)/ HLOOKUP($C38,UPTARIFFS_PERFECT!$C$3:$BP$63,ROW(UPTARIFFS_PERFECT!$A$63)-ROW(UPTARIFFS_PERFECT!$A$2),0) ->  | J38: N/A | M38: =IF($E$2="Product Homogeneity",HLOOKUP($C38,UPTARIFFS_PERFECT!$C$3:$BP$91,ROW(UPTARIFFS_PERFECT!$A$89)-ROW(UPTARIFFS_PERFECT!$A$2),0), IF($E$2="Product Differentiation",HLOOKUP($C38,UPTARIFFS_IMPERFECT!$C$3:$BP$91,ROW(UPTARIFFS_IMPERFECT!$A$89)-ROW(UPTARIFFS_IMPERFECT!$A$2),0),"N/A")) -> N/A | O38: =IF($E$2="Product Homogeneity",HLOOKUP($C38,UPTARIFFS_PERFECT!$C$3:$BP$91,ROW(UPTARIFFS_PERFECT!$A$88)-ROW(UPTARIFFS_PERFECT!$A$2),0), IF($E$2="Product Differentiation",HLOOKUP($C38,UPTARIFFS_IMPERFECT!$C$3:$BP$91,ROW(UPTARIFFS_IMPERFECT!$A$88)-ROW(UPTARIFFS_IMPERFECT!$A$2),0),"N/A")) -> N/A | Q38: =IF($E$2="Product Homogeneity",HLOOKUP($C38,UPTARIFFS_PERFECT!$C$3:$BP$91,ROW(UPTARIFFS_PERFECT!$A$87)-ROW(UPTARIFFS_PERFECT!$A$2),0), IF($E$2="Product Differentiation", HLOOKUP($C38,UPTARIFFS_IMPERFECT!$C$3:$BP$91,ROW(UPTARIFFS_IMPERFECT!$A$87)-ROW(UPTARIFFS_IMPERFECT!$A$2),0),"N/A")) -> N/A | S38: =(J38-M38)/IF($E$2="Product Homogeneity",HLOOKUP($C38,UPTARIFFS_PERFECT!$C$3:$BP$63,ROW(UPTARIFFS_PERFECT!$A$63)-ROW(UPTARIFFS_PERFECT!$A$2),0),HLOOKUP($C38,UPTARIFFS_IMPERFECT!$C$3:$BP$63,ROW(UPTARIFFS_IMPERFECT!$A$63)-ROW(UPTARIFFS_IMPERFECT!$A$2),0)) ->  | V38: 28 | AB38: 28 | AM38: =COUNTIF($AL$10:AL38,AL38)-1 -> 27 | AO38: WAP - Wearing apparel | AV38: 28 | AW38: =IFERROR(IF($E$2="Product Homogeneity",VLOOKUP(AV38,UPTARIFFS_PERFECT!$BS:$BT,2,0), VLOOKUP(AV38,UPTARIFFS_IMPERFECT!$BS:$BT,2,0)),"") ->  | AX38: =IFERROR(IF($E$2="Product Homogeneity",HLOOKUP($AW38,UPTARIFFS_PERFECT!$C$3:$BP$75,ROW(UPTARIFFS_PERFECT!$A$72)-2,0), HLOOKUP($AW38,UPTARIFFS_IMPERFECT!$C$3:$BP$75,ROW(UPTARIFFS_IMPERFECT!$A$72)-2,0)),"") ->  | AY38: =IFERROR(IF($E$2="Product Homogeneity",HLOOKUP($AW38,UPTARIFFS_PERFECT!$C$3:$BP$91,ROW(UPTARIFFS_PERFECT!$A$88)-ROW(UPTARIFFS_PERFECT!$A$2),0), HLOOKUP($AW38,UPTARIFFS_IMPERFECT!$C$3:$BP$91,ROW(UPTARIFFS_IMPERFECT!$A$88)-ROW(UPTARIFFS_IMPERFECT!$A$2),0)),"") ->  | BB38: =COUNTIF($BA$10:BA38,BA38)-1 -> 28
B39: 29 | C39: =IF($E$2="Product Homogeneity",VLOOKUP(B39,UPTARIFFS_PERFECT!$BQ:$BR,2,0),VLOOKUP(B39,UPTARIFFS_IMPERFECT!$BQ:$BR,2,0)) -> LEA - Leather products | D39: =IF($E$2="Product Homogeneity",VLOOKUP($C39,UPTARIFFS_PERFECT!$A:$BU,COLUMN(UPTARIFFS_PERFECT!$BJ$9),0), IF($E$2="Product Differentiation",(VLOOKUP($C39,UPTARIFFS_IMPERFECT!$A:$BU,COLUMN(UPTARIFFS_IMPERFECT!$BI$9),0)),"N/A")) -> N/A | E39: =IF($E$2="Product Homogeneity",HLOOKUP($C39,UPTARIFFS_PERFECT!$C$3:$BP$76,ROW(UPTARIFFS_PERFECT!$A$73)-2,0), IF($E$2="Product Differentiation",HLOOKUP($C39,UPTARIFFS_IMPERFECT!$C$3:$BP$76,ROW(UPTARIFFS_IMPERFECT!$A$73)-2,0), "N/A")) -> N/A | F39: =IF($E$2="Product Homogeneity",HLOOKUP($C39,UPTARIFFS_PERFECT!$C$3:$BP$76,ROW(UPTARIFFS_PERFECT!$A$72)-2,0), IF($E$2="Product Differentiation",HLOOKUP($C39,UPTARIFFS_IMPERFECT!$C$3:$BP$76,ROW(UPTARIFFS_IMPERFECT!$A$72)-2,0),"N/A")) -> N/A | G39: =IF($E$2="Product Homogeneity",HLOOKUP($C39,UPTARIFFS_PERFECT!$C$3:$BP$76,ROW(UPTARIFFS_PERFECT!$A$71)-2,0), IF($E$2="Product Differentiation",HLOOKUP($C39,UPTARIFFS_IMPERFECT!$C$3:$BP$76,ROW(UPTARIFFS_IMPERFECT!$A$71)-2,0),"N/A")) -> N/A | H39: =(D39-E39)/ HLOOKUP($C39,UPTARIFFS_PERFECT!$C$3:$BP$63,ROW(UPTARIFFS_PERFECT!$A$63)-ROW(UPTARIFFS_PERFECT!$A$2),0) ->  | J39: N/A | K39: =J39-D39 ->  | M39: =IF($E$2="Product Homogeneity",HLOOKUP($C39,UPTARIFFS_PERFECT!$C$3:$BP$91,ROW(UPTARIFFS_PERFECT!$A$89)-ROW(UPTARIFFS_PERFECT!$A$2),0), IF($E$2="Product Differentiation",HLOOKUP($C39,UPTARIFFS_IMPERFECT!$C$3:$BP$91,ROW(UPTARIFFS_IMPERFECT!$A$89)-ROW(UPTARIFFS_IMPERFECT!$A$2),0),"N/A")) -> N/A | N39: =M39-E39 ->  | O39: =IF($E$2="Product Homogeneity",HLOOKUP($C39,UPTARIFFS_PERFECT!$C$3:$BP$91,ROW(UPTARIFFS_PERFECT!$A$88)-ROW(UPTARIFFS_PERFECT!$A$2),0), IF($E$2="Product Differentiation",HLOOKUP($C39,UPTARIFFS_IMPERFECT!$C$3:$BP$91,ROW(UPTARIFFS_IMPERFECT!$A$88)-ROW(UPTARIFFS_IMPERFECT!$A$2),0),"N/A")) -> N/A | P39: =O39-F39 ->  | Q39: =IF($E$2="Product Homogeneity",HLOOKUP($C39,UPTARIFFS_PERFECT!$C$3:$BP$91,ROW(UPTARIFFS_PERFECT!$A$87)-ROW(UPTARIFFS_PERFECT!$A$2),0), IF($E$2="Product Differentiation", HLOOKUP($C39,UPTARIFFS_IMPERFECT!$C$3:$BP$91,ROW(UPTARIFFS_IMPERFECT!$A$87)-ROW(UPTARIFFS_IMPERFECT!$A$2),0),"N/A")) -> N/A | R39: =Q39-G39 ->  | S39: =(J39-M39)/IF($E$2="Product Homogeneity",HLOOKUP($C39,UPTARIFFS_PERFECT!$C$3:$BP$63,ROW(UPTARIFFS_PERFECT!$A$63)-ROW(UPTARIFFS_PERFECT!$A$2),0),HLOOKUP($C39,UPTARIFFS_IMPERFECT!$C$3:$BP$63,ROW(UPTARIFFS_IMPERFECT!$A$63)-ROW(UPTARIFFS_IMPERFECT!$A$2),0)) ->  | V39: 29 | Z39: =Y39-X39 ->  | AB39: 29 | AM39: =COUNTIF($AL$10:AL39,AL39)-1 -> 28 | AN39: =AL39+AM39 ->  | AO39: =C39 -> LEA - Leather products | AV39: 29 | AW39: =IFERROR(IF($E$2="Product Homogeneity",VLOOKUP(AV39,UPTARIFFS_PERFECT!$BS:$BT,2,0), VLOOKUP(AV39,UPTARIFFS_IMPERFECT!$BS:$BT,2,0)),"") ->  | AX39: =IFERROR(IF($E$2="Product Homogeneity",HLOOKUP($AW39,UPTARIFFS_PERFECT!$C$3:$BP$75,ROW(UPTARIFFS_PERFECT!$A$72)-2,0), HLOOKUP($AW39,UPTARIFFS_IMPERFECT!$C$3:$BP$75,ROW(UPTARIFFS_IMPERFECT!$A$72)-2,0)),"") ->  | AY39: =IFERROR(IF($E$2="Product Homogeneity",HLOOKUP($AW39,UPTARIFFS_PERFECT!$C$3:$BP$91,ROW(UPTARIFFS_PERFECT!$A$88)-ROW(UPTARIFFS_PERFECT!$A$2),0), HLOOKUP($AW39,UPTARIFFS_IMPERFECT!$C$3:$BP$91,ROW(UPTARIFFS_IMPERFECT!$A$88)-ROW(UPTARIFFS_IMPERFECT!$A$2),0)),"") ->  | BB39: =COUNTIF($BA$10:BA39,BA39)-1 -> 29
B40: 30 | C40: =IF($E$2="Product Homogeneity",VLOOKUP(B40,UPTARIFFS_PERFECT!$BQ:$BR,2,0),VLOOKUP(B40,UPTARIFFS_IMPERFECT!$BQ:$BR,2,0)) -> LUM - Wood products | D40: =IF($E$2="Product Homogeneity",VLOOKUP($C40,UPTARIFFS_PERFECT!$A:$BU,COLUMN(UPTARIFFS_PERFECT!$BJ$9),0), IF($E$2="Product Differentiation",(VLOOKUP($C40,UPTARIFFS_IMPERFECT!$A:$BU,COLUMN(UPTARIFFS_IMPERFECT!$BI$9),0)),"N/A")) -> N/A | E40: =IF($E$2="Product Homogeneity",HLOOKUP($C40,UPTARIFFS_PERFECT!$C$3:$BP$76,ROW(UPTARIFFS_PERFECT!$A$73)-2,0), IF($E$2="Product Differentiation",HLOOKUP($C40,UPTARIFFS_IMPERFECT!$C$3:$BP$76,ROW(UPTARIFFS_IMPERFECT!$A$73)-2,0), "N/A")) -> N/A | F40: =IF($E$2="Product Homogeneity",HLOOKUP($C40,UPTARIFFS_PERFECT!$C$3:$BP$76,ROW(UPTARIFFS_PERFECT!$A$72)-2,0), IF($E$2="Product Differentiation",HLOOKUP($C40,UPTARIFFS_IMPERFECT!$C$3:$BP$76,ROW(UPTARIFFS_IMPERFECT!$A$72)-2,0),"N/A")) -> N/A | G40: =IF($E$2="Product Homogeneity",HLOOKUP($C40,UPTARIFFS_PERFECT!$C$3:$BP$76,ROW(UPTARIFFS_PERFECT!$A$71)-2,0), IF($E$2="Product Differentiation",HLOOKUP($C40,UPTARIFFS_IMPERFECT!$C$3:$BP$76,ROW(UPTARIFFS_IMPERFECT!$A$71)-2,0),"N/A")) -> N/A | H40: =(D40-E40)/ HLOOKUP($C40,UPTARIFFS_PERFECT!$C$3:$BP$63,ROW(UPTARIFFS_PERFECT!$A$63)-ROW(UPTARIFFS_PERFECT!$A$2),0) ->  | J40: N/A | K40: =J40-D40 ->  | M40: =IF($E$2="Product Homogeneity",HLOOKUP($C40,UPTARIFFS_PERFECT!$C$3:$BP$91,ROW(UPTARIFFS_PERFECT!$A$89)-ROW(UPTARIFFS_PERFECT!$A$2),0), IF($E$2="Product Differentiation",HLOOKUP($C40,UPTARIFFS_IMPERFECT!$C$3:$BP$91,ROW(UPTARIFFS_IMPERFECT!$A$89)-ROW(UPTARIFFS_IMPERFECT!$A$2),0),"N/A")) -> N/A | N40: =M40-E40 ->  | O40: =IF($E$2="Product Homogeneity",HLOOKUP($C40,UPTARIFFS_PERFECT!$C$3:$BP$91,ROW(UPTARIFFS_PERFECT!$A$88)-ROW(UPTARIFFS_PERFECT!$A$2),0), IF($E$2="Product Differentiation",HLOOKUP($C40,UPTARIFFS_IMPERFECT!$C$3:$BP$91,ROW(UPTARIFFS_IMPERFECT!$A$88)-ROW(UPTARIFFS_IMPERFECT!$A$2),0),"N/A")) -> N/A | P40: =O40-F40 ->  | Q40: =IF($E$2="Product Homogeneity",HLOOKUP($C40,UPTARIFFS_PERFECT!$C$3:$BP$91,ROW(UPTARIFFS_PERFECT!$A$87)-ROW(UPTARIFFS_PERFECT!$A$2),0), IF($E$2="Product Differentiation", HLOOKUP($C40,UPTARIFFS_IMPERFECT!$C$3:$BP$91,ROW(UPTARIFFS_IMPERFECT!$A$87)-ROW(UPTARIFFS_IMPERFECT!$A$2),0),"N/A")) -> N/A | R40: =Q40-G40 ->  | S40: =(J40-M40)/IF($E$2="Product Homogeneity",HLOOKUP($C40,UPTARIFFS_PERFECT!$C$3:$BP$63,ROW(UPTARIFFS_PERFECT!$A$63)-ROW(UPTARIFFS_PERFECT!$A$2),0),HLOOKUP($C40,UPTARIFFS_IMPERFECT!$C$3:$BP$63,ROW(UPTARIFFS_IMPERFECT!$A$63)-ROW(UPTARIFFS_IMPERFECT!$A$2),0)) ->  | V40: 30 | Z40: =Y40-X40 ->  | AB40: 30 | AM40: =COUNTIF($AL$10:AL40,AL40)-1 -> 29 | AN40: =AL40+AM40 ->  | AO40: =C40 -> LUM - Wood products | AV40: 30 | AW40: =IFERROR(IF($E$2="Product Homogeneity",VLOOKUP(AV40,UPTARIFFS_PERFECT!$BS:$BT,2,0), VLOOKUP(AV40,UPTARIFFS_IMPERFECT!$BS:$BT,2,0)),"") ->  | AX40: =IFERROR(IF($E$2="Product Homogeneity",HLOOKUP($AW40,UPTARIFFS_PERFECT!$C$3:$BP$75,ROW(UPTARIFFS_PERFECT!$A$72)-2,0), HLOOKUP($AW40,UPTARIFFS_IMPERFECT!$C$3:$BP$75,ROW(UPTARIFFS_IMPERFECT!$A$72)-2,0)),"") ->  | AY40: =IFERROR(IF($E$2="Product Homogeneity",HLOOKUP($AW40,UPTARIFFS_PERFECT!$C$3:$BP$91,ROW(UPTARIFFS_PERFECT!$A$88)-ROW(UPTARIFFS_PERFECT!$A$2),0), HLOOKUP($AW40,UPTARIFFS_IMPERFECT!$C$3:$BP$91,ROW(UPTARIFFS_IMPERFECT!$A$88)-ROW(UPTARIFFS_IMPERFECT!$A$2),0)),"") ->  | BB40: =COUNTIF($BA$10:BA40,BA40)-1 -> 30
B41: 31 | C41: =IF($E$2="Product Homogeneity",VLOOKUP(B41,UPTARIFFS_PERFECT!$BQ:$BR,2,0),VLOOKUP(B41,UPTARIFFS_IMPERFECT!$BQ:$BR,2,0)) -> PPP - Paper products, publishing | D41: =IF($E$2="Product Homogeneity",VLOOKUP($C41,UPTARIFFS_PERFECT!$A:$BU,COLUMN(UPTARIFFS_PERFECT!$BJ$9),0), IF($E$2="Product Differentiation",(VLOOKUP($C41,UPTARIFFS_IMPERFECT!$A:$BU,COLUMN(UPTARIFFS_IMPERFECT!$BI$9),0)),"N/A")) -> N/A | E41: =IF($E$2="Product Homogeneity",HLOOKUP($C41,UPTARIFFS_PERFECT!$C$3:$BP$76,ROW(UPTARIFFS_PERFECT!$A$73)-2,0), IF($E$2="Product Differentiation",HLOOKUP($C41,UPTARIFFS_IMPERFECT!$C$3:$BP$76,ROW(UPTARIFFS_IMPERFECT!$A$73)-2,0), "N/A")) -> N/A | F41: =IF($E$2="Product Homogeneity",HLOOKUP($C41,UPTARIFFS_PERFECT!$C$3:$BP$76,ROW(UPTARIFFS_PERFECT!$A$72)-2,0), IF($E$2="Product Differentiation",HLOOKUP($C41,UPTARIFFS_IMPERFECT!$C$3:$BP$76,ROW(UPTARIFFS_IMPERFECT!$A$72)-2,0),"N/A")) -> N/A | G41: =IF($E$2="Product Homogeneity",HLOOKUP($C41,UPTARIFFS_PERFECT!$C$3:$BP$76,ROW(UPTARIFFS_PERFECT!$A$71)-2,0), IF($E$2="Product Differentiation",HLOOKUP($C41,UPTARIFFS_IMPERFECT!$C$3:$BP$76,ROW(UPTARIFFS_IMPERFECT!$A$71)-2,0),"N/A")) -> N/A | H41: =(D41-E41)/ HLOOKUP($C41,UPTARIFFS_PERFECT!$C$3:$BP$63,ROW(UPTARIFFS_PERFECT!$A$63)-ROW(UPTARIFFS_PERFECT!$A$2),0) ->  | J41: N/A | M41: =IF($E$2="Product Homogeneity",HLOOKUP($C41,UPTARIFFS_PERFECT!$C$3:$BP$91,ROW(UPTARIFFS_PERFECT!$A$89)-ROW(UPTARIFFS_PERFECT!$A$2),0), IF($E$2="Product Differentiation",HLOOKUP($C41,UPTARIFFS_IMPERFECT!$C$3:$BP$91,ROW(UPTARIFFS_IMPERFECT!$A$89)-ROW(UPTARIFFS_IMPERFECT!$A$2),0),"N/A")) -> N/A | O41: =IF($E$2="Product Homogeneity",HLOOKUP($C41,UPTARIFFS_PERFECT!$C$3:$BP$91,ROW(UPTARIFFS_PERFECT!$A$88)-ROW(UPTARIFFS_PERFECT!$A$2),0), IF($E$2="Product Differentiation",HLOOKUP($C41,UPTARIFFS_IMPERFECT!$C$3:$BP$91,ROW(UPTARIFFS_IMPERFECT!$A$88)-ROW(UPTARIFFS_IMPERFECT!$A$2),0),"N/A")) -> N/A | Q41: =IF($E$2="Product Homogeneity",HLOOKUP($C41,UPTARIFFS_PERFECT!$C$3:$BP$91,ROW(UPTARIFFS_PERFECT!$A$87)-ROW(UPTARIFFS_PERFECT!$A$2),0), IF($E$2="Product Differentiation", HLOOKUP($C41,UPTARIFFS_IMPERFECT!$C$3:$BP$91,ROW(UPTARIFFS_IMPERFECT!$A$87)-ROW(UPTARIFFS_IMPERFECT!$A$2),0),"N/A")) -> N/A | S41: =(J41-M41)/IF($E$2="Product Homogeneity",HLOOKUP($C41,UPTARIFFS_PERFECT!$C$3:$BP$63,ROW(UPTARIFFS_PERFECT!$A$63)-ROW(UPTARIFFS_PERFECT!$A$2),0),HLOOKUP($C41,UPTARIFFS_IMPERFECT!$C$3:$BP$63,ROW(UPTARIFFS_IMPERFECT!$A$63)-ROW(UPTARIFFS_IMPERFECT!$A$2),0)) ->  | V41: 31 | AB41: 31 | AM41: =COUNTIF($AL$10:AL41,AL41)-1 -> 30 | AO41: PPP - Paper products, publishing | AV41: 31 | AW41: =IFERROR(IF($E$2="Product Homogeneity",VLOOKUP(AV41,UPTARIFFS_PERFECT!$BS:$BT,2,0), VLOOKUP(AV41,UPTARIFFS_IMPERFECT!$BS:$BT,2,0)),"") ->  | AX41: =IFERROR(IF($E$2="Product Homogeneity",HLOOKUP($AW41,UPTARIFFS_PERFECT!$C$3:$BP$75,ROW(UPTARIFFS_PERFECT!$A$72)-2,0), HLOOKUP($AW41,UPTARIFFS_IMPERFECT!$C$3:$BP$75,ROW(UPTARIFFS_IMPERFECT!$A$72)-2,0)),"") ->  | AY41: =IFERROR(IF($E$2="Product Homogeneity",HLOOKUP($AW41,UPTARIFFS_PERFECT!$C$3:$BP$91,ROW(UPTARIFFS_PERFECT!$A$88)-ROW(UPTARIFFS_PERFECT!$A$2),0), HLOOKUP($AW41,UPTARIFFS_IMPERFECT!$C$3:$BP$91,ROW(UPTARIFFS_IMPERFECT!$A$88)-ROW(UPTARIFFS_IMPERFECT!$A$2),0)),"") ->  | BB41: =COUNTIF($BA$10:BA41,BA41)-1 -> 31
B42: 32 | C42: =IF($E$2="Product Homogeneity",VLOOKUP(B42,UPTARIFFS_PERFECT!$BQ:$BR,2,0),VLOOKUP(B42,UPTARIFFS_IMPERFECT!$BQ:$BR,2,0)) -> P_C - Petroleum, coal products | D42: =IF($E$2="Product Homogeneity",VLOOKUP($C42,UPTARIFFS_PERFECT!$A:$BU,COLUMN(UPTARIFFS_PERFECT!$BJ$9),0), IF($E$2="Product Differentiation",(VLOOKUP($C42,UPTARIFFS_IMPERFECT!$A:$BU,COLUMN(UPTARIFFS_IMPERFECT!$BI$9),0)),"N/A")) -> N/A | E42: =IF($E$2="Product Homogeneity",HLOOKUP($C42,UPTARIFFS_PERFECT!$C$3:$BP$76,ROW(UPTARIFFS_PERFECT!$A$73)-2,0), IF($E$2="Product Differentiation",HLOOKUP($C42,UPTARIFFS_IMPERFECT!$C$3:$BP$76,ROW(UPTARIFFS_IMPERFECT!$A$73)-2,0), "N/A")) -> N/A | F42: =IF($E$2="Product Homogeneity",HLOOKUP($C42,UPTARIFFS_PERFECT!$C$3:$BP$76,ROW(UPTARIFFS_PERFECT!$A$72)-2,0), IF($E$2="Product Differentiation",HLOOKUP($C42,UPTARIFFS_IMPERFECT!$C$3:$BP$76,ROW(UPTARIFFS_IMPERFECT!$A$72)-2,0),"N/A")) -> N/A | G42: =IF($E$2="Product Homogeneity",HLOOKUP($C42,UPTARIFFS_PERFECT!$C$3:$BP$76,ROW(UPTARIFFS_PERFECT!$A$71)-2,0), IF($E$2="Product Differentiation",HLOOKUP($C42,UPTARIFFS_IMPERFECT!$C$3:$BP$76,ROW(UPTARIFFS_IMPERFECT!$A$71)-2,0),"N/A")) -> N/A | H42: =(D42-E42)/ HLOOKUP($C42,UPTARIFFS_PERFECT!$C$3:$BP$63,ROW(UPTARIFFS_PERFECT!$A$63)-ROW(UPTARIFFS_PERFECT!$A$2),0) ->  | J42: N/A | M42: =IF($E$2="Product Homogeneity",HLOOKUP($C42,UPTARIFFS_PERFECT!$C$3:$BP$91,ROW(UPTARIFFS_PERFECT!$A$89)-ROW(UPTARIFFS_PERFECT!$A$2),0), IF($E$2="Product Differentiation",HLOOKUP($C42,UPTARIFFS_IMPERFECT!$C$3:$BP$91,ROW(UPTARIFFS_IMPERFECT!$A$89)-ROW(UPTARIFFS_IMPERFECT!$A$2),0),"N/A")) -> N/A | O42: =IF($E$2="Product Homogeneity",HLOOKUP($C42,UPTARIFFS_PERFECT!$C$3:$BP$91,ROW(UPTARIFFS_PERFECT!$A$88)-ROW(UPTARIFFS_PERFECT!$A$2),0), IF($E$2="Product Differentiation",HLOOKUP($C42,UPTARIFFS_IMPERFECT!$C$3:$BP$91,ROW(UPTARIFFS_IMPERFECT!$A$88)-ROW(UPTARIFFS_IMPERFECT!$A$2),0),"N/A")) -> N/A | Q42: =IF($E$2="Product Homogeneity",HLOOKUP($C42,UPTARIFFS_PERFECT!$C$3:$BP$91,ROW(UPTARIFFS_PERFECT!$A$87)-ROW(UPTARIFFS_PERFECT!$A$2),0), IF($E$2="Product Differentiation", HLOOKUP($C42,UPTARIFFS_IMPERFECT!$C$3:$BP$91,ROW(UPTARIFFS_IMPERFECT!$A$87)-ROW(UPTARIFFS_IMPERFECT!$A$2),0),"N/A")) -> N/A | S42: =(J42-M42)/IF($E$2="Product Homogeneity",HLOOKUP($C42,UPTARIFFS_PERFECT!$C$3:$BP$63,ROW(UPTARIFFS_PERFECT!$A$63)-ROW(UPTARIFFS_PERFECT!$A$2),0),HLOOKUP($C42,UPTARIFFS_IMPERFECT!$C$3:$BP$63,ROW(UPTARIFFS_IMPERFECT!$A$63)-ROW(UPTARIFFS_IMPERFECT!$A$2),0)) ->  | V42: 32 | AB42: 32 | AM42: =COUNTIF($AL$10:AL42,AL42)-1 -> 31 | AO42: P_C - Petroleum, coal products | AV42: 32 | AW42: =IFERROR(IF($E$2="Product Homogeneity",VLOOKUP(AV42,UPTARIFFS_PERFECT!$BS:$BT,2,0), VLOOKUP(AV42,UPTARIFFS_IMPERFECT!$BS:$BT,2,0)),"") ->  | AX42: =IFERROR(IF($E$2="Product Homogeneity",HLOOKUP($AW42,UPTARIFFS_PERFECT!$C$3:$BP$75,ROW(UPTARIFFS_PERFECT!$A$72)-2,0), HLOOKUP($AW42,UPTARIFFS_IMPERFECT!$C$3:$BP$75,ROW(UPTARIFFS_IMPERFECT!$A$72)-2,0)),"") ->  | AY42: =IFERROR(IF($E$2="Product Homogeneity",HLOOKUP($AW42,UPTARIFFS_PERFECT!$C$3:$BP$91,ROW(UPTARIFFS_PERFECT!$A$88)-ROW(UPTARIFFS_PERFECT!$A$2),0), HLOOKUP($AW42,UPTARIFFS_IMPERFECT!$C$3:$BP$91,ROW(UPTARIFFS_IMPERFECT!$A$88)-ROW(UPTARIFFS_IMPERFECT!$A$2),0)),"") ->  | BB42: =COUNTIF($BA$10:BA42,BA42)-1 -> 32
B43: 33 | C43: =IF($E$2="Product Homogeneity",VLOOKUP(B43,UPTARIFFS_PERFECT!$BQ:$BR,2,0),VLOOKUP(B43,UPTARIFFS_IMPERFECT!$BQ:$BR,2,0)) -> CRP - Chemical, rubber, plastic products | D43: =IF($E$2="Product Homogeneity",VLOOKUP($C43,UPTARIFFS_PERFECT!$A:$BU,COLUMN(UPTARIFFS_PERFECT!$BJ$9),0), IF($E$2="Product Differentiation",(VLOOKUP($C43,UPTARIFFS_IMPERFECT!$A:$BU,COLUMN(UPTARIFFS_IMPERFECT!$BI$9),0)),"N/A")) -> N/A | E43: =IF($E$2="Product Homogeneity",HLOOKUP($C43,UPTARIFFS_PERFECT!$C$3:$BP$76,ROW(UPTARIFFS_PERFECT!$A$73)-2,0), IF($E$2="Product Differentiation",HLOOKUP($C43,UPTARIFFS_IMPERFECT!$C$3:$BP$76,ROW(UPTARIFFS_IMPERFECT!$A$73)-2,0), "N/A")) -> N/A | F43: =IF($E$2="Product Homogeneity",HLOOKUP($C43,UPTARIFFS_PERFECT!$C$3:$BP$76,ROW(UPTARIFFS_PERFECT!$A$72)-2,0), IF($E$2="Product Differentiation",HLOOKUP($C43,UPTARIFFS_IMPERFECT!$C$3:$BP$76,ROW(UPTARIFFS_IMPERFECT!$A$72)-2,0),"N/A")) -> N/A | G43: =IF($E$2="Product Homogeneity",HLOOKUP($C43,UPTARIFFS_PERFECT!$C$3:$BP$76,ROW(UPTARIFFS_PERFECT!$A$71)-2,0), IF($E$2="Product Differentiation",HLOOKUP($C43,UPTARIFFS_IMPERFECT!$C$3:$BP$76,ROW(UPTARIFFS_IMPERFECT!$A$71)-2,0),"N/A")) -> N/A | H43: =(D43-E43)/ HLOOKUP($C43,UPTARIFFS_PERFECT!$C$3:$BP$63,ROW(UPTARIFFS_PERFECT!$A$63)-ROW(UPTARIFFS_PERFECT!$A$2),0) ->  | J43: N/A | M43: =IF($E$2="Product Homogeneity",HLOOKUP($C43,UPTARIFFS_PERFECT!$C$3:$BP$91,ROW(UPTARIFFS_PERFECT!$A$89)-ROW(UPTARIFFS_PERFECT!$A$2),0), IF($E$2="Product Differentiation",HLOOKUP($C43,UPTARIFFS_IMPERFECT!$C$3:$BP$91,ROW(UPTARIFFS_IMPERFECT!$A$89)-ROW(UPTARIFFS_IMPERFECT!$A$2),0),"N/A")) -> N/A | O43: =IF($E$2="Product Homogeneity",HLOOKUP($C43,UPTARIFFS_PERFECT!$C$3:$BP$91,ROW(UPTARIFFS_PERFECT!$A$88)-ROW(UPTARIFFS_PERFECT!$A$2),0), IF($E$2="Product Differentiation",HLOOKUP($C43,UPTARIFFS_IMPERFECT!$C$3:$BP$91,ROW(UPTARIFFS_IMPERFECT!$A$88)-ROW(UPTARIFFS_IMPERFECT!$A$2),0),"N/A")) -> N/A | Q43: =IF($E$2="Product Homogeneity",HLOOKUP($C43,UPTARIFFS_PERFECT!$C$3:$BP$91,ROW(UPTARIFFS_PERFECT!$A$87)-ROW(UPTARIFFS_PERFECT!$A$2),0), IF($E$2="Product Differentiation", HLOOKUP($C43,UPTARIFFS_IMPERFECT!$C$3:$BP$91,ROW(UPTARIFFS_IMPERFECT!$A$87)-ROW(UPTARIFFS_IMPERFECT!$A$2),0),"N/A")) -> N/A | S43: =(J43-M43)/IF($E$2="Product Homogeneity",HLOOKUP($C43,UPTARIFFS_PERFECT!$C$3:$BP$63,ROW(UPTARIFFS_PERFECT!$A$63)-ROW(UPTARIFFS_PERFECT!$A$2),0),HLOOKUP($C43,UPTARIFFS_IMPERFECT!$C$3:$BP$63,ROW(UPTARIFFS_IMPERFECT!$A$63)-ROW(UPTARIFFS_IMPERFECT!$A$2),0)) ->  | V43: 33 | AB43: 33 | AM43: =COUNTIF($AL$10:AL43,AL43)-1 -> 32 | AO43: CRP - Chemical, rubber, plastic products | AV43: 33 | AW43: =IFERROR(IF($E$2="Product Homogeneity",VLOOKUP(AV43,UPTARIFFS_PERFECT!$BS:$BT,2,0), VLOOKUP(AV43,UPTARIFFS_IMPERFECT!$BS:$BT,2,0)),"") ->  | AX43: =IFERROR(IF($E$2="Product Homogeneity",HLOOKUP($AW43,UPTARIFFS_PERFECT!$C$3:$BP$75,ROW(UPTARIFFS_PERFECT!$A$72)-2,0), HLOOKUP($AW43,UPTARIFFS_IMPERFECT!$C$3:$BP$75,ROW(UPTARIFFS_IMPERFECT!$A$72)-2,0)),"") ->  | AY43: =IFERROR(IF($E$2="Product Homogeneity",HLOOKUP($AW43,UPTARIFFS_PERFECT!$C$3:$BP$91,ROW(UPTARIFFS_PERFECT!$A$88)-ROW(UPTARIFFS_PERFECT!$A$2),0), HLOOKUP($AW43,UPTARIFFS_IMPERFECT!$C$3:$BP$91,ROW(UPTARIFFS_IMPERFECT!$A$88)-ROW(UPTARIFFS_IMPERFECT!$A$2),0)),"") ->  | BB43: =COUNTIF($BA$10:BA43,BA43)-1 -> 33
B44: 34 | C44: =IF($E$2="Product Homogeneity",VLOOKUP(B44,UPTARIFFS_PERFECT!$BQ:$BR,2,0),VLOOKUP(B44,UPTARIFFS_IMPERFECT!$BQ:$BR,2,0)) -> NMM - Mineral products n.e.c. | D44: =IF($E$2="Product Homogeneity",VLOOKUP($C44,UPTARIFFS_PERFECT!$A:$BU,COLUMN(UPTARIFFS_PERFECT!$BJ$9),0), IF($E$2="Product Differentiation",(VLOOKUP($C44,UPTARIFFS_IMPERFECT!$A:$BU,COLUMN(UPTARIFFS_IMPERFECT!$BI$9),0)),"N/A")) -> N/A | E44: =IF($E$2="Product Homogeneity",HLOOKUP($C44,UPTARIFFS_PERFECT!$C$3:$BP$76,ROW(UPTARIFFS_PERFECT!$A$73)-2,0), IF($E$2="Product Differentiation",HLOOKUP($C44,UPTARIFFS_IMPERFECT!$C$3:$BP$76,ROW(UPTARIFFS_IMPERFECT!$A$73)-2,0), "N/A")) -> N/A | F44: =IF($E$2="Product Homogeneity",HLOOKUP($C44,UPTARIFFS_PERFECT!$C$3:$BP$76,ROW(UPTARIFFS_PERFECT!$A$72)-2,0), IF($E$2="Product Differentiation",HLOOKUP($C44,UPTARIFFS_IMPERFECT!$C$3:$BP$76,ROW(UPTARIFFS_IMPERFECT!$A$72)-2,0),"N/A")) -> N/A | G44: =IF($E$2="Product Homogeneity",HLOOKUP($C44,UPTARIFFS_PERFECT!$C$3:$BP$76,ROW(UPTARIFFS_PERFECT!$A$71)-2,0), IF($E$2="Product Differentiation",HLOOKUP($C44,UPTARIFFS_IMPERFECT!$C$3:$BP$76,ROW(UPTARIFFS_IMPERFECT!$A$71)-2,0),"N/A")) -> N/A | H44: =(D44-E44)/ HLOOKUP($C44,UPTARIFFS_PERFECT!$C$3:$BP$63,ROW(UPTARIFFS_PERFECT!$A$63)-ROW(UPTARIFFS_PERFECT!$A$2),0) ->  | J44: N/A | M44: =IF($E$2="Product Homogeneity",HLOOKUP($C44,UPTARIFFS_PERFECT!$C$3:$BP$91,ROW(UPTARIFFS_PERFECT!$A$89)-ROW(UPTARIFFS_PERFECT!$A$2),0), IF($E$2="Product Differentiation",HLOOKUP($C44,UPTARIFFS_IMPERFECT!$C$3:$BP$91,ROW(UPTARIFFS_IMPERFECT!$A$89)-ROW(UPTARIFFS_IMPERFECT!$A$2),0),"N/A")) -> N/A | O44: =IF($E$2="Product Homogeneity",HLOOKUP($C44,UPTARIFFS_PERFECT!$C$3:$BP$91,ROW(UPTARIFFS_PERFECT!$A$88)-ROW(UPTARIFFS_PERFECT!$A$2),0), IF($E$2="Product Differentiation",HLOOKUP($C44,UPTARIFFS_IMPERFECT!$C$3:$BP$91,ROW(UPTARIFFS_IMPERFECT!$A$88)-ROW(UPTARIFFS_IMPERFECT!$A$2),0),"N/A")) -> N/A | Q44: =IF($E$2="Product Homogeneity",HLOOKUP($C44,UPTARIFFS_PERFECT!$C$3:$BP$91,ROW(UPTARIFFS_PERFECT!$A$87)-ROW(UPTARIFFS_PERFECT!$A$2),0), IF($E$2="Product Differentiation", HLOOKUP($C44,UPTARIFFS_IMPERFECT!$C$3:$BP$91,ROW(UPTARIFFS_IMPERFECT!$A$87)-ROW(UPTARIFFS_IMPERFECT!$A$2),0),"N/A")) -> N/A | S44: =(J44-M44)/IF($E$2="Product Homogeneity",HLOOKUP($C44,UPTARIFFS_PERFECT!$C$3:$BP$63,ROW(UPTARIFFS_PERFECT!$A$63)-ROW(UPTARIFFS_PERFECT!$A$2),0),HLOOKUP($C44,UPTARIFFS_IMPERFECT!$C$3:$BP$63,ROW(UPTARIFFS_IMPERFECT!$A$63)-ROW(UPTARIFFS_IMPERFECT!$A$2),0)) ->  | V44: 34 | AB44: 34 | AM44: =COUNTIF($AL$10:AL44,AL44)-1 -> 33 | AO44: NMM - Mineral products n.e.c. | AV44: 34 | AW44: =IFERROR(IF($E$2="Product Homogeneity",VLOOKUP(AV44,UPTARIFFS_PERFECT!$BS:$BT,2,0), VLOOKUP(AV44,UPTARIFFS_IMPERFECT!$BS:$BT,2,0)),"") ->  | AX44: =IFERROR(IF($E$2="Product Homogeneity",HLOOKUP($AW44,UPTARIFFS_PERFECT!$C$3:$BP$75,ROW(UPTARIFFS_PERFECT!$A$72)-2,0), HLOOKUP($AW44,UPTARIFFS_IMPERFECT!$C$3:$BP$75,ROW(UPTARIFFS_IMPERFECT!$A$72)-2,0)),"") ->  | AY44: =IFERROR(IF($E$2="Product Homogeneity",HLOOKUP($AW44,UPTARIFFS_PERFECT!$C$3:$BP$91,ROW(UPTARIFFS_PERFECT!$A$88)-ROW(UPTARIFFS_PERFECT!$A$2),0), HLOOKUP($AW44,UPTARIFFS_IMPERFECT!$C$3:$BP$91,ROW(UPTARIFFS_IMPERFECT!$A$88)-ROW(UPTARIFFS_IMPERFECT!$A$2),0)),"") ->  | BB44: =COUNTIF($BA$10:BA44,BA44)-1 -> 34
B45: 35 | C45: =IF($E$2="Product Homogeneity",VLOOKUP(B45,UPTARIFFS_PERFECT!$BQ:$BR,2,0),VLOOKUP(B45,UPTARIFFS_IMPERFECT!$BQ:$BR,2,0)) -> I_S - Ferrous metals | D45: =IF($E$2="Product Homogeneity",VLOOKUP($C45,UPTARIFFS_PERFECT!$A:$BU,COLUMN(UPTARIFFS_PERFECT!$BJ$9),0), IF($E$2="Product Differentiation",(VLOOKUP($C45,UPTARIFFS_IMPERFECT!$A:$BU,COLUMN(UPTARIFFS_IMPERFECT!$BI$9),0)),"N/A")) -> N/A | E45: =IF($E$2="Product Homogeneity",HLOOKUP($C45,UPTARIFFS_PERFECT!$C$3:$BP$76,ROW(UPTARIFFS_PERFECT!$A$73)-2,0), IF($E$2="Product Differentiation",HLOOKUP($C45,UPTARIFFS_IMPERFECT!$C$3:$BP$76,ROW(UPTARIFFS_IMPERFECT!$A$73)-2,0), "N/A")) -> N/A | F45: =IF($E$2="Product Homogeneity",HLOOKUP($C45,UPTARIFFS_PERFECT!$C$3:$BP$76,ROW(UPTARIFFS_PERFECT!$A$72)-2,0), IF($E$2="Product Differentiation",HLOOKUP($C45,UPTARIFFS_IMPERFECT!$C$3:$BP$76,ROW(UPTARIFFS_IMPERFECT!$A$72)-2,0),"N/A")) -> N/A | G45: =IF($E$2="Product Homogeneity",HLOOKUP($C45,UPTARIFFS_PERFECT!$C$3:$BP$76,ROW(UPTARIFFS_PERFECT!$A$71)-2,0), IF($E$2="Product Differentiation",HLOOKUP($C45,UPTARIFFS_IMPERFECT!$C$3:$BP$76,ROW(UPTARIFFS_IMPERFECT!$A$71)-2,0),"N/A")) -> N/A | H45: =(D45-E45)/ HLOOKUP($C45,UPTARIFFS_PERFECT!$C$3:$BP$63,ROW(UPTARIFFS_PERFECT!$A$63)-ROW(UPTARIFFS_PERFECT!$A$2),0) ->  | J45: N/A | M45: =IF($E$2="Product Homogeneity",HLOOKUP($C45,UPTARIFFS_PERFECT!$C$3:$BP$91,ROW(UPTARIFFS_PERFECT!$A$89)-ROW(UPTARIFFS_PERFECT!$A$2),0), IF($E$2="Product Differentiation",HLOOKUP($C45,UPTARIFFS_IMPERFECT!$C$3:$BP$91,ROW(UPTARIFFS_IMPERFECT!$A$89)-ROW(UPTARIFFS_IMPERFECT!$A$2),0),"N/A")) -> N/A | O45: =IF($E$2="Product Homogeneity",HLOOKUP($C45,UPTARIFFS_PERFECT!$C$3:$BP$91,ROW(UPTARIFFS_PERFECT!$A$88)-ROW(UPTARIFFS_PERFECT!$A$2),0), IF($E$2="Product Differentiation",HLOOKUP($C45,UPTARIFFS_IMPERFECT!$C$3:$BP$91,ROW(UPTARIFFS_IMPERFECT!$A$88)-ROW(UPTARIFFS_IMPERFECT!$A$2),0),"N/A")) -> N/A | Q45: =IF($E$2="Product Homogeneity",HLOOKUP($C45,UPTARIFFS_PERFECT!$C$3:$BP$91,ROW(UPTARIFFS_PERFECT!$A$87)-ROW(UPTARIFFS_PERFECT!$A$2),0), IF($E$2="Product Differentiation", HLOOKUP($C45,UPTARIFFS_IMPERFECT!$C$3:$BP$91,ROW(UPTARIFFS_IMPERFECT!$A$87)-ROW(UPTARIFFS_IMPERFECT!$A$2),0),"N/A")) -> N/A | S45: =(J45-M45)/IF($E$2="Product Homogeneity",HLOOKUP($C45,UPTARIFFS_PERFECT!$C$3:$BP$63,ROW(UPTARIFFS_PERFECT!$A$63)-ROW(UPTARIFFS_PERFECT!$A$2),0),HLOOKUP($C45,UPTARIFFS_IMPERFECT!$C$3:$BP$63,ROW(UPTARIFFS_IMPERFECT!$A$63)-ROW(UPTARIFFS_IMPERFECT!$A$2),0)) ->  | V45: 35 | AB45: 35 | AM45: =COUNTIF($AL$10:AL45,AL45)-1 -> 34 | AO45: I_S - Ferrous metals | AV45: 35 | AW45: =IFERROR(IF($E$2="Product Homogeneity",VLOOKUP(AV45,UPTARIFFS_PERFECT!$BS:$BT,2,0), VLOOKUP(AV45,UPTARIFFS_IMPERFECT!$BS:$BT,2,0)),"") ->  | AX45: =IFERROR(IF($E$2="Product Homogeneity",HLOOKUP($AW45,UPTARIFFS_PERFECT!$C$3:$BP$75,ROW(UPTARIFFS_PERFECT!$A$72)-2,0), HLOOKUP($AW45,UPTARIFFS_IMPERFECT!$C$3:$BP$75,ROW(UPTARIFFS_IMPERFECT!$A$72)-2,0)),"") ->  | AY45: =IFERROR(IF($E$2="Product Homogeneity",HLOOKUP($AW45,UPTARIFFS_PERFECT!$C$3:$BP$91,ROW(UPTARIFFS_PERFECT!$A$88)-ROW(UPTARIFFS_PERFECT!$A$2),0), HLOOKUP($AW45,UPTARIFFS_IMPERFECT!$C$3:$BP$91,ROW(UPTARIFFS_IMPERFECT!$A$88)-ROW(UPTARIFFS_IMPERFECT!$A$2),0)),"") ->  | BB45: =COUNTIF($BA$10:BA45,BA45)-1 -> 35
B46: 36 | C46: =IF($E$2="Product Homogeneity",VLOOKUP(B46,UPTARIFFS_PERFECT!$BQ:$BR,2,0),VLOOKUP(B46,UPTARIFFS_IMPERFECT!$BQ:$BR,2,0)) -> NFM - Metals n.e.c. | D46: =IF($E$2="Product Homogeneity",VLOOKUP($C46,UPTARIFFS_PERFECT!$A:$BU,COLUMN(UPTARIFFS_PERFECT!$BJ$9),0), IF($E$2="Product Differentiation",(VLOOKUP($C46,UPTARIFFS_IMPERFECT!$A:$BU,COLUMN(UPTARIFFS_IMPERFECT!$BI$9),0)),"N/A")) -> N/A | E46: =IF($E$2="Product Homogeneity",HLOOKUP($C46,UPTARIFFS_PERFECT!$C$3:$BP$76,ROW(UPTARIFFS_PERFECT!$A$73)-2,0), IF($E$2="Product Differentiation",HLOOKUP($C46,UPTARIFFS_IMPERFECT!$C$3:$BP$76,ROW(UPTARIFFS_IMPERFECT!$A$73)-2,0), "N/A")) -> N/A | F46: =IF($E$2="Product Homogeneity",HLOOKUP($C46,UPTARIFFS_PERFECT!$C$3:$BP$76,ROW(UPTARIFFS_PERFECT!$A$72)-2,0), IF($E$2="Product Differentiation",HLOOKUP($C46,UPTARIFFS_IMPERFECT!$C$3:$BP$76,ROW(UPTARIFFS_IMPERFECT!$A$72)-2,0),"N/A")) -> N/A | G46: =IF($E$2="Product Homogeneity",HLOOKUP($C46,UPTARIFFS_PERFECT!$C$3:$BP$76,ROW(UPTARIFFS_PERFECT!$A$71)-2,0), IF($E$2="Product Differentiation",HLOOKUP($C46,UPTARIFFS_IMPERFECT!$C$3:$BP$76,ROW(UPTARIFFS_IMPERFECT!$A$71)-2,0),"N/A")) -> N/A | H46: =(D46-E46)/ HLOOKUP($C46,UPTARIFFS_PERFECT!$C$3:$BP$63,ROW(UPTARIFFS_PERFECT!$A$63)-ROW(UPTARIFFS_PERFECT!$A$2),0) ->  | J46: N/A | M46: =IF($E$2="Product Homogeneity",HLOOKUP($C46,UPTARIFFS_PERFECT!$C$3:$BP$91,ROW(UPTARIFFS_PERFECT!$A$89)-ROW(UPTARIFFS_PERFECT!$A$2),0), IF($E$2="Product Differentiation",HLOOKUP($C46,UPTARIFFS_IMPERFECT!$C$3:$BP$91,ROW(UPTARIFFS_IMPERFECT!$A$89)-ROW(UPTARIFFS_IMPERFECT!$A$2),0),"N/A")) -> N/A | O46: =IF($E$2="Product Homogeneity",HLOOKUP($C46,UPTARIFFS_PERFECT!$C$3:$BP$91,ROW(UPTARIFFS_PERFECT!$A$88)-ROW(UPTARIFFS_PERFECT!$A$2),0), IF($E$2="Product Differentiation",HLOOKUP($C46,UPTARIFFS_IMPERFECT!$C$3:$BP$91,ROW(UPTARIFFS_IMPERFECT!$A$88)-ROW(UPTARIFFS_IMPERFECT!$A$2),0),"N/A")) -> N/A | Q46: =IF($E$2="Product Homogeneity",HLOOKUP($C46,UPTARIFFS_PERFECT!$C$3:$BP$91,ROW(UPTARIFFS_PERFECT!$A$87)-ROW(UPTARIFFS_PERFECT!$A$2),0), IF($E$2="Product Differentiation", HLOOKUP($C46,UPTARIFFS_IMPERFECT!$C$3:$BP$91,ROW(UPTARIFFS_IMPERFECT!$A$87)-ROW(UPTARIFFS_IMPERFECT!$A$2),0),"N/A")) -> N/A | S46: =(J46-M46)/IF($E$2="Product Homogeneity",HLOOKUP($C46,UPTARIFFS_PERFECT!$C$3:$BP$63,ROW(UPTARIFFS_PERFECT!$A$63)-ROW(UPTARIFFS_PERFECT!$A$2),0),HLOOKUP($C46,UPTARIFFS_IMPERFECT!$C$3:$BP$63,ROW(UPTARIFFS_IMPERFECT!$A$63)-ROW(UPTARIFFS_IMPERFECT!$A$2),0)) ->  | V46: 36 | AB46: 36 | AM46: =COUNTIF($AL$10:AL46,AL46)-1 -> 35 | AO46: NFM - Metals n.e.c. | AV46: 36 | AW46: =IFERROR(IF($E$2="Product Homogeneity",VLOOKUP(AV46,UPTARIFFS_PERFECT!$BS:$BT,2,0), VLOOKUP(AV46,UPTARIFFS_IMPERFECT!$BS:$BT,2,0)),"") ->  | AX46: =IFERROR(IF($E$2="Product Homogeneity",HLOOKUP($AW46,UPTARIFFS_PERFECT!$C$3:$BP$75,ROW(UPTARIFFS_PERFECT!$A$72)-2,0), HLOOKUP($AW46,UPTARIFFS_IMPERFECT!$C$3:$BP$75,ROW(UPTARIFFS_IMPERFECT!$A$72)-2,0)),"") ->  | AY46: =IFERROR(IF($E$2="Product Homogeneity",HLOOKUP($AW46,UPTARIFFS_PERFECT!$C$3:$BP$91,ROW(UPTARIFFS_PERFECT!$A$88)-ROW(UPTARIFFS_PERFECT!$A$2),0), HLOOKUP($AW46,UPTARIFFS_IMPERFECT!$C$3:$BP$91,ROW(UPTARIFFS_IMPERFECT!$A$88)-ROW(UPTARIFFS_IMPERFECT!$A$2),0)),"") ->  | BB46: =COUNTIF($BA$10:BA46,BA46)-1 -> 36
B47: 37 | C47: =IF($E$2="Product Homogeneity",VLOOKUP(B47,UPTARIFFS_PERFECT!$BQ:$BR,2,0),VLOOKUP(B47,UPTARIFFS_IMPERFECT!$BQ:$BR,2,0)) -> FMP - Metal products | D47: =IF($E$2="Product Homogeneity",VLOOKUP($C47,UPTARIFFS_PERFECT!$A:$BU,COLUMN(UPTARIFFS_PERFECT!$BJ$9),0), IF($E$2="Product Differentiation",(VLOOKUP($C47,UPTARIFFS_IMPERFECT!$A:$BU,COLUMN(UPTARIFFS_IMPERFECT!$BI$9),0)),"N/A")) -> N/A | E47: =IF($E$2="Product Homogeneity",HLOOKUP($C47,UPTARIFFS_PERFECT!$C$3:$BP$76,ROW(UPTARIFFS_PERFECT!$A$73)-2,0), IF($E$2="Product Differentiation",HLOOKUP($C47,UPTARIFFS_IMPERFECT!$C$3:$BP$76,ROW(UPTARIFFS_IMPERFECT!$A$73)-2,0), "N/A")) -> N/A | F47: =IF($E$2="Product Homogeneity",HLOOKUP($C47,UPTARIFFS_PERFECT!$C$3:$BP$76,ROW(UPTARIFFS_PERFECT!$A$72)-2,0), IF($E$2="Product Differentiation",HLOOKUP($C47,UPTARIFFS_IMPERFECT!$C$3:$BP$76,ROW(UPTARIFFS_IMPERFECT!$A$72)-2,0),"N/A")) -> N/A | G47: =IF($E$2="Product Homogeneity",HLOOKUP($C47,UPTARIFFS_PERFECT!$C$3:$BP$76,ROW(UPTARIFFS_PERFECT!$A$71)-2,0), IF($E$2="Product Differentiation",HLOOKUP($C47,UPTARIFFS_IMPERFECT!$C$3:$BP$76,ROW(UPTARIFFS_IMPERFECT!$A$71)-2,0),"N/A")) -> N/A | H47: =(D47-E47)/ HLOOKUP($C47,UPTARIFFS_PERFECT!$C$3:$BP$63,ROW(UPTARIFFS_PERFECT!$A$63)-ROW(UPTARIFFS_PERFECT!$A$2),0) ->  | J47: N/A | M47: =IF($E$2="Product Homogeneity",HLOOKUP($C47,UPTARIFFS_PERFECT!$C$3:$BP$91,ROW(UPTARIFFS_PERFECT!$A$89)-ROW(UPTARIFFS_PERFECT!$A$2),0), IF($E$2="Product Differentiation",HLOOKUP($C47,UPTARIFFS_IMPERFECT!$C$3:$BP$91,ROW(UPTARIFFS_IMPERFECT!$A$89)-ROW(UPTARIFFS_IMPERFECT!$A$2),0),"N/A")) -> N/A | O47: =IF($E$2="Product Homogeneity",HLOOKUP($C47,UPTARIFFS_PERFECT!$C$3:$BP$91,ROW(UPTARIFFS_PERFECT!$A$88)-ROW(UPTARIFFS_PERFECT!$A$2),0), IF($E$2="Product Differentiation",HLOOKUP($C47,UPTARIFFS_IMPERFECT!$C$3:$BP$91,ROW(UPTARIFFS_IMPERFECT!$A$88)-ROW(UPTARIFFS_IMPERFECT!$A$2),0),"N/A")) -> N/A | Q47: =IF($E$2="Product Homogeneity",HLOOKUP($C47,UPTARIFFS_PERFECT!$C$3:$BP$91,ROW(UPTARIFFS_PERFECT!$A$87)-ROW(UPTARIFFS_PERFECT!$A$2),0), IF($E$2="Product Differentiation", HLOOKUP($C47,UPTARIFFS_IMPERFECT!$C$3:$BP$91,ROW(UPTARIFFS_IMPERFECT!$A$87)-ROW(UPTARIFFS_IMPERFECT!$A$2),0),"N/A")) -> N/A | S47: =(J47-M47)/IF($E$2="Product Homogeneity",HLOOKUP($C47,UPTARIFFS_PERFECT!$C$3:$BP$63,ROW(UPTARIFFS_PERFECT!$A$63)-ROW(UPTARIFFS_PERFECT!$A$2),0),HLOOKUP($C47,UPTARIFFS_IMPERFECT!$C$3:$BP$63,ROW(UPTARIFFS_IMPERFECT!$A$63)-ROW(UPTARIFFS_IMPERFECT!$A$2),0)) ->  | V47: 37 | AB47: 37 | AM47: =COUNTIF($AL$10:AL47,AL47)-1 -> 36 | AO47: FMP - Metal products | AV47: 37 | AW47: =IFERROR(IF($E$2="Product Homogeneity",VLOOKUP(AV47,UPTARIFFS_PERFECT!$BS:$BT,2,0), VLOOKUP(AV47,UPTARIFFS_IMPERFECT!$BS:$BT,2,0)),"") ->  | AX47: =IFERROR(IF($E$2="Product Homogeneity",HLOOKUP($AW47,UPTARIFFS_PERFECT!$C$3:$BP$75,ROW(UPTARIFFS_PERFECT!$A$72)-2,0), HLOOKUP($AW47,UPTARIFFS_IMPERFECT!$C$3:$BP$75,ROW(UPTARIFFS_IMPERFECT!$A$72)-2,0)),"") ->  | AY47: =IFERROR(IF($E$2="Product Homogeneity",HLOOKUP($AW47,UPTARIFFS_PERFECT!$C$3:$BP$91,ROW(UPTARIFFS_PERFECT!$A$88)-ROW(UPTARIFFS_PERFECT!$A$2),0), HLOOKUP($AW47,UPTARIFFS_IMPERFECT!$C$3:$BP$91,ROW(UPTARIFFS_IMPERFECT!$A$88)-ROW(UPTARIFFS_IMPERFECT!$A$2),0)),"") ->  | BB47: =COUNTIF($BA$10:BA47,BA47)-1 -> 37
B48: 38 | C48: =IF($E$2="Product Homogeneity",VLOOKUP(B48,UPTARIFFS_PERFECT!$BQ:$BR,2,0),VLOOKUP(B48,UPTARIFFS_IMPERFECT!$BQ:$BR,2,0)) -> MVH - Motor vehicules and parts | D48: =IF($E$2="Product Homogeneity",VLOOKUP($C48,UPTARIFFS_PERFECT!$A:$BU,COLUMN(UPTARIFFS_PERFECT!$BJ$9),0), IF($E$2="Product Differentiation",(VLOOKUP($C48,UPTARIFFS_IMPERFECT!$A:$BU,COLUMN(UPTARIFFS_IMPERFECT!$BI$9),0)),"N/A")) -> N/A | E48: =IF($E$2="Product Homogeneity",HLOOKUP($C48,UPTARIFFS_PERFECT!$C$3:$BP$76,ROW(UPTARIFFS_PERFECT!$A$73)-2,0), IF($E$2="Product Differentiation",HLOOKUP($C48,UPTARIFFS_IMPERFECT!$C$3:$BP$76,ROW(UPTARIFFS_IMPERFECT!$A$73)-2,0), "N/A")) -> N/A | F48: =IF($E$2="Product Homogeneity",HLOOKUP($C48,UPTARIFFS_PERFECT!$C$3:$BP$76,ROW(UPTARIFFS_PERFECT!$A$72)-2,0), IF($E$2="Product Differentiation",HLOOKUP($C48,UPTARIFFS_IMPERFECT!$C$3:$BP$76,ROW(UPTARIFFS_IMPERFECT!$A$72)-2,0),"N/A")) -> N/A | G48: =IF($E$2="Product Homogeneity",HLOOKUP($C48,UPTARIFFS_PERFECT!$C$3:$BP$76,ROW(UPTARIFFS_PERFECT!$A$71)-2,0), IF($E$2="Product Differentiation",HLOOKUP($C48,UPTARIFFS_IMPERFECT!$C$3:$BP$76,ROW(UPTARIFFS_IMPERFECT!$A$71)-2,0),"N/A")) -> N/A | H48: =(D48-E48)/ HLOOKUP($C48,UPTARIFFS_PERFECT!$C$3:$BP$63,ROW(UPTARIFFS_PERFECT!$A$63)-ROW(UPTARIFFS_PERFECT!$A$2),0) ->  | J48: N/A | M48: =IF($E$2="Product Homogeneity",HLOOKUP($C48,UPTARIFFS_PERFECT!$C$3:$BP$91,ROW(UPTARIFFS_PERFECT!$A$89)-ROW(UPTARIFFS_PERFECT!$A$2),0), IF($E$2="Product Differentiation",HLOOKUP($C48,UPTARIFFS_IMPERFECT!$C$3:$BP$91,ROW(UPTARIFFS_IMPERFECT!$A$89)-ROW(UPTARIFFS_IMPERFECT!$A$2),0),"N/A")) -> N/A | O48: =IF($E$2="Product Homogeneity",HLOOKUP($C48,UPTARIFFS_PERFECT!$C$3:$BP$91,ROW(UPTARIFFS_PERFECT!$A$88)-ROW(UPTARIFFS_PERFECT!$A$2),0), IF($E$2="Product Differentiation",HLOOKUP($C48,UPTARIFFS_IMPERFECT!$C$3:$BP$91,ROW(UPTARIFFS_IMPERFECT!$A$88)-ROW(UPTARIFFS_IMPERFECT!$A$2),0),"N/A")) -> N/A | Q48: =IF($E$2="Product Homogeneity",HLOOKUP($C48,UPTARIFFS_PERFECT!$C$3:$BP$91,ROW(UPTARIFFS_PERFECT!$A$87)-ROW(UPTARIFFS_PERFECT!$A$2),0), IF($E$2="Product Differentiation", HLOOKUP($C48,UPTARIFFS_IMPERFECT!$C$3:$BP$91,ROW(UPTARIFFS_IMPERFECT!$A$87)-ROW(UPTARIFFS_IMPERFECT!$A$2),0),"N/A")) -> N/A | S48: =(J48-M48)/IF($E$2="Product Homogeneity",HLOOKUP($C48,UPTARIFFS_PERFECT!$C$3:$BP$63,ROW(UPTARIFFS_PERFECT!$A$63)-ROW(UPTARIFFS_PERFECT!$A$2),0),HLOOKUP($C48,UPTARIFFS_IMPERFECT!$C$3:$BP$63,ROW(UPTARIFFS_IMPERFECT!$A$63)-ROW(UPTARIFFS_IMPERFECT!$A$2),0)) ->  | V48: 38 | AB48: 38 | AM48: =COUNTIF($AL$10:AL48,AL48)-1 -> 37 | AO48: MVH - Motor vehicules and parts | AV48: 38 | AW48: =IFERROR(IF($E$2="Product Homogeneity",VLOOKUP(AV48,UPTARIFFS_PERFECT!$BS:$BT,2,0), VLOOKUP(AV48,UPTARIFFS_IMPERFECT!$BS:$BT,2,0)),"") ->  | AX48: =IFERROR(IF($E$2="Product Homogeneity",HLOOKUP($AW48,UPTARIFFS_PERFECT!$C$3:$BP$75,ROW(UPTARIFFS_PERFECT!$A$72)-2,0), HLOOKUP($AW48,UPTARIFFS_IMPERFECT!$C$3:$BP$75,ROW(UPTARIFFS_IMPERFECT!$A$72)-2,0)),"") ->  | AY48: =IFERROR(IF($E$2="Product Homogeneity",HLOOKUP($AW48,UPTARIFFS_PERFECT!$C$3:$BP$91,ROW(UPTARIFFS_PERFECT!$A$88)-ROW(UPTARIFFS_PERFECT!$A$2),0), HLOOKUP($AW48,UPTARIFFS_IMPERFECT!$C$3:$BP$91,ROW(UPTARIFFS_IMPERFECT!$A$88)-ROW(UPTARIFFS_IMPERFECT!$A$2),0)),"") ->  | BB48: =COUNTIF($BA$10:BA48,BA48)-1 -> 38
B49: 39 | C49: =IF($E$2="Product Homogeneity",VLOOKUP(B49,UPTARIFFS_PERFECT!$BQ:$BR,2,0),VLOOKUP(B49,UPTARIFFS_IMPERFECT!$BQ:$BR,2,0)) -> OTN - Transport equipment n.e.c. | D49: =IF($E$2="Product Homogeneity",VLOOKUP($C49,UPTARIFFS_PERFECT!$A:$BU,COLUMN(UPTARIFFS_PERFECT!$BJ$9),0), IF($E$2="Product Differentiation",(VLOOKUP($C49,UPTARIFFS_IMPERFECT!$A:$BU,COLUMN(UPTARIFFS_IMPERFECT!$BI$9),0)),"N/A")) -> N/A | E49: =IF($E$2="Product Homogeneity",HLOOKUP($C49,UPTARIFFS_PERFECT!$C$3:$BP$76,ROW(UPTARIFFS_PERFECT!$A$73)-2,0), IF($E$2="Product Differentiation",HLOOKUP($C49,UPTARIFFS_IMPERFECT!$C$3:$BP$76,ROW(UPTARIFFS_IMPERFECT!$A$73)-2,0), "N/A")) -> N/A | F49: =IF($E$2="Product Homogeneity",HLOOKUP($C49,UPTARIFFS_PERFECT!$C$3:$BP$76,ROW(UPTARIFFS_PERFECT!$A$72)-2,0), IF($E$2="Product Differentiation",HLOOKUP($C49,UPTARIFFS_IMPERFECT!$C$3:$BP$76,ROW(UPTARIFFS_IMPERFECT!$A$72)-2,0),"N/A")) -> N/A | G49: =IF($E$2="Product Homogeneity",HLOOKUP($C49,UPTARIFFS_PERFECT!$C$3:$BP$76,ROW(UPTARIFFS_PERFECT!$A$71)-2,0), IF($E$2="Product Differentiation",HLOOKUP($C49,UPTARIFFS_IMPERFECT!$C$3:$BP$76,ROW(UPTARIFFS_IMPERFECT!$A$71)-2,0),"N/A")) -> N/A | H49: =(D49-E49)/ HLOOKUP($C49,UPTARIFFS_PERFECT!$C$3:$BP$63,ROW(UPTARIFFS_PERFECT!$A$63)-ROW(UPTARIFFS_PERFECT!$A$2),0) ->  | J49: N/A | M49: =IF($E$2="Product Homogeneity",HLOOKUP($C49,UPTARIFFS_PERFECT!$C$3:$BP$91,ROW(UPTARIFFS_PERFECT!$A$89)-ROW(UPTARIFFS_PERFECT!$A$2),0), IF($E$2="Product Differentiation",HLOOKUP($C49,UPTARIFFS_IMPERFECT!$C$3:$BP$91,ROW(UPTARIFFS_IMPERFECT!$A$89)-ROW(UPTARIFFS_IMPERFECT!$A$2),0),"N/A")) -> N/A | O49: =IF($E$2="Product Homogeneity",HLOOKUP($C49,UPTARIFFS_PERFECT!$C$3:$BP$91,ROW(UPTARIFFS_PERFECT!$A$88)-ROW(UPTARIFFS_PERFECT!$A$2),0), IF($E$2="Product Differentiation",HLOOKUP($C49,UPTARIFFS_IMPERFECT!$C$3:$BP$91,ROW(UPTARIFFS_IMPERFECT!$A$88)-ROW(UPTARIFFS_IMPERFECT!$A$2),0),"N/A")) -> N/A | Q49: =IF($E$2="Product Homogeneity",HLOOKUP($C49,UPTARIFFS_PERFECT!$C$3:$BP$91,ROW(UPTARIFFS_PERFECT!$A$87)-ROW(UPTARIFFS_PERFECT!$A$2),0), IF($E$2="Product Differentiation", HLOOKUP($C49,UPTARIFFS_IMPERFECT!$C$3:$BP$91,ROW(UPTARIFFS_IMPERFECT!$A$87)-ROW(UPTARIFFS_IMPERFECT!$A$2),0),"N/A")) -> N/A | S49: =(J49-M49)/IF($E$2="Product Homogeneity",HLOOKUP($C49,UPTARIFFS_PERFECT!$C$3:$BP$63,ROW(UPTARIFFS_PERFECT!$A$63)-ROW(UPTARIFFS_PERFECT!$A$2),0),HLOOKUP($C49,UPTARIFFS_IMPERFECT!$C$3:$BP$63,ROW(UPTARIFFS_IMPERFECT!$A$63)-ROW(UPTARIFFS_IMPERFECT!$A$2),0)) ->  | V49: 39 | AB49: 39 | AM49: =COUNTIF($AL$10:AL49,AL49)-1 -> 38 | AO49: OTN - Transport equipment n.e.c. | AV49: 39 | AW49: =IFERROR(IF($E$2="Product Homogeneity",VLOOKUP(AV49,UPTARIFFS_PERFECT!$BS:$BT,2,0), VLOOKUP(AV49,UPTARIFFS_IMPERFECT!$BS:$BT,2,0)),"") ->  | AX49: =IFERROR(IF($E$2="Product Homogeneity",HLOOKUP($AW49,UPTARIFFS_PERFECT!$C$3:$BP$75,ROW(UPTARIFFS_PERFECT!$A$72)-2,0), HLOOKUP($AW49,UPTARIFFS_IMPERFECT!$C$3:$BP$75,ROW(UPTARIFFS_IMPERFECT!$A$72)-2,0)),"") ->  | AY49: =IFERROR(IF($E$2="Product Homogeneity",HLOOKUP($AW49,UPTARIFFS_PERFECT!$C$3:$BP$91,ROW(UPTARIFFS_PERFECT!$A$88)-ROW(UPTARIFFS_PERFECT!$A$2),0), HLOOKUP($AW49,UPTARIFFS_IMPERFECT!$C$3:$BP$91,ROW(UPTARIFFS_IMPERFECT!$A$88)-ROW(UPTARIFFS_IMPERFECT!$A$2),0)),"") ->  | BB49: =COUNTIF($BA$10:BA49,BA49)-1 -> 39
B50: 40 | C50: =IF($E$2="Product Homogeneity",VLOOKUP(B50,UPTARIFFS_PERFECT!$BQ:$BR,2,0),VLOOKUP(B50,UPTARIFFS_IMPERFECT!$BQ:$BR,2,0)) -> ELE - Electronic equipment | D50: =IF($E$2="Product Homogeneity",VLOOKUP($C50,UPTARIFFS_PERFECT!$A:$BU,COLUMN(UPTARIFFS_PERFECT!$BJ$9),0), IF($E$2="Product Differentiation",(VLOOKUP($C50,UPTARIFFS_IMPERFECT!$A:$BU,COLUMN(UPTARIFFS_IMPERFECT!$BI$9),0)),"N/A")) -> N/A | E50: =IF($E$2="Product Homogeneity",HLOOKUP($C50,UPTARIFFS_PERFECT!$C$3:$BP$76,ROW(UPTARIFFS_PERFECT!$A$73)-2,0), IF($E$2="Product Differentiation",HLOOKUP($C50,UPTARIFFS_IMPERFECT!$C$3:$BP$76,ROW(UPTARIFFS_IMPERFECT!$A$73)-2,0), "N/A")) -> N/A | F50: =IF($E$2="Product Homogeneity",HLOOKUP($C50,UPTARIFFS_PERFECT!$C$3:$BP$76,ROW(UPTARIFFS_PERFECT!$A$72)-2,0), IF($E$2="Product Differentiation",HLOOKUP($C50,UPTARIFFS_IMPERFECT!$C$3:$BP$76,ROW(UPTARIFFS_IMPERFECT!$A$72)-2,0),"N/A")) -> N/A | G50: =IF($E$2="Product Homogeneity",HLOOKUP($C50,UPTARIFFS_PERFECT!$C$3:$BP$76,ROW(UPTARIFFS_PERFECT!$A$71)-2,0), IF($E$2="Product Differentiation",HLOOKUP($C50,UPTARIFFS_IMPERFECT!$C$3:$BP$76,ROW(UPTARIFFS_IMPERFECT!$A$71)-2,0),"N/A")) -> N/A | H50: =(D50-E50)/ HLOOKUP($C50,UPTARIFFS_PERFECT!$C$3:$BP$63,ROW(UPTARIFFS_PERFECT!$A$63)-ROW(UPTARIFFS_PERFECT!$A$2),0) ->  | J50: N/A | M50: =IF($E$2="Product Homogeneity",HLOOKUP($C50,UPTARIFFS_PERFECT!$C$3:$BP$91,ROW(UPTARIFFS_PERFECT!$A$89)-ROW(UPTARIFFS_PERFECT!$A$2),0), IF($E$2="Product Differentiation",HLOOKUP($C50,UPTARIFFS_IMPERFECT!$C$3:$BP$91,ROW(UPTARIFFS_IMPERFECT!$A$89)-ROW(UPTARIFFS_IMPERFECT!$A$2),0),"N/A")) -> N/A | O50: =IF($E$2="Product Homogeneity",HLOOKUP($C50,UPTARIFFS_PERFECT!$C$3:$BP$91,ROW(UPTARIFFS_PERFECT!$A$88)-ROW(UPTARIFFS_PERFECT!$A$2),0), IF($E$2="Product Differentiation",HLOOKUP($C50,UPTARIFFS_IMPERFECT!$C$3:$BP$91,ROW(UPTARIFFS_IMPERFECT!$A$88)-ROW(UPTARIFFS_IMPERFECT!$A$2),0),"N/A")) -> N/A | Q50: =IF($E$2="Product Homogeneity",HLOOKUP($C50,UPTARIFFS_PERFECT!$C$3:$BP$91,ROW(UPTARIFFS_PERFECT!$A$87)-ROW(UPTARIFFS_PERFECT!$A$2),0), IF($E$2="Product Differentiation", HLOOKUP($C50,UPTARIFFS_IMPERFECT!$C$3:$BP$91,ROW(UPTARIFFS_IMPERFECT!$A$87)-ROW(UPTARIFFS_IMPERFECT!$A$2),0),"N/A")) -> N/A | S50: =(J50-M50)/IF($E$2="Product Homogeneity",HLOOKUP($C50,UPTARIFFS_PERFECT!$C$3:$BP$63,ROW(UPTARIFFS_PERFECT!$A$63)-ROW(UPTARIFFS_PERFECT!$A$2),0),HLOOKUP($C50,UPTARIFFS_IMPERFECT!$C$3:$BP$63,ROW(UPTARIFFS_IMPERFECT!$A$63)-ROW(UPTARIFFS_IMPERFECT!$A$2),0)) ->  | V50: 40 | AB50: 40 | AM50: =COUNTIF($AL$10:AL50,AL50)-1 -> 39 | AN50: =AL50+AM50 ->  | AO50: ELE - Electronic equipment | AV50: 40 | AW50: =IFERROR(IF($E$2="Product Homogeneity",VLOOKUP(AV50,UPTARIFFS_PERFECT!$BS:$BT,2,0), VLOOKUP(AV50,UPTARIFFS_IMPERFECT!$BS:$BT,2,0)),"") ->  | AX50: =IFERROR(IF($E$2="Product Homogeneity",HLOOKUP($AW50,UPTARIFFS_PERFECT!$C$3:$BP$75,ROW(UPTARIFFS_PERFECT!$A$72)-2,0), HLOOKUP($AW50,UPTARIFFS_IMPERFECT!$C$3:$BP$75,ROW(UPTARIFFS_IMPERFECT!$A$72)-2,0)),"") ->  | AY50: =IFERROR(IF($E$2="Product Homogeneity",HLOOKUP($AW50,UPTARIFFS_PERFECT!$C$3:$BP$91,ROW(UPTARIFFS_PERFECT!$A$88)-ROW(UPTARIFFS_PERFECT!$A$2),0), HLOOKUP($AW50,UPTARIFFS_IMPERFECT!$C$3:$BP$91,ROW(UPTARIFFS_IMPERFECT!$A$88)-ROW(UPTARIFFS_IMPERFECT!$A$2),0)),"") ->  | BB50: =COUNTIF($BA$10:BA50,BA50)-1 -> 40
B51: 41 | C51: =IF($E$2="Product Homogeneity",VLOOKUP(B51,UPTARIFFS_PERFECT!$BQ:$BR,2,0),VLOOKUP(B51,UPTARIFFS_IMPERFECT!$BQ:$BR,2,0)) -> OME - Machinery and equipment n.e.c. | D51: =IF($E$2="Product Homogeneity",VLOOKUP($C51,UPTARIFFS_PERFECT!$A:$BU,COLUMN(UPTARIFFS_PERFECT!$BJ$9),0), IF($E$2="Product Differentiation",(VLOOKUP($C51,UPTARIFFS_IMPERFECT!$A:$BU,COLUMN(UPTARIFFS_IMPERFECT!$BI$9),0)),"N/A")) -> N/A | E51: =IF($E$2="Product Homogeneity",HLOOKUP($C51,UPTARIFFS_PERFECT!$C$3:$BP$76,ROW(UPTARIFFS_PERFECT!$A$73)-2,0), IF($E$2="Product Differentiation",HLOOKUP($C51,UPTARIFFS_IMPERFECT!$C$3:$BP$76,ROW(UPTARIFFS_IMPERFECT!$A$73)-2,0), "N/A")) -> N/A | F51: =IF($E$2="Product Homogeneity",HLOOKUP($C51,UPTARIFFS_PERFECT!$C$3:$BP$76,ROW(UPTARIFFS_PERFECT!$A$72)-2,0), IF($E$2="Product Differentiation",HLOOKUP($C51,UPTARIFFS_IMPERFECT!$C$3:$BP$76,ROW(UPTARIFFS_IMPERFECT!$A$72)-2,0),"N/A")) -> N/A | G51: =IF($E$2="Product Homogeneity",HLOOKUP($C51,UPTARIFFS_PERFECT!$C$3:$BP$76,ROW(UPTARIFFS_PERFECT!$A$71)-2,0), IF($E$2="Product Differentiation",HLOOKUP($C51,UPTARIFFS_IMPERFECT!$C$3:$BP$76,ROW(UPTARIFFS_IMPERFECT!$A$71)-2,0),"N/A")) -> N/A | H51: =(D51-E51)/ HLOOKUP($C51,UPTARIFFS_PERFECT!$C$3:$BP$63,ROW(UPTARIFFS_PERFECT!$A$63)-ROW(UPTARIFFS_PERFECT!$A$2),0) ->  | J51: N/A | K51: =J51-D51 ->  | M51: =IF($E$2="Product Homogeneity",HLOOKUP($C51,UPTARIFFS_PERFECT!$C$3:$BP$91,ROW(UPTARIFFS_PERFECT!$A$89)-ROW(UPTARIFFS_PERFECT!$A$2),0), IF($E$2="Product Differentiation",HLOOKUP($C51,UPTARIFFS_IMPERFECT!$C$3:$BP$91,ROW(UPTARIFFS_IMPERFECT!$A$89)-ROW(UPTARIFFS_IMPERFECT!$A$2),0),"N/A")) -> N/A | N51: =M51-E51 ->  | O51: =IF($E$2="Product Homogeneity",HLOOKUP($C51,UPTARIFFS_PERFECT!$C$3:$BP$91,ROW(UPTARIFFS_PERFECT!$A$88)-ROW(UPTARIFFS_PERFECT!$A$2),0), IF($E$2="Product Differentiation",HLOOKUP($C51,UPTARIFFS_IMPERFECT!$C$3:$BP$91,ROW(UPTARIFFS_IMPERFECT!$A$88)-ROW(UPTARIFFS_IMPERFECT!$A$2),0),"N/A")) -> N/A | P51: =O51-F51 ->  | Q51: =IF($E$2="Product Homogeneity",HLOOKUP($C51,UPTARIFFS_PERFECT!$C$3:$BP$91,ROW(UPTARIFFS_PERFECT!$A$87)-ROW(UPTARIFFS_PERFECT!$A$2),0), IF($E$2="Product Differentiation", HLOOKUP($C51,UPTARIFFS_IMPERFECT!$C$3:$BP$91,ROW(UPTARIFFS_IMPERFECT!$A$87)-ROW(UPTARIFFS_IMPERFECT!$A$2),0),"N/A")) -> N/A | R51: =Q51-G51 ->  | S51: =(J51-M51)/IF($E$2="Product Homogeneity",HLOOKUP($C51,UPTARIFFS_PERFECT!$C$3:$BP$63,ROW(UPTARIFFS_PERFECT!$A$63)-ROW(UPTARIFFS_PERFECT!$A$2),0),HLOOKUP($C51,UPTARIFFS_IMPERFECT!$C$3:$BP$63,ROW(UPTARIFFS_IMPERFECT!$A$63)-ROW(UPTARIFFS_IMPERFECT!$A$2),0)) ->  | V51: 41 | Z51: =Y51-X51 ->  | AB51: 41 | AM51: =COUNTIF($AL$10:AL51,AL51)-1 -> 40 | AO51: =C51 -> OME - Machinery and equipment n.e.c. | AV51: 41 | AW51: =IFERROR(IF($E$2="Product Homogeneity",VLOOKUP(AV51,UPTARIFFS_PERFECT!$BS:$BT,2,0), VLOOKUP(AV51,UPTARIFFS_IMPERFECT!$BS:$BT,2,0)),"") ->  | AX51: =IFERROR(IF($E$2="Product Homogeneity",HLOOKUP($AW51,UPTARIFFS_PERFECT!$C$3:$BP$75,ROW(UPTARIFFS_PERFECT!$A$72)-2,0), HLOOKUP($AW51,UPTARIFFS_IMPERFECT!$C$3:$BP$75,ROW(UPTARIFFS_IMPERFECT!$A$72)-2,0)),"") ->  | AY51: =IFERROR(IF($E$2="Product Homogeneity",HLOOKUP($AW51,UPTARIFFS_PERFECT!$C$3:$BP$91,ROW(UPTARIFFS_PERFECT!$A$88)-ROW(UPTARIFFS_PERFECT!$A$2),0), HLOOKUP($AW51,UPTARIFFS_IMPERFECT!$C$3:$BP$91,ROW(UPTARIFFS_IMPERFECT!$A$88)-ROW(UPTARIFFS_IMPERFECT!$A$2),0)),"") ->  | BB51: =COUNTIF($BA$10:BA51,BA51)-1 -> 41
B52: 42 | C52: =IF($E$2="Product Homogeneity",VLOOKUP(B52,UPTARIFFS_PERFECT!$BQ:$BR,2,0),VLOOKUP(B52,UPTARIFFS_IMPERFECT!$BQ:$BR,2,0)) -> OMF - Manufactures n.e.c. | D52: =IF($E$2="Product Homogeneity",VLOOKUP($C52,UPTARIFFS_PERFECT!$A:$BU,COLUMN(UPTARIFFS_PERFECT!$BJ$9),0), IF($E$2="Product Differentiation",(VLOOKUP($C52,UPTARIFFS_IMPERFECT!$A:$BU,COLUMN(UPTARIFFS_IMPERFECT!$BI$9),0)),"N/A")) -> N/A | E52: =IF($E$2="Product Homogeneity",HLOOKUP($C52,UPTARIFFS_PERFECT!$C$3:$BP$76,ROW(UPTARIFFS_PERFECT!$A$73)-2,0), IF($E$2="Product Differentiation",HLOOKUP($C52,UPTARIFFS_IMPERFECT!$C$3:$BP$76,ROW(UPTARIFFS_IMPERFECT!$A$73)-2,0), "N/A")) -> N/A | F52: =IF($E$2="Product Homogeneity",HLOOKUP($C52,UPTARIFFS_PERFECT!$C$3:$BP$76,ROW(UPTARIFFS_PERFECT!$A$72)-2,0), IF($E$2="Product Differentiation",HLOOKUP($C52,UPTARIFFS_IMPERFECT!$C$3:$BP$76,ROW(UPTARIFFS_IMPERFECT!$A$72)-2,0),"N/A")) -> N/A | G52: =IF($E$2="Product Homogeneity",HLOOKUP($C52,UPTARIFFS_PERFECT!$C$3:$BP$76,ROW(UPTARIFFS_PERFECT!$A$71)-2,0), IF($E$2="Product Differentiation",HLOOKUP($C52,UPTARIFFS_IMPERFECT!$C$3:$BP$76,ROW(UPTARIFFS_IMPERFECT!$A$71)-2,0),"N/A")) -> N/A | H52: =(D52-E52)/ HLOOKUP($C52,UPTARIFFS_PERFECT!$C$3:$BP$63,ROW(UPTARIFFS_PERFECT!$A$63)-ROW(UPTARIFFS_PERFECT!$A$2),0) ->  | J52: N/A | M52: =IF($E$2="Product Homogeneity",HLOOKUP($C52,UPTARIFFS_PERFECT!$C$3:$BP$91,ROW(UPTARIFFS_PERFECT!$A$89)-ROW(UPTARIFFS_PERFECT!$A$2),0), IF($E$2="Product Differentiation",HLOOKUP($C52,UPTARIFFS_IMPERFECT!$C$3:$BP$91,ROW(UPTARIFFS_IMPERFECT!$A$89)-ROW(UPTARIFFS_IMPERFECT!$A$2),0),"N/A")) -> N/A | O52: =IF($E$2="Product Homogeneity",HLOOKUP($C52,UPTARIFFS_PERFECT!$C$3:$BP$91,ROW(UPTARIFFS_PERFECT!$A$88)-ROW(UPTARIFFS_PERFECT!$A$2),0), IF($E$2="Product Differentiation",HLOOKUP($C52,UPTARIFFS_IMPERFECT!$C$3:$BP$91,ROW(UPTARIFFS_IMPERFECT!$A$88)-ROW(UPTARIFFS_IMPERFECT!$A$2),0),"N/A")) -> N/A | Q52: =IF($E$2="Product Homogeneity",HLOOKUP($C52,UPTARIFFS_PERFECT!$C$3:$BP$91,ROW(UPTARIFFS_PERFECT!$A$87)-ROW(UPTARIFFS_PERFECT!$A$2),0), IF($E$2="Product Differentiation", HLOOKUP($C52,UPTARIFFS_IMPERFECT!$C$3:$BP$91,ROW(UPTARIFFS_IMPERFECT!$A$87)-ROW(UPTARIFFS_IMPERFECT!$A$2),0),"N/A")) -> N/A | S52: =(J52-M52)/IF($E$2="Product Homogeneity",HLOOKUP($C52,UPTARIFFS_PERFECT!$C$3:$BP$63,ROW(UPTARIFFS_PERFECT!$A$63)-ROW(UPTARIFFS_PERFECT!$A$2),0),HLOOKUP($C52,UPTARIFFS_IMPERFECT!$C$3:$BP$63,ROW(UPTARIFFS_IMPERFECT!$A$63)-ROW(UPTARIFFS_IMPERFECT!$A$2),0)) ->  | V52: 42 | Z52: =Y52-X52 ->  | AB52: 42 | AM52: =COUNTIF($AL$10:AL52,AL52)-1 -> 41 | AO52: OMF - Manufactures n.e.c. | AV52: 42 | AW52: =IFERROR(IF($E$2="Product Homogeneity",VLOOKUP(AV52,UPTARIFFS_PERFECT!$BS:$BT,2,0), VLOOKUP(AV52,UPTARIFFS_IMPERFECT!$BS:$BT,2,0)),"") ->  | AX52: =IFERROR(IF($E$2="Product Homogeneity",HLOOKUP($AW52,UPTARIFFS_PERFECT!$C$3:$BP$75,ROW(UPTARIFFS_PERFECT!$A$72)-2,0), HLOOKUP($AW52,UPTARIFFS_IMPERFECT!$C$3:$BP$75,ROW(UPTARIFFS_IMPERFECT!$A$72)-2,0)),"") ->  | AY52: =IFERROR(IF($E$2="Product Homogeneity",HLOOKUP($AW52,UPTARIFFS_PERFECT!$C$3:$BP$91,ROW(UPTARIFFS_PERFECT!$A$88)-ROW(UPTARIFFS_PERFECT!$A$2),0), HLOOKUP($AW52,UPTARIFFS_IMPERFECT!$C$3:$BP$91,ROW(UPTARIFFS_IMPERFECT!$A$88)-ROW(UPTARIFFS_IMPERFECT!$A$2),0)),"") ->  | BB52: =COUNTIF($BA$10:BA52,BA52)-1 -> 42
B53: 43 | C53: =IF($E$2="Product Homogeneity",VLOOKUP(B53,UPTARIFFS_PERFECT!$BQ:$BR,2,0),VLOOKUP(B53,UPTARIFFS_IMPERFECT!$BQ:$BR,2,0)) -> ELY - Electricity | D53: =IF($E$2="Product Homogeneity",VLOOKUP($C53,UPTARIFFS_PERFECT!$A:$BU,COLUMN(UPTARIFFS_PERFECT!$BJ$9),0), IF($E$2="Product Differentiation",(VLOOKUP($C53,UPTARIFFS_IMPERFECT!$A:$BU,COLUMN(UPTARIFFS_IMPERFECT!$BI$9),0)),"N/A")) -> N/A | E53: =IF($E$2="Product Homogeneity",HLOOKUP($C53,UPTARIFFS_PERFECT!$C$3:$BP$76,ROW(UPTARIFFS_PERFECT!$A$73)-2,0), IF($E$2="Product Differentiation",HLOOKUP($C53,UPTARIFFS_IMPERFECT!$C$3:$BP$76,ROW(UPTARIFFS_IMPERFECT!$A$73)-2,0), "N/A")) -> N/A | F53: =IF($E$2="Product Homogeneity",HLOOKUP($C53,UPTARIFFS_PERFECT!$C$3:$BP$76,ROW(UPTARIFFS_PERFECT!$A$72)-2,0), IF($E$2="Product Differentiation",HLOOKUP($C53,UPTARIFFS_IMPERFECT!$C$3:$BP$76,ROW(UPTARIFFS_IMPERFECT!$A$72)-2,0),"N/A")) -> N/A | G53: =IF($E$2="Product Homogeneity",HLOOKUP($C53,UPTARIFFS_PERFECT!$C$3:$BP$76,ROW(UPTARIFFS_PERFECT!$A$71)-2,0), IF($E$2="Product Differentiation",HLOOKUP($C53,UPTARIFFS_IMPERFECT!$C$3:$BP$76,ROW(UPTARIFFS_IMPERFECT!$A$71)-2,0),"N/A")) -> N/A | H53: =(D53-E53)/ HLOOKUP($C53,UPTARIFFS_PERFECT!$C$3:$BP$63,ROW(UPTARIFFS_PERFECT!$A$63)-ROW(UPTARIFFS_PERFECT!$A$2),0) ->  | J53: N/A | M53: =IF($E$2="Product Homogeneity",HLOOKUP($C53,UPTARIFFS_PERFECT!$C$3:$BP$91,ROW(UPTARIFFS_PERFECT!$A$89)-ROW(UPTARIFFS_PERFECT!$A$2),0), IF($E$2="Product Differentiation",HLOOKUP($C53,UPTARIFFS_IMPERFECT!$C$3:$BP$91,ROW(UPTARIFFS_IMPERFECT!$A$89)-ROW(UPTARIFFS_IMPERFECT!$A$2),0),"N/A")) -> N/A | O53: =IF($E$2="Product Homogeneity",HLOOKUP($C53,UPTARIFFS_PERFECT!$C$3:$BP$91,ROW(UPTARIFFS_PERFECT!$A$88)-ROW(UPTARIFFS_PERFECT!$A$2),0), IF($E$2="Product Differentiation",HLOOKUP($C53,UPTARIFFS_IMPERFECT!$C$3:$BP$91,ROW(UPTARIFFS_IMPERFECT!$A$88)-ROW(UPTARIFFS_IMPERFECT!$A$2),0),"N/A")) -> N/A | Q53: =IF($E$2="Product Homogeneity",HLOOKUP($C53,UPTARIFFS_PERFECT!$C$3:$BP$91,ROW(UPTARIFFS_PERFECT!$A$87)-ROW(UPTARIFFS_PERFECT!$A$2),0), IF($E$2="Product Differentiation", HLOOKUP($C53,UPTARIFFS_IMPERFECT!$C$3:$BP$91,ROW(UPTARIFFS_IMPERFECT!$A$87)-ROW(UPTARIFFS_IMPERFECT!$A$2),0),"N/A")) -> N/A | S53: =(J53-M53)/IF($E$2="Product Homogeneity",HLOOKUP($C53,UPTARIFFS_PERFECT!$C$3:$BP$63,ROW(UPTARIFFS_PERFECT!$A$63)-ROW(UPTARIFFS_PERFECT!$A$2),0),HLOOKUP($C53,UPTARIFFS_IMPERFECT!$C$3:$BP$63,ROW(UPTARIFFS_IMPERFECT!$A$63)-ROW(UPTARIFFS_IMPERFECT!$A$2),0)) ->  | V53: 43 | AB53: 43 | AM53: =COUNTIF($AL$10:AL53,AL53)-1 -> 42 | AO53: ELY - Electricity | AV53: 43 | AW53: =IFERROR(IF($E$2="Product Homogeneity",VLOOKUP(AV53,UPTARIFFS_PERFECT!$BS:$BT,2,0), VLOOKUP(AV53,UPTARIFFS_IMPERFECT!$BS:$BT,2,0)),"") ->  | AX53: =IFERROR(IF($E$2="Product Homogeneity",HLOOKUP($AW53,UPTARIFFS_PERFECT!$C$3:$BP$75,ROW(UPTARIFFS_PERFECT!$A$72)-2,0), HLOOKUP($AW53,UPTARIFFS_IMPERFECT!$C$3:$BP$75,ROW(UPTARIFFS_IMPERFECT!$A$72)-2,0)),"") ->  | AY53: =IFERROR(IF($E$2="Product Homogeneity",HLOOKUP($AW53,UPTARIFFS_PERFECT!$C$3:$BP$91,ROW(UPTARIFFS_PERFECT!$A$88)-ROW(UPTARIFFS_PERFECT!$A$2),0), HLOOKUP($AW53,UPTARIFFS_IMPERFECT!$C$3:$BP$91,ROW(UPTARIFFS_IMPERFECT!$A$88)-ROW(UPTARIFFS_IMPERFECT!$A$2),0)),"") ->  | BB53: =COUNTIF($BA$10:BA53,BA53)-1 -> 43
B54: 44 | C54: =IF($E$2="Product Homogeneity",VLOOKUP(B54,UPTARIFFS_PERFECT!$BQ:$BR,2,0),VLOOKUP(B54,UPTARIFFS_IMPERFECT!$BQ:$BR,2,0)) -> GDT - Gas manufacture, distribution | D54: =IF($E$2="Product Homogeneity",VLOOKUP($C54,UPTARIFFS_PERFECT!$A:$BU,COLUMN(UPTARIFFS_PERFECT!$BJ$9),0), IF($E$2="Product Differentiation",(VLOOKUP($C54,UPTARIFFS_IMPERFECT!$A:$BU,COLUMN(UPTARIFFS_IMPERFECT!$BI$9),0)),"N/A")) -> N/A | E54: =IF($E$2="Product Homogeneity",HLOOKUP($C54,UPTARIFFS_PERFECT!$C$3:$BP$76,ROW(UPTARIFFS_PERFECT!$A$73)-2,0), IF($E$2="Product Differentiation",HLOOKUP($C54,UPTARIFFS_IMPERFECT!$C$3:$BP$76,ROW(UPTARIFFS_IMPERFECT!$A$73)-2,0), "N/A")) -> N/A | F54: =IF($E$2="Product Homogeneity",HLOOKUP($C54,UPTARIFFS_PERFECT!$C$3:$BP$76,ROW(UPTARIFFS_PERFECT!$A$72)-2,0), IF($E$2="Product Differentiation",HLOOKUP($C54,UPTARIFFS_IMPERFECT!$C$3:$BP$76,ROW(UPTARIFFS_IMPERFECT!$A$72)-2,0),"N/A")) -> N/A | G54: =IF($E$2="Product Homogeneity",HLOOKUP($C54,UPTARIFFS_PERFECT!$C$3:$BP$76,ROW(UPTARIFFS_PERFECT!$A$71)-2,0), IF($E$2="Product Differentiation",HLOOKUP($C54,UPTARIFFS_IMPERFECT!$C$3:$BP$76,ROW(UPTARIFFS_IMPERFECT!$A$71)-2,0),"N/A")) -> N/A | H54: =(D54-E54)/ HLOOKUP($C54,UPTARIFFS_PERFECT!$C$3:$BP$63,ROW(UPTARIFFS_PERFECT!$A$63)-ROW(UPTARIFFS_PERFECT!$A$2),0) ->  | J54: N/A | M54: =IF($E$2="Product Homogeneity",HLOOKUP($C54,UPTARIFFS_PERFECT!$C$3:$BP$91,ROW(UPTARIFFS_PERFECT!$A$89)-ROW(UPTARIFFS_PERFECT!$A$2),0), IF($E$2="Product Differentiation",HLOOKUP($C54,UPTARIFFS_IMPERFECT!$C$3:$BP$91,ROW(UPTARIFFS_IMPERFECT!$A$89)-ROW(UPTARIFFS_IMPERFECT!$A$2),0),"N/A")) -> N/A | O54: =IF($E$2="Product Homogeneity",HLOOKUP($C54,UPTARIFFS_PERFECT!$C$3:$BP$91,ROW(UPTARIFFS_PERFECT!$A$88)-ROW(UPTARIFFS_PERFECT!$A$2),0), IF($E$2="Product Differentiation",HLOOKUP($C54,UPTARIFFS_IMPERFECT!$C$3:$BP$91,ROW(UPTARIFFS_IMPERFECT!$A$88)-ROW(UPTARIFFS_IMPERFECT!$A$2),0),"N/A")) -> N/A | Q54: =IF($E$2="Product Homogeneity",HLOOKUP($C54,UPTARIFFS_PERFECT!$C$3:$BP$91,ROW(UPTARIFFS_PERFECT!$A$87)-ROW(UPTARIFFS_PERFECT!$A$2),0), IF($E$2="Product Differentiation", HLOOKUP($C54,UPTARIFFS_IMPERFECT!$C$3:$BP$91,ROW(UPTARIFFS_IMPERFECT!$A$87)-ROW(UPTARIFFS_IMPERFECT!$A$2),0),"N/A")) -> N/A | S54: =(J54-M54)/IF($E$2="Product Homogeneity",HLOOKUP($C54,UPTARIFFS_PERFECT!$C$3:$BP$63,ROW(UPTARIFFS_PERFECT!$A$63)-ROW(UPTARIFFS_PERFECT!$A$2),0),HLOOKUP($C54,UPTARIFFS_IMPERFECT!$C$3:$BP$63,ROW(UPTARIFFS_IMPERFECT!$A$63)-ROW(UPTARIFFS_IMPERFECT!$A$2),0)) ->  | T54: =S54-H54 ->  | V54: 44 | AB54: 44 | AM54: =COUNTIF($AL$10:AL54,AL54)-1 -> 43 | AO54: GDT - Gas manufacture, distribution | AV54: 44 | AW54: =IFERROR(IF($E$2="Product Homogeneity",VLOOKUP(AV54,UPTARIFFS_PERFECT!$BS:$BT,2,0), VLOOKUP(AV54,UPTARIFFS_IMPERFECT!$BS:$BT,2,0)),"") ->  | AX54: =IFERROR(IF($E$2="Product Homogeneity",HLOOKUP($AW54,UPTARIFFS_PERFECT!$C$3:$BP$75,ROW(UPTARIFFS_PERFECT!$A$72)-2,0), HLOOKUP($AW54,UPTARIFFS_IMPERFECT!$C$3:$BP$75,ROW(UPTARIFFS_IMPERFECT!$A$72)-2,0)),"") ->  | AY54: =IFERROR(IF($E$2="Product Homogeneity",HLOOKUP($AW54,UPTARIFFS_PERFECT!$C$3:$BP$91,ROW(UPTARIFFS_PERFECT!$A$88)-ROW(UPTARIFFS_PERFECT!$A$2),0), HLOOKUP($AW54,UPTARIFFS_IMPERFECT!$C$3:$BP$91,ROW(UPTARIFFS_IMPERFECT!$A$88)-ROW(UPTARIFFS_IMPERFECT!$A$2),0)),"") ->  | BB54: =COUNTIF($BA$10:BA54,BA54)-1 -> 44

Sheet SIM_III_IN (hidden)
B2: Modelling Framework
B6: HS CODE | K6: SIMULATION INPUT | N6: Scenario:
B7: HS8 | I7: FINAL BASELINE TARIFF | K7: SIMULATED FINAL TARIFF | N7: Description

Sheet SIM_III_OUT (hidden)
C2: Modelling Framework | E2: =IF(SIM_III_IN!G2="","",SIM_III_IN!G2) -> 
B7: BASELINE SCENARIO | J7: SIMULATION INPUT | V7: SIMULATION OUTPUT | AQ7: Services | AR7: =MAX(AN11:AN55) -> 
V9: ON GOODS PRODUCING SECTORS | AB9: ON SERVICE PRODUCING SECTORS
B10: # | C10: Sector | D10: Output Tariff | E10: Upstream Tariff (% gross output) | F10: Upstream Tariff (% total input cost) | G10: Upstream Tariff (% input goods cost) | H10: Rate of Effective Protection | J10: Output Tariff | K10: Change in p.p. | M10: Upstream Tariff (% gross output) | N10: Change in p.p. | O10: Upstream Tariff (% total input cost) | P10: Change in p.p. | Q10: Upstream Tariff (% goods cost) | R10: Change in p.p. | S10: Rate of Effective Protection | T10: Change in p.p. | V10: # | W10: Goods Sectors ranked by largest reduction in upstream tariff (as % total input cost) | X10: Baseline Upstream (% input costs) | Y10: Simulated Upstream (% input costs) | Z10: Change in p.p. | AB10: # | AC10: Service Sectors ranked by largest reduction in upstream tariff (as % total input cost) | AD10: Baseline Upstream (as % total input cost) | AE10: Simulated Upstream (as % total input cost) | AF10: Change in p.p. | AL10: =CONCATENATE("SIMULATOR III 43 goods producing sectors with largest reductions in upstream tariff (as % total input cost) Assumption: ",E2) -> SIMULATOR III 43 goods producing sectors with largest reductions in upstream tariff (as % total input cost) Assumption: | AU10: =CONCATENATE("SIMULATOR III 14 service producing sectors with largest reductions in upstream tariff (as % total input cost) Assumption: ", E2) -> SIMULATOR III 14 service producing sectors with largest reductions in upstream tariff (as % total input cost) Assumption:
B11: 1 | C11: =IF($E$2="Product Homogeneity",VLOOKUP(B11,UPTARIFFS_PERFECT!$BQ:$BR,2,0),VLOOKUP(B11,UPTARIFFS_IMPERFECT!$BQ:$BR,2,0)) -> PDR - Paddy rice | D11: =IF($E$2="Product Homogeneity",VLOOKUP($C11,UPTARIFFS_PERFECT!$A$3:$BT$61,COLUMN(UPTARIFFS_PERFECT!$BJ$9),0), IF($E$2="Product Differentiation",VLOOKUP($C11,UPTARIFFS_IMPERFECT!$A$3:$BT$61,COLUMN(UPTARIFFS_IMPERFECT!$BI$9),0),"N/A")) -> N/A | E11: =IF($E$2="Product Homogeneity",HLOOKUP($C11,UPTARIFFS_PERFECT!$C$3:$BP$76,ROW(UPTARIFFS_PERFECT!$A$73)-2,0), IF($E$2="Product Differentiation",HLOOKUP($C11,UPTARIFFS_IMPERFECT!$C$3:$BP$76,ROW(UPTARIFFS_IMPERFECT!$A$73)-2,0),"N/A")) -> N/A | F11: =IF($E$2="Product Homogeneity",HLOOKUP($C11,UPTARIFFS_PERFECT!$C$3:$BP$76,ROW(UPTARIFFS_PERFECT!$A$72)-2,0), IF($E$2="Product Differentiation",HLOOKUP($C11,UPTARIFFS_IMPERFECT!$C$3:$BP$76,ROW(UPTARIFFS_IMPERFECT!$A$72)-2,0),"N/A")) -> N/A | G11: =IF($E$2="Product Homogeneity",HLOOKUP($C11,UPTARIFFS_PERFECT!$C$3:$BP$76,ROW(UPTARIFFS_PERFECT!$A$71)-2,0), IF($E$2="Product Differentiation",HLOOKUP($C11,UPTARIFFS_IMPERFECT!$C$3:$BP$76,ROW(UPTARIFFS_IMPERFECT!$A$71)-2,0),"N/A")) -> N/A | H11: =(D11-E11)/HLOOKUP($C11,UPTARIFFS_PERFECT!$C$3:$BP$63,ROW(UPTARIFFS_PERFECT!$A$63)-ROW(UPTARIFFS_PERFECT!$A$2),0) ->  | J11: =IF($E$2="Product Homogeneity", VLOOKUP(C11,UPTARIFFS_PERFECT!A:BM,COLUMN(UPTARIFFS_PERFECT!BM4),0), IF($E$2="Product Differentiation", VLOOKUP(C11,OUTPUT_TARIFFS_CALCULATIONS!A:F,6,0),"N/A")) -> N/A | K11: =J11-D11 ->  | M11: =IF($E$2="Product Homogeneity",HLOOKUP($C11,UPTARIFFS_PERFECT!$C$3:$BP$99,ROW(UPTARIFFS_PERFECT!$A$97)-ROW(UPTARIFFS_PERFECT!$A$2),0), IF($E$2="Product Differentiation",HLOOKUP($C11,UPTARIFFS_IMPERFECT!$C$3:$BP$99,ROW(UPTARIFFS_IMPERFECT!$A$97)-ROW(UPTARIFFS_IMPERFECT!$A$2),0),"N/A")) -> N/A | N11: =M11-E11 ->  | O11: =IF($E$2="Product Homogeneity",HLOOKUP($C11,UPTARIFFS_PERFECT!$C$3:$BP$99,ROW(UPTARIFFS_PERFECT!$A$96)-ROW(UPTARIFFS_PERFECT!$A$2),0), IF($E$2="Product Differentiation",HLOOKUP($C11,UPTARIFFS_IMPERFECT!$C$3:$BP$99,ROW(UPTARIFFS_IMPERFECT!$A$96)-ROW(UPTARIFFS_IMPERFECT!$A$2),0),"N/A")) -> N/A | P11: =O11-F11 ->  | Q11: =IF($E$2="Product Homogeneity",HLOOKUP($C11,UPTARIFFS_PERFECT!$C$3:$BP$99,ROW(UPTARIFFS_PERFECT!$A$95)-ROW(UPTARIFFS_PERFECT!$A$2),0), IF($E$2="Product Differentiation",HLOOKUP($C11,UPTARIFFS_IMPERFECT!$C$3:$BP$99,ROW(UPTARIFFS_IMPERFECT!$A$95)-ROW(UPTARIFFS_IMPERFECT!$A$2),0),"N/A")) -> N/A | R11: =Q11-G11 ->  | S11: =(J11-M11)/IF($E$2="Product Homogeneity",HLOOKUP($C11,UPTARIFFS_PERFECT!$C$3:$BP$63,ROW(UPTARIFFS_PERFECT!$A$63)-ROW(UPTARIFFS_PERFECT!$A$2),0),HLOOKUP($C11,UPTARIFFS_IMPERFECT!$C$3:$BP$63,ROW(UPTARIFFS_IMPERFECT!$A$63)-ROW(UPTARIFFS_IMPERFECT!$A$2),0)) ->  | T11: =S11-H11 ->  | V11: 1 | W11: =VLOOKUP(B11,AN:AO,2,0) ->  | X11: =VLOOKUP(W11,C:R,4,0) ->  | Y11: =VLOOKUP(W11,C:R,13,0) ->  | Z11: =Y11-X11 ->  | AB11: 1 | AC11: =IF(SIM_III_OUT_competition="","",IFERROR(VLOOKUP(AB11,AU:AY,3,0),"")) ->  | AD11: =IF(SIM_III_OUT_competition="","",IFERROR(VLOOKUP(AB11,AU:AY,4,0),"")) ->  | AE11: =IF(SIM_III_OUT_competition="","",IFERROR(VLOOKUP(AB11,AU:AY,5,0),"")) ->  | AF11: =IF(SIM_III_OUT_competition="",#N/A,IFERROR(AE11-AD11,"")) ->  | AL11: =RANK($P11,$P$11:$P$54,1) ->  | AM11: =COUNTIF($AL$10:AL11,AL11)-1 -> 0 | AN11: =AL11+AM11 ->  | AO11: =C11 -> PDR - Paddy rice | AU11: =IFERROR(BB11+BA11,"") -> 1 | AV11: 1 | AW11: =IFERROR(IF($E$2="Product Homogeneity",VLOOKUP(AV11,UPTARIFFS_PERFECT!$BS:$BT,2,0), VLOOKUP(AV11,UPTARIFFS_IMPERFECT!$BS:$BT,2,0)),"") -> WTR - Water: collection, purification and distribution | AX11: =IFERROR(IF($E$2="Product Homogeneity",HLOOKUP($AW11,UPTARIFFS_PERFECT!$C$3:$BP$75,ROW(UPTARIFFS_PERFECT!$A$72)-2,0), HLOOKUP($AW11,UPTARIFFS_IMPERFECT!$C$3:$BP$75,ROW(UPTARIFFS_IMPERFECT!$A$72)-2,0)),"") -> 0 | AY11: =IFERROR(IF($E$2="Product Homogeneity",HLOOKUP($AW11,UPTARIFFS_PERFECT!$C$3:$BP$100,ROW(UPTARIFFS_PERFECT!$A$96)-ROW(UPTARIFFS_PERFECT!$A$2),0), HLOOKUP($AW11,UPTARIFFS_IMPERFECT!$C$3:$BP$100,ROW(UPTARIFFS_IMPERFECT!$A$96)-ROW(UPTARIFFS_IMPERFECT!$A$2),0)),"") -> 0 | AZ11: =IFERROR(AY11-AX11,"") -> 0 | BA11: =IFERROR(RANK(AZ11,$AZ$11:$AZ$32,1),"") -> 1 | BB11: =COUNTIF($BA$10:BA11,BA11)-1 -> 0
B12: =OFFSET(B12,-1,0)+1 -> 2 | C12: =IF($E$2="Product Homogeneity",VLOOKUP(B12,UPTARIFFS_PERFECT!$BQ:$BR,2,0),VLOOKUP(B12,UPTARIFFS_IMPERFECT!$BQ:$BR,2,0)) -> WHT - Wheat | D12: =IF($E$2="Product Homogeneity",VLOOKUP($C12,UPTARIFFS_PERFECT!$A$3:$BT$61,COLUMN(UPTARIFFS_PERFECT!$BJ$9),0), IF($E$2="Product Differentiation",VLOOKUP($C12,UPTARIFFS_IMPERFECT!$A$3:$BT$61,COLUMN(UPTARIFFS_IMPERFECT!$BI$9),0),"N/A")) -> N/A | E12: =IF($E$2="Product Homogeneity",HLOOKUP($C12,UPTARIFFS_PERFECT!$C$3:$BP$76,ROW(UPTARIFFS_PERFECT!$A$73)-2,0), IF($E$2="Product Differentiation",HLOOKUP($C12,UPTARIFFS_IMPERFECT!$C$3:$BP$76,ROW(UPTARIFFS_IMPERFECT!$A$73)-2,0),"N/A")) -> N/A | F12: =IF($E$2="Product Homogeneity",HLOOKUP($C12,UPTARIFFS_PERFECT!$C$3:$BP$76,ROW(UPTARIFFS_PERFECT!$A$72)-2,0), IF($E$2="Product Differentiation",HLOOKUP($C12,UPTARIFFS_IMPERFECT!$C$3:$BP$76,ROW(UPTARIFFS_IMPERFECT!$A$72)-2,0),"N/A")) -> N/A | G12: =IF($E$2="Product Homogeneity",HLOOKUP($C12,UPTARIFFS_PERFECT!$C$3:$BP$76,ROW(UPTARIFFS_PERFECT!$A$71)-2,0), IF($E$2="Product Differentiation",HLOOKUP($C12,UPTARIFFS_IMPERFECT!$C$3:$BP$76,ROW(UPTARIFFS_IMPERFECT!$A$71)-2,0),"N/A")) -> N/A | H12: =(D12-E12)/HLOOKUP($C12,UPTARIFFS_PERFECT!$C$3:$BP$63,ROW(UPTARIFFS_PERFECT!$A$63)-ROW(UPTARIFFS_PERFECT!$A$2),0) ->  | J12: =IF($E$2="Product Homogeneity", VLOOKUP(C12,UPTARIFFS_PERFECT!A:BM,COLUMN(UPTARIFFS_PERFECT!BM5),0), IF($E$2="Product Differentiation", VLOOKUP(C12,OUTPUT_TARIFFS_CALCULATIONS!A:F,6,0),"N/A")) -> N/A | K12: =J12-D12 ->  | M12: =IF($E$2="Product Homogeneity",HLOOKUP($C12,UPTARIFFS_PERFECT!$C$3:$BP$99,ROW(UPTARIFFS_PERFECT!$A$97)-ROW(UPTARIFFS_PERFECT!$A$2),0), IF($E$2="Product Differentiation",HLOOKUP($C12,UPTARIFFS_IMPERFECT!$C$3:$BP$99,ROW(UPTARIFFS_IMPERFECT!$A$97)-ROW(UPTARIFFS_IMPERFECT!$A$2),0),"N/A")) -> N/A | O12: =IF($E$2="Product Homogeneity",HLOOKUP($C12,UPTARIFFS_PERFECT!$C$3:$BP$99,ROW(UPTARIFFS_PERFECT!$A$96)-ROW(UPTARIFFS_PERFECT!$A$2),0), IF($E$2="Product Differentiation",HLOOKUP($C12,UPTARIFFS_IMPERFECT!$C$3:$BP$99,ROW(UPTARIFFS_IMPERFECT!$A$96)-ROW(UPTARIFFS_IMPERFECT!$A$2),0),"N/A")) -> N/A | P12: =O12-F12 ->  | Q12: =IF($E$2="Product Homogeneity",HLOOKUP($C12,UPTARIFFS_PERFECT!$C$3:$BP$99,ROW(UPTARIFFS_PERFECT!$A$95)-ROW(UPTARIFFS_PERFECT!$A$2),0), IF($E$2="Product Differentiation",HLOOKUP($C12,UPTARIFFS_IMPERFECT!$C$3:$BP$99,ROW(UPTARIFFS_IMPERFECT!$A$95)-ROW(UPTARIFFS_IMPERFECT!$A$2),0),"N/A")) -> N/A | R12: =Q12-G12 ->  | S12: =(J12-M12)/IF($E$2="Product Homogeneity",HLOOKUP($C12,UPTARIFFS_PERFECT!$C$3:$BP$63,ROW(UPTARIFFS_PERFECT!$A$63)-ROW(UPTARIFFS_PERFECT!$A$2),0),HLOOKUP($C12,UPTARIFFS_IMPERFECT!$C$3:$BP$63,ROW(UPTARIFFS_IMPERFECT!$A$63)-ROW(UPTARIFFS_IMPERFECT!$A$2),0)) ->  | T12: =S12-H12 ->  | V12: =OFFSET(V12,-1,0)+1 -> 2 | Z12: =Y12-X12 ->  | AB12: =OFFSET(AB12,-1,0)+1 -> 2 | AM12: =COUNTIF($AL$10:AL12,AL12)-1 -> 1 | AN12: =AL12+AM12 ->  | AO12: =C12 -> WHT - Wheat | AU12: =IFERROR(BB12+BA12,"") -> 2 | AV12: =OFFSET(AV12,-1,0)+1 -> 2 | AW12: =IFERROR(IF($E$2="Product Homogeneity",VLOOKUP(AV12,UPTARIFFS_PERFECT!$BS:$BT,2,0), VLOOKUP(AV12,UPTARIFFS_IMPERFECT!$BS:$BT,2,0)),"") -> CNS - Construction: building houses factories offices and roads | AX12: =IFERROR(IF($E$2="Product Homogeneity",HLOOKUP($AW12,UPTARIFFS_PERFECT!$C$3:$BP$75,ROW(UPTARIFFS_PERFECT!$A$72)-2,0), HLOOKUP($AW12,UPTARIFFS_IMPERFECT!$C$3:$BP$75,ROW(UPTARIFFS_IMPERFECT!$A$72)-2,0)),"") -> 0 | AY12: =IFERROR(IF($E$2="Product Homogeneity",HLOOKUP($AW12,UPTARIFFS_PERFECT!$C$3:$BP$100,ROW(UPTARIFFS_PERFECT!$A$96)-ROW(UPTARIFFS_PERFECT!$A$2),0), HLOOKUP($AW12,UPTARIFFS_IMPERFECT!$C$3:$BP$100,ROW(UPTARIFFS_IMPERFECT!$A$96)-ROW(UPTARIFFS_IMPERFECT!$A$2),0)),"") -> 0 | AZ12: =IFERROR(AY12-AX12,"") -> 0 | BA12: 1 | BB12: =COUNTIF($BA$10:BA12,BA12)-1 -> 1
B13: =OFFSET(B13,-1,0)+1 -> 3 | C13: =IF($E$2="Product Homogeneity",VLOOKUP(B13,UPTARIFFS_PERFECT!$BQ:$BR,2,0),VLOOKUP(B13,UPTARIFFS_IMPERFECT!$BQ:$BR,2,0)) -> GRO - Cereal grains n.e.c. | D13: =IF($E$2="Product Homogeneity",VLOOKUP($C13,UPTARIFFS_PERFECT!$A$3:$BT$61,COLUMN(UPTARIFFS_PERFECT!$BJ$9),0), IF($E$2="Product Differentiation",VLOOKUP($C13,UPTARIFFS_IMPERFECT!$A$3:$BT$61,COLUMN(UPTARIFFS_IMPERFECT!$BI$9),0),"N/A")) -> N/A | E13: =IF($E$2="Product Homogeneity",HLOOKUP($C13,UPTARIFFS_PERFECT!$C$3:$BP$76,ROW(UPTARIFFS_PERFECT!$A$73)-2,0), IF($E$2="Product Differentiation",HLOOKUP($C13,UPTARIFFS_IMPERFECT!$C$3:$BP$76,ROW(UPTARIFFS_IMPERFECT!$A$73)-2,0),"N/A")) -> N/A | F13: =IF($E$2="Product Homogeneity",HLOOKUP($C13,UPTARIFFS_PERFECT!$C$3:$BP$76,ROW(UPTARIFFS_PERFECT!$A$72)-2,0), IF($E$2="Product Differentiation",HLOOKUP($C13,UPTARIFFS_IMPERFECT!$C$3:$BP$76,ROW(UPTARIFFS_IMPERFECT!$A$72)-2,0),"N/A")) -> N/A | G13: =IF($E$2="Product Homogeneity",HLOOKUP($C13,UPTARIFFS_PERFECT!$C$3:$BP$76,ROW(UPTARIFFS_PERFECT!$A$71)-2,0), IF($E$2="Product Differentiation",HLOOKUP($C13,UPTARIFFS_IMPERFECT!$C$3:$BP$76,ROW(UPTARIFFS_IMPERFECT!$A$71)-2,0),"N/A")) -> N/A | H13: =(D13-E13)/HLOOKUP($C13,UPTARIFFS_PERFECT!$C$3:$BP$63,ROW(UPTARIFFS_PERFECT!$A$63)-ROW(UPTARIFFS_PERFECT!$A$2),0) ->  | J13: =IF($E$2="Product Homogeneity", VLOOKUP(C13,UPTARIFFS_PERFECT!A:BM,COLUMN(UPTARIFFS_PERFECT!BM6),0), IF($E$2="Product Differentiation", VLOOKUP(C13,OUTPUT_TARIFFS_CALCULATIONS!A:F,6,0),"N/A")) -> N/A | K13: =J13-D13 ->  | M13: =IF($E$2="Product Homogeneity",HLOOKUP($C13,UPTARIFFS_PERFECT!$C$3:$BP$99,ROW(UPTARIFFS_PERFECT!$A$97)-ROW(UPTARIFFS_PERFECT!$A$2),0), IF($E$2="Product Differentiation",HLOOKUP($C13,UPTARIFFS_IMPERFECT!$C$3:$BP$99,ROW(UPTARIFFS_IMPERFECT!$A$97)-ROW(UPTARIFFS_IMPERFECT!$A$2),0),"N/A")) -> N/A | N13: =M13-E13 ->  | O13: =IF($E$2="Product Homogeneity",HLOOKUP($C13,UPTARIFFS_PERFECT!$C$3:$BP$99,ROW(UPTARIFFS_PERFECT!$A$96)-ROW(UPTARIFFS_PERFECT!$A$2),0), IF($E$2="Product Differentiation",HLOOKUP($C13,UPTARIFFS_IMPERFECT!$C$3:$BP$99,ROW(UPTARIFFS_IMPERFECT!$A$96)-ROW(UPTARIFFS_IMPERFECT!$A$2),0),"N/A")) -> N/A | P13: =O13-F13 ->  | Q13: =IF($E$2="Product Homogeneity",HLOOKUP($C13,UPTARIFFS_PERFECT!$C$3:$BP$99,ROW(UPTARIFFS_PERFECT!$A$95)-ROW(UPTARIFFS_PERFECT!$A$2),0), IF($E$2="Product Differentiation",HLOOKUP($C13,UPTARIFFS_IMPERFECT!$C$3:$BP$99,ROW(UPTARIFFS_IMPERFECT!$A$95)-ROW(UPTARIFFS_IMPERFECT!$A$2),0),"N/A")) -> N/A | R13: =Q13-G13 ->  | S13: =(J13-M13)/IF($E$2="Product Homogeneity",HLOOKUP($C13,UPTARIFFS_PERFECT!$C$3:$BP$63,ROW(UPTARIFFS_PERFECT!$A$63)-ROW(UPTARIFFS_PERFECT!$A$2),0),HLOOKUP($C13,UPTARIFFS_IMPERFECT!$C$3:$BP$63,ROW(UPTARIFFS_IMPERFECT!$A$63)-ROW(UPTARIFFS_IMPERFECT!$A$2),0)) ->  | V13: =OFFSET(V13,-1,0)+1 -> 3 | Z13: =Y13-X13 ->  | AB13: =OFFSET(AB13,-1,0)+1 -> 3 | AM13: =COUNTIF($AL$10:AL13,AL13)-1 -> 2 | AN13: =AL13+AM13 ->  | AO13: =C13 -> GRO - Cereal grains n.e.c. | AU13: =IFERROR(BB13+BA13,"") -> 3 | AV13: =OFFSET(AV13,-1,0)+1 -> 3 | AW13: =IFERROR(IF($E$2="Product Homogeneity",VLOOKUP(AV13,UPTARIFFS_PERFECT!$BS:$BT,2,0), VLOOKUP(AV13,UPTARIFFS_IMPERFECT!$BS:$BT,2,0)),"") -> TRD - Trade | AX13: =IFERROR(IF($E$2="Product Homogeneity",HLOOKUP($AW13,UPTARIFFS_PERFECT!$C$3:$BP$75,ROW(UPTARIFFS_PERFECT!$A$72)-2,0), HLOOKUP($AW13,UPTARIFFS_IMPERFECT!$C$3:$BP$75,ROW(UPTARIFFS_IMPERFECT!$A$72)-2,0)),"") -> 0 | AY13: =IFERROR(IF($E$2="Product Homogeneity",HLOOKUP($AW13,UPTARIFFS_PERFECT!$C$3:$BP$100,ROW(UPTARIFFS_PERFECT!$A$96)-ROW(UPTARIFFS_PERFECT!$A$2),0), HLOOKUP($AW13,UPTARIFFS_IMPERFECT!$C$3:$BP$100,ROW(UPTARIFFS_IMPERFECT!$A$96)-ROW(UPTARIFFS_IMPERFECT!$A$2),0)),"") -> 0 | AZ13: =IFERROR(AY13-AX13,"") -> 0 | BA13: 1 | BB13: =COUNTIF($BA$10:BA13,BA13)-1 -> 2
B14: 4 | C14: =IF($E$2="Product Homogeneity",VLOOKUP(B14,UPTARIFFS_PERFECT!$BQ:$BR,2,0),VLOOKUP(B14,UPTARIFFS_IMPERFECT!$BQ:$BR,2,0)) -> V_F - Vegetables, fruit, nuts | D14: =IF($E$2="Product Homogeneity",VLOOKUP($C14,UPTARIFFS_PERFECT!$A$3:$BT$61,COLUMN(UPTARIFFS_PERFECT!$BJ$9),0), IF($E$2="Product Differentiation",VLOOKUP($C14,UPTARIFFS_IMPERFECT!$A$3:$BT$61,COLUMN(UPTARIFFS_IMPERFECT!$BI$9),0),"N/A")) -> N/A | E14: =IF($E$2="Product Homogeneity",HLOOKUP($C14,UPTARIFFS_PERFECT!$C$3:$BP$76,ROW(UPTARIFFS_PERFECT!$A$73)-2,0), IF($E$2="Product Differentiation",HLOOKUP($C14,UPTARIFFS_IMPERFECT!$C$3:$BP$76,ROW(UPTARIFFS_IMPERFECT!$A$73)-2,0),"N/A")) -> N/A | F14: =IF($E$2="Product Homogeneity",HLOOKUP($C14,UPTARIFFS_PERFECT!$C$3:$BP$76,ROW(UPTARIFFS_PERFECT!$A$72)-2,0), IF($E$2="Product Differentiation",HLOOKUP($C14,UPTARIFFS_IMPERFECT!$C$3:$BP$76,ROW(UPTARIFFS_IMPERFECT!$A$72)-2,0),"N/A")) -> N/A | G14: =IF($E$2="Product Homogeneity",HLOOKUP($C14,UPTARIFFS_PERFECT!$C$3:$BP$76,ROW(UPTARIFFS_PERFECT!$A$71)-2,0), IF($E$2="Product Differentiation",HLOOKUP($C14,UPTARIFFS_IMPERFECT!$C$3:$BP$76,ROW(UPTARIFFS_IMPERFECT!$A$71)-2,0),"N/A")) -> N/A | H14: =(D14-E14)/HLOOKUP($C14,UPTARIFFS_PERFECT!$C$3:$BP$63,ROW(UPTARIFFS_PERFECT!$A$63)-ROW(UPTARIFFS_PERFECT!$A$2),0) ->  | J14: =IF($E$2="Product Homogeneity", VLOOKUP(C14,UPTARIFFS_PERFECT!A:BM,COLUMN(UPTARIFFS_PERFECT!BM7),0), IF($E$2="Product Differentiation", VLOOKUP(C14,OUTPUT_TARIFFS_CALCULATIONS!A:F,6,0),"N/A")) -> N/A | K14: =J14-D14 ->  | M14: =IF($E$2="Product Homogeneity",HLOOKUP($C14,UPTARIFFS_PERFECT!$C$3:$BP$99,ROW(UPTARIFFS_PERFECT!$A$97)-ROW(UPTARIFFS_PERFECT!$A$2),0), IF($E$2="Product Differentiation",HLOOKUP($C14,UPTARIFFS_IMPERFECT!$C$3:$BP$99,ROW(UPTARIFFS_IMPERFECT!$A$97)-ROW(UPTARIFFS_IMPERFECT!$A$2),0),"N/A")) -> N/A | N14: =M14-E14 ->  | O14: =IF($E$2="Product Homogeneity",HLOOKUP($C14,UPTARIFFS_PERFECT!$C$3:$BP$99,ROW(UPTARIFFS_PERFECT!$A$96)-ROW(UPTARIFFS_PERFECT!$A$2),0), IF($E$2="Product Differentiation",HLOOKUP($C14,UPTARIFFS_IMPERFECT!$C$3:$BP$99,ROW(UPTARIFFS_IMPERFECT!$A$96)-ROW(UPTARIFFS_IMPERFECT!$A$2),0),"N/A")) -> N/A | P14: =O14-F14 ->  | Q14: =IF($E$2="Product Homogeneity",HLOOKUP($C14,UPTARIFFS_PERFECT!$C$3:$BP$99,ROW(UPTARIFFS_PERFECT!$A$95)-ROW(UPTARIFFS_PERFECT!$A$2),0), IF($E$2="Product Differentiation",HLOOKUP($C14,UPTARIFFS_IMPERFECT!$C$3:$BP$99,ROW(UPTARIFFS_IMPERFECT!$A$95)-ROW(UPTARIFFS_IMPERFECT!$A$2),0),"N/A")) -> N/A | R14: =Q14-G14 ->  | S14: =(J14-M14)/IF($E$2="Product Homogeneity",HLOOKUP($C14,UPTARIFFS_PERFECT!$C$3:$BP$63,ROW(UPTARIFFS_PERFECT!$A$63)-ROW(UPTARIFFS_PERFECT!$A$2),0),HLOOKUP($C14,UPTARIFFS_IMPERFECT!$C$3:$BP$63,ROW(UPTARIFFS_IMPERFECT!$A$63)-ROW(UPTARIFFS_IMPERFECT!$A$2),0)) ->  | V14: 4 | Z14: =Y14-X14 ->  | AB14: 4 | AM14: =COUNTIF($AL$10:AL14,AL14)-1 -> 3 | AN14: =AL14+AM14 ->  | AO14: =C14 -> V_F - Vegetables, fruit, nuts | AU14: =IFERROR(BB14+BA14,"") -> 4 | AV14: 4 | AW14: =IFERROR(IF($E$2="Product Homogeneity",VLOOKUP(AV14,UPTARIFFS_PERFECT!$BS:$BT,2,0), VLOOKUP(AV14,UPTARIFFS_IMPERFECT!$BS:$BT,2,0)),"") -> OTP - Other Transport | AX14: =IFERROR(IF($E$2="Product Homogeneity",HLOOKUP($AW14,UPTARIFFS_PERFECT!$C$3:$BP$75,ROW(UPTARIFFS_PERFECT!$A$72)-2,0), HLOOKUP($AW14,UPTARIFFS_IMPERFECT!$C$3:$BP$75,ROW(UPTARIFFS_IMPERFECT!$A$72)-2,0)),"") -> 0 | AY14: =IFERROR(IF($E$2="Product Homogeneity",HLOOKUP($AW14,UPTARIFFS_PERFECT!$C$3:$BP$100,ROW(UPTARIFFS_PERFECT!$A$96)-ROW(UPTARIFFS_PERFECT!$A$2),0), HLOOKUP($AW14,UPTARIFFS_IMPERFECT!$C$3:$BP$100,ROW(UPTARIFFS_IMPERFECT!$A$96)-ROW(UPTARIFFS_IMPERFECT!$A$2),0)),"") -> 0 | AZ14: =IFERROR(AY14-AX14,"") -> 0 | BA14: 1 | BB14: =COUNTIF($BA$10:BA14,BA14)-1 -> 3
B15: 5 | C15: =IF($E$2="Product Homogeneity",VLOOKUP(B15,UPTARIFFS_PERFECT!$BQ:$BR,2,0),VLOOKUP(B15,UPTARIFFS_IMPERFECT!$BQ:$BR,2,0)) -> OSD - Oil seeds | D15: =IF($E$2="Product Homogeneity",VLOOKUP($C15,UPTARIFFS_PERFECT!$A$3:$BT$61,COLUMN(UPTARIFFS_PERFECT!$BJ$9),0), IF($E$2="Product Differentiation",VLOOKUP($C15,UPTARIFFS_IMPERFECT!$A$3:$BT$61,COLUMN(UPTARIFFS_IMPERFECT!$BI$9),0),"N/A")) -> N/A | E15: =IF($E$2="Product Homogeneity",HLOOKUP($C15,UPTARIFFS_PERFECT!$C$3:$BP$76,ROW(UPTARIFFS_PERFECT!$A$73)-2,0), IF($E$2="Product Differentiation",HLOOKUP($C15,UPTARIFFS_IMPERFECT!$C$3:$BP$76,ROW(UPTARIFFS_IMPERFECT!$A$73)-2,0),"N/A")) -> N/A | F15: =IF($E$2="Product Homogeneity",HLOOKUP($C15,UPTARIFFS_PERFECT!$C$3:$BP$76,ROW(UPTARIFFS_PERFECT!$A$72)-2,0), IF($E$2="Product Differentiation",HLOOKUP($C15,UPTARIFFS_IMPERFECT!$C$3:$BP$76,ROW(UPTARIFFS_IMPERFECT!$A$72)-2,0),"N/A")) -> N/A | G15: =IF($E$2="Product Homogeneity",HLOOKUP($C15,UPTARIFFS_PERFECT!$C$3:$BP$76,ROW(UPTARIFFS_PERFECT!$A$71)-2,0), IF($E$2="Product Differentiation",HLOOKUP($C15,UPTARIFFS_IMPERFECT!$C$3:$BP$76,ROW(UPTARIFFS_IMPERFECT!$A$71)-2,0),"N/A")) -> N/A | H15: =(D15-E15)/HLOOKUP($C15,UPTARIFFS_PERFECT!$C$3:$BP$63,ROW(UPTARIFFS_PERFECT!$A$63)-ROW(UPTARIFFS_PERFECT!$A$2),0) ->  | J15: =IF($E$2="Product Homogeneity", VLOOKUP(C15,UPTARIFFS_PERFECT!A:BM,COLUMN(UPTARIFFS_PERFECT!BM8),0), IF($E$2="Product Differentiation", VLOOKUP(C15,OUTPUT_TARIFFS_CALCULATIONS!A:F,6,0),"N/A")) -> N/A | K15: =J15-D15 ->  | M15: =IF($E$2="Product Homogeneity",HLOOKUP($C15,UPTARIFFS_PERFECT!$C$3:$BP$99,ROW(UPTARIFFS_PERFECT!$A$97)-ROW(UPTARIFFS_PERFECT!$A$2),0), IF($E$2="Product Differentiation",HLOOKUP($C15,UPTARIFFS_IMPERFECT!$C$3:$BP$99,ROW(UPTARIFFS_IMPERFECT!$A$97)-ROW(UPTARIFFS_IMPERFECT!$A$2),0),"N/A")) -> N/A | O15: =IF($E$2="Product Homogeneity",HLOOKUP($C15,UPTARIFFS_PERFECT!$C$3:$BP$99,ROW(UPTARIFFS_PERFECT!$A$96)-ROW(UPTARIFFS_PERFECT!$A$2),0), IF($E$2="Product Differentiation",HLOOKUP($C15,UPTARIFFS_IMPERFECT!$C$3:$BP$99,ROW(UPTARIFFS_IMPERFECT!$A$96)-ROW(UPTARIFFS_IMPERFECT!$A$2),0),"N/A")) -> N/A | P15: =O15-F15 ->  | Q15: =IF($E$2="Product Homogeneity",HLOOKUP($C15,UPTARIFFS_PERFECT!$C$3:$BP$99,ROW(UPTARIFFS_PERFECT!$A$95)-ROW(UPTARIFFS_PERFECT!$A$2),0), IF($E$2="Product Differentiation",HLOOKUP($C15,UPTARIFFS_IMPERFECT!$C$3:$BP$99,ROW(UPTARIFFS_IMPERFECT!$A$95)-ROW(UPTARIFFS_IMPERFECT!$A$2),0),"N/A")) -> N/A | R15: =Q15-G15 ->  | S15: =(J15-M15)/IF($E$2="Product Homogeneity",HLOOKUP($C15,UPTARIFFS_PERFECT!$C$3:$BP$63,ROW(UPTARIFFS_PERFECT!$A$63)-ROW(UPTARIFFS_PERFECT!$A$2),0),HLOOKUP($C15,UPTARIFFS_IMPERFECT!$C$3:$BP$63,ROW(UPTARIFFS_IMPERFECT!$A$63)-ROW(UPTARIFFS_IMPERFECT!$A$2),0)) ->  | V15: 5 | Z15: =Y15-X15 ->  | AB15: 5 | AM15: =COUNTIF($AL$10:AL15,AL15)-1 -> 4 | AN15: =AL15+AM15 ->  | AO15: =C15 -> OSD - Oil seeds | AU15: =IFERROR(BB15+BA15,"") -> 5 | AV15: 5 | AW15: =IFERROR(IF($E$2="Product Homogeneity",VLOOKUP(AV15,UPTARIFFS_PERFECT!$BS:$BT,2,0), VLOOKUP(AV15,UPTARIFFS_IMPERFECT!$BS:$BT,2,0)),"") -> WTP - Water transport | AX15: =IFERROR(IF($E$2="Product Homogeneity",HLOOKUP($AW15,UPTARIFFS_PERFECT!$C$3:$BP$75,ROW(UPTARIFFS_PERFECT!$A$72)-2,0), HLOOKUP($AW15,UPTARIFFS_IMPERFECT!$C$3:$BP$75,ROW(UPTARIFFS_IMPERFECT!$A$72)-2,0)),"") -> 0 | AY15: =IFERROR(IF($E$2="Product Homogeneity",HLOOKUP($AW15,UPTARIFFS_PERFECT!$C$3:$BP$100,ROW(UPTARIFFS_PERFECT!$A$96)-ROW(UPTARIFFS_PERFECT!$A$2),0), HLOOKUP($AW15,UPTARIFFS_IMPERFECT!$C$3:$BP$100,ROW(UPTARIFFS_IMPERFECT!$A$96)-ROW(UPTARIFFS_IMPERFECT!$A$2),0)),"") -> 0 | AZ15: =IFERROR(AY15-AX15,"") -> 0 | BA15: 1 | BB15: =COUNTIF($BA$10:BA15,BA15)-1 -> 4
B16: 6 | C16: =IF($E$2="Product Homogeneity",VLOOKUP(B16,UPTARIFFS_PERFECT!$BQ:$BR,2,0),VLOOKUP(B16,UPTARIFFS_IMPERFECT!$BQ:$BR,2,0)) -> C_B - Sugar cane, sugar beet | D16: =IF($E$2="Product Homogeneity",VLOOKUP($C16,UPTARIFFS_PERFECT!$A$3:$BT$61,COLUMN(UPTARIFFS_PERFECT!$BJ$9),0), IF($E$2="Product Differentiation",VLOOKUP($C16,UPTARIFFS_IMPERFECT!$A$3:$BT$61,COLUMN(UPTARIFFS_IMPERFECT!$BI$9),0),"N/A")) -> N/A | E16: =IF($E$2="Product Homogeneity",HLOOKUP($C16,UPTARIFFS_PERFECT!$C$3:$BP$76,ROW(UPTARIFFS_PERFECT!$A$73)-2,0), IF($E$2="Product Differentiation",HLOOKUP($C16,UPTARIFFS_IMPERFECT!$C$3:$BP$76,ROW(UPTARIFFS_IMPERFECT!$A$73)-2,0),"N/A")) -> N/A | F16: =IF($E$2="Product Homogeneity",HLOOKUP($C16,UPTARIFFS_PERFECT!$C$3:$BP$76,ROW(UPTARIFFS_PERFECT!$A$72)-2,0), IF($E$2="Product Differentiation",HLOOKUP($C16,UPTARIFFS_IMPERFECT!$C$3:$BP$76,ROW(UPTARIFFS_IMPERFECT!$A$72)-2,0),"N/A")) -> N/A | G16: =IF($E$2="Product Homogeneity",HLOOKUP($C16,UPTARIFFS_PERFECT!$C$3:$BP$76,ROW(UPTARIFFS_PERFECT!$A$71)-2,0), IF($E$2="Product Differentiation",HLOOKUP($C16,UPTARIFFS_IMPERFECT!$C$3:$BP$76,ROW(UPTARIFFS_IMPERFECT!$A$71)-2,0),"N/A")) -> N/A | H16: =(D16-E16)/HLOOKUP($C16,UPTARIFFS_PERFECT!$C$3:$BP$63,ROW(UPTARIFFS_PERFECT!$A$63)-ROW(UPTARIFFS_PERFECT!$A$2),0) ->  | J16: =IF($E$2="Product Homogeneity", VLOOKUP(C16,UPTARIFFS_PERFECT!A:BM,COLUMN(UPTARIFFS_PERFECT!BM9),0), IF($E$2="Product Differentiation", VLOOKUP(C16,OUTPUT_TARIFFS_CALCULATIONS!A:F,6,0),"N/A")) -> N/A | K16: =J16-D16 ->  | M16: =IF($E$2="Product Homogeneity",HLOOKUP($C16,UPTARIFFS_PERFECT!$C$3:$BP$99,ROW(UPTARIFFS_PERFECT!$A$97)-ROW(UPTARIFFS_PERFECT!$A$2),0), IF($E$2="Product Differentiation",HLOOKUP($C16,UPTARIFFS_IMPERFECT!$C$3:$BP$99,ROW(UPTARIFFS_IMPERFECT!$A$97)-ROW(UPTARIFFS_IMPERFECT!$A$2),0),"N/A")) -> N/A | O16: =IF($E$2="Product Homogeneity",HLOOKUP($C16,UPTARIFFS_PERFECT!$C$3:$BP$99,ROW(UPTARIFFS_PERFECT!$A$96)-ROW(UPTARIFFS_PERFECT!$A$2),0), IF($E$2="Product Differentiation",HLOOKUP($C16,UPTARIFFS_IMPERFECT!$C$3:$BP$99,ROW(UPTARIFFS_IMPERFECT!$A$96)-ROW(UPTARIFFS_IMPERFECT!$A$2),0),"N/A")) -> N/A | P16: =O16-F16 ->  | Q16: =IF($E$2="Product Homogeneity",HLOOKUP($C16,UPTARIFFS_PERFECT!$C$3:$BP$99,ROW(UPTARIFFS_PERFECT!$A$95)-ROW(UPTARIFFS_PERFECT!$A$2),0), IF($E$2="Product Differentiation",HLOOKUP($C16,UPTARIFFS_IMPERFECT!$C$3:$BP$99,ROW(UPTARIFFS_IMPERFECT!$A$95)-ROW(UPTARIFFS_IMPERFECT!$A$2),0),"N/A")) -> N/A | R16: =Q16-G16 ->  | S16: =(J16-M16)/IF($E$2="Product Homogeneity",HLOOKUP($C16,UPTARIFFS_PERFECT!$C$3:$BP$63,ROW(UPTARIFFS_PERFECT!$A$63)-ROW(UPTARIFFS_PERFECT!$A$2),0),HLOOKUP($C16,UPTARIFFS_IMPERFECT!$C$3:$BP$63,ROW(UPTARIFFS_IMPERFECT!$A$63)-ROW(UPTARIFFS_IMPERFECT!$A$2),0)) ->  | V16: 6 | Z16: =Y16-X16 ->  | AB16: 6 | AM16: =COUNTIF($AL$10:AL16,AL16)-1 -> 5 | AN16: =AL16+AM16 ->  | AO16: =C16 -> C_B - Sugar cane, sugar beet | AU16: =IFERROR(BB16+BA16,"") -> 6 | AV16: 6 | AW16: =IFERROR(IF($E$2="Product Homogeneity",VLOOKUP(AV16,UPTARIFFS_PERFECT!$BS:$BT,2,0), VLOOKUP(AV16,UPTARIFFS_IMPERFECT!$BS:$BT,2,0)),"") -> ATP - Air transport | AX16: =IFERROR(IF($E$2="Product Homogeneity",HLOOKUP($AW16,UPTARIFFS_PERFECT!$C$3:$BP$75,ROW(UPTARIFFS_PERFECT!$A$72)-2,0), HLOOKUP($AW16,UPTARIFFS_IMPERFECT!$C$3:$BP$75,ROW(UPTARIFFS_IMPERFECT!$A$72)-2,0)),"") -> 0 | AY16: =IFERROR(IF($E$2="Product Homogeneity",HLOOKUP($AW16,UPTARIFFS_PERFECT!$C$3:$BP$100,ROW(UPTARIFFS_PERFECT!$A$96)-ROW(UPTARIFFS_PERFECT!$A$2),0), HLOOKUP($AW16,UPTARIFFS_IMPERFECT!$C$3:$BP$100,ROW(UPTARIFFS_IMPERFECT!$A$96)-ROW(UPTARIFFS_IMPERFECT!$A$2),0)),"") -> 0 | AZ16: =IFERROR(AY16-AX16,"") -> 0 | BA16: 1 | BB16: =COUNTIF($BA$10:BA16,BA16)-1 -> 5
B17: 7 | C17: =IF($E$2="Product Homogeneity",VLOOKUP(B17,UPTARIFFS_PERFECT!$BQ:$BR,2,0),VLOOKUP(B17,UPTARIFFS_IMPERFECT!$BQ:$BR,2,0)) -> PFB - Plant-based fibers | D17: =IF($E$2="Product Homogeneity",VLOOKUP($C17,UPTARIFFS_PERFECT!$A$3:$BT$61,COLUMN(UPTARIFFS_PERFECT!$BJ$9),0), IF($E$2="Product Differentiation",VLOOKUP($C17,UPTARIFFS_IMPERFECT!$A$3:$BT$61,COLUMN(UPTARIFFS_IMPERFECT!$BI$9),0),"N/A")) -> N/A | E17: =IF($E$2="Product Homogeneity",HLOOKUP($C17,UPTARIFFS_PERFECT!$C$3:$BP$76,ROW(UPTARIFFS_PERFECT!$A$73)-2,0), IF($E$2="Product Differentiation",HLOOKUP($C17,UPTARIFFS_IMPERFECT!$C$3:$BP$76,ROW(UPTARIFFS_IMPERFECT!$A$73)-2,0),"N/A")) -> N/A | F17: =IF($E$2="Product Homogeneity",HLOOKUP($C17,UPTARIFFS_PERFECT!$C$3:$BP$76,ROW(UPTARIFFS_PERFECT!$A$72)-2,0), IF($E$2="Product Differentiation",HLOOKUP($C17,UPTARIFFS_IMPERFECT!$C$3:$BP$76,ROW(UPTARIFFS_IMPERFECT!$A$72)-2,0),"N/A")) -> N/A | G17: =IF($E$2="Product Homogeneity",HLOOKUP($C17,UPTARIFFS_PERFECT!$C$3:$BP$76,ROW(UPTARIFFS_PERFECT!$A$71)-2,0), IF($E$2="Product Differentiation",HLOOKUP($C17,UPTARIFFS_IMPERFECT!$C$3:$BP$76,ROW(UPTARIFFS_IMPERFECT!$A$71)-2,0),"N/A")) -> N/A | H17: =(D17-E17)/HLOOKUP($C17,UPTARIFFS_PERFECT!$C$3:$BP$63,ROW(UPTARIFFS_PERFECT!$A$63)-ROW(UPTARIFFS_PERFECT!$A$2),0) ->  | J17: =IF($E$2="Product Homogeneity", VLOOKUP(C17,UPTARIFFS_PERFECT!A:BM,COLUMN(UPTARIFFS_PERFECT!BM10),0), IF($E$2="Product Differentiation", VLOOKUP(C17,OUTPUT_TARIFFS_CALCULATIONS!A:F,6,0),"N/A")) -> N/A | K17: =J17-D17 ->  | M17: =IF($E$2="Product Homogeneity",HLOOKUP($C17,UPTARIFFS_PERFECT!$C$3:$BP$99,ROW(UPTARIFFS_PERFECT!$A$97)-ROW(UPTARIFFS_PERFECT!$A$2),0), IF($E$2="Product Differentiation",HLOOKUP($C17,UPTARIFFS_IMPERFECT!$C$3:$BP$99,ROW(UPTARIFFS_IMPERFECT!$A$97)-ROW(UPTARIFFS_IMPERFECT!$A$2),0),"N/A")) -> N/A | O17: =IF($E$2="Product Homogeneity",HLOOKUP($C17,UPTARIFFS_PERFECT!$C$3:$BP$99,ROW(UPTARIFFS_PERFECT!$A$96)-ROW(UPTARIFFS_PERFECT!$A$2),0), IF($E$2="Product Differentiation",HLOOKUP($C17,UPTARIFFS_IMPERFECT!$C$3:$BP$99,ROW(UPTARIFFS_IMPERFECT!$A$96)-ROW(UPTARIFFS_IMPERFECT!$A$2),0),"N/A")) -> N/A | P17: =O17-F17 ->  | Q17: =IF($E$2="Product Homogeneity",HLOOKUP($C17,UPTARIFFS_PERFECT!$C$3:$BP$99,ROW(UPTARIFFS_PERFECT!$A$95)-ROW(UPTARIFFS_PERFECT!$A$2),0), IF($E$2="Product Differentiation",HLOOKUP($C17,UPTARIFFS_IMPERFECT!$C$3:$BP$99,ROW(UPTARIFFS_IMPERFECT!$A$95)-ROW(UPTARIFFS_IMPERFECT!$A$2),0),"N/A")) -> N/A | R17: =Q17-G17 ->  | S17: =(J17-M17)/IF($E$2="Product Homogeneity",HLOOKUP($C17,UPTARIFFS_PERFECT!$C$3:$BP$63,ROW(UPTARIFFS_PERFECT!$A$63)-ROW(UPTARIFFS_PERFECT!$A$2),0),HLOOKUP($C17,UPTARIFFS_IMPERFECT!$C$3:$BP$63,ROW(UPTARIFFS_IMPERFECT!$A$63)-ROW(UPTARIFFS_IMPERFECT!$A$2),0)) ->  | V17: 7 | Z17: =Y17-X17 ->  | AB17: 7 | AM17: =COUNTIF($AL$10:AL17,AL17)-1 -> 6 | AN17: =AL17+AM17 ->  | AO17: =C17 -> PFB - Plant-based fibers | AU17: =IFERROR(BB17+BA17,"") -> 7 | AV17: 7 | AW17: =IFERROR(IF($E$2="Product Homogeneity",VLOOKUP(AV17,UPTARIFFS_PERFECT!$BS:$BT,2,0), VLOOKUP(AV17,UPTARIFFS_IMPERFECT!$BS:$BT,2,0)),"") -> CMN - Communications | AX17: =IFERROR(IF($E$2="Product Homogeneity",HLOOKUP($AW17,UPTARIFFS_PERFECT!$C$3:$BP$75,ROW(UPTARIFFS_PERFECT!$A$72)-2,0), HLOOKUP($AW17,UPTARIFFS_IMPERFECT!$C$3:$BP$75,ROW(UPTARIFFS_IMPERFECT!$A$72)-2,0)),"") -> 0 | AY17: =IFERROR(IF($E$2="Product Homogeneity",HLOOKUP($AW17,UPTARIFFS_PERFECT!$C$3:$BP$100,ROW(UPTARIFFS_PERFECT!$A$96)-ROW(UPTARIFFS_PERFECT!$A$2),0), HLOOKUP($AW17,UPTARIFFS_IMPERFECT!$C$3:$BP$100,ROW(UPTARIFFS_IMPERFECT!$A$96)-ROW(UPTARIFFS_IMPERFECT!$A$2),0)),"") -> 0 | AZ17: =IFERROR(AY17-AX17,"") -> 0 | BA17: 1 | BB17: =COUNTIF($BA$10:BA17,BA17)-1 -> 6
B18: 8 | C18: =IF($E$2="Product Homogeneity",VLOOKUP(B18,UPTARIFFS_PERFECT!$BQ:$BR,2,0),VLOOKUP(B18,UPTARIFFS_IMPERFECT!$BQ:$BR,2,0)) -> OCR - Crops n.e.c. | D18: =IF($E$2="Product Homogeneity",VLOOKUP($C18,UPTARIFFS_PERFECT!$A$3:$BT$61,COLUMN(UPTARIFFS_PERFECT!$BJ$9),0), IF($E$2="Product Differentiation",VLOOKUP($C18,UPTARIFFS_IMPERFECT!$A$3:$BT$61,COLUMN(UPTARIFFS_IMPERFECT!$BI$9),0),"N/A")) -> N/A | E18: =IF($E$2="Product Homogeneity",HLOOKUP($C18,UPTARIFFS_PERFECT!$C$3:$BP$76,ROW(UPTARIFFS_PERFECT!$A$73)-2,0), IF($E$2="Product Differentiation",HLOOKUP($C18,UPTARIFFS_IMPERFECT!$C$3:$BP$76,ROW(UPTARIFFS_IMPERFECT!$A$73)-2,0),"N/A")) -> N/A | F18: =IF($E$2="Product Homogeneity",HLOOKUP($C18,UPTARIFFS_PERFECT!$C$3:$BP$76,ROW(UPTARIFFS_PERFECT!$A$72)-2,0), IF($E$2="Product Differentiation",HLOOKUP($C18,UPTARIFFS_IMPERFECT!$C$3:$BP$76,ROW(UPTARIFFS_IMPERFECT!$A$72)-2,0),"N/A")) -> N/A | G18: =IF($E$2="Product Homogeneity",HLOOKUP($C18,UPTARIFFS_PERFECT!$C$3:$BP$76,ROW(UPTARIFFS_PERFECT!$A$71)-2,0), IF($E$2="Product Differentiation",HLOOKUP($C18,UPTARIFFS_IMPERFECT!$C$3:$BP$76,ROW(UPTARIFFS_IMPERFECT!$A$71)-2,0),"N/A")) -> N/A | H18: =(D18-E18)/HLOOKUP($C18,UPTARIFFS_PERFECT!$C$3:$BP$63,ROW(UPTARIFFS_PERFECT!$A$63)-ROW(UPTARIFFS_PERFECT!$A$2),0) ->  | J18: =IF($E$2="Product Homogeneity", VLOOKUP(C18,UPTARIFFS_PERFECT!A:BM,COLUMN(UPTARIFFS_PERFECT!BM11),0), IF($E$2="Product Differentiation", VLOOKUP(C18,OUTPUT_TARIFFS_CALCULATIONS!A:F,6,0),"N/A")) -> N/A | K18: =J18-D18 ->  | M18: =IF($E$2="Product Homogeneity",HLOOKUP($C18,UPTARIFFS_PERFECT!$C$3:$BP$99,ROW(UPTARIFFS_PERFECT!$A$97)-ROW(UPTARIFFS_PERFECT!$A$2),0), IF($E$2="Product Differentiation",HLOOKUP($C18,UPTARIFFS_IMPERFECT!$C$3:$BP$99,ROW(UPTARIFFS_IMPERFECT!$A$97)-ROW(UPTARIFFS_IMPERFECT!$A$2),0),"N/A")) -> N/A | O18: =IF($E$2="Product Homogeneity",HLOOKUP($C18,UPTARIFFS_PERFECT!$C$3:$BP$99,ROW(UPTARIFFS_PERFECT!$A$96)-ROW(UPTARIFFS_PERFECT!$A$2),0), IF($E$2="Product Differentiation",HLOOKUP($C18,UPTARIFFS_IMPERFECT!$C$3:$BP$99,ROW(UPTARIFFS_IMPERFECT!$A$96)-ROW(UPTARIFFS_IMPERFECT!$A$2),0),"N/A")) -> N/A | P18: =O18-F18 ->  | Q18: =IF($E$2="Product Homogeneity",HLOOKUP($C18,UPTARIFFS_PERFECT!$C$3:$BP$99,ROW(UPTARIFFS_PERFECT!$A$95)-ROW(UPTARIFFS_PERFECT!$A$2),0), IF($E$2="Product Differentiation",HLOOKUP($C18,UPTARIFFS_IMPERFECT!$C$3:$BP$99,ROW(UPTARIFFS_IMPERFECT!$A$95)-ROW(UPTARIFFS_IMPERFECT!$A$2),0),"N/A")) -> N/A | R18: =Q18-G18 ->  | S18: =(J18-M18)/IF($E$2="Product Homogeneity",HLOOKUP($C18,UPTARIFFS_PERFECT!$C$3:$BP$63,ROW(UPTARIFFS_PERFECT!$A$63)-ROW(UPTARIFFS_PERFECT!$A$2),0),HLOOKUP($C18,UPTARIFFS_IMPERFECT!$C$3:$BP$63,ROW(UPTARIFFS_IMPERFECT!$A$63)-ROW(UPTARIFFS_IMPERFECT!$A$2),0)) ->  | V18: 8 | Z18: =Y18-X18 ->  | AB18: 8 | AM18: =COUNTIF($AL$10:AL18,AL18)-1 -> 7 | AN18: =AL18+AM18 ->  | AO18: =C18 -> OCR - Crops n.e.c. | AU18: =IFERROR(BB18+BA18,"") -> 8 | AV18: 8 | AW18: =IFERROR(IF($E$2="Product Homogeneity",VLOOKUP(AV18,UPTARIFFS_PERFECT!$BS:$BT,2,0), VLOOKUP(AV18,UPTARIFFS_IMPERFECT!$BS:$BT,2,0)),"") -> OFI - Other financial intermediation | AX18: =IFERROR(IF($E$2="Product Homogeneity",HLOOKUP($AW18,UPTARIFFS_PERFECT!$C$3:$BP$75,ROW(UPTARIFFS_PERFECT!$A$72)-2,0), HLOOKUP($AW18,UPTARIFFS_IMPERFECT!$C$3:$BP$75,ROW(UPTARIFFS_IMPERFECT!$A$72)-2,0)),"") -> 0 | AY18: =IFERROR(IF($E$2="Product Homogeneity",HLOOKUP($AW18,UPTARIFFS_PERFECT!$C$3:$BP$100,ROW(UPTARIFFS_PERFECT!$A$96)-ROW(UPTARIFFS_PERFECT!$A$2),0), HLOOKUP($AW18,UPTARIFFS_IMPERFECT!$C$3:$BP$100,ROW(UPTARIFFS_IMPERFECT!$A$96)-ROW(UPTARIFFS_IMPERFECT!$A$2),0)),"") -> 0 | AZ18: =IFERROR(AY18-AX18,"") -> 0 | BA18: 1 | BB18: =COUNTIF($BA$10:BA18,BA18)-1 -> 7
B19: 9 | C19: =IF($E$2="Product Homogeneity",VLOOKUP(B19,UPTARIFFS_PERFECT!$BQ:$BR,2,0),VLOOKUP(B19,UPTARIFFS_IMPERFECT!$BQ:$BR,2,0)) -> CTL - Bovine cattle, sheep and goats, horses | D19: =IF($E$2="Product Homogeneity",VLOOKUP($C19,UPTARIFFS_PERFECT!$A$3:$BT$61,COLUMN(UPTARIFFS_PERFECT!$BJ$9),0), IF($E$2="Product Differentiation",VLOOKUP($C19,UPTARIFFS_IMPERFECT!$A$3:$BT$61,COLUMN(UPTARIFFS_IMPERFECT!$BI$9),0),"N/A")) -> N/A | E19: =IF($E$2="Product Homogeneity",HLOOKUP($C19,UPTARIFFS_PERFECT!$C$3:$BP$76,ROW(UPTARIFFS_PERFECT!$A$73)-2,0), IF($E$2="Product Differentiation",HLOOKUP($C19,UPTARIFFS_IMPERFECT!$C$3:$BP$76,ROW(UPTARIFFS_IMPERFECT!$A$73)-2,0),"N/A")) -> N/A | F19: =IF($E$2="Product Homogeneity",HLOOKUP($C19,UPTARIFFS_PERFECT!$C$3:$BP$76,ROW(UPTARIFFS_PERFECT!$A$72)-2,0), IF($E$2="Product Differentiation",HLOOKUP($C19,UPTARIFFS_IMPERFECT!$C$3:$BP$76,ROW(UPTARIFFS_IMPERFECT!$A$72)-2,0),"N/A")) -> N/A | G19: =IF($E$2="Product Homogeneity",HLOOKUP($C19,UPTARIFFS_PERFECT!$C$3:$BP$76,ROW(UPTARIFFS_PERFECT!$A$71)-2,0), IF($E$2="Product Differentiation",HLOOKUP($C19,UPTARIFFS_IMPERFECT!$C$3:$BP$76,ROW(UPTARIFFS_IMPERFECT!$A$71)-2,0),"N/A")) -> N/A | H19: =(D19-E19)/HLOOKUP($C19,UPTARIFFS_PERFECT!$C$3:$BP$63,ROW(UPTARIFFS_PERFECT!$A$63)-ROW(UPTARIFFS_PERFECT!$A$2),0) ->  | J19: =IF($E$2="Product Homogeneity", VLOOKUP(C19,UPTARIFFS_PERFECT!A:BM,COLUMN(UPTARIFFS_PERFECT!BM12),0), IF($E$2="Product Differentiation", VLOOKUP(C19,OUTPUT_TARIFFS_CALCULATIONS!A:F,6,0),"N/A")) -> N/A | K19: =J19-D19 ->  | M19: =IF($E$2="Product Homogeneity",HLOOKUP($C19,UPTARIFFS_PERFECT!$C$3:$BP$99,ROW(UPTARIFFS_PERFECT!$A$97)-ROW(UPTARIFFS_PERFECT!$A$2),0), IF($E$2="Product Differentiation",HLOOKUP($C19,UPTARIFFS_IMPERFECT!$C$3:$BP$99,ROW(UPTARIFFS_IMPERFECT!$A$97)-ROW(UPTARIFFS_IMPERFECT!$A$2),0),"N/A")) -> N/A | O19: =IF($E$2="Product Homogeneity",HLOOKUP($C19,UPTARIFFS_PERFECT!$C$3:$BP$99,ROW(UPTARIFFS_PERFECT!$A$96)-ROW(UPTARIFFS_PERFECT!$A$2),0), IF($E$2="Product Differentiation",HLOOKUP($C19,UPTARIFFS_IMPERFECT!$C$3:$BP$99,ROW(UPTARIFFS_IMPERFECT!$A$96)-ROW(UPTARIFFS_IMPERFECT!$A$2),0),"N/A")) -> N/A | P19: =O19-F19 ->  | Q19: =IF($E$2="Product Homogeneity",HLOOKUP($C19,UPTARIFFS_PERFECT!$C$3:$BP$99,ROW(UPTARIFFS_PERFECT!$A$95)-ROW(UPTARIFFS_PERFECT!$A$2),0), IF($E$2="Product Differentiation",HLOOKUP($C19,UPTARIFFS_IMPERFECT!$C$3:$BP$99,ROW(UPTARIFFS_IMPERFECT!$A$95)-ROW(UPTARIFFS_IMPERFECT!$A$2),0),"N/A")) -> N/A | R19: =Q19-G19 ->  | S19: =(J19-M19)/IF($E$2="Product Homogeneity",HLOOKUP($C19,UPTARIFFS_PERFECT!$C$3:$BP$63,ROW(UPTARIFFS_PERFECT!$A$63)-ROW(UPTARIFFS_PERFECT!$A$2),0),HLOOKUP($C19,UPTARIFFS_IMPERFECT!$C$3:$BP$63,ROW(UPTARIFFS_IMPERFECT!$A$63)-ROW(UPTARIFFS_IMPERFECT!$A$2),0)) ->  | V19: 9 | Z19: =Y19-X19 ->  | AB19: 9 | AM19: =COUNTIF($AL$10:AL19,AL19)-1 -> 8 | AN19: =AL19+AM19 ->  | AO19: =C19 -> CTL - Bovine cattle, sheep and goats, horses | AU19: =IFERROR(BB19+BA19,"") -> 9 | AV19: 9 | AW19: =IFERROR(IF($E$2="Product Homogeneity",VLOOKUP(AV19,UPTARIFFS_PERFECT!$BS:$BT,2,0), VLOOKUP(AV19,UPTARIFFS_IMPERFECT!$BS:$BT,2,0)),"") -> ISR - Insurance | AX19: =IFERROR(IF($E$2="Product Homogeneity",HLOOKUP($AW19,UPTARIFFS_PERFECT!$C$3:$BP$75,ROW(UPTARIFFS_PERFECT!$A$72)-2,0), HLOOKUP($AW19,UPTARIFFS_IMPERFECT!$C$3:$BP$75,ROW(UPTARIFFS_IMPERFECT!$A$72)-2,0)),"") -> 0 | AY19: =IFERROR(IF($E$2="Product Homogeneity",HLOOKUP($AW19,UPTARIFFS_PERFECT!$C$3:$BP$100,ROW(UPTARIFFS_PERFECT!$A$96)-ROW(UPTARIFFS_PERFECT!$A$2),0), HLOOKUP($AW19,UPTARIFFS_IMPERFECT!$C$3:$BP$100,ROW(UPTARIFFS_IMPERFECT!$A$96)-ROW(UPTARIFFS_IMPERFECT!$A$2),0)),"") -> 0 | AZ19: =IFERROR(AY19-AX19,"") -> 0 | BA19: 1 | BB19: =COUNTIF($BA$10:BA19,BA19)-1 -> 8
B20: 10 | C20: =IF($E$2="Product Homogeneity",VLOOKUP(B20,UPTARIFFS_PERFECT!$BQ:$BR,2,0),VLOOKUP(B20,UPTARIFFS_IMPERFECT!$BQ:$BR,2,0)) -> OAP - Animal products n.e.c. | D20: =IF($E$2="Product Homogeneity",VLOOKUP($C20,UPTARIFFS_PERFECT!$A$3:$BT$61,COLUMN(UPTARIFFS_PERFECT!$BJ$9),0), IF($E$2="Product Differentiation",VLOOKUP($C20,UPTARIFFS_IMPERFECT!$A$3:$BT$61,COLUMN(UPTARIFFS_IMPERFECT!$BI$9),0),"N/A")) -> N/A | E20: =IF($E$2="Product Homogeneity",HLOOKUP($C20,UPTARIFFS_PERFECT!$C$3:$BP$76,ROW(UPTARIFFS_PERFECT!$A$73)-2,0), IF($E$2="Product Differentiation",HLOOKUP($C20,UPTARIFFS_IMPERFECT!$C$3:$BP$76,ROW(UPTARIFFS_IMPERFECT!$A$73)-2,0),"N/A")) -> N/A | F20: =IF($E$2="Product Homogeneity",HLOOKUP($C20,UPTARIFFS_PERFECT!$C$3:$BP$76,ROW(UPTARIFFS_PERFECT!$A$72)-2,0), IF($E$2="Product Differentiation",HLOOKUP($C20,UPTARIFFS_IMPERFECT!$C$3:$BP$76,ROW(UPTARIFFS_IMPERFECT!$A$72)-2,0),"N/A")) -> N/A | G20: =IF($E$2="Product Homogeneity",HLOOKUP($C20,UPTARIFFS_PERFECT!$C$3:$BP$76,ROW(UPTARIFFS_PERFECT!$A$71)-2,0), IF($E$2="Product Differentiation",HLOOKUP($C20,UPTARIFFS_IMPERFECT!$C$3:$BP$76,ROW(UPTARIFFS_IMPERFECT!$A$71)-2,0),"N/A")) -> N/A | H20: =(D20-E20)/HLOOKUP($C20,UPTARIFFS_PERFECT!$C$3:$BP$63,ROW(UPTARIFFS_PERFECT!$A$63)-ROW(UPTARIFFS_PERFECT!$A$2),0) ->  | J20: =IF($E$2="Product Homogeneity", VLOOKUP(C20,UPTARIFFS_PERFECT!A:BM,COLUMN(UPTARIFFS_PERFECT!BM13),0), IF($E$2="Product Differentiation", VLOOKUP(C20,OUTPUT_TARIFFS_CALCULATIONS!A:F,6,0),"N/A")) -> N/A | K20: =J20-D20 ->  | M20: =IF($E$2="Product Homogeneity",HLOOKUP($C20,UPTARIFFS_PERFECT!$C$3:$BP$99,ROW(UPTARIFFS_PERFECT!$A$97)-ROW(UPTARIFFS_PERFECT!$A$2),0), IF($E$2="Product Differentiation",HLOOKUP($C20,UPTARIFFS_IMPERFECT!$C$3:$BP$99,ROW(UPTARIFFS_IMPERFECT!$A$97)-ROW(UPTARIFFS_IMPERFECT!$A$2),0),"N/A")) -> N/A | O20: =IF($E$2="Product Homogeneity",HLOOKUP($C20,UPTARIFFS_PERFECT!$C$3:$BP$99,ROW(UPTARIFFS_PERFECT!$A$96)-ROW(UPTARIFFS_PERFECT!$A$2),0), IF($E$2="Product Differentiation",HLOOKUP($C20,UPTARIFFS_IMPERFECT!$C$3:$BP$99,ROW(UPTARIFFS_IMPERFECT!$A$96)-ROW(UPTARIFFS_IMPERFECT!$A$2),0),"N/A")) -> N/A | P20: =O20-F20 ->  | Q20: =IF($E$2="Product Homogeneity",HLOOKUP($C20,UPTARIFFS_PERFECT!$C$3:$BP$99,ROW(UPTARIFFS_PERFECT!$A$95)-ROW(UPTARIFFS_PERFECT!$A$2),0), IF($E$2="Product Differentiation",HLOOKUP($C20,UPTARIFFS_IMPERFECT!$C$3:$BP$99,ROW(UPTARIFFS_IMPERFECT!$A$95)-ROW(UPTARIFFS_IMPERFECT!$A$2),0),"N/A")) -> N/A | R20: =Q20-G20 ->  | S20: =(J20-M20)/IF($E$2="Product Homogeneity",HLOOKUP($C20,UPTARIFFS_PERFECT!$C$3:$BP$63,ROW(UPTARIFFS_PERFECT!$A$63)-ROW(UPTARIFFS_PERFECT!$A$2),0),HLOOKUP($C20,UPTARIFFS_IMPERFECT!$C$3:$BP$63,ROW(UPTARIFFS_IMPERFECT!$A$63)-ROW(UPTARIFFS_IMPERFECT!$A$2),0)) ->  | V20: 10 | Z20: =Y20-X20 ->  | AB20: 10 | AM20: =COUNTIF($AL$10:AL20,AL20)-1 -> 9 | AN20: =AL20+AM20 ->  | AO20: =C20 -> OAP - Animal products n.e.c. | AU20: =IFERROR(BB20+BA20,"") -> 10 | AV20: 10 | AW20: =IFERROR(IF($E$2="Product Homogeneity",VLOOKUP(AV20,UPTARIFFS_PERFECT!$BS:$BT,2,0), VLOOKUP(AV20,UPTARIFFS_IMPERFECT!$BS:$BT,2,0)),"") -> OBS: Other business services | AX20: =IFERROR(IF($E$2="Product Homogeneity",HLOOKUP($AW20,UPTARIFFS_PERFECT!$C$3:$BP$75,ROW(UPTARIFFS_PERFECT!$A$72)-2,0), HLOOKUP($AW20,UPTARIFFS_IMPERFECT!$C$3:$BP$75,ROW(UPTARIFFS_IMPERFECT!$A$72)-2,0)),"") -> 0 | AY20: =IFERROR(IF($E$2="Product Homogeneity",HLOOKUP($AW20,UPTARIFFS_PERFECT!$C$3:$BP$100,ROW(UPTARIFFS_PERFECT!$A$96)-ROW(UPTARIFFS_PERFECT!$A$2),0), HLOOKUP($AW20,UPTARIFFS_IMPERFECT!$C$3:$BP$100,ROW(UPTARIFFS_IMPERFECT!$A$96)-ROW(UPTARIFFS_IMPERFECT!$A$2),0)),"") -> 0 | AZ20: =IFERROR(AY20-AX20,"") -> 0 | BA20: 1 | BB20: =COUNTIF($BA$10:BA20,BA20)-1 -> 9
B21: =OFFSET(B21,-1,0)+1 -> 11 | C21: =IF($E$2="Product Homogeneity",VLOOKUP(B21,UPTARIFFS_PERFECT!$BQ:$BR,2,0),VLOOKUP(B21,UPTARIFFS_IMPERFECT!$BQ:$BR,2,0)) -> RMK - Raw Milk | D21: =IF($E$2="Product Homogeneity",VLOOKUP($C21,UPTARIFFS_PERFECT!$A$3:$BT$61,COLUMN(UPTARIFFS_PERFECT!$BJ$9),0), IF($E$2="Product Differentiation",VLOOKUP($C21,UPTARIFFS_IMPERFECT!$A$3:$BT$61,COLUMN(UPTARIFFS_IMPERFECT!$BI$9),0),"N/A")) -> N/A | E21: =IF($E$2="Product Homogeneity",HLOOKUP($C21,UPTARIFFS_PERFECT!$C$3:$BP$76,ROW(UPTARIFFS_PERFECT!$A$73)-2,0), IF($E$2="Product Differentiation",HLOOKUP($C21,UPTARIFFS_IMPERFECT!$C$3:$BP$76,ROW(UPTARIFFS_IMPERFECT!$A$73)-2,0),"N/A")) -> N/A | F21: =IF($E$2="Product Homogeneity",HLOOKUP($C21,UPTARIFFS_PERFECT!$C$3:$BP$76,ROW(UPTARIFFS_PERFECT!$A$72)-2,0), IF($E$2="Product Differentiation",HLOOKUP($C21,UPTARIFFS_IMPERFECT!$C$3:$BP$76,ROW(UPTARIFFS_IMPERFECT!$A$72)-2,0),"N/A")) -> N/A | G21: =IF($E$2="Product Homogeneity",HLOOKUP($C21,UPTARIFFS_PERFECT!$C$3:$BP$76,ROW(UPTARIFFS_PERFECT!$A$71)-2,0), IF($E$2="Product Differentiation",HLOOKUP($C21,UPTARIFFS_IMPERFECT!$C$3:$BP$76,ROW(UPTARIFFS_IMPERFECT!$A$71)-2,0),"N/A")) -> N/A | H21: =(D21-E21)/HLOOKUP($C21,UPTARIFFS_PERFECT!$C$3:$BP$63,ROW(UPTARIFFS_PERFECT!$A$63)-ROW(UPTARIFFS_PERFECT!$A$2),0) ->  | J21: =IF($E$2="Product Homogeneity", VLOOKUP(C21,UPTARIFFS_PERFECT!A:BM,COLUMN(UPTARIFFS_PERFECT!BM14),0), IF($E$2="Product Differentiation", VLOOKUP(C21,OUTPUT_TARIFFS_CALCULATIONS!A:F,6,0),"N/A")) -> N/A | K21: =J21-D21 ->  | M21: =IF($E$2="Product Homogeneity",HLOOKUP($C21,UPTARIFFS_PERFECT!$C$3:$BP$99,ROW(UPTARIFFS_PERFECT!$A$97)-ROW(UPTARIFFS_PERFECT!$A$2),0), IF($E$2="Product Differentiation",HLOOKUP($C21,UPTARIFFS_IMPERFECT!$C$3:$BP$99,ROW(UPTARIFFS_IMPERFECT!$A$97)-ROW(UPTARIFFS_IMPERFECT!$A$2),0),"N/A")) -> N/A | N21: =M21-E21 ->  | O21: =IF($E$2="Product Homogeneity",HLOOKUP($C21,UPTARIFFS_PERFECT!$C$3:$BP$99,ROW(UPTARIFFS_PERFECT!$A$96)-ROW(UPTARIFFS_PERFECT!$A$2),0), IF($E$2="Product Differentiation",HLOOKUP($C21,UPTARIFFS_IMPERFECT!$C$3:$BP$99,ROW(UPTARIFFS_IMPERFECT!$A$96)-ROW(UPTARIFFS_IMPERFECT!$A$2),0),"N/A")) -> N/A | Q21: =IF($E$2="Product Homogeneity",HLOOKUP($C21,UPTARIFFS_PERFECT!$C$3:$BP$99,ROW(UPTARIFFS_PERFECT!$A$95)-ROW(UPTARIFFS_PERFECT!$A$2),0), IF($E$2="Product Differentiation",HLOOKUP($C21,UPTARIFFS_IMPERFECT!$C$3:$BP$99,ROW(UPTARIFFS_IMPERFECT!$A$95)-ROW(UPTARIFFS_IMPERFECT!$A$2),0),"N/A")) -> N/A | S21: =(J21-M21)/IF($E$2="Product Homogeneity",HLOOKUP($C21,UPTARIFFS_PERFECT!$C$3:$BP$63,ROW(UPTARIFFS_PERFECT!$A$63)-ROW(UPTARIFFS_PERFECT!$A$2),0),HLOOKUP($C21,UPTARIFFS_IMPERFECT!$C$3:$BP$63,ROW(UPTARIFFS_IMPERFECT!$A$63)-ROW(UPTARIFFS_IMPERFECT!$A$2),0)) ->  | V21: =OFFSET(V21,-1,0)+1 -> 11 | Z21: =Y21-X21 ->  | AB21: =OFFSET(AB21,-1,0)+1 -> 11 | AM21: =COUNTIF($AL$10:AL21,AL21)-1 -> 10 | AN21: =AL21+AM21 ->  | AO21: RMK - Raw Milk | AU21: =IFERROR(BB21+BA21,"") -> 11 | AV21: =OFFSET(AV21,-1,0)+1 -> 11 | AW21: =IFERROR(IF($E$2="Product Homogeneity",VLOOKUP(AV21,UPTARIFFS_PERFECT!$BS:$BT,2,0), VLOOKUP(AV21,UPTARIFFS_IMPERFECT!$BS:$BT,2,0)),"") -> ROS - Recreation & Other Services | AX21: =IFERROR(IF($E$2="Product Homogeneity",HLOOKUP($AW21,UPTARIFFS_PERFECT!$C$3:$BP$75,ROW(UPTARIFFS_PERFECT!$A$72)-2,0), HLOOKUP($AW21,UPTARIFFS_IMPERFECT!$C$3:$BP$75,ROW(UPTARIFFS_IMPERFECT!$A$72)-2,0)),"") -> 0 | AY21: =IFERROR(IF($E$2="Product Homogeneity",HLOOKUP($AW21,UPTARIFFS_PERFECT!$C$3:$BP$100,ROW(UPTARIFFS_PERFECT!$A$96)-ROW(UPTARIFFS_PERFECT!$A$2),0), HLOOKUP($AW21,UPTARIFFS_IMPERFECT!$C$3:$BP$100,ROW(UPTARIFFS_IMPERFECT!$A$96)-ROW(UPTARIFFS_IMPERFECT!$A$2),0)),"") -> 0 | AZ21: =IFERROR(AY21-AX21,"") -> 0 | BA21: 1 | BB21: =COUNTIF($BA$10:BA21,BA21)-1 -> 10
B22: 12 | C22: =IF($E$2="Product Homogeneity",VLOOKUP(B22,UPTARIFFS_PERFECT!$BQ:$BR,2,0),VLOOKUP(B22,UPTARIFFS_IMPERFECT!$BQ:$BR,2,0)) -> WOL - Wool, silk-worm cocoons | D22: =IF($E$2="Product Homogeneity",VLOOKUP($C22,UPTARIFFS_PERFECT!$A$3:$BT$61,COLUMN(UPTARIFFS_PERFECT!$BJ$9),0), IF($E$2="Product Differentiation",VLOOKUP($C22,UPTARIFFS_IMPERFECT!$A$3:$BT$61,COLUMN(UPTARIFFS_IMPERFECT!$BI$9),0),"N/A")) -> N/A | E22: =IF($E$2="Product Homogeneity",HLOOKUP($C22,UPTARIFFS_PERFECT!$C$3:$BP$76,ROW(UPTARIFFS_PERFECT!$A$73)-2,0), IF($E$2="Product Differentiation",HLOOKUP($C22,UPTARIFFS_IMPERFECT!$C$3:$BP$76,ROW(UPTARIFFS_IMPERFECT!$A$73)-2,0),"N/A")) -> N/A | F22: =IF($E$2="Product Homogeneity",HLOOKUP($C22,UPTARIFFS_PERFECT!$C$3:$BP$76,ROW(UPTARIFFS_PERFECT!$A$72)-2,0), IF($E$2="Product Differentiation",HLOOKUP($C22,UPTARIFFS_IMPERFECT!$C$3:$BP$76,ROW(UPTARIFFS_IMPERFECT!$A$72)-2,0),"N/A")) -> N/A | G22: =IF($E$2="Product Homogeneity",HLOOKUP($C22,UPTARIFFS_PERFECT!$C$3:$BP$76,ROW(UPTARIFFS_PERFECT!$A$71)-2,0), IF($E$2="Product Differentiation",HLOOKUP($C22,UPTARIFFS_IMPERFECT!$C$3:$BP$76,ROW(UPTARIFFS_IMPERFECT!$A$71)-2,0),"N/A")) -> N/A | H22: =(D22-E22)/HLOOKUP($C22,UPTARIFFS_PERFECT!$C$3:$BP$63,ROW(UPTARIFFS_PERFECT!$A$63)-ROW(UPTARIFFS_PERFECT!$A$2),0) ->  | J22: =IF($E$2="Product Homogeneity", VLOOKUP(C22,UPTARIFFS_PERFECT!A:BM,COLUMN(UPTARIFFS_PERFECT!BM15),0), IF($E$2="Product Differentiation", VLOOKUP(C22,OUTPUT_TARIFFS_CALCULATIONS!A:F,6,0),"N/A")) -> N/A | M22: =IF($E$2="Product Homogeneity",HLOOKUP($C22,UPTARIFFS_PERFECT!$C$3:$BP$99,ROW(UPTARIFFS_PERFECT!$A$97)-ROW(UPTARIFFS_PERFECT!$A$2),0), IF($E$2="Product Differentiation",HLOOKUP($C22,UPTARIFFS_IMPERFECT!$C$3:$BP$99,ROW(UPTARIFFS_IMPERFECT!$A$97)-ROW(UPTARIFFS_IMPERFECT!$A$2),0),"N/A")) -> N/A | O22: =IF($E$2="Product Homogeneity",HLOOKUP($C22,UPTARIFFS_PERFECT!$C$3:$BP$99,ROW(UPTARIFFS_PERFECT!$A$96)-ROW(UPTARIFFS_PERFECT!$A$2),0), IF($E$2="Product Differentiation",HLOOKUP($C22,UPTARIFFS_IMPERFECT!$C$3:$BP$99,ROW(UPTARIFFS_IMPERFECT!$A$96)-ROW(UPTARIFFS_IMPERFECT!$A$2),0),"N/A")) -> N/A | Q22: =IF($E$2="Product Homogeneity",HLOOKUP($C22,UPTARIFFS_PERFECT!$C$3:$BP$99,ROW(UPTARIFFS_PERFECT!$A$95)-ROW(UPTARIFFS_PERFECT!$A$2),0), IF($E$2="Product Differentiation",HLOOKUP($C22,UPTARIFFS_IMPERFECT!$C$3:$BP$99,ROW(UPTARIFFS_IMPERFECT!$A$95)-ROW(UPTARIFFS_IMPERFECT!$A$2),0),"N/A")) -> N/A | S22: =(J22-M22)/IF($E$2="Product Homogeneity",HLOOKUP($C22,UPTARIFFS_PERFECT!$C$3:$BP$63,ROW(UPTARIFFS_PERFECT!$A$63)-ROW(UPTARIFFS_PERFECT!$A$2),0),HLOOKUP($C22,UPTARIFFS_IMPERFECT!$C$3:$BP$63,ROW(UPTARIFFS_IMPERFECT!$A$63)-ROW(UPTARIFFS_IMPERFECT!$A$2),0)) ->  | V22: 12 | AB22: 12 | AM22: =COUNTIF($AL$10:AL22,AL22)-1 -> 11 | AO22: WOL - Wool, silk-worm cocoons | AU22: 12 | AV22: 12 | AW22: =IFERROR(IF($E$2="Product Homogeneity",VLOOKUP(AV22,UPTARIFFS_PERFECT!$BS:$BT,2,0), VLOOKUP(AV22,UPTARIFFS_IMPERFECT!$BS:$BT,2,0)),"") -> OSG - Other Services (Government) | AX22: =IFERROR(IF($E$2="Product Homogeneity",HLOOKUP($AW22,UPTARIFFS_PERFECT!$C$3:$BP$75,ROW(UPTARIFFS_PERFECT!$A$72)-2,0), HLOOKUP($AW22,UPTARIFFS_IMPERFECT!$C$3:$BP$75,ROW(UPTARIFFS_IMPERFECT!$A$72)-2,0)),"") -> 0 | AY22: =IFERROR(IF($E$2="Product Homogeneity",HLOOKUP($AW22,UPTARIFFS_PERFECT!$C$3:$BP$100,ROW(UPTARIFFS_PERFECT!$A$96)-ROW(UPTARIFFS_PERFECT!$A$2),0), HLOOKUP($AW22,UPTARIFFS_IMPERFECT!$C$3:$BP$100,ROW(UPTARIFFS_IMPERFECT!$A$96)-ROW(UPTARIFFS_IMPERFECT!$A$2),0)),"") -> 0 | AZ22: 0 | BA22: 1 | BB22: =COUNTIF($BA$10:BA22,BA22)-1 -> 11
B23: 13 | C23: =IF($E$2="Product Homogeneity",VLOOKUP(B23,UPTARIFFS_PERFECT!$BQ:$BR,2,0),VLOOKUP(B23,UPTARIFFS_IMPERFECT!$BQ:$BR,2,0)) -> FRS - Forestry | D23: =IF($E$2="Product Homogeneity",VLOOKUP($C23,UPTARIFFS_PERFECT!$A$3:$BT$61,COLUMN(UPTARIFFS_PERFECT!$BJ$9),0), IF($E$2="Product Differentiation",VLOOKUP($C23,UPTARIFFS_IMPERFECT!$A$3:$BT$61,COLUMN(UPTARIFFS_IMPERFECT!$BI$9),0),"N/A")) -> N/A | E23: =IF($E$2="Product Homogeneity",HLOOKUP($C23,UPTARIFFS_PERFECT!$C$3:$BP$76,ROW(UPTARIFFS_PERFECT!$A$73)-2,0), IF($E$2="Product Differentiation",HLOOKUP($C23,UPTARIFFS_IMPERFECT!$C$3:$BP$76,ROW(UPTARIFFS_IMPERFECT!$A$73)-2,0),"N/A")) -> N/A | F23: =IF($E$2="Product Homogeneity",HLOOKUP($C23,UPTARIFFS_PERFECT!$C$3:$BP$76,ROW(UPTARIFFS_PERFECT!$A$72)-2,0), IF($E$2="Product Differentiation",HLOOKUP($C23,UPTARIFFS_IMPERFECT!$C$3:$BP$76,ROW(UPTARIFFS_IMPERFECT!$A$72)-2,0),"N/A")) -> N/A | G23: =IF($E$2="Product Homogeneity",HLOOKUP($C23,UPTARIFFS_PERFECT!$C$3:$BP$76,ROW(UPTARIFFS_PERFECT!$A$71)-2,0), IF($E$2="Product Differentiation",HLOOKUP($C23,UPTARIFFS_IMPERFECT!$C$3:$BP$76,ROW(UPTARIFFS_IMPERFECT!$A$71)-2,0),"N/A")) -> N/A | H23: =(D23-E23)/HLOOKUP($C23,UPTARIFFS_PERFECT!$C$3:$BP$63,ROW(UPTARIFFS_PERFECT!$A$63)-ROW(UPTARIFFS_PERFECT!$A$2),0) ->  | J23: =IF($E$2="Product Homogeneity", VLOOKUP(C23,UPTARIFFS_PERFECT!A:BM,COLUMN(UPTARIFFS_PERFECT!BM16),0), IF($E$2="Product Differentiation", VLOOKUP(C23,OUTPUT_TARIFFS_CALCULATIONS!A:F,6,0),"N/A")) -> N/A | M23: =IF($E$2="Product Homogeneity",HLOOKUP($C23,UPTARIFFS_PERFECT!$C$3:$BP$99,ROW(UPTARIFFS_PERFECT!$A$97)-ROW(UPTARIFFS_PERFECT!$A$2),0), IF($E$2="Product Differentiation",HLOOKUP($C23,UPTARIFFS_IMPERFECT!$C$3:$BP$99,ROW(UPTARIFFS_IMPERFECT!$A$97)-ROW(UPTARIFFS_IMPERFECT!$A$2),0),"N/A")) -> N/A | O23: =IF($E$2="Product Homogeneity",HLOOKUP($C23,UPTARIFFS_PERFECT!$C$3:$BP$99,ROW(UPTARIFFS_PERFECT!$A$96)-ROW(UPTARIFFS_PERFECT!$A$2),0), IF($E$2="Product Differentiation",HLOOKUP($C23,UPTARIFFS_IMPERFECT!$C$3:$BP$99,ROW(UPTARIFFS_IMPERFECT!$A$96)-ROW(UPTARIFFS_IMPERFECT!$A$2),0),"N/A")) -> N/A | Q23: =IF($E$2="Product Homogeneity",HLOOKUP($C23,UPTARIFFS_PERFECT!$C$3:$BP$99,ROW(UPTARIFFS_PERFECT!$A$95)-ROW(UPTARIFFS_PERFECT!$A$2),0), IF($E$2="Product Differentiation",HLOOKUP($C23,UPTARIFFS_IMPERFECT!$C$3:$BP$99,ROW(UPTARIFFS_IMPERFECT!$A$95)-ROW(UPTARIFFS_IMPERFECT!$A$2),0),"N/A")) -> N/A | S23: =(J23-M23)/IF($E$2="Product Homogeneity",HLOOKUP($C23,UPTARIFFS_PERFECT!$C$3:$BP$63,ROW(UPTARIFFS_PERFECT!$A$63)-ROW(UPTARIFFS_PERFECT!$A$2),0),HLOOKUP($C23,UPTARIFFS_IMPERFECT!$C$3:$BP$63,ROW(UPTARIFFS_IMPERFECT!$A$63)-ROW(UPTARIFFS_IMPERFECT!$A$2),0)) ->  | V23: 13 | AB23: 13 | AM23: =COUNTIF($AL$10:AL23,AL23)-1 -> 12 | AO23: FRS - Forestry | AU23: 13 | AV23: 13 | AW23: =IFERROR(IF($E$2="Product Homogeneity",VLOOKUP(AV23,UPTARIFFS_PERFECT!$BS:$BT,2,0), VLOOKUP(AV23,UPTARIFFS_IMPERFECT!$BS:$BT,2,0)),"") -> DWE - Dwellings | AX23: =IFERROR(IF($E$2="Product Homogeneity",HLOOKUP($AW23,UPTARIFFS_PERFECT!$C$3:$BP$75,ROW(UPTARIFFS_PERFECT!$A$72)-2,0), HLOOKUP($AW23,UPTARIFFS_IMPERFECT!$C$3:$BP$75,ROW(UPTARIFFS_IMPERFECT!$A$72)-2,0)),"") -> 0 | AY23: =IFERROR(IF($E$2="Product Homogeneity",HLOOKUP($AW23,UPTARIFFS_PERFECT!$C$3:$BP$100,ROW(UPTARIFFS_PERFECT!$A$96)-ROW(UPTARIFFS_PERFECT!$A$2),0), HLOOKUP($AW23,UPTARIFFS_IMPERFECT!$C$3:$BP$100,ROW(UPTARIFFS_IMPERFECT!$A$96)-ROW(UPTARIFFS_IMPERFECT!$A$2),0)),"") -> 0 | AZ23: 0 | BA23: 1 | BB23: =COUNTIF($BA$10:BA23,BA23)-1 -> 12
B24: 14 | C24: =IF($E$2="Product Homogeneity",VLOOKUP(B24,UPTARIFFS_PERFECT!$BQ:$BR,2,0),VLOOKUP(B24,UPTARIFFS_IMPERFECT!$BQ:$BR,2,0)) -> FSH - Fishing | D24: =IF($E$2="Product Homogeneity",VLOOKUP($C24,UPTARIFFS_PERFECT!$A$3:$BT$61,COLUMN(UPTARIFFS_PERFECT!$BJ$9),0), IF($E$2="Product Differentiation",VLOOKUP($C24,UPTARIFFS_IMPERFECT!$A$3:$BT$61,COLUMN(UPTARIFFS_IMPERFECT!$BI$9),0),"N/A")) -> N/A | E24: =IF($E$2="Product Homogeneity",HLOOKUP($C24,UPTARIFFS_PERFECT!$C$3:$BP$76,ROW(UPTARIFFS_PERFECT!$A$73)-2,0), IF($E$2="Product Differentiation",HLOOKUP($C24,UPTARIFFS_IMPERFECT!$C$3:$BP$76,ROW(UPTARIFFS_IMPERFECT!$A$73)-2,0),"N/A")) -> N/A | F24: =IF($E$2="Product Homogeneity",HLOOKUP($C24,UPTARIFFS_PERFECT!$C$3:$BP$76,ROW(UPTARIFFS_PERFECT!$A$72)-2,0), IF($E$2="Product Differentiation",HLOOKUP($C24,UPTARIFFS_IMPERFECT!$C$3:$BP$76,ROW(UPTARIFFS_IMPERFECT!$A$72)-2,0),"N/A")) -> N/A | G24: =IF($E$2="Product Homogeneity",HLOOKUP($C24,UPTARIFFS_PERFECT!$C$3:$BP$76,ROW(UPTARIFFS_PERFECT!$A$71)-2,0), IF($E$2="Product Differentiation",HLOOKUP($C24,UPTARIFFS_IMPERFECT!$C$3:$BP$76,ROW(UPTARIFFS_IMPERFECT!$A$71)-2,0),"N/A")) -> N/A | H24: =(D24-E24)/HLOOKUP($C24,UPTARIFFS_PERFECT!$C$3:$BP$63,ROW(UPTARIFFS_PERFECT!$A$63)-ROW(UPTARIFFS_PERFECT!$A$2),0) ->  | J24: =IF($E$2="Product Homogeneity", VLOOKUP(C24,UPTARIFFS_PERFECT!A:BM,COLUMN(UPTARIFFS_PERFECT!BM17),0), IF($E$2="Product Differentiation", VLOOKUP(C24,OUTPUT_TARIFFS_CALCULATIONS!A:F,6,0),"N/A")) -> N/A | M24: =IF($E$2="Product Homogeneity",HLOOKUP($C24,UPTARIFFS_PERFECT!$C$3:$BP$99,ROW(UPTARIFFS_PERFECT!$A$97)-ROW(UPTARIFFS_PERFECT!$A$2),0), IF($E$2="Product Differentiation",HLOOKUP($C24,UPTARIFFS_IMPERFECT!$C$3:$BP$99,ROW(UPTARIFFS_IMPERFECT!$A$97)-ROW(UPTARIFFS_IMPERFECT!$A$2),0),"N/A")) -> N/A | O24: =IF($E$2="Product Homogeneity",HLOOKUP($C24,UPTARIFFS_PERFECT!$C$3:$BP$99,ROW(UPTARIFFS_PERFECT!$A$96)-ROW(UPTARIFFS_PERFECT!$A$2),0), IF($E$2="Product Differentiation",HLOOKUP($C24,UPTARIFFS_IMPERFECT!$C$3:$BP$99,ROW(UPTARIFFS_IMPERFECT!$A$96)-ROW(UPTARIFFS_IMPERFECT!$A$2),0),"N/A")) -> N/A | Q24: =IF($E$2="Product Homogeneity",HLOOKUP($C24,UPTARIFFS_PERFECT!$C$3:$BP$99,ROW(UPTARIFFS_PERFECT!$A$95)-ROW(UPTARIFFS_PERFECT!$A$2),0), IF($E$2="Product Differentiation",HLOOKUP($C24,UPTARIFFS_IMPERFECT!$C$3:$BP$99,ROW(UPTARIFFS_IMPERFECT!$A$95)-ROW(UPTARIFFS_IMPERFECT!$A$2),0),"N/A")) -> N/A | S24: =(J24-M24)/IF($E$2="Product Homogeneity",HLOOKUP($C24,UPTARIFFS_PERFECT!$C$3:$BP$63,ROW(UPTARIFFS_PERFECT!$A$63)-ROW(UPTARIFFS_PERFECT!$A$2),0),HLOOKUP($C24,UPTARIFFS_IMPERFECT!$C$3:$BP$63,ROW(UPTARIFFS_IMPERFECT!$A$63)-ROW(UPTARIFFS_IMPERFECT!$A$2),0)) ->  | V24: 14 | AB24: 14 | AF24: =IF(SIM_III_OUT_competition="","",IFERROR(AE24-AD24,"")) ->  | AM24: =COUNTIF($AL$10:AL24,AL24)-1 -> 13 | AO24: FSH - Fishing | AV24: 14 | AW24: =IFERROR(IF($E$2="Product Homogeneity",VLOOKUP(AV24,UPTARIFFS_PERFECT!$BS:$BT,2,0), VLOOKUP(AV24,UPTARIFFS_IMPERFECT!$BS:$BT,2,0)),"") ->  | AX24: =IFERROR(IF($E$2="Product Homogeneity",HLOOKUP($AW24,UPTARIFFS_PERFECT!$C$3:$BP$75,ROW(UPTARIFFS_PERFECT!$A$72)-2,0), HLOOKUP($AW24,UPTARIFFS_IMPERFECT!$C$3:$BP$75,ROW(UPTARIFFS_IMPERFECT!$A$72)-2,0)),"") ->  | AY24: =IFERROR(IF($E$2="Product Homogeneity",HLOOKUP($AW24,UPTARIFFS_PERFECT!$C$3:$BP$100,ROW(UPTARIFFS_PERFECT!$A$96)-ROW(UPTARIFFS_PERFECT!$A$2),0), HLOOKUP($AW24,UPTARIFFS_IMPERFECT!$C$3:$BP$100,ROW(UPTARIFFS_IMPERFECT!$A$96)-ROW(UPTARIFFS_IMPERFECT!$A$2),0)),"") ->  | BB24: =COUNTIF($BA$10:BA24,BA24)-1 -> 1
B25: 15 | C25: =IF($E$2="Product Homogeneity",VLOOKUP(B25,UPTARIFFS_PERFECT!$BQ:$BR,2,0),VLOOKUP(B25,UPTARIFFS_IMPERFECT!$BQ:$BR,2,0)) -> COA - Coal | D25: =IF($E$2="Product Homogeneity",VLOOKUP($C25,UPTARIFFS_PERFECT!$A$3:$BT$61,COLUMN(UPTARIFFS_PERFECT!$BJ$9),0), IF($E$2="Product Differentiation",VLOOKUP($C25,UPTARIFFS_IMPERFECT!$A$3:$BT$61,COLUMN(UPTARIFFS_IMPERFECT!$BI$9),0),"N/A")) -> N/A | E25: =IF($E$2="Product Homogeneity",HLOOKUP($C25,UPTARIFFS_PERFECT!$C$3:$BP$76,ROW(UPTARIFFS_PERFECT!$A$73)-2,0), IF($E$2="Product Differentiation",HLOOKUP($C25,UPTARIFFS_IMPERFECT!$C$3:$BP$76,ROW(UPTARIFFS_IMPERFECT!$A$73)-2,0),"N/A")) -> N/A | F25: =IF($E$2="Product Homogeneity",HLOOKUP($C25,UPTARIFFS_PERFECT!$C$3:$BP$76,ROW(UPTARIFFS_PERFECT!$A$72)-2,0), IF($E$2="Product Differentiation",HLOOKUP($C25,UPTARIFFS_IMPERFECT!$C$3:$BP$76,ROW(UPTARIFFS_IMPERFECT!$A$72)-2,0),"N/A")) -> N/A | G25: =IF($E$2="Product Homogeneity",HLOOKUP($C25,UPTARIFFS_PERFECT!$C$3:$BP$76,ROW(UPTARIFFS_PERFECT!$A$71)-2,0), IF($E$2="Product Differentiation",HLOOKUP($C25,UPTARIFFS_IMPERFECT!$C$3:$BP$76,ROW(UPTARIFFS_IMPERFECT!$A$71)-2,0),"N/A")) -> N/A | H25: =(D25-E25)/HLOOKUP($C25,UPTARIFFS_PERFECT!$C$3:$BP$63,ROW(UPTARIFFS_PERFECT!$A$63)-ROW(UPTARIFFS_PERFECT!$A$2),0) ->  | J25: =IF($E$2="Product Homogeneity", VLOOKUP(C25,UPTARIFFS_PERFECT!A:BM,COLUMN(UPTARIFFS_PERFECT!BM18),0), IF($E$2="Product Differentiation", VLOOKUP(C25,OUTPUT_TARIFFS_CALCULATIONS!A:F,6,0),"N/A")) -> N/A | M25: =IF($E$2="Product Homogeneity",HLOOKUP($C25,UPTARIFFS_PERFECT!$C$3:$BP$99,ROW(UPTARIFFS_PERFECT!$A$97)-ROW(UPTARIFFS_PERFECT!$A$2),0), IF($E$2="Product Differentiation",HLOOKUP($C25,UPTARIFFS_IMPERFECT!$C$3:$BP$99,ROW(UPTARIFFS_IMPERFECT!$A$97)-ROW(UPTARIFFS_IMPERFECT!$A$2),0),"N/A")) -> N/A | O25: =IF($E$2="Product Homogeneity",HLOOKUP($C25,UPTARIFFS_PERFECT!$C$3:$BP$99,ROW(UPTARIFFS_PERFECT!$A$96)-ROW(UPTARIFFS_PERFECT!$A$2),0), IF($E$2="Product Differentiation",HLOOKUP($C25,UPTARIFFS_IMPERFECT!$C$3:$BP$99,ROW(UPTARIFFS_IMPERFECT!$A$96)-ROW(UPTARIFFS_IMPERFECT!$A$2),0),"N/A")) -> N/A | Q25: =IF($E$2="Product Homogeneity",HLOOKUP($C25,UPTARIFFS_PERFECT!$C$3:$BP$99,ROW(UPTARIFFS_PERFECT!$A$95)-ROW(UPTARIFFS_PERFECT!$A$2),0), IF($E$2="Product Differentiation",HLOOKUP($C25,UPTARIFFS_IMPERFECT!$C$3:$BP$99,ROW(UPTARIFFS_IMPERFECT!$A$95)-ROW(UPTARIFFS_IMPERFECT!$A$2),0),"N/A")) -> N/A | S25: =(J25-M25)/IF($E$2="Product Homogeneity",HLOOKUP($C25,UPTARIFFS_PERFECT!$C$3:$BP$63,ROW(UPTARIFFS_PERFECT!$A$63)-ROW(UPTARIFFS_PERFECT!$A$2),0),HLOOKUP($C25,UPTARIFFS_IMPERFECT!$C$3:$BP$63,ROW(UPTARIFFS_IMPERFECT!$A$63)-ROW(UPTARIFFS_IMPERFECT!$A$2),0)) ->  | V25: 15 | AB25: 15 | AM25: =COUNTIF($AL$10:AL25,AL25)-1 -> 14 | AO25: COA - Coal | AV25: 15 | AW25: =IFERROR(IF($E$2="Product Homogeneity",VLOOKUP(AV25,UPTARIFFS_PERFECT!$BS:$BT,2,0), VLOOKUP(AV25,UPTARIFFS_IMPERFECT!$BS:$BT,2,0)),"") ->  | AX25: =IFERROR(IF($E$2="Product Homogeneity",HLOOKUP($AW25,UPTARIFFS_PERFECT!$C$3:$BP$75,ROW(UPTARIFFS_PERFECT!$A$72)-2,0), HLOOKUP($AW25,UPTARIFFS_IMPERFECT!$C$3:$BP$75,ROW(UPTARIFFS_IMPERFECT!$A$72)-2,0)),"") ->  | AY25: =IFERROR(IF($E$2="Product Homogeneity",HLOOKUP($AW25,UPTARIFFS_PERFECT!$C$3:$BP$100,ROW(UPTARIFFS_PERFECT!$A$96)-ROW(UPTARIFFS_PERFECT!$A$2),0), HLOOKUP($AW25,UPTARIFFS_IMPERFECT!$C$3:$BP$100,ROW(UPTARIFFS_IMPERFECT!$A$96)-ROW(UPTARIFFS_IMPERFECT!$A$2),0)),"") ->  | BB25: =COUNTIF($BA$10:BA25,BA25)-1 -> 2
B26: 16 | C26: =IF($E$2="Product Homogeneity",VLOOKUP(B26,UPTARIFFS_PERFECT!$BQ:$BR,2,0),VLOOKUP(B26,UPTARIFFS_IMPERFECT!$BQ:$BR,2,0)) -> OIL - Oil | D26: =IF($E$2="Product Homogeneity",VLOOKUP($C26,UPTARIFFS_PERFECT!$A$3:$BT$61,COLUMN(UPTARIFFS_PERFECT!$BJ$9),0), IF($E$2="Product Differentiation",VLOOKUP($C26,UPTARIFFS_IMPERFECT!$A$3:$BT$61,COLUMN(UPTARIFFS_IMPERFECT!$BI$9),0),"N/A")) -> N/A | E26: =IF($E$2="Product Homogeneity",HLOOKUP($C26,UPTARIFFS_PERFECT!$C$3:$BP$76,ROW(UPTARIFFS_PERFECT!$A$73)-2,0), IF($E$2="Product Differentiation",HLOOKUP($C26,UPTARIFFS_IMPERFECT!$C$3:$BP$76,ROW(UPTARIFFS_IMPERFECT!$A$73)-2,0),"N/A")) -> N/A | F26: =IF($E$2="Product Homogeneity",HLOOKUP($C26,UPTARIFFS_PERFECT!$C$3:$BP$76,ROW(UPTARIFFS_PERFECT!$A$72)-2,0), IF($E$2="Product Differentiation",HLOOKUP($C26,UPTARIFFS_IMPERFECT!$C$3:$BP$76,ROW(UPTARIFFS_IMPERFECT!$A$72)-2,0),"N/A")) -> N/A | G26: =IF($E$2="Product Homogeneity",HLOOKUP($C26,UPTARIFFS_PERFECT!$C$3:$BP$76,ROW(UPTARIFFS_PERFECT!$A$71)-2,0), IF($E$2="Product Differentiation",HLOOKUP($C26,UPTARIFFS_IMPERFECT!$C$3:$BP$76,ROW(UPTARIFFS_IMPERFECT!$A$71)-2,0),"N/A")) -> N/A | H26: =(D26-E26)/HLOOKUP($C26,UPTARIFFS_PERFECT!$C$3:$BP$63,ROW(UPTARIFFS_PERFECT!$A$63)-ROW(UPTARIFFS_PERFECT!$A$2),0) ->  | J26: =IF($E$2="Product Homogeneity", VLOOKUP(C26,UPTARIFFS_PERFECT!A:BM,COLUMN(UPTARIFFS_PERFECT!BM19),0), IF($E$2="Product Differentiation", VLOOKUP(C26,OUTPUT_TARIFFS_CALCULATIONS!A:F,6,0),"N/A")) -> N/A | M26: =IF($E$2="Product Homogeneity",HLOOKUP($C26,UPTARIFFS_PERFECT!$C$3:$BP$99,ROW(UPTARIFFS_PERFECT!$A$97)-ROW(UPTARIFFS_PERFECT!$A$2),0), IF($E$2="Product Differentiation",HLOOKUP($C26,UPTARIFFS_IMPERFECT!$C$3:$BP$99,ROW(UPTARIFFS_IMPERFECT!$A$97)-ROW(UPTARIFFS_IMPERFECT!$A$2),0),"N/A")) -> N/A | O26: =IF($E$2="Product Homogeneity",HLOOKUP($C26,UPTARIFFS_PERFECT!$C$3:$BP$99,ROW(UPTARIFFS_PERFECT!$A$96)-ROW(UPTARIFFS_PERFECT!$A$2),0), IF($E$2="Product Differentiation",HLOOKUP($C26,UPTARIFFS_IMPERFECT!$C$3:$BP$99,ROW(UPTARIFFS_IMPERFECT!$A$96)-ROW(UPTARIFFS_IMPERFECT!$A$2),0),"N/A")) -> N/A | Q26: =IF($E$2="Product Homogeneity",HLOOKUP($C26,UPTARIFFS_PERFECT!$C$3:$BP$99,ROW(UPTARIFFS_PERFECT!$A$95)-ROW(UPTARIFFS_PERFECT!$A$2),0), IF($E$2="Product Differentiation",HLOOKUP($C26,UPTARIFFS_IMPERFECT!$C$3:$BP$99,ROW(UPTARIFFS_IMPERFECT!$A$95)-ROW(UPTARIFFS_IMPERFECT!$A$2),0),"N/A")) -> N/A | S26: =(J26-M26)/IF($E$2="Product Homogeneity",HLOOKUP($C26,UPTARIFFS_PERFECT!$C$3:$BP$63,ROW(UPTARIFFS_PERFECT!$A$63)-ROW(UPTARIFFS_PERFECT!$A$2),0),HLOOKUP($C26,UPTARIFFS_IMPERFECT!$C$3:$BP$63,ROW(UPTARIFFS_IMPERFECT!$A$63)-ROW(UPTARIFFS_IMPERFECT!$A$2),0)) ->  | V26: 16 | AB26: 16 | AM26: =COUNTIF($AL$10:AL26,AL26)-1 -> 15 | AO26: OIL - Oil | AV26: 16 | AW26: =IFERROR(IF($E$2="Product Homogeneity",VLOOKUP(AV26,UPTARIFFS_PERFECT!$BS:$BT,2,0), VLOOKUP(AV26,UPTARIFFS_IMPERFECT!$BS:$BT,2,0)),"") ->  | AX26: =IFERROR(IF($E$2="Product Homogeneity",HLOOKUP($AW26,UPTARIFFS_PERFECT!$C$3:$BP$75,ROW(UPTARIFFS_PERFECT!$A$72)-2,0), HLOOKUP($AW26,UPTARIFFS_IMPERFECT!$C$3:$BP$75,ROW(UPTARIFFS_IMPERFECT!$A$72)-2,0)),"") ->  | AY26: =IFERROR(IF($E$2="Product Homogeneity",HLOOKUP($AW26,UPTARIFFS_PERFECT!$C$3:$BP$100,ROW(UPTARIFFS_PERFECT!$A$96)-ROW(UPTARIFFS_PERFECT!$A$2),0), HLOOKUP($AW26,UPTARIFFS_IMPERFECT!$C$3:$BP$100,ROW(UPTARIFFS_IMPERFECT!$A$96)-ROW(UPTARIFFS_IMPERFECT!$A$2),0)),"") ->  | BB26: =COUNTIF($BA$10:BA26,BA26)-1 -> 3
B27: 17 | C27: =IF($E$2="Product Homogeneity",VLOOKUP(B27,UPTARIFFS_PERFECT!$BQ:$BR,2,0),VLOOKUP(B27,UPTARIFFS_IMPERFECT!$BQ:$BR,2,0)) -> GAS - Gas | D27: =IF($E$2="Product Homogeneity",VLOOKUP($C27,UPTARIFFS_PERFECT!$A$3:$BT$61,COLUMN(UPTARIFFS_PERFECT!$BJ$9),0), IF($E$2="Product Differentiation",VLOOKUP($C27,UPTARIFFS_IMPERFECT!$A$3:$BT$61,COLUMN(UPTARIFFS_IMPERFECT!$BI$9),0),"N/A")) -> N/A | E27: =IF($E$2="Product Homogeneity",HLOOKUP($C27,UPTARIFFS_PERFECT!$C$3:$BP$76,ROW(UPTARIFFS_PERFECT!$A$73)-2,0), IF($E$2="Product Differentiation",HLOOKUP($C27,UPTARIFFS_IMPERFECT!$C$3:$BP$76,ROW(UPTARIFFS_IMPERFECT!$A$73)-2,0),"N/A")) -> N/A | F27: =IF($E$2="Product Homogeneity",HLOOKUP($C27,UPTARIFFS_PERFECT!$C$3:$BP$76,ROW(UPTARIFFS_PERFECT!$A$72)-2,0), IF($E$2="Product Differentiation",HLOOKUP($C27,UPTARIFFS_IMPERFECT!$C$3:$BP$76,ROW(UPTARIFFS_IMPERFECT!$A$72)-2,0),"N/A")) -> N/A | G27: =IF($E$2="Product Homogeneity",HLOOKUP($C27,UPTARIFFS_PERFECT!$C$3:$BP$76,ROW(UPTARIFFS_PERFECT!$A$71)-2,0), IF($E$2="Product Differentiation",HLOOKUP($C27,UPTARIFFS_IMPERFECT!$C$3:$BP$76,ROW(UPTARIFFS_IMPERFECT!$A$71)-2,0),"N/A")) -> N/A | H27: =(D27-E27)/HLOOKUP($C27,UPTARIFFS_PERFECT!$C$3:$BP$63,ROW(UPTARIFFS_PERFECT!$A$63)-ROW(UPTARIFFS_PERFECT!$A$2),0) ->  | J27: =IF($E$2="Product Homogeneity", VLOOKUP(C27,UPTARIFFS_PERFECT!A:BM,COLUMN(UPTARIFFS_PERFECT!BM20),0), IF($E$2="Product Differentiation", VLOOKUP(C27,OUTPUT_TARIFFS_CALCULATIONS!A:F,6,0),"N/A")) -> N/A | M27: =IF($E$2="Product Homogeneity",HLOOKUP($C27,UPTARIFFS_PERFECT!$C$3:$BP$99,ROW(UPTARIFFS_PERFECT!$A$97)-ROW(UPTARIFFS_PERFECT!$A$2),0), IF($E$2="Product Differentiation",HLOOKUP($C27,UPTARIFFS_IMPERFECT!$C$3:$BP$99,ROW(UPTARIFFS_IMPERFECT!$A$97)-ROW(UPTARIFFS_IMPERFECT!$A$2),0),"N/A")) -> N/A | O27: =IF($E$2="Product Homogeneity",HLOOKUP($C27,UPTARIFFS_PERFECT!$C$3:$BP$99,ROW(UPTARIFFS_PERFECT!$A$96)-ROW(UPTARIFFS_PERFECT!$A$2),0), IF($E$2="Product Differentiation",HLOOKUP($C27,UPTARIFFS_IMPERFECT!$C$3:$BP$99,ROW(UPTARIFFS_IMPERFECT!$A$96)-ROW(UPTARIFFS_IMPERFECT!$A$2),0),"N/A")) -> N/A | Q27: =IF($E$2="Product Homogeneity",HLOOKUP($C27,UPTARIFFS_PERFECT!$C$3:$BP$99,ROW(UPTARIFFS_PERFECT!$A$95)-ROW(UPTARIFFS_PERFECT!$A$2),0), IF($E$2="Product Differentiation",HLOOKUP($C27,UPTARIFFS_IMPERFECT!$C$3:$BP$99,ROW(UPTARIFFS_IMPERFECT!$A$95)-ROW(UPTARIFFS_IMPERFECT!$A$2),0),"N/A")) -> N/A | S27: =(J27-M27)/IF($E$2="Product Homogeneity",HLOOKUP($C27,UPTARIFFS_PERFECT!$C$3:$BP$63,ROW(UPTARIFFS_PERFECT!$A$63)-ROW(UPTARIFFS_PERFECT!$A$2),0),HLOOKUP($C27,UPTARIFFS_IMPERFECT!$C$3:$BP$63,ROW(UPTARIFFS_IMPERFECT!$A$63)-ROW(UPTARIFFS_IMPERFECT!$A$2),0)) ->  | V27: 17 | AB27: 17 | AM27: =COUNTIF($AL$10:AL27,AL27)-1 -> 16 | AO27: GAS - Gas | AV27: 17 | AW27: =IFERROR(IF($E$2="Product Homogeneity",VLOOKUP(AV27,UPTARIFFS_PERFECT!$BS:$BT,2,0), VLOOKUP(AV27,UPTARIFFS_IMPERFECT!$BS:$BT,2,0)),"") ->  | AX27: =IFERROR(IF($E$2="Product Homogeneity",HLOOKUP($AW27,UPTARIFFS_PERFECT!$C$3:$BP$75,ROW(UPTARIFFS_PERFECT!$A$72)-2,0), HLOOKUP($AW27,UPTARIFFS_IMPERFECT!$C$3:$BP$75,ROW(UPTARIFFS_IMPERFECT!$A$72)-2,0)),"") ->  | AY27: =IFERROR(IF($E$2="Product Homogeneity",HLOOKUP($AW27,UPTARIFFS_PERFECT!$C$3:$BP$100,ROW(UPTARIFFS_PERFECT!$A$96)-ROW(UPTARIFFS_PERFECT!$A$2),0), HLOOKUP($AW27,UPTARIFFS_IMPERFECT!$C$3:$BP$100,ROW(UPTARIFFS_IMPERFECT!$A$96)-ROW(UPTARIFFS_IMPERFECT!$A$2),0)),"") ->  | BB27: =COUNTIF($BA$10:BA27,BA27)-1 -> 4
B28: 18 | C28: =IF($E$2="Product Homogeneity",VLOOKUP(B28,UPTARIFFS_PERFECT!$BQ:$BR,2,0),VLOOKUP(B28,UPTARIFFS_IMPERFECT!$BQ:$BR,2,0)) -> OMN - Minerals n.e.c. | D28: =IF($E$2="Product Homogeneity",VLOOKUP($C28,UPTARIFFS_PERFECT!$A$3:$BT$61,COLUMN(UPTARIFFS_PERFECT!$BJ$9),0), IF($E$2="Product Differentiation",VLOOKUP($C28,UPTARIFFS_IMPERFECT!$A$3:$BT$61,COLUMN(UPTARIFFS_IMPERFECT!$BI$9),0),"N/A")) -> N/A | E28: =IF($E$2="Product Homogeneity",HLOOKUP($C28,UPTARIFFS_PERFECT!$C$3:$BP$76,ROW(UPTARIFFS_PERFECT!$A$73)-2,0), IF($E$2="Product Differentiation",HLOOKUP($C28,UPTARIFFS_IMPERFECT!$C$3:$BP$76,ROW(UPTARIFFS_IMPERFECT!$A$73)-2,0),"N/A")) -> N/A | F28: =IF($E$2="Product Homogeneity",HLOOKUP($C28,UPTARIFFS_PERFECT!$C$3:$BP$76,ROW(UPTARIFFS_PERFECT!$A$72)-2,0), IF($E$2="Product Differentiation",HLOOKUP($C28,UPTARIFFS_IMPERFECT!$C$3:$BP$76,ROW(UPTARIFFS_IMPERFECT!$A$72)-2,0),"N/A")) -> N/A | G28: =IF($E$2="Product Homogeneity",HLOOKUP($C28,UPTARIFFS_PERFECT!$C$3:$BP$76,ROW(UPTARIFFS_PERFECT!$A$71)-2,0), IF($E$2="Product Differentiation",HLOOKUP($C28,UPTARIFFS_IMPERFECT!$C$3:$BP$76,ROW(UPTARIFFS_IMPERFECT!$A$71)-2,0),"N/A")) -> N/A | H28: =(D28-E28)/HLOOKUP($C28,UPTARIFFS_PERFECT!$C$3:$BP$63,ROW(UPTARIFFS_PERFECT!$A$63)-ROW(UPTARIFFS_PERFECT!$A$2),0) ->  | J28: =IF($E$2="Product Homogeneity", VLOOKUP(C28,UPTARIFFS_PERFECT!A:BM,COLUMN(UPTARIFFS_PERFECT!BM21),0), IF($E$2="Product Differentiation", VLOOKUP(C28,OUTPUT_TARIFFS_CALCULATIONS!A:F,6,0),"N/A")) -> N/A | M28: =IF($E$2="Product Homogeneity",HLOOKUP($C28,UPTARIFFS_PERFECT!$C$3:$BP$99,ROW(UPTARIFFS_PERFECT!$A$97)-ROW(UPTARIFFS_PERFECT!$A$2),0), IF($E$2="Product Differentiation",HLOOKUP($C28,UPTARIFFS_IMPERFECT!$C$3:$BP$99,ROW(UPTARIFFS_IMPERFECT!$A$97)-ROW(UPTARIFFS_IMPERFECT!$A$2),0),"N/A")) -> N/A | O28: =IF($E$2="Product Homogeneity",HLOOKUP($C28,UPTARIFFS_PERFECT!$C$3:$BP$99,ROW(UPTARIFFS_PERFECT!$A$96)-ROW(UPTARIFFS_PERFECT!$A$2),0), IF($E$2="Product Differentiation",HLOOKUP($C28,UPTARIFFS_IMPERFECT!$C$3:$BP$99,ROW(UPTARIFFS_IMPERFECT!$A$96)-ROW(UPTARIFFS_IMPERFECT!$A$2),0),"N/A")) -> N/A | Q28: =IF($E$2="Product Homogeneity",HLOOKUP($C28,UPTARIFFS_PERFECT!$C$3:$BP$99,ROW(UPTARIFFS_PERFECT!$A$95)-ROW(UPTARIFFS_PERFECT!$A$2),0), IF($E$2="Product Differentiation",HLOOKUP($C28,UPTARIFFS_IMPERFECT!$C$3:$BP$99,ROW(UPTARIFFS_IMPERFECT!$A$95)-ROW(UPTARIFFS_IMPERFECT!$A$2),0),"N/A")) -> N/A | S28: =(J28-M28)/IF($E$2="Product Homogeneity",HLOOKUP($C28,UPTARIFFS_PERFECT!$C$3:$BP$63,ROW(UPTARIFFS_PERFECT!$A$63)-ROW(UPTARIFFS_PERFECT!$A$2),0),HLOOKUP($C28,UPTARIFFS_IMPERFECT!$C$3:$BP$63,ROW(UPTARIFFS_IMPERFECT!$A$63)-ROW(UPTARIFFS_IMPERFECT!$A$2),0)) ->  | V28: 18 | AB28: 18 | AM28: =COUNTIF($AL$10:AL28,AL28)-1 -> 17 | AO28: OMN - Minerals n.e.c. | AV28: 18 | AW28: =IFERROR(IF($E$2="Product Homogeneity",VLOOKUP(AV28,UPTARIFFS_PERFECT!$BS:$BT,2,0), VLOOKUP(AV28,UPTARIFFS_IMPERFECT!$BS:$BT,2,0)),"") ->  | AX28: =IFERROR(IF($E$2="Product Homogeneity",HLOOKUP($AW28,UPTARIFFS_PERFECT!$C$3:$BP$75,ROW(UPTARIFFS_PERFECT!$A$72)-2,0), HLOOKUP($AW28,UPTARIFFS_IMPERFECT!$C$3:$BP$75,ROW(UPTARIFFS_IMPERFECT!$A$72)-2,0)),"") ->  | AY28: =IFERROR(IF($E$2="Product Homogeneity",HLOOKUP($AW28,UPTARIFFS_PERFECT!$C$3:$BP$100,ROW(UPTARIFFS_PERFECT!$A$96)-ROW(UPTARIFFS_PERFECT!$A$2),0), HLOOKUP($AW28,UPTARIFFS_IMPERFECT!$C$3:$BP$100,ROW(UPTARIFFS_IMPERFECT!$A$96)-ROW(UPTARIFFS_IMPERFECT!$A$2),0)),"") ->  | BB28: =COUNTIF($BA$10:BA28,BA28)-1 -> 5
B29: 19 | C29: =IF($E$2="Product Homogeneity",VLOOKUP(B29,UPTARIFFS_PERFECT!$BQ:$BR,2,0),VLOOKUP(B29,UPTARIFFS_IMPERFECT!$BQ:$BR,2,0)) -> CMT - Bovine meat prods | D29: =IF($E$2="Product Homogeneity",VLOOKUP($C29,UPTARIFFS_PERFECT!$A$3:$BT$61,COLUMN(UPTARIFFS_PERFECT!$BJ$9),0), IF($E$2="Product Differentiation",VLOOKUP($C29,UPTARIFFS_IMPERFECT!$A$3:$BT$61,COLUMN(UPTARIFFS_IMPERFECT!$BI$9),0),"N/A")) -> N/A | E29: =IF($E$2="Product Homogeneity",HLOOKUP($C29,UPTARIFFS_PERFECT!$C$3:$BP$76,ROW(UPTARIFFS_PERFECT!$A$73)-2,0), IF($E$2="Product Differentiation",HLOOKUP($C29,UPTARIFFS_IMPERFECT!$C$3:$BP$76,ROW(UPTARIFFS_IMPERFECT!$A$73)-2,0),"N/A")) -> N/A | F29: =IF($E$2="Product Homogeneity",HLOOKUP($C29,UPTARIFFS_PERFECT!$C$3:$BP$76,ROW(UPTARIFFS_PERFECT!$A$72)-2,0), IF($E$2="Product Differentiation",HLOOKUP($C29,UPTARIFFS_IMPERFECT!$C$3:$BP$76,ROW(UPTARIFFS_IMPERFECT!$A$72)-2,0),"N/A")) -> N/A | G29: =IF($E$2="Product Homogeneity",HLOOKUP($C29,UPTARIFFS_PERFECT!$C$3:$BP$76,ROW(UPTARIFFS_PERFECT!$A$71)-2,0), IF($E$2="Product Differentiation",HLOOKUP($C29,UPTARIFFS_IMPERFECT!$C$3:$BP$76,ROW(UPTARIFFS_IMPERFECT!$A$71)-2,0),"N/A")) -> N/A | H29: =(D29-E29)/HLOOKUP($C29,UPTARIFFS_PERFECT!$C$3:$BP$63,ROW(UPTARIFFS_PERFECT!$A$63)-ROW(UPTARIFFS_PERFECT!$A$2),0) ->  | J29: =IF($E$2="Product Homogeneity", VLOOKUP(C29,UPTARIFFS_PERFECT!A:BM,COLUMN(UPTARIFFS_PERFECT!BM22),0), IF($E$2="Product Differentiation", VLOOKUP(C29,OUTPUT_TARIFFS_CALCULATIONS!A:F,6,0),"N/A")) -> N/A | M29: =IF($E$2="Product Homogeneity",HLOOKUP($C29,UPTARIFFS_PERFECT!$C$3:$BP$99,ROW(UPTARIFFS_PERFECT!$A$97)-ROW(UPTARIFFS_PERFECT!$A$2),0), IF($E$2="Product Differentiation",HLOOKUP($C29,UPTARIFFS_IMPERFECT!$C$3:$BP$99,ROW(UPTARIFFS_IMPERFECT!$A$97)-ROW(UPTARIFFS_IMPERFECT!$A$2),0),"N/A")) -> N/A | O29: =IF($E$2="Product Homogeneity",HLOOKUP($C29,UPTARIFFS_PERFECT!$C$3:$BP$99,ROW(UPTARIFFS_PERFECT!$A$96)-ROW(UPTARIFFS_PERFECT!$A$2),0), IF($E$2="Product Differentiation",HLOOKUP($C29,UPTARIFFS_IMPERFECT!$C$3:$BP$99,ROW(UPTARIFFS_IMPERFECT!$A$96)-ROW(UPTARIFFS_IMPERFECT!$A$2),0),"N/A")) -> N/A | Q29: =IF($E$2="Product Homogeneity",HLOOKUP($C29,UPTARIFFS_PERFECT!$C$3:$BP$99,ROW(UPTARIFFS_PERFECT!$A$95)-ROW(UPTARIFFS_PERFECT!$A$2),0), IF($E$2="Product Differentiation",HLOOKUP($C29,UPTARIFFS_IMPERFECT!$C$3:$BP$99,ROW(UPTARIFFS_IMPERFECT!$A$95)-ROW(UPTARIFFS_IMPERFECT!$A$2),0),"N/A")) -> N/A | S29: =(J29-M29)/IF($E$2="Product Homogeneity",HLOOKUP($C29,UPTARIFFS_PERFECT!$C$3:$BP$63,ROW(UPTARIFFS_PERFECT!$A$63)-ROW(UPTARIFFS_PERFECT!$A$2),0),HLOOKUP($C29,UPTARIFFS_IMPERFECT!$C$3:$BP$63,ROW(UPTARIFFS_IMPERFECT!$A$63)-ROW(UPTARIFFS_IMPERFECT!$A$2),0)) ->  | V29: 19 | AB29: 19 | AM29: =COUNTIF($AL$10:AL29,AL29)-1 -> 18 | AO29: CMT - Bovine meat prods | AV29: 19 | AW29: =IFERROR(IF($E$2="Product Homogeneity",VLOOKUP(AV29,UPTARIFFS_PERFECT!$BS:$BT,2,0), VLOOKUP(AV29,UPTARIFFS_IMPERFECT!$BS:$BT,2,0)),"") ->  | AX29: =IFERROR(IF($E$2="Product Homogeneity",HLOOKUP($AW29,UPTARIFFS_PERFECT!$C$3:$BP$75,ROW(UPTARIFFS_PERFECT!$A$72)-2,0), HLOOKUP($AW29,UPTARIFFS_IMPERFECT!$C$3:$BP$75,ROW(UPTARIFFS_IMPERFECT!$A$72)-2,0)),"") ->  | AY29: =IFERROR(IF($E$2="Product Homogeneity",HLOOKUP($AW29,UPTARIFFS_PERFECT!$C$3:$BP$100,ROW(UPTARIFFS_PERFECT!$A$96)-ROW(UPTARIFFS_PERFECT!$A$2),0), HLOOKUP($AW29,UPTARIFFS_IMPERFECT!$C$3:$BP$100,ROW(UPTARIFFS_IMPERFECT!$A$96)-ROW(UPTARIFFS_IMPERFECT!$A$2),0)),"") ->  | BB29: =COUNTIF($BA$10:BA29,BA29)-1 -> 6
B30: 20 | C30: =IF($E$2="Product Homogeneity",VLOOKUP(B30,UPTARIFFS_PERFECT!$BQ:$BR,2,0),VLOOKUP(B30,UPTARIFFS_IMPERFECT!$BQ:$BR,2,0)) -> OMT - Meat products n.e.c. | D30: =IF($E$2="Product Homogeneity",VLOOKUP($C30,UPTARIFFS_PERFECT!$A$3:$BT$61,COLUMN(UPTARIFFS_PERFECT!$BJ$9),0), IF($E$2="Product Differentiation",VLOOKUP($C30,UPTARIFFS_IMPERFECT!$A$3:$BT$61,COLUMN(UPTARIFFS_IMPERFECT!$BI$9),0),"N/A")) -> N/A | E30: =IF($E$2="Product Homogeneity",HLOOKUP($C30,UPTARIFFS_PERFECT!$C$3:$BP$76,ROW(UPTARIFFS_PERFECT!$A$73)-2,0), IF($E$2="Product Differentiation",HLOOKUP($C30,UPTARIFFS_IMPERFECT!$C$3:$BP$76,ROW(UPTARIFFS_IMPERFECT!$A$73)-2,0),"N/A")) -> N/A | F30: =IF($E$2="Product Homogeneity",HLOOKUP($C30,UPTARIFFS_PERFECT!$C$3:$BP$76,ROW(UPTARIFFS_PERFECT!$A$72)-2,0), IF($E$2="Product Differentiation",HLOOKUP($C30,UPTARIFFS_IMPERFECT!$C$3:$BP$76,ROW(UPTARIFFS_IMPERFECT!$A$72)-2,0),"N/A")) -> N/A | G30: =IF($E$2="Product Homogeneity",HLOOKUP($C30,UPTARIFFS_PERFECT!$C$3:$BP$76,ROW(UPTARIFFS_PERFECT!$A$71)-2,0), IF($E$2="Product Differentiation",HLOOKUP($C30,UPTARIFFS_IMPERFECT!$C$3:$BP$76,ROW(UPTARIFFS_IMPERFECT!$A$71)-2,0),"N/A")) -> N/A | H30: =(D30-E30)/HLOOKUP($C30,UPTARIFFS_PERFECT!$C$3:$BP$63,ROW(UPTARIFFS_PERFECT!$A$63)-ROW(UPTARIFFS_PERFECT!$A$2),0) ->  | J30: =IF($E$2="Product Homogeneity", VLOOKUP(C30,UPTARIFFS_PERFECT!A:BM,COLUMN(UPTARIFFS_PERFECT!BM23),0), IF($E$2="Product Differentiation", VLOOKUP(C30,OUTPUT_TARIFFS_CALCULATIONS!A:F,6,0),"N/A")) -> N/A | M30: =IF($E$2="Product Homogeneity",HLOOKUP($C30,UPTARIFFS_PERFECT!$C$3:$BP$99,ROW(UPTARIFFS_PERFECT!$A$97)-ROW(UPTARIFFS_PERFECT!$A$2),0), IF($E$2="Product Differentiation",HLOOKUP($C30,UPTARIFFS_IMPERFECT!$C$3:$BP$99,ROW(UPTARIFFS_IMPERFECT!$A$97)-ROW(UPTARIFFS_IMPERFECT!$A$2),0),"N/A")) -> N/A | O30: =IF($E$2="Product Homogeneity",HLOOKUP($C30,UPTARIFFS_PERFECT!$C$3:$BP$99,ROW(UPTARIFFS_PERFECT!$A$96)-ROW(UPTARIFFS_PERFECT!$A$2),0), IF($E$2="Product Differentiation",HLOOKUP($C30,UPTARIFFS_IMPERFECT!$C$3:$BP$99,ROW(UPTARIFFS_IMPERFECT!$A$96)-ROW(UPTARIFFS_IMPERFECT!$A$2),0),"N/A")) -> N/A | Q30: =IF($E$2="Product Homogeneity",HLOOKUP($C30,UPTARIFFS_PERFECT!$C$3:$BP$99,ROW(UPTARIFFS_PERFECT!$A$95)-ROW(UPTARIFFS_PERFECT!$A$2),0), IF($E$2="Product Differentiation",HLOOKUP($C30,UPTARIFFS_IMPERFECT!$C$3:$BP$99,ROW(UPTARIFFS_IMPERFECT!$A$95)-ROW(UPTARIFFS_IMPERFECT!$A$2),0),"N/A")) -> N/A | S30: =(J30-M30)/IF($E$2="Product Homogeneity",HLOOKUP($C30,UPTARIFFS_PERFECT!$C$3:$BP$63,ROW(UPTARIFFS_PERFECT!$A$63)-ROW(UPTARIFFS_PERFECT!$A$2),0),HLOOKUP($C30,UPTARIFFS_IMPERFECT!$C$3:$BP$63,ROW(UPTARIFFS_IMPERFECT!$A$63)-ROW(UPTARIFFS_IMPERFECT!$A$2),0)) ->  | V30: 20 | AB30: 20 | AM30: =COUNTIF($AL$10:AL30,AL30)-1 -> 19 | AO30: OMT - Meat products n.e.c. | AV30: 20 | AW30: =IFERROR(IF($E$2="Product Homogeneity",VLOOKUP(AV30,UPTARIFFS_PERFECT!$BS:$BT,2,0), VLOOKUP(AV30,UPTARIFFS_IMPERFECT!$BS:$BT,2,0)),"") ->  | AX30: =IFERROR(IF($E$2="Product Homogeneity",HLOOKUP($AW30,UPTARIFFS_PERFECT!$C$3:$BP$75,ROW(UPTARIFFS_PERFECT!$A$72)-2,0), HLOOKUP($AW30,UPTARIFFS_IMPERFECT!$C$3:$BP$75,ROW(UPTARIFFS_IMPERFECT!$A$72)-2,0)),"") ->  | AY30: =IFERROR(IF($E$2="Product Homogeneity",HLOOKUP($AW30,UPTARIFFS_PERFECT!$C$3:$BP$100,ROW(UPTARIFFS_PERFECT!$A$96)-ROW(UPTARIFFS_PERFECT!$A$2),0), HLOOKUP($AW30,UPTARIFFS_IMPERFECT!$C$3:$BP$100,ROW(UPTARIFFS_IMPERFECT!$A$96)-ROW(UPTARIFFS_IMPERFECT!$A$2),0)),"") ->  | BB30: =COUNTIF($BA$10:BA30,BA30)-1 -> 7
B31: 21 | C31: =IF($E$2="Product Homogeneity",VLOOKUP(B31,UPTARIFFS_PERFECT!$BQ:$BR,2,0),VLOOKUP(B31,UPTARIFFS_IMPERFECT!$BQ:$BR,2,0)) -> VOL - Vegetable oils and fats | D31: =IF($E$2="Product Homogeneity",VLOOKUP($C31,UPTARIFFS_PERFECT!$A$3:$BT$61,COLUMN(UPTARIFFS_PERFECT!$BJ$9),0), IF($E$2="Product Differentiation",VLOOKUP($C31,UPTARIFFS_IMPERFECT!$A$3:$BT$61,COLUMN(UPTARIFFS_IMPERFECT!$BI$9),0),"N/A")) -> N/A | E31: =IF($E$2="Product Homogeneity",HLOOKUP($C31,UPTARIFFS_PERFECT!$C$3:$BP$76,ROW(UPTARIFFS_PERFECT!$A$73)-2,0), IF($E$2="Product Differentiation",HLOOKUP($C31,UPTARIFFS_IMPERFECT!$C$3:$BP$76,ROW(UPTARIFFS_IMPERFECT!$A$73)-2,0),"N/A")) -> N/A | F31: =IF($E$2="Product Homogeneity",HLOOKUP($C31,UPTARIFFS_PERFECT!$C$3:$BP$76,ROW(UPTARIFFS_PERFECT!$A$72)-2,0), IF($E$2="Product Differentiation",HLOOKUP($C31,UPTARIFFS_IMPERFECT!$C$3:$BP$76,ROW(UPTARIFFS_IMPERFECT!$A$72)-2,0),"N/A")) -> N/A | G31: =IF($E$2="Product Homogeneity",HLOOKUP($C31,UPTARIFFS_PERFECT!$C$3:$BP$76,ROW(UPTARIFFS_PERFECT!$A$71)-2,0), IF($E$2="Product Differentiation",HLOOKUP($C31,UPTARIFFS_IMPERFECT!$C$3:$BP$76,ROW(UPTARIFFS_IMPERFECT!$A$71)-2,0),"N/A")) -> N/A | H31: =(D31-E31)/HLOOKUP($C31,UPTARIFFS_PERFECT!$C$3:$BP$63,ROW(UPTARIFFS_PERFECT!$A$63)-ROW(UPTARIFFS_PERFECT!$A$2),0) ->  | J31: =IF($E$2="Product Homogeneity", VLOOKUP(C31,UPTARIFFS_PERFECT!A:BM,COLUMN(UPTARIFFS_PERFECT!BM24),0), IF($E$2="Product Differentiation", VLOOKUP(C31,OUTPUT_TARIFFS_CALCULATIONS!A:F,6,0),"N/A")) -> N/A | M31: =IF($E$2="Product Homogeneity",HLOOKUP($C31,UPTARIFFS_PERFECT!$C$3:$BP$99,ROW(UPTARIFFS_PERFECT!$A$97)-ROW(UPTARIFFS_PERFECT!$A$2),0), IF($E$2="Product Differentiation",HLOOKUP($C31,UPTARIFFS_IMPERFECT!$C$3:$BP$99,ROW(UPTARIFFS_IMPERFECT!$A$97)-ROW(UPTARIFFS_IMPERFECT!$A$2),0),"N/A")) -> N/A | O31: =IF($E$2="Product Homogeneity",HLOOKUP($C31,UPTARIFFS_PERFECT!$C$3:$BP$99,ROW(UPTARIFFS_PERFECT!$A$96)-ROW(UPTARIFFS_PERFECT!$A$2),0), IF($E$2="Product Differentiation",HLOOKUP($C31,UPTARIFFS_IMPERFECT!$C$3:$BP$99,ROW(UPTARIFFS_IMPERFECT!$A$96)-ROW(UPTARIFFS_IMPERFECT!$A$2),0),"N/A")) -> N/A | Q31: =IF($E$2="Product Homogeneity",HLOOKUP($C31,UPTARIFFS_PERFECT!$C$3:$BP$99,ROW(UPTARIFFS_PERFECT!$A$95)-ROW(UPTARIFFS_PERFECT!$A$2),0), IF($E$2="Product Differentiation",HLOOKUP($C31,UPTARIFFS_IMPERFECT!$C$3:$BP$99,ROW(UPTARIFFS_IMPERFECT!$A$95)-ROW(UPTARIFFS_IMPERFECT!$A$2),0),"N/A")) -> N/A | S31: =(J31-M31)/IF($E$2="Product Homogeneity",HLOOKUP($C31,UPTARIFFS_PERFECT!$C$3:$BP$63,ROW(UPTARIFFS_PERFECT!$A$63)-ROW(UPTARIFFS_PERFECT!$A$2),0),HLOOKUP($C31,UPTARIFFS_IMPERFECT!$C$3:$BP$63,ROW(UPTARIFFS_IMPERFECT!$A$63)-ROW(UPTARIFFS_IMPERFECT!$A$2),0)) ->  | V31: 21 | AB31: 21 | AM31: =COUNTIF($AL$10:AL31,AL31)-1 -> 20 | AO31: VOL - Vegetable oils and fats | AV31: 21 | AW31: =IFERROR(IF($E$2="Product Homogeneity",VLOOKUP(AV31,UPTARIFFS_PERFECT!$BS:$BT,2,0), VLOOKUP(AV31,UPTARIFFS_IMPERFECT!$BS:$BT,2,0)),"") ->  | AX31: =IFERROR(IF($E$2="Product Homogeneity",HLOOKUP($AW31,UPTARIFFS_PERFECT!$C$3:$BP$75,ROW(UPTARIFFS_PERFECT!$A$72)-2,0), HLOOKUP($AW31,UPTARIFFS_IMPERFECT!$C$3:$BP$75,ROW(UPTARIFFS_IMPERFECT!$A$72)-2,0)),"") ->  | AY31: =IFERROR(IF($E$2="Product Homogeneity",HLOOKUP($AW31,UPTARIFFS_PERFECT!$C$3:$BP$100,ROW(UPTARIFFS_PERFECT!$A$96)-ROW(UPTARIFFS_PERFECT!$A$2),0), HLOOKUP($AW31,UPTARIFFS_IMPERFECT!$C$3:$BP$100,ROW(UPTARIFFS_IMPERFECT!$A$96)-ROW(UPTARIFFS_IMPERFECT!$A$2),0)),"") ->  | BB31: =COUNTIF($BA$10:BA31,BA31)-1 -> 8
B32: 22 | C32: =IF($E$2="Product Homogeneity",VLOOKUP(B32,UPTARIFFS_PERFECT!$BQ:$BR,2,0),VLOOKUP(B32,UPTARIFFS_IMPERFECT!$BQ:$BR,2,0)) -> MIL - Dairy products | D32: =IF($E$2="Product Homogeneity",VLOOKUP($C32,UPTARIFFS_PERFECT!$A$3:$BT$61,COLUMN(UPTARIFFS_PERFECT!$BJ$9),0), IF($E$2="Product Differentiation",VLOOKUP($C32,UPTARIFFS_IMPERFECT!$A$3:$BT$61,COLUMN(UPTARIFFS_IMPERFECT!$BI$9),0),"N/A")) -> N/A | E32: =IF($E$2="Product Homogeneity",HLOOKUP($C32,UPTARIFFS_PERFECT!$C$3:$BP$76,ROW(UPTARIFFS_PERFECT!$A$73)-2,0), IF($E$2="Product Differentiation",HLOOKUP($C32,UPTARIFFS_IMPERFECT!$C$3:$BP$76,ROW(UPTARIFFS_IMPERFECT!$A$73)-2,0),"N/A")) -> N/A | F32: =IF($E$2="Product Homogeneity",HLOOKUP($C32,UPTARIFFS_PERFECT!$C$3:$BP$76,ROW(UPTARIFFS_PERFECT!$A$72)-2,0), IF($E$2="Product Differentiation",HLOOKUP($C32,UPTARIFFS_IMPERFECT!$C$3:$BP$76,ROW(UPTARIFFS_IMPERFECT!$A$72)-2,0),"N/A")) -> N/A | G32: =IF($E$2="Product Homogeneity",HLOOKUP($C32,UPTARIFFS_PERFECT!$C$3:$BP$76,ROW(UPTARIFFS_PERFECT!$A$71)-2,0), IF($E$2="Product Differentiation",HLOOKUP($C32,UPTARIFFS_IMPERFECT!$C$3:$BP$76,ROW(UPTARIFFS_IMPERFECT!$A$71)-2,0),"N/A")) -> N/A | H32: =(D32-E32)/HLOOKUP($C32,UPTARIFFS_PERFECT!$C$3:$BP$63,ROW(UPTARIFFS_PERFECT!$A$63)-ROW(UPTARIFFS_PERFECT!$A$2),0) ->  | J32: =IF($E$2="Product Homogeneity", VLOOKUP(C32,UPTARIFFS_PERFECT!A:BM,COLUMN(UPTARIFFS_PERFECT!BM25),0), IF($E$2="Product Differentiation", VLOOKUP(C32,OUTPUT_TARIFFS_CALCULATIONS!A:F,6,0),"N/A")) -> N/A | M32: =IF($E$2="Product Homogeneity",HLOOKUP($C32,UPTARIFFS_PERFECT!$C$3:$BP$99,ROW(UPTARIFFS_PERFECT!$A$97)-ROW(UPTARIFFS_PERFECT!$A$2),0), IF($E$2="Product Differentiation",HLOOKUP($C32,UPTARIFFS_IMPERFECT!$C$3:$BP$99,ROW(UPTARIFFS_IMPERFECT!$A$97)-ROW(UPTARIFFS_IMPERFECT!$A$2),0),"N/A")) -> N/A | O32: =IF($E$2="Product Homogeneity",HLOOKUP($C32,UPTARIFFS_PERFECT!$C$3:$BP$99,ROW(UPTARIFFS_PERFECT!$A$96)-ROW(UPTARIFFS_PERFECT!$A$2),0), IF($E$2="Product Differentiation",HLOOKUP($C32,UPTARIFFS_IMPERFECT!$C$3:$BP$99,ROW(UPTARIFFS_IMPERFECT!$A$96)-ROW(UPTARIFFS_IMPERFECT!$A$2),0),"N/A")) -> N/A | Q32: =IF($E$2="Product Homogeneity",HLOOKUP($C32,UPTARIFFS_PERFECT!$C$3:$BP$99,ROW(UPTARIFFS_PERFECT!$A$95)-ROW(UPTARIFFS_PERFECT!$A$2),0), IF($E$2="Product Differentiation",HLOOKUP($C32,UPTARIFFS_IMPERFECT!$C$3:$BP$99,ROW(UPTARIFFS_IMPERFECT!$A$95)-ROW(UPTARIFFS_IMPERFECT!$A$2),0),"N/A")) -> N/A | S32: =(J32-M32)/IF($E$2="Product Homogeneity",HLOOKUP($C32,UPTARIFFS_PERFECT!$C$3:$BP$63,ROW(UPTARIFFS_PERFECT!$A$63)-ROW(UPTARIFFS_PERFECT!$A$2),0),HLOOKUP($C32,UPTARIFFS_IMPERFECT!$C$3:$BP$63,ROW(UPTARIFFS_IMPERFECT!$A$63)-ROW(UPTARIFFS_IMPERFECT!$A$2),0)) ->  | V32: 22 | AB32: 22 | AM32: =COUNTIF($AL$10:AL32,AL32)-1 -> 21 | AO32: MIL - Dairy products | AV32: 22 | AW32: =IFERROR(IF($E$2="Product Homogeneity",VLOOKUP(AV32,UPTARIFFS_PERFECT!$BS:$BT,2,0), VLOOKUP(AV32,UPTARIFFS_IMPERFECT!$BS:$BT,2,0)),"") ->  | AX32: =IFERROR(IF($E$2="Product Homogeneity",HLOOKUP($AW32,UPTARIFFS_PERFECT!$C$3:$BP$75,ROW(UPTARIFFS_PERFECT!$A$72)-2,0), HLOOKUP($AW32,UPTARIFFS_IMPERFECT!$C$3:$BP$75,ROW(UPTARIFFS_IMPERFECT!$A$72)-2,0)),"") ->  | AY32: =IFERROR(IF($E$2="Product Homogeneity",HLOOKUP($AW32,UPTARIFFS_PERFECT!$C$3:$BP$100,ROW(UPTARIFFS_PERFECT!$A$96)-ROW(UPTARIFFS_PERFECT!$A$2),0), HLOOKUP($AW32,UPTARIFFS_IMPERFECT!$C$3:$BP$100,ROW(UPTARIFFS_IMPERFECT!$A$96)-ROW(UPTARIFFS_IMPERFECT!$A$2),0)),"") ->  | BB32: =COUNTIF($BA$10:BA32,BA32)-1 -> 9
B33: 23 | C33: =IF($E$2="Product Homogeneity",VLOOKUP(B33,UPTARIFFS_PERFECT!$BQ:$BR,2,0),VLOOKUP(B33,UPTARIFFS_IMPERFECT!$BQ:$BR,2,0)) -> PCR - Processed rice | D33: =IF($E$2="Product Homogeneity",VLOOKUP($C33,UPTARIFFS_PERFECT!$A$3:$BT$61,COLUMN(UPTARIFFS_PERFECT!$BJ$9),0), IF($E$2="Product Differentiation",VLOOKUP($C33,UPTARIFFS_IMPERFECT!$A$3:$BT$61,COLUMN(UPTARIFFS_IMPERFECT!$BI$9),0),"N/A")) -> N/A | E33: =IF($E$2="Product Homogeneity",HLOOKUP($C33,UPTARIFFS_PERFECT!$C$3:$BP$76,ROW(UPTARIFFS_PERFECT!$A$73)-2,0), IF($E$2="Product Differentiation",HLOOKUP($C33,UPTARIFFS_IMPERFECT!$C$3:$BP$76,ROW(UPTARIFFS_IMPERFECT!$A$73)-2,0),"N/A")) -> N/A | F33: =IF($E$2="Product Homogeneity",HLOOKUP($C33,UPTARIFFS_PERFECT!$C$3:$BP$76,ROW(UPTARIFFS_PERFECT!$A$72)-2,0), IF($E$2="Product Differentiation",HLOOKUP($C33,UPTARIFFS_IMPERFECT!$C$3:$BP$76,ROW(UPTARIFFS_IMPERFECT!$A$72)-2,0),"N/A")) -> N/A | G33: =IF($E$2="Product Homogeneity",HLOOKUP($C33,UPTARIFFS_PERFECT!$C$3:$BP$76,ROW(UPTARIFFS_PERFECT!$A$71)-2,0), IF($E$2="Product Differentiation",HLOOKUP($C33,UPTARIFFS_IMPERFECT!$C$3:$BP$76,ROW(UPTARIFFS_IMPERFECT!$A$71)-2,0),"N/A")) -> N/A | H33: =(D33-E33)/HLOOKUP($C33,UPTARIFFS_PERFECT!$C$3:$BP$63,ROW(UPTARIFFS_PERFECT!$A$63)-ROW(UPTARIFFS_PERFECT!$A$2),0) ->  | J33: =IF($E$2="Product Homogeneity", VLOOKUP(C33,UPTARIFFS_PERFECT!A:BM,COLUMN(UPTARIFFS_PERFECT!BM26),0), IF($E$2="Product Differentiation", VLOOKUP(C33,OUTPUT_TARIFFS_CALCULATIONS!A:F,6,0),"N/A")) -> N/A | M33: =IF($E$2="Product Homogeneity",HLOOKUP($C33,UPTARIFFS_PERFECT!$C$3:$BP$99,ROW(UPTARIFFS_PERFECT!$A$97)-ROW(UPTARIFFS_PERFECT!$A$2),0), IF($E$2="Product Differentiation",HLOOKUP($C33,UPTARIFFS_IMPERFECT!$C$3:$BP$99,ROW(UPTARIFFS_IMPERFECT!$A$97)-ROW(UPTARIFFS_IMPERFECT!$A$2),0),"N/A")) -> N/A | O33: =IF($E$2="Product Homogeneity",HLOOKUP($C33,UPTARIFFS_PERFECT!$C$3:$BP$99,ROW(UPTARIFFS_PERFECT!$A$96)-ROW(UPTARIFFS_PERFECT!$A$2),0), IF($E$2="Product Differentiation",HLOOKUP($C33,UPTARIFFS_IMPERFECT!$C$3:$BP$99,ROW(UPTARIFFS_IMPERFECT!$A$96)-ROW(UPTARIFFS_IMPERFECT!$A$2),0),"N/A")) -> N/A | Q33: =IF($E$2="Product Homogeneity",HLOOKUP($C33,UPTARIFFS_PERFECT!$C$3:$BP$99,ROW(UPTARIFFS_PERFECT!$A$95)-ROW(UPTARIFFS_PERFECT!$A$2),0), IF($E$2="Product Differentiation",HLOOKUP($C33,UPTARIFFS_IMPERFECT!$C$3:$BP$99,ROW(UPTARIFFS_IMPERFECT!$A$95)-ROW(UPTARIFFS_IMPERFECT!$A$2),0),"N/A")) -> N/A | S33: =(J33-M33)/IF($E$2="Product Homogeneity",HLOOKUP($C33,UPTARIFFS_PERFECT!$C$3:$BP$63,ROW(UPTARIFFS_PERFECT!$A$63)-ROW(UPTARIFFS_PERFECT!$A$2),0),HLOOKUP($C33,UPTARIFFS_IMPERFECT!$C$3:$BP$63,ROW(UPTARIFFS_IMPERFECT!$A$63)-ROW(UPTARIFFS_IMPERFECT!$A$2),0)) ->  | V33: 23 | AB33: 23 | AM33: =COUNTIF($AL$10:AL33,AL33)-1 -> 22 | AO33: PCR - Processed rice | AV33: 23 | AW33: =IFERROR(IF($E$2="Product Homogeneity",VLOOKUP(AV33,UPTARIFFS_PERFECT!$BS:$BT,2,0), VLOOKUP(AV33,UPTARIFFS_IMPERFECT!$BS:$BT,2,0)),"") ->  | AX33: =IFERROR(IF($E$2="Product Homogeneity",HLOOKUP($AW33,UPTARIFFS_PERFECT!$C$3:$BP$75,ROW(UPTARIFFS_PERFECT!$A$72)-2,0), HLOOKUP($AW33,UPTARIFFS_IMPERFECT!$C$3:$BP$75,ROW(UPTARIFFS_IMPERFECT!$A$72)-2,0)),"") ->  | AY33: =IFERROR(IF($E$2="Product Homogeneity",HLOOKUP($AW33,UPTARIFFS_PERFECT!$C$3:$BP$100,ROW(UPTARIFFS_PERFECT!$A$96)-ROW(UPTARIFFS_PERFECT!$A$2),0), HLOOKUP($AW33,UPTARIFFS_IMPERFECT!$C$3:$BP$100,ROW(UPTARIFFS_IMPERFECT!$A$96)-ROW(UPTARIFFS_IMPERFECT!$A$2),0)),"") ->  | BB33: =COUNTIF($BA$10:BA33,BA33)-1 -> 10
B34: 24 | C34: =IF($E$2="Product Homogeneity",VLOOKUP(B34,UPTARIFFS_PERFECT!$BQ:$BR,2,0),VLOOKUP(B34,UPTARIFFS_IMPERFECT!$BQ:$BR,2,0)) -> SGR - Sugar | D34: =IF($E$2="Product Homogeneity",VLOOKUP($C34,UPTARIFFS_PERFECT!$A$3:$BT$61,COLUMN(UPTARIFFS_PERFECT!$BJ$9),0), IF($E$2="Product Differentiation",VLOOKUP($C34,UPTARIFFS_IMPERFECT!$A$3:$BT$61,COLUMN(UPTARIFFS_IMPERFECT!$BI$9),0),"N/A")) -> N/A | E34: =IF($E$2="Product Homogeneity",HLOOKUP($C34,UPTARIFFS_PERFECT!$C$3:$BP$76,ROW(UPTARIFFS_PERFECT!$A$73)-2,0), IF($E$2="Product Differentiation",HLOOKUP($C34,UPTARIFFS_IMPERFECT!$C$3:$BP$76,ROW(UPTARIFFS_IMPERFECT!$A$73)-2,0),"N/A")) -> N/A | F34: =IF($E$2="Product Homogeneity",HLOOKUP($C34,UPTARIFFS_PERFECT!$C$3:$BP$76,ROW(UPTARIFFS_PERFECT!$A$72)-2,0), IF($E$2="Product Differentiation",HLOOKUP($C34,UPTARIFFS_IMPERFECT!$C$3:$BP$76,ROW(UPTARIFFS_IMPERFECT!$A$72)-2,0),"N/A")) -> N/A | G34: =IF($E$2="Product Homogeneity",HLOOKUP($C34,UPTARIFFS_PERFECT!$C$3:$BP$76,ROW(UPTARIFFS_PERFECT!$A$71)-2,0), IF($E$2="Product Differentiation",HLOOKUP($C34,UPTARIFFS_IMPERFECT!$C$3:$BP$76,ROW(UPTARIFFS_IMPERFECT!$A$71)-2,0),"N/A")) -> N/A | H34: =(D34-E34)/HLOOKUP($C34,UPTARIFFS_PERFECT!$C$3:$BP$63,ROW(UPTARIFFS_PERFECT!$A$63)-ROW(UPTARIFFS_PERFECT!$A$2),0) ->  | J34: =IF($E$2="Product Homogeneity", VLOOKUP(C34,UPTARIFFS_PERFECT!A:BM,COLUMN(UPTARIFFS_PERFECT!BM27),0), IF($E$2="Product Differentiation", VLOOKUP(C34,OUTPUT_TARIFFS_CALCULATIONS!A:F,6,0),"N/A")) -> N/A | M34: =IF($E$2="Product Homogeneity",HLOOKUP($C34,UPTARIFFS_PERFECT!$C$3:$BP$99,ROW(UPTARIFFS_PERFECT!$A$97)-ROW(UPTARIFFS_PERFECT!$A$2),0), IF($E$2="Product Differentiation",HLOOKUP($C34,UPTARIFFS_IMPERFECT!$C$3:$BP$99,ROW(UPTARIFFS_IMPERFECT!$A$97)-ROW(UPTARIFFS_IMPERFECT!$A$2),0),"N/A")) -> N/A | O34: =IF($E$2="Product Homogeneity",HLOOKUP($C34,UPTARIFFS_PERFECT!$C$3:$BP$99,ROW(UPTARIFFS_PERFECT!$A$96)-ROW(UPTARIFFS_PERFECT!$A$2),0), IF($E$2="Product Differentiation",HLOOKUP($C34,UPTARIFFS_IMPERFECT!$C$3:$BP$99,ROW(UPTARIFFS_IMPERFECT!$A$96)-ROW(UPTARIFFS_IMPERFECT!$A$2),0),"N/A")) -> N/A | Q34: =IF($E$2="Product Homogeneity",HLOOKUP($C34,UPTARIFFS_PERFECT!$C$3:$BP$99,ROW(UPTARIFFS_PERFECT!$A$95)-ROW(UPTARIFFS_PERFECT!$A$2),0), IF($E$2="Product Differentiation",HLOOKUP($C34,UPTARIFFS_IMPERFECT!$C$3:$BP$99,ROW(UPTARIFFS_IMPERFECT!$A$95)-ROW(UPTARIFFS_IMPERFECT!$A$2),0),"N/A")) -> N/A | S34: =(J34-M34)/IF($E$2="Product Homogeneity",HLOOKUP($C34,UPTARIFFS_PERFECT!$C$3:$BP$63,ROW(UPTARIFFS_PERFECT!$A$63)-ROW(UPTARIFFS_PERFECT!$A$2),0),HLOOKUP($C34,UPTARIFFS_IMPERFECT!$C$3:$BP$63,ROW(UPTARIFFS_IMPERFECT!$A$63)-ROW(UPTARIFFS_IMPERFECT!$A$2),0)) ->  | V34: 24 | AB34: 24 | AM34: =COUNTIF($AL$10:AL34,AL34)-1 -> 23 | AO34: SGR - Sugar | AV34: 24 | AW34: =IFERROR(IF($E$2="Product Homogeneity",VLOOKUP(AV34,UPTARIFFS_PERFECT!$BS:$BT,2,0), VLOOKUP(AV34,UPTARIFFS_IMPERFECT!$BS:$BT,2,0)),"") ->  | AX34: =IFERROR(IF($E$2="Product Homogeneity",HLOOKUP($AW34,UPTARIFFS_PERFECT!$C$3:$BP$75,ROW(UPTARIFFS_PERFECT!$A$72)-2,0), HLOOKUP($AW34,UPTARIFFS_IMPERFECT!$C$3:$BP$75,ROW(UPTARIFFS_IMPERFECT!$A$72)-2,0)),"") ->  | AY34: =IFERROR(IF($E$2="Product Homogeneity",HLOOKUP($AW34,UPTARIFFS_PERFECT!$C$3:$BP$100,ROW(UPTARIFFS_PERFECT!$A$96)-ROW(UPTARIFFS_PERFECT!$A$2),0), HLOOKUP($AW34,UPTARIFFS_IMPERFECT!$C$3:$BP$100,ROW(UPTARIFFS_IMPERFECT!$A$96)-ROW(UPTARIFFS_IMPERFECT!$A$2),0)),"") ->  | BB34: =COUNTIF($BA$10:BA34,BA34)-1 -> 11
B35: 25 | C35: =IF($E$2="Product Homogeneity",VLOOKUP(B35,UPTARIFFS_PERFECT!$BQ:$BR,2,0),VLOOKUP(B35,UPTARIFFS_IMPERFECT!$BQ:$BR,2,0)) -> OFD - Food products n.e.c. | D35: =IF($E$2="Product Homogeneity",VLOOKUP($C35,UPTARIFFS_PERFECT!$A$3:$BT$61,COLUMN(UPTARIFFS_PERFECT!$BJ$9),0), IF($E$2="Product Differentiation",VLOOKUP($C35,UPTARIFFS_IMPERFECT!$A$3:$BT$61,COLUMN(UPTARIFFS_IMPERFECT!$BI$9),0),"N/A")) -> N/A | E35: =IF($E$2="Product Homogeneity",HLOOKUP($C35,UPTARIFFS_PERFECT!$C$3:$BP$76,ROW(UPTARIFFS_PERFECT!$A$73)-2,0), IF($E$2="Product Differentiation",HLOOKUP($C35,UPTARIFFS_IMPERFECT!$C$3:$BP$76,ROW(UPTARIFFS_IMPERFECT!$A$73)-2,0),"N/A")) -> N/A | F35: =IF($E$2="Product Homogeneity",HLOOKUP($C35,UPTARIFFS_PERFECT!$C$3:$BP$76,ROW(UPTARIFFS_PERFECT!$A$72)-2,0), IF($E$2="Product Differentiation",HLOOKUP($C35,UPTARIFFS_IMPERFECT!$C$3:$BP$76,ROW(UPTARIFFS_IMPERFECT!$A$72)-2,0),"N/A")) -> N/A | G35: =IF($E$2="Product Homogeneity",HLOOKUP($C35,UPTARIFFS_PERFECT!$C$3:$BP$76,ROW(UPTARIFFS_PERFECT!$A$71)-2,0), IF($E$2="Product Differentiation",HLOOKUP($C35,UPTARIFFS_IMPERFECT!$C$3:$BP$76,ROW(UPTARIFFS_IMPERFECT!$A$71)-2,0),"N/A")) -> N/A | H35: =(D35-E35)/HLOOKUP($C35,UPTARIFFS_PERFECT!$C$3:$BP$63,ROW(UPTARIFFS_PERFECT!$A$63)-ROW(UPTARIFFS_PERFECT!$A$2),0) ->  | J35: =IF($E$2="Product Homogeneity", VLOOKUP(C35,UPTARIFFS_PERFECT!A:BM,COLUMN(UPTARIFFS_PERFECT!BM28),0), IF($E$2="Product Differentiation", VLOOKUP(C35,OUTPUT_TARIFFS_CALCULATIONS!A:F,6,0),"N/A")) -> N/A | M35: =IF($E$2="Product Homogeneity",HLOOKUP($C35,UPTARIFFS_PERFECT!$C$3:$BP$99,ROW(UPTARIFFS_PERFECT!$A$97)-ROW(UPTARIFFS_PERFECT!$A$2),0), IF($E$2="Product Differentiation",HLOOKUP($C35,UPTARIFFS_IMPERFECT!$C$3:$BP$99,ROW(UPTARIFFS_IMPERFECT!$A$97)-ROW(UPTARIFFS_IMPERFECT!$A$2),0),"N/A")) -> N/A | O35: =IF($E$2="Product Homogeneity",HLOOKUP($C35,UPTARIFFS_PERFECT!$C$3:$BP$99,ROW(UPTARIFFS_PERFECT!$A$96)-ROW(UPTARIFFS_PERFECT!$A$2),0), IF($E$2="Product Differentiation",HLOOKUP($C35,UPTARIFFS_IMPERFECT!$C$3:$BP$99,ROW(UPTARIFFS_IMPERFECT!$A$96)-ROW(UPTARIFFS_IMPERFECT!$A$2),0),"N/A")) -> N/A | Q35: =IF($E$2="Product Homogeneity",HLOOKUP($C35,UPTARIFFS_PERFECT!$C$3:$BP$99,ROW(UPTARIFFS_PERFECT!$A$95)-ROW(UPTARIFFS_PERFECT!$A$2),0), IF($E$2="Product Differentiation",HLOOKUP($C35,UPTARIFFS_IMPERFECT!$C$3:$BP$99,ROW(UPTARIFFS_IMPERFECT!$A$95)-ROW(UPTARIFFS_IMPERFECT!$A$2),0),"N/A")) -> N/A | S35: =(J35-M35)/IF($E$2="Product Homogeneity",HLOOKUP($C35,UPTARIFFS_PERFECT!$C$3:$BP$63,ROW(UPTARIFFS_PERFECT!$A$63)-ROW(UPTARIFFS_PERFECT!$A$2),0),HLOOKUP($C35,UPTARIFFS_IMPERFECT!$C$3:$BP$63,ROW(UPTARIFFS_IMPERFECT!$A$63)-ROW(UPTARIFFS_IMPERFECT!$A$2),0)) ->  | V35: 25 | AB35: 25 | AM35: =COUNTIF($AL$10:AL35,AL35)-1 -> 24 | AO35: OFD - Food products n.e.c. | AV35: 25 | AW35: =IFERROR(IF($E$2="Product Homogeneity",VLOOKUP(AV35,UPTARIFFS_PERFECT!$BS:$BT,2,0), VLOOKUP(AV35,UPTARIFFS_IMPERFECT!$BS:$BT,2,0)),"") ->  | AX35: =IFERROR(IF($E$2="Product Homogeneity",HLOOKUP($AW35,UPTARIFFS_PERFECT!$C$3:$BP$75,ROW(UPTARIFFS_PERFECT!$A$72)-2,0), HLOOKUP($AW35,UPTARIFFS_IMPERFECT!$C$3:$BP$75,ROW(UPTARIFFS_IMPERFECT!$A$72)-2,0)),"") ->  | AY35: =IFERROR(IF($E$2="Product Homogeneity",HLOOKUP($AW35,UPTARIFFS_PERFECT!$C$3:$BP$100,ROW(UPTARIFFS_PERFECT!$A$96)-ROW(UPTARIFFS_PERFECT!$A$2),0), HLOOKUP($AW35,UPTARIFFS_IMPERFECT!$C$3:$BP$100,ROW(UPTARIFFS_IMPERFECT!$A$96)-ROW(UPTARIFFS_IMPERFECT!$A$2),0)),"") ->  | BB35: =COUNTIF($BA$10:BA35,BA35)-1 -> 12
B36: 26 | C36: =IF($E$2="Product Homogeneity",VLOOKUP(B36,UPTARIFFS_PERFECT!$BQ:$BR,2,0),VLOOKUP(B36,UPTARIFFS_IMPERFECT!$BQ:$BR,2,0)) -> B_T - Beverages and tobacco products | D36: =IF($E$2="Product Homogeneity",VLOOKUP($C36,UPTARIFFS_PERFECT!$A$3:$BT$61,COLUMN(UPTARIFFS_PERFECT!$BJ$9),0), IF($E$2="Product Differentiation",VLOOKUP($C36,UPTARIFFS_IMPERFECT!$A$3:$BT$61,COLUMN(UPTARIFFS_IMPERFECT!$BI$9),0),"N/A")) -> N/A | E36: =IF($E$2="Product Homogeneity",HLOOKUP($C36,UPTARIFFS_PERFECT!$C$3:$BP$76,ROW(UPTARIFFS_PERFECT!$A$73)-2,0), IF($E$2="Product Differentiation",HLOOKUP($C36,UPTARIFFS_IMPERFECT!$C$3:$BP$76,ROW(UPTARIFFS_IMPERFECT!$A$73)-2,0),"N/A")) -> N/A | F36: =IF($E$2="Product Homogeneity",HLOOKUP($C36,UPTARIFFS_PERFECT!$C$3:$BP$76,ROW(UPTARIFFS_PERFECT!$A$72)-2,0), IF($E$2="Product Differentiation",HLOOKUP($C36,UPTARIFFS_IMPERFECT!$C$3:$BP$76,ROW(UPTARIFFS_IMPERFECT!$A$72)-2,0),"N/A")) -> N/A | G36: =IF($E$2="Product Homogeneity",HLOOKUP($C36,UPTARIFFS_PERFECT!$C$3:$BP$76,ROW(UPTARIFFS_PERFECT!$A$71)-2,0), IF($E$2="Product Differentiation",HLOOKUP($C36,UPTARIFFS_IMPERFECT!$C$3:$BP$76,ROW(UPTARIFFS_IMPERFECT!$A$71)-2,0),"N/A")) -> N/A | H36: =(D36-E36)/HLOOKUP($C36,UPTARIFFS_PERFECT!$C$3:$BP$63,ROW(UPTARIFFS_PERFECT!$A$63)-ROW(UPTARIFFS_PERFECT!$A$2),0) ->  | J36: =IF($E$2="Product Homogeneity", VLOOKUP(C36,UPTARIFFS_PERFECT!A:BM,COLUMN(UPTARIFFS_PERFECT!BM29),0), IF($E$2="Product Differentiation", VLOOKUP(C36,OUTPUT_TARIFFS_CALCULATIONS!A:F,6,0),"N/A")) -> N/A | M36: =IF($E$2="Product Homogeneity",HLOOKUP($C36,UPTARIFFS_PERFECT!$C$3:$BP$99,ROW(UPTARIFFS_PERFECT!$A$97)-ROW(UPTARIFFS_PERFECT!$A$2),0), IF($E$2="Product Differentiation",HLOOKUP($C36,UPTARIFFS_IMPERFECT!$C$3:$BP$99,ROW(UPTARIFFS_IMPERFECT!$A$97)-ROW(UPTARIFFS_IMPERFECT!$A$2),0),"N/A")) -> N/A | O36: =IF($E$2="Product Homogeneity",HLOOKUP($C36,UPTARIFFS_PERFECT!$C$3:$BP$99,ROW(UPTARIFFS_PERFECT!$A$96)-ROW(UPTARIFFS_PERFECT!$A$2),0), IF($E$2="Product Differentiation",HLOOKUP($C36,UPTARIFFS_IMPERFECT!$C$3:$BP$99,ROW(UPTARIFFS_IMPERFECT!$A$96)-ROW(UPTARIFFS_IMPERFECT!$A$2),0),"N/A")) -> N/A | Q36: =IF($E$2="Product Homogeneity",HLOOKUP($C36,UPTARIFFS_PERFECT!$C$3:$BP$99,ROW(UPTARIFFS_PERFECT!$A$95)-ROW(UPTARIFFS_PERFECT!$A$2),0), IF($E$2="Product Differentiation",HLOOKUP($C36,UPTARIFFS_IMPERFECT!$C$3:$BP$99,ROW(UPTARIFFS_IMPERFECT!$A$95)-ROW(UPTARIFFS_IMPERFECT!$A$2),0),"N/A")) -> N/A | S36: =(J36-M36)/IF($E$2="Product Homogeneity",HLOOKUP($C36,UPTARIFFS_PERFECT!$C$3:$BP$63,ROW(UPTARIFFS_PERFECT!$A$63)-ROW(UPTARIFFS_PERFECT!$A$2),0),HLOOKUP($C36,UPTARIFFS_IMPERFECT!$C$3:$BP$63,ROW(UPTARIFFS_IMPERFECT!$A$63)-ROW(UPTARIFFS_IMPERFECT!$A$2),0)) ->  | V36: 26 | AB36: 26 | AM36: =COUNTIF($AL$10:AL36,AL36)-1 -> 25 | AO36: B_T - Beverages and tobacco products | AV36: 26 | AW36: =IFERROR(IF($E$2="Product Homogeneity",VLOOKUP(AV36,UPTARIFFS_PERFECT!$BS:$BT,2,0), VLOOKUP(AV36,UPTARIFFS_IMPERFECT!$BS:$BT,2,0)),"") ->  | AX36: =IFERROR(IF($E$2="Product Homogeneity",HLOOKUP($AW36,UPTARIFFS_PERFECT!$C$3:$BP$75,ROW(UPTARIFFS_PERFECT!$A$72)-2,0), HLOOKUP($AW36,UPTARIFFS_IMPERFECT!$C$3:$BP$75,ROW(UPTARIFFS_IMPERFECT!$A$72)-2,0)),"") ->  | AY36: =IFERROR(IF($E$2="Product Homogeneity",HLOOKUP($AW36,UPTARIFFS_PERFECT!$C$3:$BP$100,ROW(UPTARIFFS_PERFECT!$A$96)-ROW(UPTARIFFS_PERFECT!$A$2),0), HLOOKUP($AW36,UPTARIFFS_IMPERFECT!$C$3:$BP$100,ROW(UPTARIFFS_IMPERFECT!$A$96)-ROW(UPTARIFFS_IMPERFECT!$A$2),0)),"") ->  | BB36: =COUNTIF($BA$10:BA36,BA36)-1 -> 13
B37: 27 | C37: =IF($E$2="Product Homogeneity",VLOOKUP(B37,UPTARIFFS_PERFECT!$BQ:$BR,2,0),VLOOKUP(B37,UPTARIFFS_IMPERFECT!$BQ:$BR,2,0)) -> TEX - Textiles | D37: =IF($E$2="Product Homogeneity",VLOOKUP($C37,UPTARIFFS_PERFECT!$A$3:$BT$61,COLUMN(UPTARIFFS_PERFECT!$BJ$9),0), IF($E$2="Product Differentiation",VLOOKUP($C37,UPTARIFFS_IMPERFECT!$A$3:$BT$61,COLUMN(UPTARIFFS_IMPERFECT!$BI$9),0),"N/A")) -> N/A | E37: =IF($E$2="Product Homogeneity",HLOOKUP($C37,UPTARIFFS_PERFECT!$C$3:$BP$76,ROW(UPTARIFFS_PERFECT!$A$73)-2,0), IF($E$2="Product Differentiation",HLOOKUP($C37,UPTARIFFS_IMPERFECT!$C$3:$BP$76,ROW(UPTARIFFS_IMPERFECT!$A$73)-2,0),"N/A")) -> N/A | F37: =IF($E$2="Product Homogeneity",HLOOKUP($C37,UPTARIFFS_PERFECT!$C$3:$BP$76,ROW(UPTARIFFS_PERFECT!$A$72)-2,0), IF($E$2="Product Differentiation",HLOOKUP($C37,UPTARIFFS_IMPERFECT!$C$3:$BP$76,ROW(UPTARIFFS_IMPERFECT!$A$72)-2,0),"N/A")) -> N/A | G37: =IF($E$2="Product Homogeneity",HLOOKUP($C37,UPTARIFFS_PERFECT!$C$3:$BP$76,ROW(UPTARIFFS_PERFECT!$A$71)-2,0), IF($E$2="Product Differentiation",HLOOKUP($C37,UPTARIFFS_IMPERFECT!$C$3:$BP$76,ROW(UPTARIFFS_IMPERFECT!$A$71)-2,0),"N/A")) -> N/A | H37: =(D37-E37)/HLOOKUP($C37,UPTARIFFS_PERFECT!$C$3:$BP$63,ROW(UPTARIFFS_PERFECT!$A$63)-ROW(UPTARIFFS_PERFECT!$A$2),0) ->  | J37: =IF($E$2="Product Homogeneity", VLOOKUP(C37,UPTARIFFS_PERFECT!A:BM,COLUMN(UPTARIFFS_PERFECT!BM30),0), IF($E$2="Product Differentiation", VLOOKUP(C37,OUTPUT_TARIFFS_CALCULATIONS!A:F,6,0),"N/A")) -> N/A | M37: =IF($E$2="Product Homogeneity",HLOOKUP($C37,UPTARIFFS_PERFECT!$C$3:$BP$99,ROW(UPTARIFFS_PERFECT!$A$97)-ROW(UPTARIFFS_PERFECT!$A$2),0), IF($E$2="Product Differentiation",HLOOKUP($C37,UPTARIFFS_IMPERFECT!$C$3:$BP$99,ROW(UPTARIFFS_IMPERFECT!$A$97)-ROW(UPTARIFFS_IMPERFECT!$A$2),0),"N/A")) -> N/A | O37: =IF($E$2="Product Homogeneity",HLOOKUP($C37,UPTARIFFS_PERFECT!$C$3:$BP$99,ROW(UPTARIFFS_PERFECT!$A$96)-ROW(UPTARIFFS_PERFECT!$A$2),0), IF($E$2="Product Differentiation",HLOOKUP($C37,UPTARIFFS_IMPERFECT!$C$3:$BP$99,ROW(UPTARIFFS_IMPERFECT!$A$96)-ROW(UPTARIFFS_IMPERFECT!$A$2),0),"N/A")) -> N/A | Q37: =IF($E$2="Product Homogeneity",HLOOKUP($C37,UPTARIFFS_PERFECT!$C$3:$BP$99,ROW(UPTARIFFS_PERFECT!$A$95)-ROW(UPTARIFFS_PERFECT!$A$2),0), IF($E$2="Product Differentiation",HLOOKUP($C37,UPTARIFFS_IMPERFECT!$C$3:$BP$99,ROW(UPTARIFFS_IMPERFECT!$A$95)-ROW(UPTARIFFS_IMPERFECT!$A$2),0),"N/A")) -> N/A | S37: =(J37-M37)/IF($E$2="Product Homogeneity",HLOOKUP($C37,UPTARIFFS_PERFECT!$C$3:$BP$63,ROW(UPTARIFFS_PERFECT!$A$63)-ROW(UPTARIFFS_PERFECT!$A$2),0),HLOOKUP($C37,UPTARIFFS_IMPERFECT!$C$3:$BP$63,ROW(UPTARIFFS_IMPERFECT!$A$63)-ROW(UPTARIFFS_IMPERFECT!$A$2),0)) ->  | V37: 27 | AB37: 27 | AM37: =COUNTIF($AL$10:AL37,AL37)-1 -> 26 | AO37: TEX - Textiles | AV37: 27 | AW37: =IFERROR(IF($E$2="Product Homogeneity",VLOOKUP(AV37,UPTARIFFS_PERFECT!$BS:$BT,2,0), VLOOKUP(AV37,UPTARIFFS_IMPERFECT!$BS:$BT,2,0)),"") ->  | AX37: =IFERROR(IF($E$2="Product Homogeneity",HLOOKUP($AW37,UPTARIFFS_PERFECT!$C$3:$BP$75,ROW(UPTARIFFS_PERFECT!$A$72)-2,0), HLOOKUP($AW37,UPTARIFFS_IMPERFECT!$C$3:$BP$75,ROW(UPTARIFFS_IMPERFECT!$A$72)-2,0)),"") ->  | AY37: =IFERROR(IF($E$2="Product Homogeneity",HLOOKUP($AW37,UPTARIFFS_PERFECT!$C$3:$BP$100,ROW(UPTARIFFS_PERFECT!$A$96)-ROW(UPTARIFFS_PERFECT!$A$2),0), HLOOKUP($AW37,UPTARIFFS_IMPERFECT!$C$3:$BP$100,ROW(UPTARIFFS_IMPERFECT!$A$96)-ROW(UPTARIFFS_IMPERFECT!$A$2),0)),"") ->  | BB37: =COUNTIF($BA$10:BA37,BA37)-1 -> 14
B38: 28 | C38: =IF($E$2="Product Homogeneity",VLOOKUP(B38,UPTARIFFS_PERFECT!$BQ:$BR,2,0),VLOOKUP(B38,UPTARIFFS_IMPERFECT!$BQ:$BR,2,0)) -> WAP - Wearing apparel | D38: =IF($E$2="Product Homogeneity",VLOOKUP($C38,UPTARIFFS_PERFECT!$A$3:$BT$61,COLUMN(UPTARIFFS_PERFECT!$BJ$9),0), IF($E$2="Product Differentiation",VLOOKUP($C38,UPTARIFFS_IMPERFECT!$A$3:$BT$61,COLUMN(UPTARIFFS_IMPERFECT!$BI$9),0),"N/A")) -> N/A | E38: =IF($E$2="Product Homogeneity",HLOOKUP($C38,UPTARIFFS_PERFECT!$C$3:$BP$76,ROW(UPTARIFFS_PERFECT!$A$73)-2,0), IF($E$2="Product Differentiation",HLOOKUP($C38,UPTARIFFS_IMPERFECT!$C$3:$BP$76,ROW(UPTARIFFS_IMPERFECT!$A$73)-2,0),"N/A")) -> N/A | F38: =IF($E$2="Product Homogeneity",HLOOKUP($C38,UPTARIFFS_PERFECT!$C$3:$BP$76,ROW(UPTARIFFS_PERFECT!$A$72)-2,0), IF($E$2="Product Differentiation",HLOOKUP($C38,UPTARIFFS_IMPERFECT!$C$3:$BP$76,ROW(UPTARIFFS_IMPERFECT!$A$72)-2,0),"N/A")) -> N/A | G38: =IF($E$2="Product Homogeneity",HLOOKUP($C38,UPTARIFFS_PERFECT!$C$3:$BP$76,ROW(UPTARIFFS_PERFECT!$A$71)-2,0), IF($E$2="Product Differentiation",HLOOKUP($C38,UPTARIFFS_IMPERFECT!$C$3:$BP$76,ROW(UPTARIFFS_IMPERFECT!$A$71)-2,0),"N/A")) -> N/A | H38: =(D38-E38)/HLOOKUP($C38,UPTARIFFS_PERFECT!$C$3:$BP$63,ROW(UPTARIFFS_PERFECT!$A$63)-ROW(UPTARIFFS_PERFECT!$A$2),0) ->  | J38: =IF($E$2="Product Homogeneity", VLOOKUP(C38,UPTARIFFS_PERFECT!A:BM,COLUMN(UPTARIFFS_PERFECT!BM31),0), IF($E$2="Product Differentiation", VLOOKUP(C38,OUTPUT_TARIFFS_CALCULATIONS!A:F,6,0),"N/A")) -> N/A | M38: =IF($E$2="Product Homogeneity",HLOOKUP($C38,UPTARIFFS_PERFECT!$C$3:$BP$99,ROW(UPTARIFFS_PERFECT!$A$97)-ROW(UPTARIFFS_PERFECT!$A$2),0), IF($E$2="Product Differentiation",HLOOKUP($C38,UPTARIFFS_IMPERFECT!$C$3:$BP$99,ROW(UPTARIFFS_IMPERFECT!$A$97)-ROW(UPTARIFFS_IMPERFECT!$A$2),0),"N/A")) -> N/A | O38: =IF($E$2="Product Homogeneity",HLOOKUP($C38,UPTARIFFS_PERFECT!$C$3:$BP$99,ROW(UPTARIFFS_PERFECT!$A$96)-ROW(UPTARIFFS_PERFECT!$A$2),0), IF($E$2="Product Differentiation",HLOOKUP($C38,UPTARIFFS_IMPERFECT!$C$3:$BP$99,ROW(UPTARIFFS_IMPERFECT!$A$96)-ROW(UPTARIFFS_IMPERFECT!$A$2),0),"N/A")) -> N/A | Q38: =IF($E$2="Product Homogeneity",HLOOKUP($C38,UPTARIFFS_PERFECT!$C$3:$BP$99,ROW(UPTARIFFS_PERFECT!$A$95)-ROW(UPTARIFFS_PERFECT!$A$2),0), IF($E$2="Product Differentiation",HLOOKUP($C38,UPTARIFFS_IMPERFECT!$C$3:$BP$99,ROW(UPTARIFFS_IMPERFECT!$A$95)-ROW(UPTARIFFS_IMPERFECT!$A$2),0),"N/A")) -> N/A | S38: =(J38-M38)/IF($E$2="Product Homogeneity",HLOOKUP($C38,UPTARIFFS_PERFECT!$C$3:$BP$63,ROW(UPTARIFFS_PERFECT!$A$63)-ROW(UPTARIFFS_PERFECT!$A$2),0),HLOOKUP($C38,UPTARIFFS_IMPERFECT!$C$3:$BP$63,ROW(UPTARIFFS_IMPERFECT!$A$63)-ROW(UPTARIFFS_IMPERFECT!$A$2),0)) ->  | V38: 28 | AB38: 28 | AM38: =COUNTIF($AL$10:AL38,AL38)-1 -> 27 | AO38: WAP - Wearing apparel | AV38: 28 | AW38: =IFERROR(IF($E$2="Product Homogeneity",VLOOKUP(AV38,UPTARIFFS_PERFECT!$BS:$BT,2,0), VLOOKUP(AV38,UPTARIFFS_IMPERFECT!$BS:$BT,2,0)),"") ->  | AX38: =IFERROR(IF($E$2="Product Homogeneity",HLOOKUP($AW38,UPTARIFFS_PERFECT!$C$3:$BP$75,ROW(UPTARIFFS_PERFECT!$A$72)-2,0), HLOOKUP($AW38,UPTARIFFS_IMPERFECT!$C$3:$BP$75,ROW(UPTARIFFS_IMPERFECT!$A$72)-2,0)),"") ->  | AY38: =IFERROR(IF($E$2="Product Homogeneity",HLOOKUP($AW38,UPTARIFFS_PERFECT!$C$3:$BP$100,ROW(UPTARIFFS_PERFECT!$A$96)-ROW(UPTARIFFS_PERFECT!$A$2),0), HLOOKUP($AW38,UPTARIFFS_IMPERFECT!$C$3:$BP$100,ROW(UPTARIFFS_IMPERFECT!$A$96)-ROW(UPTARIFFS_IMPERFECT!$A$2),0)),"") ->  | BB38: =COUNTIF($BA$10:BA38,BA38)-1 -> 15
B39: 29 | C39: =IF($E$2="Product Homogeneity",VLOOKUP(B39,UPTARIFFS_PERFECT!$BQ:$BR,2,0),VLOOKUP(B39,UPTARIFFS_IMPERFECT!$BQ:$BR,2,0)) -> LEA - Leather products | D39: =IF($E$2="Product Homogeneity",VLOOKUP($C39,UPTARIFFS_PERFECT!$A$3:$BT$61,COLUMN(UPTARIFFS_PERFECT!$BJ$9),0), IF($E$2="Product Differentiation",VLOOKUP($C39,UPTARIFFS_IMPERFECT!$A$3:$BT$61,COLUMN(UPTARIFFS_IMPERFECT!$BI$9),0),"N/A")) -> N/A | E39: =IF($E$2="Product Homogeneity",HLOOKUP($C39,UPTARIFFS_PERFECT!$C$3:$BP$76,ROW(UPTARIFFS_PERFECT!$A$73)-2,0), IF($E$2="Product Differentiation",HLOOKUP($C39,UPTARIFFS_IMPERFECT!$C$3:$BP$76,ROW(UPTARIFFS_IMPERFECT!$A$73)-2,0),"N/A")) -> N/A | F39: =IF($E$2="Product Homogeneity",HLOOKUP($C39,UPTARIFFS_PERFECT!$C$3:$BP$76,ROW(UPTARIFFS_PERFECT!$A$72)-2,0), IF($E$2="Product Differentiation",HLOOKUP($C39,UPTARIFFS_IMPERFECT!$C$3:$BP$76,ROW(UPTARIFFS_IMPERFECT!$A$72)-2,0),"N/A")) -> N/A | G39: =IF($E$2="Product Homogeneity",HLOOKUP($C39,UPTARIFFS_PERFECT!$C$3:$BP$76,ROW(UPTARIFFS_PERFECT!$A$71)-2,0), IF($E$2="Product Differentiation",HLOOKUP($C39,UPTARIFFS_IMPERFECT!$C$3:$BP$76,ROW(UPTARIFFS_IMPERFECT!$A$71)-2,0),"N/A")) -> N/A | H39: =(D39-E39)/HLOOKUP($C39,UPTARIFFS_PERFECT!$C$3:$BP$63,ROW(UPTARIFFS_PERFECT!$A$63)-ROW(UPTARIFFS_PERFECT!$A$2),0) ->  | J39: =IF($E$2="Product Homogeneity", VLOOKUP(C39,UPTARIFFS_PERFECT!A:BM,COLUMN(UPTARIFFS_PERFECT!BM32),0), IF($E$2="Product Differentiation", VLOOKUP(C39,OUTPUT_TARIFFS_CALCULATIONS!A:F,6,0),"N/A")) -> N/A | M39: =IF($E$2="Product Homogeneity",HLOOKUP($C39,UPTARIFFS_PERFECT!$C$3:$BP$99,ROW(UPTARIFFS_PERFECT!$A$97)-ROW(UPTARIFFS_PERFECT!$A$2),0), IF($E$2="Product Differentiation",HLOOKUP($C39,UPTARIFFS_IMPERFECT!$C$3:$BP$99,ROW(UPTARIFFS_IMPERFECT!$A$97)-ROW(UPTARIFFS_IMPERFECT!$A$2),0),"N/A")) -> N/A | O39: =IF($E$2="Product Homogeneity",HLOOKUP($C39,UPTARIFFS_PERFECT!$C$3:$BP$99,ROW(UPTARIFFS_PERFECT!$A$96)-ROW(UPTARIFFS_PERFECT!$A$2),0), IF($E$2="Product Differentiation",HLOOKUP($C39,UPTARIFFS_IMPERFECT!$C$3:$BP$99,ROW(UPTARIFFS_IMPERFECT!$A$96)-ROW(UPTARIFFS_IMPERFECT!$A$2),0),"N/A")) -> N/A | Q39: =IF($E$2="Product Homogeneity",HLOOKUP($C39,UPTARIFFS_PERFECT!$C$3:$BP$99,ROW(UPTARIFFS_PERFECT!$A$95)-ROW(UPTARIFFS_PERFECT!$A$2),0), IF($E$2="Product Differentiation",HLOOKUP($C39,UPTARIFFS_IMPERFECT!$C$3:$BP$99,ROW(UPTARIFFS_IMPERFECT!$A$95)-ROW(UPTARIFFS_IMPERFECT!$A$2),0),"N/A")) -> N/A | S39: =(J39-M39)/IF($E$2="Product Homogeneity",HLOOKUP($C39,UPTARIFFS_PERFECT!$C$3:$BP$63,ROW(UPTARIFFS_PERFECT!$A$63)-ROW(UPTARIFFS_PERFECT!$A$2),0),HLOOKUP($C39,UPTARIFFS_IMPERFECT!$C$3:$BP$63,ROW(UPTARIFFS_IMPERFECT!$A$63)-ROW(UPTARIFFS_IMPERFECT!$A$2),0)) ->  | V39: 29 | AB39: 29 | AM39: =COUNTIF($AL$10:AL39,AL39)-1 -> 28 | AO39: LEA - Leather products | AV39: 29 | AW39: =IFERROR(IF($E$2="Product Homogeneity",VLOOKUP(AV39,UPTARIFFS_PERFECT!$BS:$BT,2,0), VLOOKUP(AV39,UPTARIFFS_IMPERFECT!$BS:$BT,2,0)),"") ->  | AX39: =IFERROR(IF($E$2="Product Homogeneity",HLOOKUP($AW39,UPTARIFFS_PERFECT!$C$3:$BP$75,ROW(UPTARIFFS_PERFECT!$A$72)-2,0), HLOOKUP($AW39,UPTARIFFS_IMPERFECT!$C$3:$BP$75,ROW(UPTARIFFS_IMPERFECT!$A$72)-2,0)),"") ->  | AY39: =IFERROR(IF($E$2="Product Homogeneity",HLOOKUP($AW39,UPTARIFFS_PERFECT!$C$3:$BP$100,ROW(UPTARIFFS_PERFECT!$A$96)-ROW(UPTARIFFS_PERFECT!$A$2),0), HLOOKUP($AW39,UPTARIFFS_IMPERFECT!$C$3:$BP$100,ROW(UPTARIFFS_IMPERFECT!$A$96)-ROW(UPTARIFFS_IMPERFECT!$A$2),0)),"") ->  | BB39: =COUNTIF($BA$10:BA39,BA39)-1 -> 16
B40: 30 | C40: =IF($E$2="Product Homogeneity",VLOOKUP(B40,UPTARIFFS_PERFECT!$BQ:$BR,2,0),VLOOKUP(B40,UPTARIFFS_IMPERFECT!$BQ:$BR,2,0)) -> LUM - Wood products | D40: =IF($E$2="Product Homogeneity",VLOOKUP($C40,UPTARIFFS_PERFECT!$A$3:$BT$61,COLUMN(UPTARIFFS_PERFECT!$BJ$9),0), IF($E$2="Product Differentiation",VLOOKUP($C40,UPTARIFFS_IMPERFECT!$A$3:$BT$61,COLUMN(UPTARIFFS_IMPERFECT!$BI$9),0),"N/A")) -> N/A | E40: =IF($E$2="Product Homogeneity",HLOOKUP($C40,UPTARIFFS_PERFECT!$C$3:$BP$76,ROW(UPTARIFFS_PERFECT!$A$73)-2,0), IF($E$2="Product Differentiation",HLOOKUP($C40,UPTARIFFS_IMPERFECT!$C$3:$BP$76,ROW(UPTARIFFS_IMPERFECT!$A$73)-2,0),"N/A")) -> N/A | F40: =IF($E$2="Product Homogeneity",HLOOKUP($C40,UPTARIFFS_PERFECT!$C$3:$BP$76,ROW(UPTARIFFS_PERFECT!$A$72)-2,0), IF($E$2="Product Differentiation",HLOOKUP($C40,UPTARIFFS_IMPERFECT!$C$3:$BP$76,ROW(UPTARIFFS_IMPERFECT!$A$72)-2,0),"N/A")) -> N/A | G40: =IF($E$2="Product Homogeneity",HLOOKUP($C40,UPTARIFFS_PERFECT!$C$3:$BP$76,ROW(UPTARIFFS_PERFECT!$A$71)-2,0), IF($E$2="Product Differentiation",HLOOKUP($C40,UPTARIFFS_IMPERFECT!$C$3:$BP$76,ROW(UPTARIFFS_IMPERFECT!$A$71)-2,0),"N/A")) -> N/A | H40: =(D40-E40)/HLOOKUP($C40,UPTARIFFS_PERFECT!$C$3:$BP$63,ROW(UPTARIFFS_PERFECT!$A$63)-ROW(UPTARIFFS_PERFECT!$A$2),0) ->  | J40: =IF($E$2="Product Homogeneity", VLOOKUP(C40,UPTARIFFS_PERFECT!A:BM,COLUMN(UPTARIFFS_PERFECT!BM33),0), IF($E$2="Product Differentiation", VLOOKUP(C40,OUTPUT_TARIFFS_CALCULATIONS!A:F,6,0),"N/A")) -> N/A | M40: =IF($E$2="Product Homogeneity",HLOOKUP($C40,UPTARIFFS_PERFECT!$C$3:$BP$99,ROW(UPTARIFFS_PERFECT!$A$97)-ROW(UPTARIFFS_PERFECT!$A$2),0), IF($E$2="Product Differentiation",HLOOKUP($C40,UPTARIFFS_IMPERFECT!$C$3:$BP$99,ROW(UPTARIFFS_IMPERFECT!$A$97)-ROW(UPTARIFFS_IMPERFECT!$A$2),0),"N/A")) -> N/A | O40: =IF($E$2="Product Homogeneity",HLOOKUP($C40,UPTARIFFS_PERFECT!$C$3:$BP$99,ROW(UPTARIFFS_PERFECT!$A$96)-ROW(UPTARIFFS_PERFECT!$A$2),0), IF($E$2="Product Differentiation",HLOOKUP($C40,UPTARIFFS_IMPERFECT!$C$3:$BP$99,ROW(UPTARIFFS_IMPERFECT!$A$96)-ROW(UPTARIFFS_IMPERFECT!$A$2),0),"N/A")) -> N/A | Q40: =IF($E$2="Product Homogeneity",HLOOKUP($C40,UPTARIFFS_PERFECT!$C$3:$BP$99,ROW(UPTARIFFS_PERFECT!$A$95)-ROW(UPTARIFFS_PERFECT!$A$2),0), IF($E$2="Product Differentiation",HLOOKUP($C40,UPTARIFFS_IMPERFECT!$C$3:$BP$99,ROW(UPTARIFFS_IMPERFECT!$A$95)-ROW(UPTARIFFS_IMPERFECT!$A$2),0),"N/A")) -> N/A | S40: =(J40-M40)/IF($E$2="Product Homogeneity",HLOOKUP($C40,UPTARIFFS_PERFECT!$C$3:$BP$63,ROW(UPTARIFFS_PERFECT!$A$63)-ROW(UPTARIFFS_PERFECT!$A$2),0),HLOOKUP($C40,UPTARIFFS_IMPERFECT!$C$3:$BP$63,ROW(UPTARIFFS_IMPERFECT!$A$63)-ROW(UPTARIFFS_IMPERFECT!$A$2),0)) ->  | V40: 30 | AB40: 30 | AM40: =COUNTIF($AL$10:AL40,AL40)-1 -> 29 | AO40: LUM - Wood products | AV40: 30 | AW40: =IFERROR(IF($E$2="Product Homogeneity",VLOOKUP(AV40,UPTARIFFS_PERFECT!$BS:$BT,2,0), VLOOKUP(AV40,UPTARIFFS_IMPERFECT!$BS:$BT,2,0)),"") ->  | AX40: =IFERROR(IF($E$2="Product Homogeneity",HLOOKUP($AW40,UPTARIFFS_PERFECT!$C$3:$BP$75,ROW(UPTARIFFS_PERFECT!$A$72)-2,0), HLOOKUP($AW40,UPTARIFFS_IMPERFECT!$C$3:$BP$75,ROW(UPTARIFFS_IMPERFECT!$A$72)-2,0)),"") ->  | AY40: =IFERROR(IF($E$2="Product Homogeneity",HLOOKUP($AW40,UPTARIFFS_PERFECT!$C$3:$BP$100,ROW(UPTARIFFS_PERFECT!$A$96)-ROW(UPTARIFFS_PERFECT!$A$2),0), HLOOKUP($AW40,UPTARIFFS_IMPERFECT!$C$3:$BP$100,ROW(UPTARIFFS_IMPERFECT!$A$96)-ROW(UPTARIFFS_IMPERFECT!$A$2),0)),"") ->  | BB40: =COUNTIF($BA$10:BA40,BA40)-1 -> 17
B41: 31 | C41: =IF($E$2="Product Homogeneity",VLOOKUP(B41,UPTARIFFS_PERFECT!$BQ:$BR,2,0),VLOOKUP(B41,UPTARIFFS_IMPERFECT!$BQ:$BR,2,0)) -> PPP - Paper products, publishing | D41: =IF($E$2="Product Homogeneity",VLOOKUP($C41,UPTARIFFS_PERFECT!$A$3:$BT$61,COLUMN(UPTARIFFS_PERFECT!$BJ$9),0), IF($E$2="Product Differentiation",VLOOKUP($C41,UPTARIFFS_IMPERFECT!$A$3:$BT$61,COLUMN(UPTARIFFS_IMPERFECT!$BI$9),0),"N/A")) -> N/A | E41: =IF($E$2="Product Homogeneity",HLOOKUP($C41,UPTARIFFS_PERFECT!$C$3:$BP$76,ROW(UPTARIFFS_PERFECT!$A$73)-2,0), IF($E$2="Product Differentiation",HLOOKUP($C41,UPTARIFFS_IMPERFECT!$C$3:$BP$76,ROW(UPTARIFFS_IMPERFECT!$A$73)-2,0),"N/A")) -> N/A | F41: =IF($E$2="Product Homogeneity",HLOOKUP($C41,UPTARIFFS_PERFECT!$C$3:$BP$76,ROW(UPTARIFFS_PERFECT!$A$72)-2,0), IF($E$2="Product Differentiation",HLOOKUP($C41,UPTARIFFS_IMPERFECT!$C$3:$BP$76,ROW(UPTARIFFS_IMPERFECT!$A$72)-2,0),"N/A")) -> N/A | G41: =IF($E$2="Product Homogeneity",HLOOKUP($C41,UPTARIFFS_PERFECT!$C$3:$BP$76,ROW(UPTARIFFS_PERFECT!$A$71)-2,0), IF($E$2="Product Differentiation",HLOOKUP($C41,UPTARIFFS_IMPERFECT!$C$3:$BP$76,ROW(UPTARIFFS_IMPERFECT!$A$71)-2,0),"N/A")) -> N/A | H41: =(D41-E41)/HLOOKUP($C41,UPTARIFFS_PERFECT!$C$3:$BP$63,ROW(UPTARIFFS_PERFECT!$A$63)-ROW(UPTARIFFS_PERFECT!$A$2),0) ->  | J41: =IF($E$2="Product Homogeneity", VLOOKUP(C41,UPTARIFFS_PERFECT!A:BM,COLUMN(UPTARIFFS_PERFECT!BM34),0), IF($E$2="Product Differentiation", VLOOKUP(C41,OUTPUT_TARIFFS_CALCULATIONS!A:F,6,0),"N/A")) -> N/A | M41: =IF($E$2="Product Homogeneity",HLOOKUP($C41,UPTARIFFS_PERFECT!$C$3:$BP$99,ROW(UPTARIFFS_PERFECT!$A$97)-ROW(UPTARIFFS_PERFECT!$A$2),0), IF($E$2="Product Differentiation",HLOOKUP($C41,UPTARIFFS_IMPERFECT!$C$3:$BP$99,ROW(UPTARIFFS_IMPERFECT!$A$97)-ROW(UPTARIFFS_IMPERFECT!$A$2),0),"N/A")) -> N/A | O41: =IF($E$2="Product Homogeneity",HLOOKUP($C41,UPTARIFFS_PERFECT!$C$3:$BP$99,ROW(UPTARIFFS_PERFECT!$A$96)-ROW(UPTARIFFS_PERFECT!$A$2),0), IF($E$2="Product Differentiation",HLOOKUP($C41,UPTARIFFS_IMPERFECT!$C$3:$BP$99,ROW(UPTARIFFS_IMPERFECT!$A$96)-ROW(UPTARIFFS_IMPERFECT!$A$2),0),"N/A")) -> N/A | Q41: =IF($E$2="Product Homogeneity",HLOOKUP($C41,UPTARIFFS_PERFECT!$C$3:$BP$99,ROW(UPTARIFFS_PERFECT!$A$95)-ROW(UPTARIFFS_PERFECT!$A$2),0), IF($E$2="Product Differentiation",HLOOKUP($C41,UPTARIFFS_IMPERFECT!$C$3:$BP$99,ROW(UPTARIFFS_IMPERFECT!$A$95)-ROW(UPTARIFFS_IMPERFECT!$A$2),0),"N/A")) -> N/A | S41: =(J41-M41)/IF($E$2="Product Homogeneity",HLOOKUP($C41,UPTARIFFS_PERFECT!$C$3:$BP$63,ROW(UPTARIFFS_PERFECT!$A$63)-ROW(UPTARIFFS_PERFECT!$A$2),0),HLOOKUP($C41,UPTARIFFS_IMPERFECT!$C$3:$BP$63,ROW(UPTARIFFS_IMPERFECT!$A$63)-ROW(UPTARIFFS_IMPERFECT!$A$2),0)) ->  | V41: 31 | AB41: 31 | AM41: =COUNTIF($AL$10:AL41,AL41)-1 -> 30 | AO41: PPP - Paper products, publishing | AV41: 31 | AW41: =IFERROR(IF($E$2="Product Homogeneity",VLOOKUP(AV41,UPTARIFFS_PERFECT!$BS:$BT,2,0), VLOOKUP(AV41,UPTARIFFS_IMPERFECT!$BS:$BT,2,0)),"") ->  | AX41: =IFERROR(IF($E$2="Product Homogeneity",HLOOKUP($AW41,UPTARIFFS_PERFECT!$C$3:$BP$75,ROW(UPTARIFFS_PERFECT!$A$72)-2,0), HLOOKUP($AW41,UPTARIFFS_IMPERFECT!$C$3:$BP$75,ROW(UPTARIFFS_IMPERFECT!$A$72)-2,0)),"") ->  | AY41: =IFERROR(IF($E$2="Product Homogeneity",HLOOKUP($AW41,UPTARIFFS_PERFECT!$C$3:$BP$100,ROW(UPTARIFFS_PERFECT!$A$96)-ROW(UPTARIFFS_PERFECT!$A$2),0), HLOOKUP($AW41,UPTARIFFS_IMPERFECT!$C$3:$BP$100,ROW(UPTARIFFS_IMPERFECT!$A$96)-ROW(UPTARIFFS_IMPERFECT!$A$2),0)),"") ->  | BB41: =COUNTIF($BA$10:BA41,BA41)-1 -> 18
B42: 32 | C42: =IF($E$2="Product Homogeneity",VLOOKUP(B42,UPTARIFFS_PERFECT!$BQ:$BR,2,0),VLOOKUP(B42,UPTARIFFS_IMPERFECT!$BQ:$BR,2,0)) -> P_C - Petroleum, coal products | D42: =IF($E$2="Product Homogeneity",VLOOKUP($C42,UPTARIFFS_PERFECT!$A$3:$BT$61,COLUMN(UPTARIFFS_PERFECT!$BJ$9),0), IF($E$2="Product Differentiation",VLOOKUP($C42,UPTARIFFS_IMPERFECT!$A$3:$BT$61,COLUMN(UPTARIFFS_IMPERFECT!$BI$9),0),"N/A")) -> N/A | E42: =IF($E$2="Product Homogeneity",HLOOKUP($C42,UPTARIFFS_PERFECT!$C$3:$BP$76,ROW(UPTARIFFS_PERFECT!$A$73)-2,0), IF($E$2="Product Differentiation",HLOOKUP($C42,UPTARIFFS_IMPERFECT!$C$3:$BP$76,ROW(UPTARIFFS_IMPERFECT!$A$73)-2,0),"N/A")) -> N/A | F42: =IF($E$2="Product Homogeneity",HLOOKUP($C42,UPTARIFFS_PERFECT!$C$3:$BP$76,ROW(UPTARIFFS_PERFECT!$A$72)-2,0), IF($E$2="Product Differentiation",HLOOKUP($C42,UPTARIFFS_IMPERFECT!$C$3:$BP$76,ROW(UPTARIFFS_IMPERFECT!$A$72)-2,0),"N/A")) -> N/A | G42: =IF($E$2="Product Homogeneity",HLOOKUP($C42,UPTARIFFS_PERFECT!$C$3:$BP$76,ROW(UPTARIFFS_PERFECT!$A$71)-2,0), IF($E$2="Product Differentiation",HLOOKUP($C42,UPTARIFFS_IMPERFECT!$C$3:$BP$76,ROW(UPTARIFFS_IMPERFECT!$A$71)-2,0),"N/A")) -> N/A | H42: =(D42-E42)/HLOOKUP($C42,UPTARIFFS_PERFECT!$C$3:$BP$63,ROW(UPTARIFFS_PERFECT!$A$63)-ROW(UPTARIFFS_PERFECT!$A$2),0) ->  | J42: =IF($E$2="Product Homogeneity", VLOOKUP(C42,UPTARIFFS_PERFECT!A:BM,COLUMN(UPTARIFFS_PERFECT!BM35),0), IF($E$2="Product Differentiation", VLOOKUP(C42,OUTPUT_TARIFFS_CALCULATIONS!A:F,6,0),"N/A")) -> N/A | M42: =IF($E$2="Product Homogeneity",HLOOKUP($C42,UPTARIFFS_PERFECT!$C$3:$BP$99,ROW(UPTARIFFS_PERFECT!$A$97)-ROW(UPTARIFFS_PERFECT!$A$2),0), IF($E$2="Product Differentiation",HLOOKUP($C42,UPTARIFFS_IMPERFECT!$C$3:$BP$99,ROW(UPTARIFFS_IMPERFECT!$A$97)-ROW(UPTARIFFS_IMPERFECT!$A$2),0),"N/A")) -> N/A | O42: =IF($E$2="Product Homogeneity",HLOOKUP($C42,UPTARIFFS_PERFECT!$C$3:$BP$99,ROW(UPTARIFFS_PERFECT!$A$96)-ROW(UPTARIFFS_PERFECT!$A$2),0), IF($E$2="Product Differentiation",HLOOKUP($C42,UPTARIFFS_IMPERFECT!$C$3:$BP$99,ROW(UPTARIFFS_IMPERFECT!$A$96)-ROW(UPTARIFFS_IMPERFECT!$A$2),0),"N/A")) -> N/A | Q42: =IF($E$2="Product Homogeneity",HLOOKUP($C42,UPTARIFFS_PERFECT!$C$3:$BP$99,ROW(UPTARIFFS_PERFECT!$A$95)-ROW(UPTARIFFS_PERFECT!$A$2),0), IF($E$2="Product Differentiation",HLOOKUP($C42,UPTARIFFS_IMPERFECT!$C$3:$BP$99,ROW(UPTARIFFS_IMPERFECT!$A$95)-ROW(UPTARIFFS_IMPERFECT!$A$2),0),"N/A")) -> N/A | S42: =(J42-M42)/IF($E$2="Product Homogeneity",HLOOKUP($C42,UPTARIFFS_PERFECT!$C$3:$BP$63,ROW(UPTARIFFS_PERFECT!$A$63)-ROW(UPTARIFFS_PERFECT!$A$2),0),HLOOKUP($C42,UPTARIFFS_IMPERFECT!$C$3:$BP$63,ROW(UPTARIFFS_IMPERFECT!$A$63)-ROW(UPTARIFFS_IMPERFECT!$A$2),0)) ->  | V42: 32 | AB42: 32 | AM42: =COUNTIF($AL$10:AL42,AL42)-1 -> 31 | AO42: P_C - Petroleum, coal products | AV42: 32 | AW42: =IFERROR(IF($E$2="Product Homogeneity",VLOOKUP(AV42,UPTARIFFS_PERFECT!$BS:$BT,2,0), VLOOKUP(AV42,UPTARIFFS_IMPERFECT!$BS:$BT,2,0)),"") ->  | AX42: =IFERROR(IF($E$2="Product Homogeneity",HLOOKUP($AW42,UPTARIFFS_PERFECT!$C$3:$BP$75,ROW(UPTARIFFS_PERFECT!$A$72)-2,0), HLOOKUP($AW42,UPTARIFFS_IMPERFECT!$C$3:$BP$75,ROW(UPTARIFFS_IMPERFECT!$A$72)-2,0)),"") ->  | AY42: =IFERROR(IF($E$2="Product Homogeneity",HLOOKUP($AW42,UPTARIFFS_PERFECT!$C$3:$BP$100,ROW(UPTARIFFS_PERFECT!$A$96)-ROW(UPTARIFFS_PERFECT!$A$2),0), HLOOKUP($AW42,UPTARIFFS_IMPERFECT!$C$3:$BP$100,ROW(UPTARIFFS_IMPERFECT!$A$96)-ROW(UPTARIFFS_IMPERFECT!$A$2),0)),"") ->  | BB42: =COUNTIF($BA$10:BA42,BA42)-1 -> 19
